{"text_format":"1","workbook":"xlsx","n_sheets":6,"sheets":["Step 1","Utility PickList","Step 2","Historical Facilities Look Up","Facilities Look Up","EPEs"],"not_rendered":{"charts":0,"images":2,"macros":1,"external_links":5,"defined_names":41,"comments":0,"pivot_tables":0},"unopened":[],"bounds":{"document_bytes":16777216,"sheet_cells":100000,"rows_first":2000,"rows_last":500,"rows_between":2000,"halvings":0,"cell_chars":16384,"cell_head_chars":4096},"cells_cut":0,"cells_raw":0,"read":"whole","date_system":"1900"}

{"sheet":"Step 1","index":0,"n_rows":45,"n_cols":4,"rows_kept":45,"cut":false,"hidden":false,"merged":[[8,3,8,4],[44,2,44,3],[32,2,32,3],[33,2,33,3],[37,2,37,3],[39,2,39,3],[0,1,0,4],[26,2,26,3],[28,2,28,3],[43,2,43,3],[12,2,12,3],[24,2,24,3],[20,2,20,3],[18,2,18,3],[19,2,19,3],[17,2,17,3],[9,3,9,4],[16,2,16,3],[1,1,1,4],[2,1,2,4],[3,1,3,4],[4,1,4,4]]}
[null,"Oregon DEQ Greenhouse Gas Reporting Progam"]
[null,"Specified Source Facilities Registration Workbook"]
[null,"Electricity Generating Facility Registration for Specified Sources"]
[null,"Version: RY2020"]
[null,"Finalized: 1/25/2021"]
[]
[null,null,"Reporting Entity Information:"]
[]
[null,null,"Entity Name: \n\n     If not listed, contact CARB to register your EPE & request a personalized registration workbook",""]
[null,null,"Emission Year",2020]
[]
[]
[null,null,"The Oregon Department of Environmental Quality (DEQ) is providing this Specified Source Registration Workbook to electricity suppliers that serve electricity to end users in Oregon (or are third parties reporting on behalf of consumer-owned utilities) for the registration of anticipated specified source facilities or units for use in reporting calendar year 2020 emissions.\n\nIn advance of the reporting deadline, electricity suppliers (or third party reporters) must register their anticipated specified sources of power that they intend to claim in their 2020 Emissions Data Reports pursuant to OAR 340-215-0120.  In the event of an unforeseen or extenuating circumstance, if a facility was not registered in advance, electricity generating facility information should listed in this workbook and uploaded as an attachment during emissions reporting.                                                                                                                                                                                         “Specified source of electricity” or “specified source” means a facility or unit which is allowed to be claimed as the source of electricity delivered. The regulated entity must have either full or partial ownership of the facility or unit, or a written power contract to procure electricity generated by that facility or unit. Specified facilities or units include cogeneration systems. Specified source also means electricity procured from an asset-controlling supplier recognized by DEQ.                                                                                                                                                                                                                                                               "]
[]
[]
[]
[null,null,"Form Instructions"]
[null,null,"Electricity suppliers should report all specified sources for electricity delivered or distributed to end users in this state during the previous year, regardless of whether the electricity was generated in Oregon or imported.  Although electricity purchased through an energy imbalance market or other centralized market will be assigned the default unspecified emission factor, these sources should still be registered on this form.   "]
[null,null,"Multijurisdictional electricity suppliers and asset controlling suppliers should report all specified sources for electricity in the utility's service territory or power system, including specified sources for wholesale electricity purchases, generation, and sales. "]
[null,null,"A request to register a unit (as opposed to a facility) must be justified in writing with submittal of this form. A unit must be written in a contract as a specified source of power or owned by a utility for consideration of registration. DEQ will review all requests on a unit by unit basis, and will inform you if the request was approved (or disapproved). "]
[null,null,"DEQ will use this information to calculate and assign an emissions factor for each specified source according to OAR 340-215-0120(6)(a). The emission factors will be available in DEQ's online reporting tool, Your DEQ Online, at the time of reporting."]
[]
[]
[]
[null,null,"Form Color Code"]
[]
[null,null,"Light green cells require reporter inputs. "]
[]
[null,null,"Light blue cells auto-populate information based on reporter inputs."]
[]
[]
[]
[null,null,"Completed Specified Source Facilities Workbooks must be uploaded to the Attachments tab of your data emissions report in Your DEQ Online."]
[null,null,"\"Specified Source Registration CY2020 – [Utility or Third Party Name]” "]
[]
[]
[]
[null,null,"Questions for DEQ"]
[]
[null,null,"If you have questions on this registration workbook, please contact:"]
[null,null,"Mary Pleasant","Mary.Pleasant@deq.state.or.us"]
[null,null,null,"(503) 866-7716 "]
[null,null,"Greenhouse Gas Reporting Program","GHGReport@deq.state.or.us"]
[null,null,"Additional information on the Greenhouse Gas Reporting Program can be found at:   "]
[null,null,"https://www.oregon.gov/deq/aq/programs/Pages/GHG.aspx"]

{"sheet":"Utility PickList","index":1,"n_rows":22,"n_cols":12,"rows_kept":22,"cut":false,"hidden":true,"merged":[]}
["Reporting Entities"]
["Select reporting entity from drop-down"]
["Idaho Power",{"$f":"--ISNUMBER(IFERROR(SEARCH('Step 1'!$D$9,A3,1),\"\"))","v":1},{"$f":"IF(B3=1,COUNTIF($B$3:B3,1),\"\")","v":1},{"$f":"IFERROR(INDEX($A$3:$A$22,MATCH(ROWS($C$3:C3),$C$3:$C$22,0)),\"\")","v":"Idaho Power"},null,null,null,null,null,null,null,"Yes"]
["Pacific Power (PacifiCorp)",{"$f":"--ISNUMBER(IFERROR(SEARCH('Step 1'!$D$9,A4,1),\"\"))","v":1},{"$f":"IF(B4=1,COUNTIF($B$3:B4,1),\"\")","v":2},{"$f":"IFERROR(INDEX($A$3:$A$22,MATCH(ROWS($C$3:C4),$C$3:$C$22,0)),\"\")","v":"Pacific Power (PacifiCorp)"},null,null,null,null,null,null,null,"No"]
["Portland General Electric (PGE)",{"$f":"--ISNUMBER(IFERROR(SEARCH('Step 1'!$D$9,A5,1),\"\"))","v":1},{"$f":"IF(B5=1,COUNTIF($B$3:B5,1),\"\")","v":3},{"$f":"IFERROR(INDEX($A$3:$A$22,MATCH(ROWS($C$3:C5),$C$3:$C$22,0)),\"\")","v":"Portland General Electric (PGE)"},null,null,null,null,null,null,null,"Partial Ownership"]
["3 Phases Renewables ",{"$f":"--ISNUMBER(IFERROR(SEARCH('Step 1'!$D$9,A6,1),\"\"))","v":1},{"$f":"IF(B6=1,COUNTIF($B$3:B6,1),\"\")","v":4},{"$f":"IFERROR(INDEX($A$3:$A$22,MATCH(ROWS($C$3:C6),$C$3:$C$22,0)),\"\")","v":"3 Phases Renewables "}]
["Avangrid Renewables",{"$f":"--ISNUMBER(IFERROR(SEARCH('Step 1'!$D$9,A7,1),\"\"))","v":1},{"$f":"IF(B7=1,COUNTIF($B$3:B7,1),\"\")","v":5},{"$f":"IFERROR(INDEX($A$3:$A$22,MATCH(ROWS($C$3:C7),$C$3:$C$22,0)),\"\")","v":"Avangrid Renewables"}]
["Calpine Energy Solutions",{"$f":"--ISNUMBER(IFERROR(SEARCH('Step 1'!$D$9,A8,1),\"\"))","v":1},{"$f":"IF(B8=1,COUNTIF($B$3:B8,1),\"\")","v":6},{"$f":"IFERROR(INDEX($A$3:$A$22,MATCH(ROWS($C$3:C8),$C$3:$C$22,0)),\"\")","v":"Calpine Energy Solutions"},null,null,null,null,null,null,null,"https://www.youtube.com/watch?v=Ea_ACp5W8zI"]
["Constellation New Energy",{"$f":"--ISNUMBER(IFERROR(SEARCH('Step 1'!$D$9,A9,1),\"\"))","v":1},{"$f":"IF(B9=1,COUNTIF($B$3:B9,1),\"\")","v":7},{"$f":"IFERROR(INDEX($A$3:$A$22,MATCH(ROWS($C$3:C9),$C$3:$C$22,0)),\"\")","v":"Constellation New Energy"},null,null,null,null,null,null,null,"Don’t have office 365, so don't have filter function?"]
["Shell Energy North America",{"$f":"--ISNUMBER(IFERROR(SEARCH('Step 1'!$D$9,A10,1),\"\"))","v":1},{"$f":"IF(B10=1,COUNTIF($B$3:B10,1),\"\")","v":8},{"$f":"IFERROR(INDEX($A$3:$A$22,MATCH(ROWS($C$3:C10),$C$3:$C$22,0)),\"\")","v":"Shell Energy North America"}]
["Bonneville Power Administration",{"$f":"--ISNUMBER(IFERROR(SEARCH('Step 1'!$D$9,A11,1),\"\"))","v":1},{"$f":"IF(B11=1,COUNTIF($B$3:B11,1),\"\")","v":9},{"$f":"IFERROR(INDEX($A$3:$A$22,MATCH(ROWS($C$3:C11),$C$3:$C$22,0)),\"\")","v":"Bonneville Power Administration"}]
["Clatskanie PUD",{"$f":"--ISNUMBER(IFERROR(SEARCH('Step 1'!$D$9,A12,1),\"\"))","v":1},{"$f":"IF(B12=1,COUNTIF($B$3:B12,1),\"\")","v":10},{"$f":"IFERROR(INDEX($A$3:$A$22,MATCH(ROWS($C$3:C12),$C$3:$C$22,0)),\"\")","v":"Clatskanie PUD"}]
["Columbia Rural Electric (Columbia REA)",{"$f":"--ISNUMBER(IFERROR(SEARCH('Step 1'!$D$9,A13,1),\"\"))","v":1},{"$f":"IF(B13=1,COUNTIF($B$3:B13,1),\"\")","v":11},{"$f":"IFERROR(INDEX($A$3:$A$22,MATCH(ROWS($C$3:C13),$C$3:$C$22,0)),\"\")","v":"Columbia Rural Electric (Columbia REA)"}]
["Emerald PUD",{"$f":"--ISNUMBER(IFERROR(SEARCH('Step 1'!$D$9,A14,1),\"\"))","v":1},{"$f":"IF(B14=1,COUNTIF($B$3:B14,1),\"\")","v":12},{"$f":"IFERROR(INDEX($A$3:$A$22,MATCH(ROWS($C$3:C14),$C$3:$C$22,0)),\"\")","v":"Emerald PUD"}]
["Eugene Water & Electric Board (EWEB)",{"$f":"--ISNUMBER(IFERROR(SEARCH('Step 1'!$D$9,A15,1),\"\"))","v":1},{"$f":"IF(B15=1,COUNTIF($B$3:B15,1),\"\")","v":13},{"$f":"IFERROR(INDEX($A$3:$A$22,MATCH(ROWS($C$3:C15),$C$3:$C$22,0)),\"\")","v":"Eugene Water & Electric Board (EWEB)"}]
["Forest Grove Light & Power",{"$f":"--ISNUMBER(IFERROR(SEARCH('Step 1'!$D$9,A16,1),\"\"))","v":1},{"$f":"IF(B16=1,COUNTIF($B$3:B16,1),\"\")","v":14},{"$f":"IFERROR(INDEX($A$3:$A$22,MATCH(ROWS($C$3:C16),$C$3:$C$22,0)),\"\")","v":"Forest Grove Light & Power"}]
["Harney Electric Cooperative",{"$f":"--ISNUMBER(IFERROR(SEARCH('Step 1'!$D$9,A17,1),\"\"))","v":1},{"$f":"IF(B17=1,COUNTIF($B$3:B17,1),\"\")","v":15},{"$f":"IFERROR(INDEX($A$3:$A$22,MATCH(ROWS($C$3:C17),$C$3:$C$22,0)),\"\")","v":"Harney Electric Cooperative"}]
["Milton-Freewater City Light & Power",{"$f":"--ISNUMBER(IFERROR(SEARCH('Step 1'!$D$9,A18,1),\"\"))","v":1},{"$f":"IF(B18=1,COUNTIF($B$3:B18,1),\"\")","v":16},{"$f":"IFERROR(INDEX($A$3:$A$22,MATCH(ROWS($C$3:C18),$C$3:$C$22,0)),\"\")","v":"Milton-Freewater City Light & Power"}]
["Northern Wasco PUD",{"$f":"--ISNUMBER(IFERROR(SEARCH('Step 1'!$D$9,A19,1),\"\"))","v":1},{"$f":"IF(B19=1,COUNTIF($B$3:B19,1),\"\")","v":17},{"$f":"IFERROR(INDEX($A$3:$A$22,MATCH(ROWS($C$3:C19),$C$3:$C$22,0)),\"\")","v":"Northern Wasco PUD"}]
["PNGC Power",{"$f":"--ISNUMBER(IFERROR(SEARCH('Step 1'!$D$9,A20,1),\"\"))","v":1},{"$f":"IF(B20=1,COUNTIF($B$3:B20,1),\"\")","v":18},{"$f":"IFERROR(INDEX($A$3:$A$22,MATCH(ROWS($C$3:C20),$C$3:$C$22,0)),\"\")","v":"PNGC Power"}]
["Surprise Valley Electrification Corporation",{"$f":"--ISNUMBER(IFERROR(SEARCH('Step 1'!$D$9,A21,1),\"\"))","v":1},{"$f":"IF(B21=1,COUNTIF($B$3:B21,1),\"\")","v":19},{"$f":"IFERROR(INDEX($A$3:$A$22,MATCH(ROWS($C$3:C21),$C$3:$C$22,0)),\"\")","v":"Surprise Valley Electrification Corporation"}]
["Tillamook PUD",{"$f":"--ISNUMBER(IFERROR(SEARCH('Step 1'!$D$9,A22,1),\"\"))","v":1},{"$f":"IF(B22=1,COUNTIF($B$3:B22,1),\"\")","v":20},{"$f":"IFERROR(INDEX($A$3:$A$22,MATCH(ROWS($C$3:C22),$C$3:$C$22,0)),\"\")","v":"Tillamook PUD"}]

{"sheet":"Step 2","index":2,"n_rows":312,"n_cols":17,"rows_kept":312,"cut":false,"hidden":false,"merged":[[12,7,12,10],[12,1,12,4],[10,6,10,10],[0,0,0,10],[6,0,6,4],[6,6,6,10],[7,0,7,4],[8,0,8,4],[9,6,9,10],[9,0,9,4],[1,0,1,10],[2,0,2,10],[4,0,4,10],[3,0,3,10],[7,6,8,10]]}
["Instructions"]
["Register all anticipated specified sources of power that you intend to claim for your reporting entity's 2020 Emissions Data Report to the Oregon DEQ Greenhouse Gas Reporting Program (GHGRP) for the electricity sector. "]
["Use the Existing Specified Sources table to register sources already in our database (see \"Facilities Look Up\" tab) by selecting a facility from the drop-down list. "]
["For any source that you anticipate reporting that is not on the \"Facilities Look Up\" tab, add it in the New Specified Sources table."]
["For new sources that the reporting entity owns, complete as many fields as possible in the New Specified Sources table. For new specified sources that are not owned by the reporting entity, complete the source ID fields, where available."]
[]
["Existing Specified Sources Table Notes",null,null,null,null,null,"New Specified Sources Table Notes"]
["Note: Facility drop-down list is in alphabetical order.",null,null,null,null,null,"Note: Provide source IDs, where available. An Oregon ID will be assigned during registration. Information provided will be used to match the facility to a public data source, where available, to calculate facility-specific emission factors."]
["Note: Energy Imbalance Market is a source option in the drop-down list. "]
["Note: DEQ's Facilities database is derived from 2019 GHGRP reports to DEQ. The list may be incomplete due to change in reporting methodology.",null,null,null,null,null,"Note: Net Generation and Emissions refers to total facility or unit generation, regardless of whether the electricity was served to end-users in Oregon."]
[null,null,null,null,null,null,"Note: Emissions refers to anthropogenic CO2, CH4, and N2O expressed as MTCO2e."]
[]
["Existing Specified Sources","Source IDs",null,null,null,null,"New Specified Sources","Source IDs"]
[" (Select facility name from drop-down list. List refers to the \"Facilities Look Up\" tab)","Oregon DEQ ID","California Air Resources Board            (CARB) ID","Environmental Protection Agency                    (US EPA) ID","Energy Information Administration (US EIA) ID",null,"(Add sources NOT listed on the \"Facilities Look Up\" tab)","Do you own this facility or unit?","California Air Resources Board            (CARB) ID","Environmental Protection Agency                    (US EPA) ID","Energy Information Administration (US EIA) ID","Primary Fuel Type","Net Generation (MWh) for 2019","Emissions (MT CO2e) ","Data source for net generation","Data source for emissions","Comments (optional)"]
[null,{"$f":"_xlfn.IFNA(VLOOKUP(A15,'Facilities Look Up'!$A$3:$E$325,2,FALSE),\"\")","v":""},{"$f":"_xlfn.IFNA(VLOOKUP(A15,'Facilities Look Up'!$A$3:$E$325,3,FALSE),\"\")","v":""},{"$f":"_xlfn.IFNA(VLOOKUP(A15,'Facilities Look Up'!$A$3:$E$325,4,FALSE),\"\")","v":""},{"$f":"_xlfn.IFNA(VLOOKUP(A15,'Facilities Look Up'!$A$3:$E$325,5,FALSE),\"\")","v":""}]
[null,{"$f":"_xlfn.IFNA(VLOOKUP(A16,'Facilities Look Up'!$A$3:$E$325,2,FALSE),\"\")","v":""},{"$f":"_xlfn.IFNA(VLOOKUP(A16,'Facilities Look Up'!$A$3:$E$325,3,FALSE),\"\")","v":""},{"$f":"_xlfn.IFNA(VLOOKUP(A16,'Facilities Look Up'!$A$3:$E$325,4,FALSE),\"\")","v":""},{"$f":"_xlfn.IFNA(VLOOKUP(A16,'Facilities Look Up'!$A$3:$E$325,5,FALSE),\"\")","v":""}]
[null,{"$f":"_xlfn.IFNA(VLOOKUP(A17,'Facilities Look Up'!$A$3:$E$325,2,FALSE),\"\")","v":""},{"$f":"_xlfn.IFNA(VLOOKUP(A17,'Facilities Look Up'!$A$3:$E$325,3,FALSE),\"\")","v":""},{"$f":"_xlfn.IFNA(VLOOKUP(A17,'Facilities Look Up'!$A$3:$E$325,4,FALSE),\"\")","v":""},{"$f":"_xlfn.IFNA(VLOOKUP(A17,'Facilities Look Up'!$A$3:$E$325,5,FALSE),\"\")","v":""}]
[null,{"$f":"_xlfn.IFNA(VLOOKUP(A18,'Facilities Look Up'!$A$3:$E$325,2,FALSE),\"\")","v":""},{"$f":"_xlfn.IFNA(VLOOKUP(A18,'Facilities Look Up'!$A$3:$E$325,3,FALSE),\"\")","v":""},{"$f":"_xlfn.IFNA(VLOOKUP(A18,'Facilities Look Up'!$A$3:$E$325,4,FALSE),\"\")","v":""},{"$f":"_xlfn.IFNA(VLOOKUP(A18,'Facilities Look Up'!$A$3:$E$325,5,FALSE),\"\")","v":""}]
[null,{"$f":"_xlfn.IFNA(VLOOKUP(A19,'Facilities Look Up'!$A$3:$E$325,2,FALSE),\"\")","v":""},{"$f":"_xlfn.IFNA(VLOOKUP(A19,'Facilities Look Up'!$A$3:$E$325,3,FALSE),\"\")","v":""},{"$f":"_xlfn.IFNA(VLOOKUP(A19,'Facilities Look Up'!$A$3:$E$325,4,FALSE),\"\")","v":""},{"$f":"_xlfn.IFNA(VLOOKUP(A19,'Facilities Look Up'!$A$3:$E$325,5,FALSE),\"\")","v":""}]
[null,{"$f":"_xlfn.IFNA(VLOOKUP(A20,'Facilities Look Up'!$A$3:$E$325,2,FALSE),\"\")","v":""},{"$f":"_xlfn.IFNA(VLOOKUP(A20,'Facilities Look Up'!$A$3:$E$325,3,FALSE),\"\")","v":""},{"$f":"_xlfn.IFNA(VLOOKUP(A20,'Facilities Look Up'!$A$3:$E$325,4,FALSE),\"\")","v":""},{"$f":"_xlfn.IFNA(VLOOKUP(A20,'Facilities Look Up'!$A$3:$E$325,5,FALSE),\"\")","v":""}]
[null,{"$f":"_xlfn.IFNA(VLOOKUP(A21,'Facilities Look Up'!$A$3:$E$325,2,FALSE),\"\")","v":""},{"$f":"_xlfn.IFNA(VLOOKUP(A21,'Facilities Look Up'!$A$3:$E$325,3,FALSE),\"\")","v":""},{"$f":"_xlfn.IFNA(VLOOKUP(A21,'Facilities Look Up'!$A$3:$E$325,4,FALSE),\"\")","v":""},{"$f":"_xlfn.IFNA(VLOOKUP(A21,'Facilities Look Up'!$A$3:$E$325,5,FALSE),\"\")","v":""}]
[null,{"$f":"_xlfn.IFNA(VLOOKUP(A22,'Facilities Look Up'!$A$3:$E$325,2,FALSE),\"\")","v":""},{"$f":"_xlfn.IFNA(VLOOKUP(A22,'Facilities Look Up'!$A$3:$E$325,3,FALSE),\"\")","v":""},{"$f":"_xlfn.IFNA(VLOOKUP(A22,'Facilities Look Up'!$A$3:$E$325,4,FALSE),\"\")","v":""},{"$f":"_xlfn.IFNA(VLOOKUP(A22,'Facilities Look Up'!$A$3:$E$325,5,FALSE),\"\")","v":""}]
[null,{"$f":"_xlfn.IFNA(VLOOKUP(A23,'Facilities Look Up'!$A$3:$E$325,2,FALSE),\"\")","v":""},{"$f":"_xlfn.IFNA(VLOOKUP(A23,'Facilities Look Up'!$A$3:$E$325,3,FALSE),\"\")","v":""},{"$f":"_xlfn.IFNA(VLOOKUP(A23,'Facilities Look Up'!$A$3:$E$325,4,FALSE),\"\")","v":""},{"$f":"_xlfn.IFNA(VLOOKUP(A23,'Facilities Look Up'!$A$3:$E$325,5,FALSE),\"\")","v":""}]
[null,{"$f":"_xlfn.IFNA(VLOOKUP(A24,'Facilities Look Up'!$A$3:$E$325,2,FALSE),\"\")","v":""},{"$f":"_xlfn.IFNA(VLOOKUP(A24,'Facilities Look Up'!$A$3:$E$325,3,FALSE),\"\")","v":""},{"$f":"_xlfn.IFNA(VLOOKUP(A24,'Facilities Look Up'!$A$3:$E$325,4,FALSE),\"\")","v":""},{"$f":"_xlfn.IFNA(VLOOKUP(A24,'Facilities Look Up'!$A$3:$E$325,5,FALSE),\"\")","v":""}]
[null,{"$f":"_xlfn.IFNA(VLOOKUP(A25,'Facilities Look Up'!$A$3:$E$325,2,FALSE),\"\")","v":""},{"$f":"_xlfn.IFNA(VLOOKUP(A25,'Facilities Look Up'!$A$3:$E$325,3,FALSE),\"\")","v":""},{"$f":"_xlfn.IFNA(VLOOKUP(A25,'Facilities Look Up'!$A$3:$E$325,4,FALSE),\"\")","v":""},{"$f":"_xlfn.IFNA(VLOOKUP(A25,'Facilities Look Up'!$A$3:$E$325,5,FALSE),\"\")","v":""}]
[null,{"$f":"_xlfn.IFNA(VLOOKUP(A26,'Facilities Look Up'!$A$3:$E$325,2,FALSE),\"\")","v":""},{"$f":"_xlfn.IFNA(VLOOKUP(A26,'Facilities Look Up'!$A$3:$E$325,3,FALSE),\"\")","v":""},{"$f":"_xlfn.IFNA(VLOOKUP(A26,'Facilities Look Up'!$A$3:$E$325,4,FALSE),\"\")","v":""},{"$f":"_xlfn.IFNA(VLOOKUP(A26,'Facilities Look Up'!$A$3:$E$325,5,FALSE),\"\")","v":""}]
[null,{"$f":"_xlfn.IFNA(VLOOKUP(A27,'Facilities Look Up'!$A$3:$E$325,2,FALSE),\"\")","v":""},{"$f":"_xlfn.IFNA(VLOOKUP(A27,'Facilities Look Up'!$A$3:$E$325,3,FALSE),\"\")","v":""},{"$f":"_xlfn.IFNA(VLOOKUP(A27,'Facilities Look Up'!$A$3:$E$325,4,FALSE),\"\")","v":""},{"$f":"_xlfn.IFNA(VLOOKUP(A27,'Facilities Look Up'!$A$3:$E$325,5,FALSE),\"\")","v":""}]
[null,{"$f":"_xlfn.IFNA(VLOOKUP(A28,'Facilities Look Up'!$A$3:$E$325,2,FALSE),\"\")","v":""},{"$f":"_xlfn.IFNA(VLOOKUP(A28,'Facilities Look Up'!$A$3:$E$325,3,FALSE),\"\")","v":""},{"$f":"_xlfn.IFNA(VLOOKUP(A28,'Facilities Look Up'!$A$3:$E$325,4,FALSE),\"\")","v":""},{"$f":"_xlfn.IFNA(VLOOKUP(A28,'Facilities Look Up'!$A$3:$E$325,5,FALSE),\"\")","v":""}]
[null,{"$f":"_xlfn.IFNA(VLOOKUP(A29,'Facilities Look Up'!$A$3:$E$325,2,FALSE),\"\")","v":""},{"$f":"_xlfn.IFNA(VLOOKUP(A29,'Facilities Look Up'!$A$3:$E$325,3,FALSE),\"\")","v":""},{"$f":"_xlfn.IFNA(VLOOKUP(A29,'Facilities Look Up'!$A$3:$E$325,4,FALSE),\"\")","v":""},{"$f":"_xlfn.IFNA(VLOOKUP(A29,'Facilities Look Up'!$A$3:$E$325,5,FALSE),\"\")","v":""}]
[null,{"$f":"_xlfn.IFNA(VLOOKUP(A30,'Facilities Look Up'!$A$3:$E$325,2,FALSE),\"\")","v":""},{"$f":"_xlfn.IFNA(VLOOKUP(A30,'Facilities Look Up'!$A$3:$E$325,3,FALSE),\"\")","v":""},{"$f":"_xlfn.IFNA(VLOOKUP(A30,'Facilities Look Up'!$A$3:$E$325,4,FALSE),\"\")","v":""},{"$f":"_xlfn.IFNA(VLOOKUP(A30,'Facilities Look Up'!$A$3:$E$325,5,FALSE),\"\")","v":""}]
[null,{"$f":"_xlfn.IFNA(VLOOKUP(A31,'Facilities Look Up'!$A$3:$E$325,2,FALSE),\"\")","v":""},{"$f":"_xlfn.IFNA(VLOOKUP(A31,'Facilities Look Up'!$A$3:$E$325,3,FALSE),\"\")","v":""},{"$f":"_xlfn.IFNA(VLOOKUP(A31,'Facilities Look Up'!$A$3:$E$325,4,FALSE),\"\")","v":""},{"$f":"_xlfn.IFNA(VLOOKUP(A31,'Facilities Look Up'!$A$3:$E$325,5,FALSE),\"\")","v":""}]
[null,{"$f":"_xlfn.IFNA(VLOOKUP(A32,'Facilities Look Up'!$A$3:$E$325,2,FALSE),\"\")","v":""},{"$f":"_xlfn.IFNA(VLOOKUP(A32,'Facilities Look Up'!$A$3:$E$325,3,FALSE),\"\")","v":""},{"$f":"_xlfn.IFNA(VLOOKUP(A32,'Facilities Look Up'!$A$3:$E$325,4,FALSE),\"\")","v":""},{"$f":"_xlfn.IFNA(VLOOKUP(A32,'Facilities Look Up'!$A$3:$E$325,5,FALSE),\"\")","v":""}]
[null,{"$f":"_xlfn.IFNA(VLOOKUP(A33,'Facilities Look Up'!$A$3:$E$325,2,FALSE),\"\")","v":""},{"$f":"_xlfn.IFNA(VLOOKUP(A33,'Facilities Look Up'!$A$3:$E$325,3,FALSE),\"\")","v":""},{"$f":"_xlfn.IFNA(VLOOKUP(A33,'Facilities Look Up'!$A$3:$E$325,4,FALSE),\"\")","v":""},{"$f":"_xlfn.IFNA(VLOOKUP(A33,'Facilities Look Up'!$A$3:$E$325,5,FALSE),\"\")","v":""}]
[null,{"$f":"_xlfn.IFNA(VLOOKUP(A34,'Facilities Look Up'!$A$3:$E$325,2,FALSE),\"\")","v":""},{"$f":"_xlfn.IFNA(VLOOKUP(A34,'Facilities Look Up'!$A$3:$E$325,3,FALSE),\"\")","v":""},{"$f":"_xlfn.IFNA(VLOOKUP(A34,'Facilities Look Up'!$A$3:$E$325,4,FALSE),\"\")","v":""},{"$f":"_xlfn.IFNA(VLOOKUP(A34,'Facilities Look Up'!$A$3:$E$325,5,FALSE),\"\")","v":""}]
[null,{"$f":"_xlfn.IFNA(VLOOKUP(A35,'Facilities Look Up'!$A$3:$E$325,2,FALSE),\"\")","v":""},{"$f":"_xlfn.IFNA(VLOOKUP(A35,'Facilities Look Up'!$A$3:$E$325,3,FALSE),\"\")","v":""},{"$f":"_xlfn.IFNA(VLOOKUP(A35,'Facilities Look Up'!$A$3:$E$325,4,FALSE),\"\")","v":""},{"$f":"_xlfn.IFNA(VLOOKUP(A35,'Facilities Look Up'!$A$3:$E$325,5,FALSE),\"\")","v":""}]
[null,{"$f":"_xlfn.IFNA(VLOOKUP(A36,'Facilities Look Up'!$A$3:$E$325,2,FALSE),\"\")","v":""},{"$f":"_xlfn.IFNA(VLOOKUP(A36,'Facilities Look Up'!$A$3:$E$325,3,FALSE),\"\")","v":""},{"$f":"_xlfn.IFNA(VLOOKUP(A36,'Facilities Look Up'!$A$3:$E$325,4,FALSE),\"\")","v":""},{"$f":"_xlfn.IFNA(VLOOKUP(A36,'Facilities Look Up'!$A$3:$E$325,5,FALSE),\"\")","v":""}]
[null,{"$f":"_xlfn.IFNA(VLOOKUP(A37,'Facilities Look Up'!$A$3:$E$325,2,FALSE),\"\")","v":""},{"$f":"_xlfn.IFNA(VLOOKUP(A37,'Facilities Look Up'!$A$3:$E$325,3,FALSE),\"\")","v":""},{"$f":"_xlfn.IFNA(VLOOKUP(A37,'Facilities Look Up'!$A$3:$E$325,4,FALSE),\"\")","v":""},{"$f":"_xlfn.IFNA(VLOOKUP(A37,'Facilities Look Up'!$A$3:$E$325,5,FALSE),\"\")","v":""}]
[null,{"$f":"_xlfn.IFNA(VLOOKUP(A38,'Facilities Look Up'!$A$3:$E$325,2,FALSE),\"\")","v":""},{"$f":"_xlfn.IFNA(VLOOKUP(A38,'Facilities Look Up'!$A$3:$E$325,3,FALSE),\"\")","v":""},{"$f":"_xlfn.IFNA(VLOOKUP(A38,'Facilities Look Up'!$A$3:$E$325,4,FALSE),\"\")","v":""},{"$f":"_xlfn.IFNA(VLOOKUP(A38,'Facilities Look Up'!$A$3:$E$325,5,FALSE),\"\")","v":""}]
[null,{"$f":"_xlfn.IFNA(VLOOKUP(A39,'Facilities Look Up'!$A$3:$E$325,2,FALSE),\"\")","v":""},{"$f":"_xlfn.IFNA(VLOOKUP(A39,'Facilities Look Up'!$A$3:$E$325,3,FALSE),\"\")","v":""},{"$f":"_xlfn.IFNA(VLOOKUP(A39,'Facilities Look Up'!$A$3:$E$325,4,FALSE),\"\")","v":""},{"$f":"_xlfn.IFNA(VLOOKUP(A39,'Facilities Look Up'!$A$3:$E$325,5,FALSE),\"\")","v":""}]
[null,{"$f":"_xlfn.IFNA(VLOOKUP(A40,'Facilities Look Up'!$A$3:$E$325,2,FALSE),\"\")","v":""},{"$f":"_xlfn.IFNA(VLOOKUP(A40,'Facilities Look Up'!$A$3:$E$325,3,FALSE),\"\")","v":""},{"$f":"_xlfn.IFNA(VLOOKUP(A40,'Facilities Look Up'!$A$3:$E$325,4,FALSE),\"\")","v":""},{"$f":"_xlfn.IFNA(VLOOKUP(A40,'Facilities Look Up'!$A$3:$E$325,5,FALSE),\"\")","v":""}]
[null,{"$f":"_xlfn.IFNA(VLOOKUP(A41,'Facilities Look Up'!$A$3:$E$325,2,FALSE),\"\")","v":""},{"$f":"_xlfn.IFNA(VLOOKUP(A41,'Facilities Look Up'!$A$3:$E$325,3,FALSE),\"\")","v":""},{"$f":"_xlfn.IFNA(VLOOKUP(A41,'Facilities Look Up'!$A$3:$E$325,4,FALSE),\"\")","v":""},{"$f":"_xlfn.IFNA(VLOOKUP(A41,'Facilities Look Up'!$A$3:$E$325,5,FALSE),\"\")","v":""}]
[null,{"$f":"_xlfn.IFNA(VLOOKUP(A42,'Facilities Look Up'!$A$3:$E$325,2,FALSE),\"\")","v":""},{"$f":"_xlfn.IFNA(VLOOKUP(A42,'Facilities Look Up'!$A$3:$E$325,3,FALSE),\"\")","v":""},{"$f":"_xlfn.IFNA(VLOOKUP(A42,'Facilities Look Up'!$A$3:$E$325,4,FALSE),\"\")","v":""},{"$f":"_xlfn.IFNA(VLOOKUP(A42,'Facilities Look Up'!$A$3:$E$325,5,FALSE),\"\")","v":""}]
[null,{"$f":"_xlfn.IFNA(VLOOKUP(A43,'Facilities Look Up'!$A$3:$E$325,2,FALSE),\"\")","v":""},{"$f":"_xlfn.IFNA(VLOOKUP(A43,'Facilities Look Up'!$A$3:$E$325,3,FALSE),\"\")","v":""},{"$f":"_xlfn.IFNA(VLOOKUP(A43,'Facilities Look Up'!$A$3:$E$325,4,FALSE),\"\")","v":""},{"$f":"_xlfn.IFNA(VLOOKUP(A43,'Facilities Look Up'!$A$3:$E$325,5,FALSE),\"\")","v":""}]
[null,{"$f":"_xlfn.IFNA(VLOOKUP(A44,'Facilities Look Up'!$A$3:$E$325,2,FALSE),\"\")","v":""},{"$f":"_xlfn.IFNA(VLOOKUP(A44,'Facilities Look Up'!$A$3:$E$325,3,FALSE),\"\")","v":""},{"$f":"_xlfn.IFNA(VLOOKUP(A44,'Facilities Look Up'!$A$3:$E$325,4,FALSE),\"\")","v":""},{"$f":"_xlfn.IFNA(VLOOKUP(A44,'Facilities Look Up'!$A$3:$E$325,5,FALSE),\"\")","v":""}]
[null,{"$f":"_xlfn.IFNA(VLOOKUP(A45,'Facilities Look Up'!$A$3:$E$325,2,FALSE),\"\")","v":""},{"$f":"_xlfn.IFNA(VLOOKUP(A45,'Facilities Look Up'!$A$3:$E$325,3,FALSE),\"\")","v":""},{"$f":"_xlfn.IFNA(VLOOKUP(A45,'Facilities Look Up'!$A$3:$E$325,4,FALSE),\"\")","v":""},{"$f":"_xlfn.IFNA(VLOOKUP(A45,'Facilities Look Up'!$A$3:$E$325,5,FALSE),\"\")","v":""}]
[null,{"$f":"_xlfn.IFNA(VLOOKUP(A46,'Facilities Look Up'!$A$3:$E$325,2,FALSE),\"\")","v":""},{"$f":"_xlfn.IFNA(VLOOKUP(A46,'Facilities Look Up'!$A$3:$E$325,3,FALSE),\"\")","v":""},{"$f":"_xlfn.IFNA(VLOOKUP(A46,'Facilities Look Up'!$A$3:$E$325,4,FALSE),\"\")","v":""},{"$f":"_xlfn.IFNA(VLOOKUP(A46,'Facilities Look Up'!$A$3:$E$325,5,FALSE),\"\")","v":""}]
[null,{"$f":"_xlfn.IFNA(VLOOKUP(A47,'Facilities Look Up'!$A$3:$E$325,2,FALSE),\"\")","v":""},{"$f":"_xlfn.IFNA(VLOOKUP(A47,'Facilities Look Up'!$A$3:$E$325,3,FALSE),\"\")","v":""},{"$f":"_xlfn.IFNA(VLOOKUP(A47,'Facilities Look Up'!$A$3:$E$325,4,FALSE),\"\")","v":""},{"$f":"_xlfn.IFNA(VLOOKUP(A47,'Facilities Look Up'!$A$3:$E$325,5,FALSE),\"\")","v":""}]
[null,{"$f":"_xlfn.IFNA(VLOOKUP(A48,'Facilities Look Up'!$A$3:$E$325,2,FALSE),\"\")","v":""},{"$f":"_xlfn.IFNA(VLOOKUP(A48,'Facilities Look Up'!$A$3:$E$325,3,FALSE),\"\")","v":""},{"$f":"_xlfn.IFNA(VLOOKUP(A48,'Facilities Look Up'!$A$3:$E$325,4,FALSE),\"\")","v":""},{"$f":"_xlfn.IFNA(VLOOKUP(A48,'Facilities Look Up'!$A$3:$E$325,5,FALSE),\"\")","v":""}]
[null,{"$f":"_xlfn.IFNA(VLOOKUP(A49,'Facilities Look Up'!$A$3:$E$325,2,FALSE),\"\")","v":""},{"$f":"_xlfn.IFNA(VLOOKUP(A49,'Facilities Look Up'!$A$3:$E$325,3,FALSE),\"\")","v":""},{"$f":"_xlfn.IFNA(VLOOKUP(A49,'Facilities Look Up'!$A$3:$E$325,4,FALSE),\"\")","v":""},{"$f":"_xlfn.IFNA(VLOOKUP(A49,'Facilities Look Up'!$A$3:$E$325,5,FALSE),\"\")","v":""}]
[null,{"$f":"_xlfn.IFNA(VLOOKUP(A50,'Facilities Look Up'!$A$3:$E$325,2,FALSE),\"\")","v":""},{"$f":"_xlfn.IFNA(VLOOKUP(A50,'Facilities Look Up'!$A$3:$E$325,3,FALSE),\"\")","v":""},{"$f":"_xlfn.IFNA(VLOOKUP(A50,'Facilities Look Up'!$A$3:$E$325,4,FALSE),\"\")","v":""},{"$f":"_xlfn.IFNA(VLOOKUP(A50,'Facilities Look Up'!$A$3:$E$325,5,FALSE),\"\")","v":""}]
[null,{"$f":"_xlfn.IFNA(VLOOKUP(A51,'Facilities Look Up'!$A$3:$E$325,2,FALSE),\"\")","v":""},{"$f":"_xlfn.IFNA(VLOOKUP(A51,'Facilities Look Up'!$A$3:$E$325,3,FALSE),\"\")","v":""},{"$f":"_xlfn.IFNA(VLOOKUP(A51,'Facilities Look Up'!$A$3:$E$325,4,FALSE),\"\")","v":""},{"$f":"_xlfn.IFNA(VLOOKUP(A51,'Facilities Look Up'!$A$3:$E$325,5,FALSE),\"\")","v":""}]
[null,{"$f":"_xlfn.IFNA(VLOOKUP(A52,'Facilities Look Up'!$A$3:$E$325,2,FALSE),\"\")","v":""},{"$f":"_xlfn.IFNA(VLOOKUP(A52,'Facilities Look Up'!$A$3:$E$325,3,FALSE),\"\")","v":""},{"$f":"_xlfn.IFNA(VLOOKUP(A52,'Facilities Look Up'!$A$3:$E$325,4,FALSE),\"\")","v":""},{"$f":"_xlfn.IFNA(VLOOKUP(A52,'Facilities Look Up'!$A$3:$E$325,5,FALSE),\"\")","v":""}]
[null,{"$f":"_xlfn.IFNA(VLOOKUP(A53,'Facilities Look Up'!$A$3:$E$325,2,FALSE),\"\")","v":""},{"$f":"_xlfn.IFNA(VLOOKUP(A53,'Facilities Look Up'!$A$3:$E$325,3,FALSE),\"\")","v":""},{"$f":"_xlfn.IFNA(VLOOKUP(A53,'Facilities Look Up'!$A$3:$E$325,4,FALSE),\"\")","v":""},{"$f":"_xlfn.IFNA(VLOOKUP(A53,'Facilities Look Up'!$A$3:$E$325,5,FALSE),\"\")","v":""}]
[null,{"$f":"_xlfn.IFNA(VLOOKUP(A54,'Facilities Look Up'!$A$3:$E$325,2,FALSE),\"\")","v":""},{"$f":"_xlfn.IFNA(VLOOKUP(A54,'Facilities Look Up'!$A$3:$E$325,3,FALSE),\"\")","v":""},{"$f":"_xlfn.IFNA(VLOOKUP(A54,'Facilities Look Up'!$A$3:$E$325,4,FALSE),\"\")","v":""},{"$f":"_xlfn.IFNA(VLOOKUP(A54,'Facilities Look Up'!$A$3:$E$325,5,FALSE),\"\")","v":""}]
[null,{"$f":"_xlfn.IFNA(VLOOKUP(A55,'Facilities Look Up'!$A$3:$E$325,2,FALSE),\"\")","v":""},{"$f":"_xlfn.IFNA(VLOOKUP(A55,'Facilities Look Up'!$A$3:$E$325,3,FALSE),\"\")","v":""},{"$f":"_xlfn.IFNA(VLOOKUP(A55,'Facilities Look Up'!$A$3:$E$325,4,FALSE),\"\")","v":""},{"$f":"_xlfn.IFNA(VLOOKUP(A55,'Facilities Look Up'!$A$3:$E$325,5,FALSE),\"\")","v":""}]
[null,{"$f":"_xlfn.IFNA(VLOOKUP(A56,'Facilities Look Up'!$A$3:$E$325,2,FALSE),\"\")","v":""},{"$f":"_xlfn.IFNA(VLOOKUP(A56,'Facilities Look Up'!$A$3:$E$325,3,FALSE),\"\")","v":""},{"$f":"_xlfn.IFNA(VLOOKUP(A56,'Facilities Look Up'!$A$3:$E$325,4,FALSE),\"\")","v":""},{"$f":"_xlfn.IFNA(VLOOKUP(A56,'Facilities Look Up'!$A$3:$E$325,5,FALSE),\"\")","v":""}]
[null,{"$f":"_xlfn.IFNA(VLOOKUP(A57,'Facilities Look Up'!$A$3:$E$325,2,FALSE),\"\")","v":""},{"$f":"_xlfn.IFNA(VLOOKUP(A57,'Facilities Look Up'!$A$3:$E$325,3,FALSE),\"\")","v":""},{"$f":"_xlfn.IFNA(VLOOKUP(A57,'Facilities Look Up'!$A$3:$E$325,4,FALSE),\"\")","v":""},{"$f":"_xlfn.IFNA(VLOOKUP(A57,'Facilities Look Up'!$A$3:$E$325,5,FALSE),\"\")","v":""}]
[null,{"$f":"_xlfn.IFNA(VLOOKUP(A58,'Facilities Look Up'!$A$3:$E$325,2,FALSE),\"\")","v":""},{"$f":"_xlfn.IFNA(VLOOKUP(A58,'Facilities Look Up'!$A$3:$E$325,3,FALSE),\"\")","v":""},{"$f":"_xlfn.IFNA(VLOOKUP(A58,'Facilities Look Up'!$A$3:$E$325,4,FALSE),\"\")","v":""},{"$f":"_xlfn.IFNA(VLOOKUP(A58,'Facilities Look Up'!$A$3:$E$325,5,FALSE),\"\")","v":""}]
[null,{"$f":"_xlfn.IFNA(VLOOKUP(A59,'Facilities Look Up'!$A$3:$E$325,2,FALSE),\"\")","v":""},{"$f":"_xlfn.IFNA(VLOOKUP(A59,'Facilities Look Up'!$A$3:$E$325,3,FALSE),\"\")","v":""},{"$f":"_xlfn.IFNA(VLOOKUP(A59,'Facilities Look Up'!$A$3:$E$325,4,FALSE),\"\")","v":""},{"$f":"_xlfn.IFNA(VLOOKUP(A59,'Facilities Look Up'!$A$3:$E$325,5,FALSE),\"\")","v":""}]
[null,{"$f":"_xlfn.IFNA(VLOOKUP(A60,'Facilities Look Up'!$A$3:$E$325,2,FALSE),\"\")","v":""},{"$f":"_xlfn.IFNA(VLOOKUP(A60,'Facilities Look Up'!$A$3:$E$325,3,FALSE),\"\")","v":""},{"$f":"_xlfn.IFNA(VLOOKUP(A60,'Facilities Look Up'!$A$3:$E$325,4,FALSE),\"\")","v":""},{"$f":"_xlfn.IFNA(VLOOKUP(A60,'Facilities Look Up'!$A$3:$E$325,5,FALSE),\"\")","v":""}]
[null,{"$f":"_xlfn.IFNA(VLOOKUP(A61,'Facilities Look Up'!$A$3:$E$325,2,FALSE),\"\")","v":""},{"$f":"_xlfn.IFNA(VLOOKUP(A61,'Facilities Look Up'!$A$3:$E$325,3,FALSE),\"\")","v":""},{"$f":"_xlfn.IFNA(VLOOKUP(A61,'Facilities Look Up'!$A$3:$E$325,4,FALSE),\"\")","v":""},{"$f":"_xlfn.IFNA(VLOOKUP(A61,'Facilities Look Up'!$A$3:$E$325,5,FALSE),\"\")","v":""}]
[null,{"$f":"_xlfn.IFNA(VLOOKUP(A62,'Facilities Look Up'!$A$3:$E$325,2,FALSE),\"\")","v":""},{"$f":"_xlfn.IFNA(VLOOKUP(A62,'Facilities Look Up'!$A$3:$E$325,3,FALSE),\"\")","v":""},{"$f":"_xlfn.IFNA(VLOOKUP(A62,'Facilities Look Up'!$A$3:$E$325,4,FALSE),\"\")","v":""},{"$f":"_xlfn.IFNA(VLOOKUP(A62,'Facilities Look Up'!$A$3:$E$325,5,FALSE),\"\")","v":""}]
[null,{"$f":"_xlfn.IFNA(VLOOKUP(A63,'Facilities Look Up'!$A$3:$E$325,2,FALSE),\"\")","v":""},{"$f":"_xlfn.IFNA(VLOOKUP(A63,'Facilities Look Up'!$A$3:$E$325,3,FALSE),\"\")","v":""},{"$f":"_xlfn.IFNA(VLOOKUP(A63,'Facilities Look Up'!$A$3:$E$325,4,FALSE),\"\")","v":""},{"$f":"_xlfn.IFNA(VLOOKUP(A63,'Facilities Look Up'!$A$3:$E$325,5,FALSE),\"\")","v":""}]
[null,{"$f":"_xlfn.IFNA(VLOOKUP(A64,'Facilities Look Up'!$A$3:$E$325,2,FALSE),\"\")","v":""},{"$f":"_xlfn.IFNA(VLOOKUP(A64,'Facilities Look Up'!$A$3:$E$325,3,FALSE),\"\")","v":""},{"$f":"_xlfn.IFNA(VLOOKUP(A64,'Facilities Look Up'!$A$3:$E$325,4,FALSE),\"\")","v":""},{"$f":"_xlfn.IFNA(VLOOKUP(A64,'Facilities Look Up'!$A$3:$E$325,5,FALSE),\"\")","v":""}]
[null,{"$f":"_xlfn.IFNA(VLOOKUP(A65,'Facilities Look Up'!$A$3:$E$325,2,FALSE),\"\")","v":""},{"$f":"_xlfn.IFNA(VLOOKUP(A65,'Facilities Look Up'!$A$3:$E$325,3,FALSE),\"\")","v":""},{"$f":"_xlfn.IFNA(VLOOKUP(A65,'Facilities Look Up'!$A$3:$E$325,4,FALSE),\"\")","v":""},{"$f":"_xlfn.IFNA(VLOOKUP(A65,'Facilities Look Up'!$A$3:$E$325,5,FALSE),\"\")","v":""}]
[null,{"$f":"_xlfn.IFNA(VLOOKUP(A66,'Facilities Look Up'!$A$3:$E$325,2,FALSE),\"\")","v":""},{"$f":"_xlfn.IFNA(VLOOKUP(A66,'Facilities Look Up'!$A$3:$E$325,3,FALSE),\"\")","v":""},{"$f":"_xlfn.IFNA(VLOOKUP(A66,'Facilities Look Up'!$A$3:$E$325,4,FALSE),\"\")","v":""},{"$f":"_xlfn.IFNA(VLOOKUP(A66,'Facilities Look Up'!$A$3:$E$325,5,FALSE),\"\")","v":""}]
[null,{"$f":"_xlfn.IFNA(VLOOKUP(A67,'Facilities Look Up'!$A$3:$E$325,2,FALSE),\"\")","v":""},{"$f":"_xlfn.IFNA(VLOOKUP(A67,'Facilities Look Up'!$A$3:$E$325,3,FALSE),\"\")","v":""},{"$f":"_xlfn.IFNA(VLOOKUP(A67,'Facilities Look Up'!$A$3:$E$325,4,FALSE),\"\")","v":""},{"$f":"_xlfn.IFNA(VLOOKUP(A67,'Facilities Look Up'!$A$3:$E$325,5,FALSE),\"\")","v":""}]
[null,{"$f":"_xlfn.IFNA(VLOOKUP(A68,'Facilities Look Up'!$A$3:$E$325,2,FALSE),\"\")","v":""},{"$f":"_xlfn.IFNA(VLOOKUP(A68,'Facilities Look Up'!$A$3:$E$325,3,FALSE),\"\")","v":""},{"$f":"_xlfn.IFNA(VLOOKUP(A68,'Facilities Look Up'!$A$3:$E$325,4,FALSE),\"\")","v":""},{"$f":"_xlfn.IFNA(VLOOKUP(A68,'Facilities Look Up'!$A$3:$E$325,5,FALSE),\"\")","v":""}]
[null,{"$f":"_xlfn.IFNA(VLOOKUP(A69,'Facilities Look Up'!$A$3:$E$325,2,FALSE),\"\")","v":""},{"$f":"_xlfn.IFNA(VLOOKUP(A69,'Facilities Look Up'!$A$3:$E$325,3,FALSE),\"\")","v":""},{"$f":"_xlfn.IFNA(VLOOKUP(A69,'Facilities Look Up'!$A$3:$E$325,4,FALSE),\"\")","v":""},{"$f":"_xlfn.IFNA(VLOOKUP(A69,'Facilities Look Up'!$A$3:$E$325,5,FALSE),\"\")","v":""}]
[null,{"$f":"_xlfn.IFNA(VLOOKUP(A70,'Facilities Look Up'!$A$3:$E$325,2,FALSE),\"\")","v":""},{"$f":"_xlfn.IFNA(VLOOKUP(A70,'Facilities Look Up'!$A$3:$E$325,3,FALSE),\"\")","v":""},{"$f":"_xlfn.IFNA(VLOOKUP(A70,'Facilities Look Up'!$A$3:$E$325,4,FALSE),\"\")","v":""},{"$f":"_xlfn.IFNA(VLOOKUP(A70,'Facilities Look Up'!$A$3:$E$325,5,FALSE),\"\")","v":""}]
[null,{"$f":"_xlfn.IFNA(VLOOKUP(A71,'Facilities Look Up'!$A$3:$E$325,2,FALSE),\"\")","v":""},{"$f":"_xlfn.IFNA(VLOOKUP(A71,'Facilities Look Up'!$A$3:$E$325,3,FALSE),\"\")","v":""},{"$f":"_xlfn.IFNA(VLOOKUP(A71,'Facilities Look Up'!$A$3:$E$325,4,FALSE),\"\")","v":""},{"$f":"_xlfn.IFNA(VLOOKUP(A71,'Facilities Look Up'!$A$3:$E$325,5,FALSE),\"\")","v":""}]
[null,{"$f":"_xlfn.IFNA(VLOOKUP(A72,'Facilities Look Up'!$A$3:$E$325,2,FALSE),\"\")","v":""},{"$f":"_xlfn.IFNA(VLOOKUP(A72,'Facilities Look Up'!$A$3:$E$325,3,FALSE),\"\")","v":""},{"$f":"_xlfn.IFNA(VLOOKUP(A72,'Facilities Look Up'!$A$3:$E$325,4,FALSE),\"\")","v":""},{"$f":"_xlfn.IFNA(VLOOKUP(A72,'Facilities Look Up'!$A$3:$E$325,5,FALSE),\"\")","v":""}]
[null,{"$f":"_xlfn.IFNA(VLOOKUP(A73,'Facilities Look Up'!$A$3:$E$325,2,FALSE),\"\")","v":""},{"$f":"_xlfn.IFNA(VLOOKUP(A73,'Facilities Look Up'!$A$3:$E$325,3,FALSE),\"\")","v":""},{"$f":"_xlfn.IFNA(VLOOKUP(A73,'Facilities Look Up'!$A$3:$E$325,4,FALSE),\"\")","v":""},{"$f":"_xlfn.IFNA(VLOOKUP(A73,'Facilities Look Up'!$A$3:$E$325,5,FALSE),\"\")","v":""}]
[null,{"$f":"_xlfn.IFNA(VLOOKUP(A74,'Facilities Look Up'!$A$3:$E$325,2,FALSE),\"\")","v":""},{"$f":"_xlfn.IFNA(VLOOKUP(A74,'Facilities Look Up'!$A$3:$E$325,3,FALSE),\"\")","v":""},{"$f":"_xlfn.IFNA(VLOOKUP(A74,'Facilities Look Up'!$A$3:$E$325,4,FALSE),\"\")","v":""},{"$f":"_xlfn.IFNA(VLOOKUP(A74,'Facilities Look Up'!$A$3:$E$325,5,FALSE),\"\")","v":""}]
[null,{"$f":"_xlfn.IFNA(VLOOKUP(A75,'Facilities Look Up'!$A$3:$E$325,2,FALSE),\"\")","v":""},{"$f":"_xlfn.IFNA(VLOOKUP(A75,'Facilities Look Up'!$A$3:$E$325,3,FALSE),\"\")","v":""},{"$f":"_xlfn.IFNA(VLOOKUP(A75,'Facilities Look Up'!$A$3:$E$325,4,FALSE),\"\")","v":""},{"$f":"_xlfn.IFNA(VLOOKUP(A75,'Facilities Look Up'!$A$3:$E$325,5,FALSE),\"\")","v":""}]
[null,{"$f":"_xlfn.IFNA(VLOOKUP(A76,'Facilities Look Up'!$A$3:$E$325,2,FALSE),\"\")","v":""},{"$f":"_xlfn.IFNA(VLOOKUP(A76,'Facilities Look Up'!$A$3:$E$325,3,FALSE),\"\")","v":""},{"$f":"_xlfn.IFNA(VLOOKUP(A76,'Facilities Look Up'!$A$3:$E$325,4,FALSE),\"\")","v":""},{"$f":"_xlfn.IFNA(VLOOKUP(A76,'Facilities Look Up'!$A$3:$E$325,5,FALSE),\"\")","v":""}]
[null,{"$f":"_xlfn.IFNA(VLOOKUP(A77,'Facilities Look Up'!$A$3:$E$325,2,FALSE),\"\")","v":""},{"$f":"_xlfn.IFNA(VLOOKUP(A77,'Facilities Look Up'!$A$3:$E$325,3,FALSE),\"\")","v":""},{"$f":"_xlfn.IFNA(VLOOKUP(A77,'Facilities Look Up'!$A$3:$E$325,4,FALSE),\"\")","v":""},{"$f":"_xlfn.IFNA(VLOOKUP(A77,'Facilities Look Up'!$A$3:$E$325,5,FALSE),\"\")","v":""}]
[null,{"$f":"_xlfn.IFNA(VLOOKUP(A78,'Facilities Look Up'!$A$3:$E$325,2,FALSE),\"\")","v":""},{"$f":"_xlfn.IFNA(VLOOKUP(A78,'Facilities Look Up'!$A$3:$E$325,3,FALSE),\"\")","v":""},{"$f":"_xlfn.IFNA(VLOOKUP(A78,'Facilities Look Up'!$A$3:$E$325,4,FALSE),\"\")","v":""},{"$f":"_xlfn.IFNA(VLOOKUP(A78,'Facilities Look Up'!$A$3:$E$325,5,FALSE),\"\")","v":""}]
[null,{"$f":"_xlfn.IFNA(VLOOKUP(A79,'Facilities Look Up'!$A$3:$E$325,2,FALSE),\"\")","v":""},{"$f":"_xlfn.IFNA(VLOOKUP(A79,'Facilities Look Up'!$A$3:$E$325,3,FALSE),\"\")","v":""},{"$f":"_xlfn.IFNA(VLOOKUP(A79,'Facilities Look Up'!$A$3:$E$325,4,FALSE),\"\")","v":""},{"$f":"_xlfn.IFNA(VLOOKUP(A79,'Facilities Look Up'!$A$3:$E$325,5,FALSE),\"\")","v":""}]
[null,{"$f":"_xlfn.IFNA(VLOOKUP(A80,'Facilities Look Up'!$A$3:$E$325,2,FALSE),\"\")","v":""},{"$f":"_xlfn.IFNA(VLOOKUP(A80,'Facilities Look Up'!$A$3:$E$325,3,FALSE),\"\")","v":""},{"$f":"_xlfn.IFNA(VLOOKUP(A80,'Facilities Look Up'!$A$3:$E$325,4,FALSE),\"\")","v":""},{"$f":"_xlfn.IFNA(VLOOKUP(A80,'Facilities Look Up'!$A$3:$E$325,5,FALSE),\"\")","v":""}]
[null,{"$f":"_xlfn.IFNA(VLOOKUP(A81,'Facilities Look Up'!$A$3:$E$325,2,FALSE),\"\")","v":""},{"$f":"_xlfn.IFNA(VLOOKUP(A81,'Facilities Look Up'!$A$3:$E$325,3,FALSE),\"\")","v":""},{"$f":"_xlfn.IFNA(VLOOKUP(A81,'Facilities Look Up'!$A$3:$E$325,4,FALSE),\"\")","v":""},{"$f":"_xlfn.IFNA(VLOOKUP(A81,'Facilities Look Up'!$A$3:$E$325,5,FALSE),\"\")","v":""}]
[null,{"$f":"_xlfn.IFNA(VLOOKUP(A82,'Facilities Look Up'!$A$3:$E$325,2,FALSE),\"\")","v":""},{"$f":"_xlfn.IFNA(VLOOKUP(A82,'Facilities Look Up'!$A$3:$E$325,3,FALSE),\"\")","v":""},{"$f":"_xlfn.IFNA(VLOOKUP(A82,'Facilities Look Up'!$A$3:$E$325,4,FALSE),\"\")","v":""},{"$f":"_xlfn.IFNA(VLOOKUP(A82,'Facilities Look Up'!$A$3:$E$325,5,FALSE),\"\")","v":""}]
[null,{"$f":"_xlfn.IFNA(VLOOKUP(A83,'Facilities Look Up'!$A$3:$E$325,2,FALSE),\"\")","v":""},{"$f":"_xlfn.IFNA(VLOOKUP(A83,'Facilities Look Up'!$A$3:$E$325,3,FALSE),\"\")","v":""},{"$f":"_xlfn.IFNA(VLOOKUP(A83,'Facilities Look Up'!$A$3:$E$325,4,FALSE),\"\")","v":""},{"$f":"_xlfn.IFNA(VLOOKUP(A83,'Facilities Look Up'!$A$3:$E$325,5,FALSE),\"\")","v":""}]
[null,{"$f":"_xlfn.IFNA(VLOOKUP(A84,'Facilities Look Up'!$A$3:$E$325,2,FALSE),\"\")","v":""},{"$f":"_xlfn.IFNA(VLOOKUP(A84,'Facilities Look Up'!$A$3:$E$325,3,FALSE),\"\")","v":""},{"$f":"_xlfn.IFNA(VLOOKUP(A84,'Facilities Look Up'!$A$3:$E$325,4,FALSE),\"\")","v":""},{"$f":"_xlfn.IFNA(VLOOKUP(A84,'Facilities Look Up'!$A$3:$E$325,5,FALSE),\"\")","v":""}]
[null,{"$f":"_xlfn.IFNA(VLOOKUP(A85,'Facilities Look Up'!$A$3:$E$325,2,FALSE),\"\")","v":""},{"$f":"_xlfn.IFNA(VLOOKUP(A85,'Facilities Look Up'!$A$3:$E$325,3,FALSE),\"\")","v":""},{"$f":"_xlfn.IFNA(VLOOKUP(A85,'Facilities Look Up'!$A$3:$E$325,4,FALSE),\"\")","v":""},{"$f":"_xlfn.IFNA(VLOOKUP(A85,'Facilities Look Up'!$A$3:$E$325,5,FALSE),\"\")","v":""}]
[null,{"$f":"_xlfn.IFNA(VLOOKUP(A86,'Facilities Look Up'!$A$3:$E$325,2,FALSE),\"\")","v":""},{"$f":"_xlfn.IFNA(VLOOKUP(A86,'Facilities Look Up'!$A$3:$E$325,3,FALSE),\"\")","v":""},{"$f":"_xlfn.IFNA(VLOOKUP(A86,'Facilities Look Up'!$A$3:$E$325,4,FALSE),\"\")","v":""},{"$f":"_xlfn.IFNA(VLOOKUP(A86,'Facilities Look Up'!$A$3:$E$325,5,FALSE),\"\")","v":""}]
[null,{"$f":"_xlfn.IFNA(VLOOKUP(A87,'Facilities Look Up'!$A$3:$E$325,2,FALSE),\"\")","v":""},{"$f":"_xlfn.IFNA(VLOOKUP(A87,'Facilities Look Up'!$A$3:$E$325,3,FALSE),\"\")","v":""},{"$f":"_xlfn.IFNA(VLOOKUP(A87,'Facilities Look Up'!$A$3:$E$325,4,FALSE),\"\")","v":""},{"$f":"_xlfn.IFNA(VLOOKUP(A87,'Facilities Look Up'!$A$3:$E$325,5,FALSE),\"\")","v":""}]
[null,{"$f":"_xlfn.IFNA(VLOOKUP(A88,'Facilities Look Up'!$A$3:$E$325,2,FALSE),\"\")","v":""},{"$f":"_xlfn.IFNA(VLOOKUP(A88,'Facilities Look Up'!$A$3:$E$325,3,FALSE),\"\")","v":""},{"$f":"_xlfn.IFNA(VLOOKUP(A88,'Facilities Look Up'!$A$3:$E$325,4,FALSE),\"\")","v":""},{"$f":"_xlfn.IFNA(VLOOKUP(A88,'Facilities Look Up'!$A$3:$E$325,5,FALSE),\"\")","v":""}]
[null,{"$f":"_xlfn.IFNA(VLOOKUP(A89,'Facilities Look Up'!$A$3:$E$325,2,FALSE),\"\")","v":""},{"$f":"_xlfn.IFNA(VLOOKUP(A89,'Facilities Look Up'!$A$3:$E$325,3,FALSE),\"\")","v":""},{"$f":"_xlfn.IFNA(VLOOKUP(A89,'Facilities Look Up'!$A$3:$E$325,4,FALSE),\"\")","v":""},{"$f":"_xlfn.IFNA(VLOOKUP(A89,'Facilities Look Up'!$A$3:$E$325,5,FALSE),\"\")","v":""}]
[null,{"$f":"_xlfn.IFNA(VLOOKUP(A90,'Facilities Look Up'!$A$3:$E$325,2,FALSE),\"\")","v":""},{"$f":"_xlfn.IFNA(VLOOKUP(A90,'Facilities Look Up'!$A$3:$E$325,3,FALSE),\"\")","v":""},{"$f":"_xlfn.IFNA(VLOOKUP(A90,'Facilities Look Up'!$A$3:$E$325,4,FALSE),\"\")","v":""},{"$f":"_xlfn.IFNA(VLOOKUP(A90,'Facilities Look Up'!$A$3:$E$325,5,FALSE),\"\")","v":""}]
[null,{"$f":"_xlfn.IFNA(VLOOKUP(A91,'Facilities Look Up'!$A$3:$E$325,2,FALSE),\"\")","v":""},{"$f":"_xlfn.IFNA(VLOOKUP(A91,'Facilities Look Up'!$A$3:$E$325,3,FALSE),\"\")","v":""},{"$f":"_xlfn.IFNA(VLOOKUP(A91,'Facilities Look Up'!$A$3:$E$325,4,FALSE),\"\")","v":""},{"$f":"_xlfn.IFNA(VLOOKUP(A91,'Facilities Look Up'!$A$3:$E$325,5,FALSE),\"\")","v":""}]
[null,{"$f":"_xlfn.IFNA(VLOOKUP(A92,'Facilities Look Up'!$A$3:$E$325,2,FALSE),\"\")","v":""},{"$f":"_xlfn.IFNA(VLOOKUP(A92,'Facilities Look Up'!$A$3:$E$325,3,FALSE),\"\")","v":""},{"$f":"_xlfn.IFNA(VLOOKUP(A92,'Facilities Look Up'!$A$3:$E$325,4,FALSE),\"\")","v":""},{"$f":"_xlfn.IFNA(VLOOKUP(A92,'Facilities Look Up'!$A$3:$E$325,5,FALSE),\"\")","v":""}]
[null,{"$f":"_xlfn.IFNA(VLOOKUP(A93,'Facilities Look Up'!$A$3:$E$325,2,FALSE),\"\")","v":""},{"$f":"_xlfn.IFNA(VLOOKUP(A93,'Facilities Look Up'!$A$3:$E$325,3,FALSE),\"\")","v":""},{"$f":"_xlfn.IFNA(VLOOKUP(A93,'Facilities Look Up'!$A$3:$E$325,4,FALSE),\"\")","v":""},{"$f":"_xlfn.IFNA(VLOOKUP(A93,'Facilities Look Up'!$A$3:$E$325,5,FALSE),\"\")","v":""}]
[null,{"$f":"_xlfn.IFNA(VLOOKUP(A94,'Facilities Look Up'!$A$3:$E$325,2,FALSE),\"\")","v":""},{"$f":"_xlfn.IFNA(VLOOKUP(A94,'Facilities Look Up'!$A$3:$E$325,3,FALSE),\"\")","v":""},{"$f":"_xlfn.IFNA(VLOOKUP(A94,'Facilities Look Up'!$A$3:$E$325,4,FALSE),\"\")","v":""},{"$f":"_xlfn.IFNA(VLOOKUP(A94,'Facilities Look Up'!$A$3:$E$325,5,FALSE),\"\")","v":""}]
[null,{"$f":"_xlfn.IFNA(VLOOKUP(A95,'Facilities Look Up'!$A$3:$E$325,2,FALSE),\"\")","v":""},{"$f":"_xlfn.IFNA(VLOOKUP(A95,'Facilities Look Up'!$A$3:$E$325,3,FALSE),\"\")","v":""},{"$f":"_xlfn.IFNA(VLOOKUP(A95,'Facilities Look Up'!$A$3:$E$325,4,FALSE),\"\")","v":""},{"$f":"_xlfn.IFNA(VLOOKUP(A95,'Facilities Look Up'!$A$3:$E$325,5,FALSE),\"\")","v":""}]
[null,{"$f":"_xlfn.IFNA(VLOOKUP(A96,'Facilities Look Up'!$A$3:$E$325,2,FALSE),\"\")","v":""},{"$f":"_xlfn.IFNA(VLOOKUP(A96,'Facilities Look Up'!$A$3:$E$325,3,FALSE),\"\")","v":""},{"$f":"_xlfn.IFNA(VLOOKUP(A96,'Facilities Look Up'!$A$3:$E$325,4,FALSE),\"\")","v":""},{"$f":"_xlfn.IFNA(VLOOKUP(A96,'Facilities Look Up'!$A$3:$E$325,5,FALSE),\"\")","v":""}]
[null,{"$f":"_xlfn.IFNA(VLOOKUP(A97,'Facilities Look Up'!$A$3:$E$325,2,FALSE),\"\")","v":""},{"$f":"_xlfn.IFNA(VLOOKUP(A97,'Facilities Look Up'!$A$3:$E$325,3,FALSE),\"\")","v":""},{"$f":"_xlfn.IFNA(VLOOKUP(A97,'Facilities Look Up'!$A$3:$E$325,4,FALSE),\"\")","v":""},{"$f":"_xlfn.IFNA(VLOOKUP(A97,'Facilities Look Up'!$A$3:$E$325,5,FALSE),\"\")","v":""}]
[null,{"$f":"_xlfn.IFNA(VLOOKUP(A98,'Facilities Look Up'!$A$3:$E$325,2,FALSE),\"\")","v":""},{"$f":"_xlfn.IFNA(VLOOKUP(A98,'Facilities Look Up'!$A$3:$E$325,3,FALSE),\"\")","v":""},{"$f":"_xlfn.IFNA(VLOOKUP(A98,'Facilities Look Up'!$A$3:$E$325,4,FALSE),\"\")","v":""},{"$f":"_xlfn.IFNA(VLOOKUP(A98,'Facilities Look Up'!$A$3:$E$325,5,FALSE),\"\")","v":""}]
[null,{"$f":"_xlfn.IFNA(VLOOKUP(A99,'Facilities Look Up'!$A$3:$E$325,2,FALSE),\"\")","v":""},{"$f":"_xlfn.IFNA(VLOOKUP(A99,'Facilities Look Up'!$A$3:$E$325,3,FALSE),\"\")","v":""},{"$f":"_xlfn.IFNA(VLOOKUP(A99,'Facilities Look Up'!$A$3:$E$325,4,FALSE),\"\")","v":""},{"$f":"_xlfn.IFNA(VLOOKUP(A99,'Facilities Look Up'!$A$3:$E$325,5,FALSE),\"\")","v":""}]
[null,{"$f":"_xlfn.IFNA(VLOOKUP(A100,'Facilities Look Up'!$A$3:$E$325,2,FALSE),\"\")","v":""},{"$f":"_xlfn.IFNA(VLOOKUP(A100,'Facilities Look Up'!$A$3:$E$325,3,FALSE),\"\")","v":""},{"$f":"_xlfn.IFNA(VLOOKUP(A100,'Facilities Look Up'!$A$3:$E$325,4,FALSE),\"\")","v":""},{"$f":"_xlfn.IFNA(VLOOKUP(A100,'Facilities Look Up'!$A$3:$E$325,5,FALSE),\"\")","v":""}]
[null,{"$f":"_xlfn.IFNA(VLOOKUP(A101,'Facilities Look Up'!$A$3:$E$325,2,FALSE),\"\")","v":""},{"$f":"_xlfn.IFNA(VLOOKUP(A101,'Facilities Look Up'!$A$3:$E$325,3,FALSE),\"\")","v":""},{"$f":"_xlfn.IFNA(VLOOKUP(A101,'Facilities Look Up'!$A$3:$E$325,4,FALSE),\"\")","v":""},{"$f":"_xlfn.IFNA(VLOOKUP(A101,'Facilities Look Up'!$A$3:$E$325,5,FALSE),\"\")","v":""}]
[null,{"$f":"_xlfn.IFNA(VLOOKUP(A102,'Facilities Look Up'!$A$3:$E$325,2,FALSE),\"\")","v":""},{"$f":"_xlfn.IFNA(VLOOKUP(A102,'Facilities Look Up'!$A$3:$E$325,3,FALSE),\"\")","v":""},{"$f":"_xlfn.IFNA(VLOOKUP(A102,'Facilities Look Up'!$A$3:$E$325,4,FALSE),\"\")","v":""},{"$f":"_xlfn.IFNA(VLOOKUP(A102,'Facilities Look Up'!$A$3:$E$325,5,FALSE),\"\")","v":""}]
[null,{"$f":"_xlfn.IFNA(VLOOKUP(A103,'Facilities Look Up'!$A$3:$E$325,2,FALSE),\"\")","v":""},{"$f":"_xlfn.IFNA(VLOOKUP(A103,'Facilities Look Up'!$A$3:$E$325,3,FALSE),\"\")","v":""},{"$f":"_xlfn.IFNA(VLOOKUP(A103,'Facilities Look Up'!$A$3:$E$325,4,FALSE),\"\")","v":""},{"$f":"_xlfn.IFNA(VLOOKUP(A103,'Facilities Look Up'!$A$3:$E$325,5,FALSE),\"\")","v":""}]
[null,{"$f":"_xlfn.IFNA(VLOOKUP(A104,'Facilities Look Up'!$A$3:$E$325,2,FALSE),\"\")","v":""},{"$f":"_xlfn.IFNA(VLOOKUP(A104,'Facilities Look Up'!$A$3:$E$325,3,FALSE),\"\")","v":""},{"$f":"_xlfn.IFNA(VLOOKUP(A104,'Facilities Look Up'!$A$3:$E$325,4,FALSE),\"\")","v":""},{"$f":"_xlfn.IFNA(VLOOKUP(A104,'Facilities Look Up'!$A$3:$E$325,5,FALSE),\"\")","v":""}]
[null,{"$f":"_xlfn.IFNA(VLOOKUP(A105,'Facilities Look Up'!$A$3:$E$325,2,FALSE),\"\")","v":""},{"$f":"_xlfn.IFNA(VLOOKUP(A105,'Facilities Look Up'!$A$3:$E$325,3,FALSE),\"\")","v":""},{"$f":"_xlfn.IFNA(VLOOKUP(A105,'Facilities Look Up'!$A$3:$E$325,4,FALSE),\"\")","v":""},{"$f":"_xlfn.IFNA(VLOOKUP(A105,'Facilities Look Up'!$A$3:$E$325,5,FALSE),\"\")","v":""}]
[null,{"$f":"_xlfn.IFNA(VLOOKUP(A106,'Facilities Look Up'!$A$3:$E$325,2,FALSE),\"\")","v":""},{"$f":"_xlfn.IFNA(VLOOKUP(A106,'Facilities Look Up'!$A$3:$E$325,3,FALSE),\"\")","v":""},{"$f":"_xlfn.IFNA(VLOOKUP(A106,'Facilities Look Up'!$A$3:$E$325,4,FALSE),\"\")","v":""},{"$f":"_xlfn.IFNA(VLOOKUP(A106,'Facilities Look Up'!$A$3:$E$325,5,FALSE),\"\")","v":""}]
[null,{"$f":"_xlfn.IFNA(VLOOKUP(A107,'Facilities Look Up'!$A$3:$E$325,2,FALSE),\"\")","v":""},{"$f":"_xlfn.IFNA(VLOOKUP(A107,'Facilities Look Up'!$A$3:$E$325,3,FALSE),\"\")","v":""},{"$f":"_xlfn.IFNA(VLOOKUP(A107,'Facilities Look Up'!$A$3:$E$325,4,FALSE),\"\")","v":""},{"$f":"_xlfn.IFNA(VLOOKUP(A107,'Facilities Look Up'!$A$3:$E$325,5,FALSE),\"\")","v":""}]
[null,{"$f":"_xlfn.IFNA(VLOOKUP(A108,'Facilities Look Up'!$A$3:$E$325,2,FALSE),\"\")","v":""},{"$f":"_xlfn.IFNA(VLOOKUP(A108,'Facilities Look Up'!$A$3:$E$325,3,FALSE),\"\")","v":""},{"$f":"_xlfn.IFNA(VLOOKUP(A108,'Facilities Look Up'!$A$3:$E$325,4,FALSE),\"\")","v":""},{"$f":"_xlfn.IFNA(VLOOKUP(A108,'Facilities Look Up'!$A$3:$E$325,5,FALSE),\"\")","v":""}]
[null,{"$f":"_xlfn.IFNA(VLOOKUP(A109,'Facilities Look Up'!$A$3:$E$325,2,FALSE),\"\")","v":""},{"$f":"_xlfn.IFNA(VLOOKUP(A109,'Facilities Look Up'!$A$3:$E$325,3,FALSE),\"\")","v":""},{"$f":"_xlfn.IFNA(VLOOKUP(A109,'Facilities Look Up'!$A$3:$E$325,4,FALSE),\"\")","v":""},{"$f":"_xlfn.IFNA(VLOOKUP(A109,'Facilities Look Up'!$A$3:$E$325,5,FALSE),\"\")","v":""}]
[null,{"$f":"_xlfn.IFNA(VLOOKUP(A110,'Facilities Look Up'!$A$3:$E$325,2,FALSE),\"\")","v":""},{"$f":"_xlfn.IFNA(VLOOKUP(A110,'Facilities Look Up'!$A$3:$E$325,3,FALSE),\"\")","v":""},{"$f":"_xlfn.IFNA(VLOOKUP(A110,'Facilities Look Up'!$A$3:$E$325,4,FALSE),\"\")","v":""},{"$f":"_xlfn.IFNA(VLOOKUP(A110,'Facilities Look Up'!$A$3:$E$325,5,FALSE),\"\")","v":""}]
[null,{"$f":"_xlfn.IFNA(VLOOKUP(A111,'Facilities Look Up'!$A$3:$E$325,2,FALSE),\"\")","v":""},{"$f":"_xlfn.IFNA(VLOOKUP(A111,'Facilities Look Up'!$A$3:$E$325,3,FALSE),\"\")","v":""},{"$f":"_xlfn.IFNA(VLOOKUP(A111,'Facilities Look Up'!$A$3:$E$325,4,FALSE),\"\")","v":""},{"$f":"_xlfn.IFNA(VLOOKUP(A111,'Facilities Look Up'!$A$3:$E$325,5,FALSE),\"\")","v":""}]
[null,{"$f":"_xlfn.IFNA(VLOOKUP(A112,'Facilities Look Up'!$A$3:$E$325,2,FALSE),\"\")","v":""},{"$f":"_xlfn.IFNA(VLOOKUP(A112,'Facilities Look Up'!$A$3:$E$325,3,FALSE),\"\")","v":""},{"$f":"_xlfn.IFNA(VLOOKUP(A112,'Facilities Look Up'!$A$3:$E$325,4,FALSE),\"\")","v":""},{"$f":"_xlfn.IFNA(VLOOKUP(A112,'Facilities Look Up'!$A$3:$E$325,5,FALSE),\"\")","v":""}]
[null,{"$f":"_xlfn.IFNA(VLOOKUP(A113,'Facilities Look Up'!$A$3:$E$325,2,FALSE),\"\")","v":""},{"$f":"_xlfn.IFNA(VLOOKUP(A113,'Facilities Look Up'!$A$3:$E$325,3,FALSE),\"\")","v":""},{"$f":"_xlfn.IFNA(VLOOKUP(A113,'Facilities Look Up'!$A$3:$E$325,4,FALSE),\"\")","v":""},{"$f":"_xlfn.IFNA(VLOOKUP(A113,'Facilities Look Up'!$A$3:$E$325,5,FALSE),\"\")","v":""}]
[null,{"$f":"_xlfn.IFNA(VLOOKUP(A114,'Facilities Look Up'!$A$3:$E$325,2,FALSE),\"\")","v":""},{"$f":"_xlfn.IFNA(VLOOKUP(A114,'Facilities Look Up'!$A$3:$E$325,3,FALSE),\"\")","v":""},{"$f":"_xlfn.IFNA(VLOOKUP(A114,'Facilities Look Up'!$A$3:$E$325,4,FALSE),\"\")","v":""},{"$f":"_xlfn.IFNA(VLOOKUP(A114,'Facilities Look Up'!$A$3:$E$325,5,FALSE),\"\")","v":""}]
[null,{"$f":"_xlfn.IFNA(VLOOKUP(A115,'Facilities Look Up'!$A$3:$E$325,2,FALSE),\"\")","v":""},{"$f":"_xlfn.IFNA(VLOOKUP(A115,'Facilities Look Up'!$A$3:$E$325,3,FALSE),\"\")","v":""},{"$f":"_xlfn.IFNA(VLOOKUP(A115,'Facilities Look Up'!$A$3:$E$325,4,FALSE),\"\")","v":""},{"$f":"_xlfn.IFNA(VLOOKUP(A115,'Facilities Look Up'!$A$3:$E$325,5,FALSE),\"\")","v":""}]
[null,{"$f":"_xlfn.IFNA(VLOOKUP(A116,'Facilities Look Up'!$A$3:$E$325,2,FALSE),\"\")","v":""},{"$f":"_xlfn.IFNA(VLOOKUP(A116,'Facilities Look Up'!$A$3:$E$325,3,FALSE),\"\")","v":""},{"$f":"_xlfn.IFNA(VLOOKUP(A116,'Facilities Look Up'!$A$3:$E$325,4,FALSE),\"\")","v":""},{"$f":"_xlfn.IFNA(VLOOKUP(A116,'Facilities Look Up'!$A$3:$E$325,5,FALSE),\"\")","v":""}]
[null,{"$f":"_xlfn.IFNA(VLOOKUP(A117,'Facilities Look Up'!$A$3:$E$325,2,FALSE),\"\")","v":""},{"$f":"_xlfn.IFNA(VLOOKUP(A117,'Facilities Look Up'!$A$3:$E$325,3,FALSE),\"\")","v":""},{"$f":"_xlfn.IFNA(VLOOKUP(A117,'Facilities Look Up'!$A$3:$E$325,4,FALSE),\"\")","v":""},{"$f":"_xlfn.IFNA(VLOOKUP(A117,'Facilities Look Up'!$A$3:$E$325,5,FALSE),\"\")","v":""}]
[null,{"$f":"_xlfn.IFNA(VLOOKUP(A118,'Facilities Look Up'!$A$3:$E$325,2,FALSE),\"\")","v":""},{"$f":"_xlfn.IFNA(VLOOKUP(A118,'Facilities Look Up'!$A$3:$E$325,3,FALSE),\"\")","v":""},{"$f":"_xlfn.IFNA(VLOOKUP(A118,'Facilities Look Up'!$A$3:$E$325,4,FALSE),\"\")","v":""},{"$f":"_xlfn.IFNA(VLOOKUP(A118,'Facilities Look Up'!$A$3:$E$325,5,FALSE),\"\")","v":""}]
[null,{"$f":"_xlfn.IFNA(VLOOKUP(A119,'Facilities Look Up'!$A$3:$E$325,2,FALSE),\"\")","v":""},{"$f":"_xlfn.IFNA(VLOOKUP(A119,'Facilities Look Up'!$A$3:$E$325,3,FALSE),\"\")","v":""},{"$f":"_xlfn.IFNA(VLOOKUP(A119,'Facilities Look Up'!$A$3:$E$325,4,FALSE),\"\")","v":""},{"$f":"_xlfn.IFNA(VLOOKUP(A119,'Facilities Look Up'!$A$3:$E$325,5,FALSE),\"\")","v":""}]
[null,{"$f":"_xlfn.IFNA(VLOOKUP(A120,'Facilities Look Up'!$A$3:$E$325,2,FALSE),\"\")","v":""},{"$f":"_xlfn.IFNA(VLOOKUP(A120,'Facilities Look Up'!$A$3:$E$325,3,FALSE),\"\")","v":""},{"$f":"_xlfn.IFNA(VLOOKUP(A120,'Facilities Look Up'!$A$3:$E$325,4,FALSE),\"\")","v":""},{"$f":"_xlfn.IFNA(VLOOKUP(A120,'Facilities Look Up'!$A$3:$E$325,5,FALSE),\"\")","v":""}]
[null,{"$f":"_xlfn.IFNA(VLOOKUP(A121,'Facilities Look Up'!$A$3:$E$325,2,FALSE),\"\")","v":""},{"$f":"_xlfn.IFNA(VLOOKUP(A121,'Facilities Look Up'!$A$3:$E$325,3,FALSE),\"\")","v":""},{"$f":"_xlfn.IFNA(VLOOKUP(A121,'Facilities Look Up'!$A$3:$E$325,4,FALSE),\"\")","v":""},{"$f":"_xlfn.IFNA(VLOOKUP(A121,'Facilities Look Up'!$A$3:$E$325,5,FALSE),\"\")","v":""}]
[null,{"$f":"_xlfn.IFNA(VLOOKUP(A122,'Facilities Look Up'!$A$3:$E$325,2,FALSE),\"\")","v":""},{"$f":"_xlfn.IFNA(VLOOKUP(A122,'Facilities Look Up'!$A$3:$E$325,3,FALSE),\"\")","v":""},{"$f":"_xlfn.IFNA(VLOOKUP(A122,'Facilities Look Up'!$A$3:$E$325,4,FALSE),\"\")","v":""},{"$f":"_xlfn.IFNA(VLOOKUP(A122,'Facilities Look Up'!$A$3:$E$325,5,FALSE),\"\")","v":""}]
[null,{"$f":"_xlfn.IFNA(VLOOKUP(A123,'Facilities Look Up'!$A$3:$E$325,2,FALSE),\"\")","v":""},{"$f":"_xlfn.IFNA(VLOOKUP(A123,'Facilities Look Up'!$A$3:$E$325,3,FALSE),\"\")","v":""},{"$f":"_xlfn.IFNA(VLOOKUP(A123,'Facilities Look Up'!$A$3:$E$325,4,FALSE),\"\")","v":""},{"$f":"_xlfn.IFNA(VLOOKUP(A123,'Facilities Look Up'!$A$3:$E$325,5,FALSE),\"\")","v":""}]
[null,{"$f":"_xlfn.IFNA(VLOOKUP(A124,'Facilities Look Up'!$A$3:$E$325,2,FALSE),\"\")","v":""},{"$f":"_xlfn.IFNA(VLOOKUP(A124,'Facilities Look Up'!$A$3:$E$325,3,FALSE),\"\")","v":""},{"$f":"_xlfn.IFNA(VLOOKUP(A124,'Facilities Look Up'!$A$3:$E$325,4,FALSE),\"\")","v":""},{"$f":"_xlfn.IFNA(VLOOKUP(A124,'Facilities Look Up'!$A$3:$E$325,5,FALSE),\"\")","v":""}]
[null,{"$f":"_xlfn.IFNA(VLOOKUP(A125,'Facilities Look Up'!$A$3:$E$325,2,FALSE),\"\")","v":""},{"$f":"_xlfn.IFNA(VLOOKUP(A125,'Facilities Look Up'!$A$3:$E$325,3,FALSE),\"\")","v":""},{"$f":"_xlfn.IFNA(VLOOKUP(A125,'Facilities Look Up'!$A$3:$E$325,4,FALSE),\"\")","v":""},{"$f":"_xlfn.IFNA(VLOOKUP(A125,'Facilities Look Up'!$A$3:$E$325,5,FALSE),\"\")","v":""}]
[null,{"$f":"_xlfn.IFNA(VLOOKUP(A126,'Facilities Look Up'!$A$3:$E$325,2,FALSE),\"\")","v":""},{"$f":"_xlfn.IFNA(VLOOKUP(A126,'Facilities Look Up'!$A$3:$E$325,3,FALSE),\"\")","v":""},{"$f":"_xlfn.IFNA(VLOOKUP(A126,'Facilities Look Up'!$A$3:$E$325,4,FALSE),\"\")","v":""},{"$f":"_xlfn.IFNA(VLOOKUP(A126,'Facilities Look Up'!$A$3:$E$325,5,FALSE),\"\")","v":""}]
[null,{"$f":"_xlfn.IFNA(VLOOKUP(A127,'Facilities Look Up'!$A$3:$E$325,2,FALSE),\"\")","v":""},{"$f":"_xlfn.IFNA(VLOOKUP(A127,'Facilities Look Up'!$A$3:$E$325,3,FALSE),\"\")","v":""},{"$f":"_xlfn.IFNA(VLOOKUP(A127,'Facilities Look Up'!$A$3:$E$325,4,FALSE),\"\")","v":""},{"$f":"_xlfn.IFNA(VLOOKUP(A127,'Facilities Look Up'!$A$3:$E$325,5,FALSE),\"\")","v":""}]
[null,{"$f":"_xlfn.IFNA(VLOOKUP(A128,'Facilities Look Up'!$A$3:$E$325,2,FALSE),\"\")","v":""},{"$f":"_xlfn.IFNA(VLOOKUP(A128,'Facilities Look Up'!$A$3:$E$325,3,FALSE),\"\")","v":""},{"$f":"_xlfn.IFNA(VLOOKUP(A128,'Facilities Look Up'!$A$3:$E$325,4,FALSE),\"\")","v":""},{"$f":"_xlfn.IFNA(VLOOKUP(A128,'Facilities Look Up'!$A$3:$E$325,5,FALSE),\"\")","v":""}]
[null,{"$f":"_xlfn.IFNA(VLOOKUP(A129,'Facilities Look Up'!$A$3:$E$325,2,FALSE),\"\")","v":""},{"$f":"_xlfn.IFNA(VLOOKUP(A129,'Facilities Look Up'!$A$3:$E$325,3,FALSE),\"\")","v":""},{"$f":"_xlfn.IFNA(VLOOKUP(A129,'Facilities Look Up'!$A$3:$E$325,4,FALSE),\"\")","v":""},{"$f":"_xlfn.IFNA(VLOOKUP(A129,'Facilities Look Up'!$A$3:$E$325,5,FALSE),\"\")","v":""}]
[null,{"$f":"_xlfn.IFNA(VLOOKUP(A130,'Facilities Look Up'!$A$3:$E$325,2,FALSE),\"\")","v":""},{"$f":"_xlfn.IFNA(VLOOKUP(A130,'Facilities Look Up'!$A$3:$E$325,3,FALSE),\"\")","v":""},{"$f":"_xlfn.IFNA(VLOOKUP(A130,'Facilities Look Up'!$A$3:$E$325,4,FALSE),\"\")","v":""},{"$f":"_xlfn.IFNA(VLOOKUP(A130,'Facilities Look Up'!$A$3:$E$325,5,FALSE),\"\")","v":""}]
[null,{"$f":"_xlfn.IFNA(VLOOKUP(A131,'Facilities Look Up'!$A$3:$E$325,2,FALSE),\"\")","v":""},{"$f":"_xlfn.IFNA(VLOOKUP(A131,'Facilities Look Up'!$A$3:$E$325,3,FALSE),\"\")","v":""},{"$f":"_xlfn.IFNA(VLOOKUP(A131,'Facilities Look Up'!$A$3:$E$325,4,FALSE),\"\")","v":""},{"$f":"_xlfn.IFNA(VLOOKUP(A131,'Facilities Look Up'!$A$3:$E$325,5,FALSE),\"\")","v":""}]
[null,{"$f":"_xlfn.IFNA(VLOOKUP(A132,'Facilities Look Up'!$A$3:$E$325,2,FALSE),\"\")","v":""},{"$f":"_xlfn.IFNA(VLOOKUP(A132,'Facilities Look Up'!$A$3:$E$325,3,FALSE),\"\")","v":""},{"$f":"_xlfn.IFNA(VLOOKUP(A132,'Facilities Look Up'!$A$3:$E$325,4,FALSE),\"\")","v":""},{"$f":"_xlfn.IFNA(VLOOKUP(A132,'Facilities Look Up'!$A$3:$E$325,5,FALSE),\"\")","v":""}]
[null,{"$f":"_xlfn.IFNA(VLOOKUP(A133,'Facilities Look Up'!$A$3:$E$325,2,FALSE),\"\")","v":""},{"$f":"_xlfn.IFNA(VLOOKUP(A133,'Facilities Look Up'!$A$3:$E$325,3,FALSE),\"\")","v":""},{"$f":"_xlfn.IFNA(VLOOKUP(A133,'Facilities Look Up'!$A$3:$E$325,4,FALSE),\"\")","v":""},{"$f":"_xlfn.IFNA(VLOOKUP(A133,'Facilities Look Up'!$A$3:$E$325,5,FALSE),\"\")","v":""}]
[null,{"$f":"_xlfn.IFNA(VLOOKUP(A134,'Facilities Look Up'!$A$3:$E$325,2,FALSE),\"\")","v":""},{"$f":"_xlfn.IFNA(VLOOKUP(A134,'Facilities Look Up'!$A$3:$E$325,3,FALSE),\"\")","v":""},{"$f":"_xlfn.IFNA(VLOOKUP(A134,'Facilities Look Up'!$A$3:$E$325,4,FALSE),\"\")","v":""},{"$f":"_xlfn.IFNA(VLOOKUP(A134,'Facilities Look Up'!$A$3:$E$325,5,FALSE),\"\")","v":""}]
[null,{"$f":"_xlfn.IFNA(VLOOKUP(A135,'Facilities Look Up'!$A$3:$E$325,2,FALSE),\"\")","v":""},{"$f":"_xlfn.IFNA(VLOOKUP(A135,'Facilities Look Up'!$A$3:$E$325,3,FALSE),\"\")","v":""},{"$f":"_xlfn.IFNA(VLOOKUP(A135,'Facilities Look Up'!$A$3:$E$325,4,FALSE),\"\")","v":""},{"$f":"_xlfn.IFNA(VLOOKUP(A135,'Facilities Look Up'!$A$3:$E$325,5,FALSE),\"\")","v":""}]
[null,{"$f":"_xlfn.IFNA(VLOOKUP(A136,'Facilities Look Up'!$A$3:$E$325,2,FALSE),\"\")","v":""},{"$f":"_xlfn.IFNA(VLOOKUP(A136,'Facilities Look Up'!$A$3:$E$325,3,FALSE),\"\")","v":""},{"$f":"_xlfn.IFNA(VLOOKUP(A136,'Facilities Look Up'!$A$3:$E$325,4,FALSE),\"\")","v":""},{"$f":"_xlfn.IFNA(VLOOKUP(A136,'Facilities Look Up'!$A$3:$E$325,5,FALSE),\"\")","v":""}]
[null,{"$f":"_xlfn.IFNA(VLOOKUP(A137,'Facilities Look Up'!$A$3:$E$325,2,FALSE),\"\")","v":""},{"$f":"_xlfn.IFNA(VLOOKUP(A137,'Facilities Look Up'!$A$3:$E$325,3,FALSE),\"\")","v":""},{"$f":"_xlfn.IFNA(VLOOKUP(A137,'Facilities Look Up'!$A$3:$E$325,4,FALSE),\"\")","v":""},{"$f":"_xlfn.IFNA(VLOOKUP(A137,'Facilities Look Up'!$A$3:$E$325,5,FALSE),\"\")","v":""}]
[null,{"$f":"_xlfn.IFNA(VLOOKUP(A138,'Facilities Look Up'!$A$3:$E$325,2,FALSE),\"\")","v":""},{"$f":"_xlfn.IFNA(VLOOKUP(A138,'Facilities Look Up'!$A$3:$E$325,3,FALSE),\"\")","v":""},{"$f":"_xlfn.IFNA(VLOOKUP(A138,'Facilities Look Up'!$A$3:$E$325,4,FALSE),\"\")","v":""},{"$f":"_xlfn.IFNA(VLOOKUP(A138,'Facilities Look Up'!$A$3:$E$325,5,FALSE),\"\")","v":""}]
[null,{"$f":"_xlfn.IFNA(VLOOKUP(A139,'Facilities Look Up'!$A$3:$E$325,2,FALSE),\"\")","v":""},{"$f":"_xlfn.IFNA(VLOOKUP(A139,'Facilities Look Up'!$A$3:$E$325,3,FALSE),\"\")","v":""},{"$f":"_xlfn.IFNA(VLOOKUP(A139,'Facilities Look Up'!$A$3:$E$325,4,FALSE),\"\")","v":""},{"$f":"_xlfn.IFNA(VLOOKUP(A139,'Facilities Look Up'!$A$3:$E$325,5,FALSE),\"\")","v":""}]
[null,{"$f":"_xlfn.IFNA(VLOOKUP(A140,'Facilities Look Up'!$A$3:$E$325,2,FALSE),\"\")","v":""},{"$f":"_xlfn.IFNA(VLOOKUP(A140,'Facilities Look Up'!$A$3:$E$325,3,FALSE),\"\")","v":""},{"$f":"_xlfn.IFNA(VLOOKUP(A140,'Facilities Look Up'!$A$3:$E$325,4,FALSE),\"\")","v":""},{"$f":"_xlfn.IFNA(VLOOKUP(A140,'Facilities Look Up'!$A$3:$E$325,5,FALSE),\"\")","v":""}]
[null,{"$f":"_xlfn.IFNA(VLOOKUP(A141,'Facilities Look Up'!$A$3:$E$325,2,FALSE),\"\")","v":""},{"$f":"_xlfn.IFNA(VLOOKUP(A141,'Facilities Look Up'!$A$3:$E$325,3,FALSE),\"\")","v":""},{"$f":"_xlfn.IFNA(VLOOKUP(A141,'Facilities Look Up'!$A$3:$E$325,4,FALSE),\"\")","v":""},{"$f":"_xlfn.IFNA(VLOOKUP(A141,'Facilities Look Up'!$A$3:$E$325,5,FALSE),\"\")","v":""}]
[null,{"$f":"_xlfn.IFNA(VLOOKUP(A142,'Facilities Look Up'!$A$3:$E$325,2,FALSE),\"\")","v":""},{"$f":"_xlfn.IFNA(VLOOKUP(A142,'Facilities Look Up'!$A$3:$E$325,3,FALSE),\"\")","v":""},{"$f":"_xlfn.IFNA(VLOOKUP(A142,'Facilities Look Up'!$A$3:$E$325,4,FALSE),\"\")","v":""},{"$f":"_xlfn.IFNA(VLOOKUP(A142,'Facilities Look Up'!$A$3:$E$325,5,FALSE),\"\")","v":""}]
[null,{"$f":"_xlfn.IFNA(VLOOKUP(A143,'Facilities Look Up'!$A$3:$E$325,2,FALSE),\"\")","v":""},{"$f":"_xlfn.IFNA(VLOOKUP(A143,'Facilities Look Up'!$A$3:$E$325,3,FALSE),\"\")","v":""},{"$f":"_xlfn.IFNA(VLOOKUP(A143,'Facilities Look Up'!$A$3:$E$325,4,FALSE),\"\")","v":""},{"$f":"_xlfn.IFNA(VLOOKUP(A143,'Facilities Look Up'!$A$3:$E$325,5,FALSE),\"\")","v":""}]
[null,{"$f":"_xlfn.IFNA(VLOOKUP(A144,'Facilities Look Up'!$A$3:$E$325,2,FALSE),\"\")","v":""},{"$f":"_xlfn.IFNA(VLOOKUP(A144,'Facilities Look Up'!$A$3:$E$325,3,FALSE),\"\")","v":""},{"$f":"_xlfn.IFNA(VLOOKUP(A144,'Facilities Look Up'!$A$3:$E$325,4,FALSE),\"\")","v":""},{"$f":"_xlfn.IFNA(VLOOKUP(A144,'Facilities Look Up'!$A$3:$E$325,5,FALSE),\"\")","v":""}]
[null,{"$f":"_xlfn.IFNA(VLOOKUP(A145,'Facilities Look Up'!$A$3:$E$325,2,FALSE),\"\")","v":""},{"$f":"_xlfn.IFNA(VLOOKUP(A145,'Facilities Look Up'!$A$3:$E$325,3,FALSE),\"\")","v":""},{"$f":"_xlfn.IFNA(VLOOKUP(A145,'Facilities Look Up'!$A$3:$E$325,4,FALSE),\"\")","v":""},{"$f":"_xlfn.IFNA(VLOOKUP(A145,'Facilities Look Up'!$A$3:$E$325,5,FALSE),\"\")","v":""}]
[null,{"$f":"_xlfn.IFNA(VLOOKUP(A146,'Facilities Look Up'!$A$3:$E$325,2,FALSE),\"\")","v":""},{"$f":"_xlfn.IFNA(VLOOKUP(A146,'Facilities Look Up'!$A$3:$E$325,3,FALSE),\"\")","v":""},{"$f":"_xlfn.IFNA(VLOOKUP(A146,'Facilities Look Up'!$A$3:$E$325,4,FALSE),\"\")","v":""},{"$f":"_xlfn.IFNA(VLOOKUP(A146,'Facilities Look Up'!$A$3:$E$325,5,FALSE),\"\")","v":""}]
[null,{"$f":"_xlfn.IFNA(VLOOKUP(A147,'Facilities Look Up'!$A$3:$E$325,2,FALSE),\"\")","v":""},{"$f":"_xlfn.IFNA(VLOOKUP(A147,'Facilities Look Up'!$A$3:$E$325,3,FALSE),\"\")","v":""},{"$f":"_xlfn.IFNA(VLOOKUP(A147,'Facilities Look Up'!$A$3:$E$325,4,FALSE),\"\")","v":""},{"$f":"_xlfn.IFNA(VLOOKUP(A147,'Facilities Look Up'!$A$3:$E$325,5,FALSE),\"\")","v":""}]
[null,{"$f":"_xlfn.IFNA(VLOOKUP(A148,'Facilities Look Up'!$A$3:$E$325,2,FALSE),\"\")","v":""},{"$f":"_xlfn.IFNA(VLOOKUP(A148,'Facilities Look Up'!$A$3:$E$325,3,FALSE),\"\")","v":""},{"$f":"_xlfn.IFNA(VLOOKUP(A148,'Facilities Look Up'!$A$3:$E$325,4,FALSE),\"\")","v":""},{"$f":"_xlfn.IFNA(VLOOKUP(A148,'Facilities Look Up'!$A$3:$E$325,5,FALSE),\"\")","v":""}]
[null,{"$f":"_xlfn.IFNA(VLOOKUP(A149,'Facilities Look Up'!$A$3:$E$325,2,FALSE),\"\")","v":""},{"$f":"_xlfn.IFNA(VLOOKUP(A149,'Facilities Look Up'!$A$3:$E$325,3,FALSE),\"\")","v":""},{"$f":"_xlfn.IFNA(VLOOKUP(A149,'Facilities Look Up'!$A$3:$E$325,4,FALSE),\"\")","v":""},{"$f":"_xlfn.IFNA(VLOOKUP(A149,'Facilities Look Up'!$A$3:$E$325,5,FALSE),\"\")","v":""}]
[null,{"$f":"_xlfn.IFNA(VLOOKUP(A150,'Facilities Look Up'!$A$3:$E$325,2,FALSE),\"\")","v":""},{"$f":"_xlfn.IFNA(VLOOKUP(A150,'Facilities Look Up'!$A$3:$E$325,3,FALSE),\"\")","v":""},{"$f":"_xlfn.IFNA(VLOOKUP(A150,'Facilities Look Up'!$A$3:$E$325,4,FALSE),\"\")","v":""},{"$f":"_xlfn.IFNA(VLOOKUP(A150,'Facilities Look Up'!$A$3:$E$325,5,FALSE),\"\")","v":""}]
[null,{"$f":"_xlfn.IFNA(VLOOKUP(A151,'Facilities Look Up'!$A$3:$E$325,2,FALSE),\"\")","v":""},{"$f":"_xlfn.IFNA(VLOOKUP(A151,'Facilities Look Up'!$A$3:$E$325,3,FALSE),\"\")","v":""},{"$f":"_xlfn.IFNA(VLOOKUP(A151,'Facilities Look Up'!$A$3:$E$325,4,FALSE),\"\")","v":""},{"$f":"_xlfn.IFNA(VLOOKUP(A151,'Facilities Look Up'!$A$3:$E$325,5,FALSE),\"\")","v":""}]
[null,{"$f":"_xlfn.IFNA(VLOOKUP(A152,'Facilities Look Up'!$A$3:$E$325,2,FALSE),\"\")","v":""},{"$f":"_xlfn.IFNA(VLOOKUP(A152,'Facilities Look Up'!$A$3:$E$325,3,FALSE),\"\")","v":""},{"$f":"_xlfn.IFNA(VLOOKUP(A152,'Facilities Look Up'!$A$3:$E$325,4,FALSE),\"\")","v":""},{"$f":"_xlfn.IFNA(VLOOKUP(A152,'Facilities Look Up'!$A$3:$E$325,5,FALSE),\"\")","v":""}]
[null,{"$f":"_xlfn.IFNA(VLOOKUP(A153,'Facilities Look Up'!$A$3:$E$325,2,FALSE),\"\")","v":""},{"$f":"_xlfn.IFNA(VLOOKUP(A153,'Facilities Look Up'!$A$3:$E$325,3,FALSE),\"\")","v":""},{"$f":"_xlfn.IFNA(VLOOKUP(A153,'Facilities Look Up'!$A$3:$E$325,4,FALSE),\"\")","v":""},{"$f":"_xlfn.IFNA(VLOOKUP(A153,'Facilities Look Up'!$A$3:$E$325,5,FALSE),\"\")","v":""}]
[null,{"$f":"_xlfn.IFNA(VLOOKUP(A154,'Facilities Look Up'!$A$3:$E$325,2,FALSE),\"\")","v":""},{"$f":"_xlfn.IFNA(VLOOKUP(A154,'Facilities Look Up'!$A$3:$E$325,3,FALSE),\"\")","v":""},{"$f":"_xlfn.IFNA(VLOOKUP(A154,'Facilities Look Up'!$A$3:$E$325,4,FALSE),\"\")","v":""},{"$f":"_xlfn.IFNA(VLOOKUP(A154,'Facilities Look Up'!$A$3:$E$325,5,FALSE),\"\")","v":""}]
[null,{"$f":"_xlfn.IFNA(VLOOKUP(A155,'Facilities Look Up'!$A$3:$E$325,2,FALSE),\"\")","v":""},{"$f":"_xlfn.IFNA(VLOOKUP(A155,'Facilities Look Up'!$A$3:$E$325,3,FALSE),\"\")","v":""},{"$f":"_xlfn.IFNA(VLOOKUP(A155,'Facilities Look Up'!$A$3:$E$325,4,FALSE),\"\")","v":""},{"$f":"_xlfn.IFNA(VLOOKUP(A155,'Facilities Look Up'!$A$3:$E$325,5,FALSE),\"\")","v":""}]
[null,{"$f":"_xlfn.IFNA(VLOOKUP(A156,'Facilities Look Up'!$A$3:$E$325,2,FALSE),\"\")","v":""},{"$f":"_xlfn.IFNA(VLOOKUP(A156,'Facilities Look Up'!$A$3:$E$325,3,FALSE),\"\")","v":""},{"$f":"_xlfn.IFNA(VLOOKUP(A156,'Facilities Look Up'!$A$3:$E$325,4,FALSE),\"\")","v":""},{"$f":"_xlfn.IFNA(VLOOKUP(A156,'Facilities Look Up'!$A$3:$E$325,5,FALSE),\"\")","v":""}]
[null,{"$f":"_xlfn.IFNA(VLOOKUP(A157,'Facilities Look Up'!$A$3:$E$325,2,FALSE),\"\")","v":""},{"$f":"_xlfn.IFNA(VLOOKUP(A157,'Facilities Look Up'!$A$3:$E$325,3,FALSE),\"\")","v":""},{"$f":"_xlfn.IFNA(VLOOKUP(A157,'Facilities Look Up'!$A$3:$E$325,4,FALSE),\"\")","v":""},{"$f":"_xlfn.IFNA(VLOOKUP(A157,'Facilities Look Up'!$A$3:$E$325,5,FALSE),\"\")","v":""}]
[null,{"$f":"_xlfn.IFNA(VLOOKUP(A158,'Facilities Look Up'!$A$3:$E$325,2,FALSE),\"\")","v":""},{"$f":"_xlfn.IFNA(VLOOKUP(A158,'Facilities Look Up'!$A$3:$E$325,3,FALSE),\"\")","v":""},{"$f":"_xlfn.IFNA(VLOOKUP(A158,'Facilities Look Up'!$A$3:$E$325,4,FALSE),\"\")","v":""},{"$f":"_xlfn.IFNA(VLOOKUP(A158,'Facilities Look Up'!$A$3:$E$325,5,FALSE),\"\")","v":""}]
[null,{"$f":"_xlfn.IFNA(VLOOKUP(A159,'Facilities Look Up'!$A$3:$E$325,2,FALSE),\"\")","v":""},{"$f":"_xlfn.IFNA(VLOOKUP(A159,'Facilities Look Up'!$A$3:$E$325,3,FALSE),\"\")","v":""},{"$f":"_xlfn.IFNA(VLOOKUP(A159,'Facilities Look Up'!$A$3:$E$325,4,FALSE),\"\")","v":""},{"$f":"_xlfn.IFNA(VLOOKUP(A159,'Facilities Look Up'!$A$3:$E$325,5,FALSE),\"\")","v":""}]
[null,{"$f":"_xlfn.IFNA(VLOOKUP(A160,'Facilities Look Up'!$A$3:$E$325,2,FALSE),\"\")","v":""},{"$f":"_xlfn.IFNA(VLOOKUP(A160,'Facilities Look Up'!$A$3:$E$325,3,FALSE),\"\")","v":""},{"$f":"_xlfn.IFNA(VLOOKUP(A160,'Facilities Look Up'!$A$3:$E$325,4,FALSE),\"\")","v":""},{"$f":"_xlfn.IFNA(VLOOKUP(A160,'Facilities Look Up'!$A$3:$E$325,5,FALSE),\"\")","v":""}]
[null,{"$f":"_xlfn.IFNA(VLOOKUP(A161,'Facilities Look Up'!$A$3:$E$325,2,FALSE),\"\")","v":""},{"$f":"_xlfn.IFNA(VLOOKUP(A161,'Facilities Look Up'!$A$3:$E$325,3,FALSE),\"\")","v":""},{"$f":"_xlfn.IFNA(VLOOKUP(A161,'Facilities Look Up'!$A$3:$E$325,4,FALSE),\"\")","v":""},{"$f":"_xlfn.IFNA(VLOOKUP(A161,'Facilities Look Up'!$A$3:$E$325,5,FALSE),\"\")","v":""}]
[null,{"$f":"_xlfn.IFNA(VLOOKUP(A162,'Facilities Look Up'!$A$3:$E$325,2,FALSE),\"\")","v":""},{"$f":"_xlfn.IFNA(VLOOKUP(A162,'Facilities Look Up'!$A$3:$E$325,3,FALSE),\"\")","v":""},{"$f":"_xlfn.IFNA(VLOOKUP(A162,'Facilities Look Up'!$A$3:$E$325,4,FALSE),\"\")","v":""},{"$f":"_xlfn.IFNA(VLOOKUP(A162,'Facilities Look Up'!$A$3:$E$325,5,FALSE),\"\")","v":""}]
[null,{"$f":"_xlfn.IFNA(VLOOKUP(A163,'Facilities Look Up'!$A$3:$E$325,2,FALSE),\"\")","v":""},{"$f":"_xlfn.IFNA(VLOOKUP(A163,'Facilities Look Up'!$A$3:$E$325,3,FALSE),\"\")","v":""},{"$f":"_xlfn.IFNA(VLOOKUP(A163,'Facilities Look Up'!$A$3:$E$325,4,FALSE),\"\")","v":""},{"$f":"_xlfn.IFNA(VLOOKUP(A163,'Facilities Look Up'!$A$3:$E$325,5,FALSE),\"\")","v":""}]
[null,{"$f":"_xlfn.IFNA(VLOOKUP(A164,'Facilities Look Up'!$A$3:$E$325,2,FALSE),\"\")","v":""},{"$f":"_xlfn.IFNA(VLOOKUP(A164,'Facilities Look Up'!$A$3:$E$325,3,FALSE),\"\")","v":""},{"$f":"_xlfn.IFNA(VLOOKUP(A164,'Facilities Look Up'!$A$3:$E$325,4,FALSE),\"\")","v":""},{"$f":"_xlfn.IFNA(VLOOKUP(A164,'Facilities Look Up'!$A$3:$E$325,5,FALSE),\"\")","v":""}]
[null,{"$f":"_xlfn.IFNA(VLOOKUP(A165,'Facilities Look Up'!$A$3:$E$325,2,FALSE),\"\")","v":""},{"$f":"_xlfn.IFNA(VLOOKUP(A165,'Facilities Look Up'!$A$3:$E$325,3,FALSE),\"\")","v":""},{"$f":"_xlfn.IFNA(VLOOKUP(A165,'Facilities Look Up'!$A$3:$E$325,4,FALSE),\"\")","v":""},{"$f":"_xlfn.IFNA(VLOOKUP(A165,'Facilities Look Up'!$A$3:$E$325,5,FALSE),\"\")","v":""}]
[null,{"$f":"_xlfn.IFNA(VLOOKUP(A166,'Facilities Look Up'!$A$3:$E$325,2,FALSE),\"\")","v":""},{"$f":"_xlfn.IFNA(VLOOKUP(A166,'Facilities Look Up'!$A$3:$E$325,3,FALSE),\"\")","v":""},{"$f":"_xlfn.IFNA(VLOOKUP(A166,'Facilities Look Up'!$A$3:$E$325,4,FALSE),\"\")","v":""},{"$f":"_xlfn.IFNA(VLOOKUP(A166,'Facilities Look Up'!$A$3:$E$325,5,FALSE),\"\")","v":""}]
[null,{"$f":"_xlfn.IFNA(VLOOKUP(A167,'Facilities Look Up'!$A$3:$E$325,2,FALSE),\"\")","v":""},{"$f":"_xlfn.IFNA(VLOOKUP(A167,'Facilities Look Up'!$A$3:$E$325,3,FALSE),\"\")","v":""},{"$f":"_xlfn.IFNA(VLOOKUP(A167,'Facilities Look Up'!$A$3:$E$325,4,FALSE),\"\")","v":""},{"$f":"_xlfn.IFNA(VLOOKUP(A167,'Facilities Look Up'!$A$3:$E$325,5,FALSE),\"\")","v":""}]
[null,{"$f":"_xlfn.IFNA(VLOOKUP(A168,'Facilities Look Up'!$A$3:$E$325,2,FALSE),\"\")","v":""},{"$f":"_xlfn.IFNA(VLOOKUP(A168,'Facilities Look Up'!$A$3:$E$325,3,FALSE),\"\")","v":""},{"$f":"_xlfn.IFNA(VLOOKUP(A168,'Facilities Look Up'!$A$3:$E$325,4,FALSE),\"\")","v":""},{"$f":"_xlfn.IFNA(VLOOKUP(A168,'Facilities Look Up'!$A$3:$E$325,5,FALSE),\"\")","v":""}]
[null,{"$f":"_xlfn.IFNA(VLOOKUP(A169,'Facilities Look Up'!$A$3:$E$325,2,FALSE),\"\")","v":""},{"$f":"_xlfn.IFNA(VLOOKUP(A169,'Facilities Look Up'!$A$3:$E$325,3,FALSE),\"\")","v":""},{"$f":"_xlfn.IFNA(VLOOKUP(A169,'Facilities Look Up'!$A$3:$E$325,4,FALSE),\"\")","v":""},{"$f":"_xlfn.IFNA(VLOOKUP(A169,'Facilities Look Up'!$A$3:$E$325,5,FALSE),\"\")","v":""}]
[null,{"$f":"_xlfn.IFNA(VLOOKUP(A170,'Facilities Look Up'!$A$3:$E$325,2,FALSE),\"\")","v":""},{"$f":"_xlfn.IFNA(VLOOKUP(A170,'Facilities Look Up'!$A$3:$E$325,3,FALSE),\"\")","v":""},{"$f":"_xlfn.IFNA(VLOOKUP(A170,'Facilities Look Up'!$A$3:$E$325,4,FALSE),\"\")","v":""},{"$f":"_xlfn.IFNA(VLOOKUP(A170,'Facilities Look Up'!$A$3:$E$325,5,FALSE),\"\")","v":""}]
[null,{"$f":"_xlfn.IFNA(VLOOKUP(A171,'Facilities Look Up'!$A$3:$E$325,2,FALSE),\"\")","v":""},{"$f":"_xlfn.IFNA(VLOOKUP(A171,'Facilities Look Up'!$A$3:$E$325,3,FALSE),\"\")","v":""},{"$f":"_xlfn.IFNA(VLOOKUP(A171,'Facilities Look Up'!$A$3:$E$325,4,FALSE),\"\")","v":""},{"$f":"_xlfn.IFNA(VLOOKUP(A171,'Facilities Look Up'!$A$3:$E$325,5,FALSE),\"\")","v":""}]
[null,{"$f":"_xlfn.IFNA(VLOOKUP(A172,'Facilities Look Up'!$A$3:$E$325,2,FALSE),\"\")","v":""},{"$f":"_xlfn.IFNA(VLOOKUP(A172,'Facilities Look Up'!$A$3:$E$325,3,FALSE),\"\")","v":""},{"$f":"_xlfn.IFNA(VLOOKUP(A172,'Facilities Look Up'!$A$3:$E$325,4,FALSE),\"\")","v":""},{"$f":"_xlfn.IFNA(VLOOKUP(A172,'Facilities Look Up'!$A$3:$E$325,5,FALSE),\"\")","v":""}]
[null,{"$f":"_xlfn.IFNA(VLOOKUP(A173,'Facilities Look Up'!$A$3:$E$325,2,FALSE),\"\")","v":""},{"$f":"_xlfn.IFNA(VLOOKUP(A173,'Facilities Look Up'!$A$3:$E$325,3,FALSE),\"\")","v":""},{"$f":"_xlfn.IFNA(VLOOKUP(A173,'Facilities Look Up'!$A$3:$E$325,4,FALSE),\"\")","v":""},{"$f":"_xlfn.IFNA(VLOOKUP(A173,'Facilities Look Up'!$A$3:$E$325,5,FALSE),\"\")","v":""}]
[null,{"$f":"_xlfn.IFNA(VLOOKUP(A174,'Facilities Look Up'!$A$3:$E$325,2,FALSE),\"\")","v":""},{"$f":"_xlfn.IFNA(VLOOKUP(A174,'Facilities Look Up'!$A$3:$E$325,3,FALSE),\"\")","v":""},{"$f":"_xlfn.IFNA(VLOOKUP(A174,'Facilities Look Up'!$A$3:$E$325,4,FALSE),\"\")","v":""},{"$f":"_xlfn.IFNA(VLOOKUP(A174,'Facilities Look Up'!$A$3:$E$325,5,FALSE),\"\")","v":""}]
[null,{"$f":"_xlfn.IFNA(VLOOKUP(A175,'Facilities Look Up'!$A$3:$E$325,2,FALSE),\"\")","v":""},{"$f":"_xlfn.IFNA(VLOOKUP(A175,'Facilities Look Up'!$A$3:$E$325,3,FALSE),\"\")","v":""},{"$f":"_xlfn.IFNA(VLOOKUP(A175,'Facilities Look Up'!$A$3:$E$325,4,FALSE),\"\")","v":""},{"$f":"_xlfn.IFNA(VLOOKUP(A175,'Facilities Look Up'!$A$3:$E$325,5,FALSE),\"\")","v":""}]
[null,{"$f":"_xlfn.IFNA(VLOOKUP(A176,'Facilities Look Up'!$A$3:$E$325,2,FALSE),\"\")","v":""},{"$f":"_xlfn.IFNA(VLOOKUP(A176,'Facilities Look Up'!$A$3:$E$325,3,FALSE),\"\")","v":""},{"$f":"_xlfn.IFNA(VLOOKUP(A176,'Facilities Look Up'!$A$3:$E$325,4,FALSE),\"\")","v":""},{"$f":"_xlfn.IFNA(VLOOKUP(A176,'Facilities Look Up'!$A$3:$E$325,5,FALSE),\"\")","v":""}]
[null,{"$f":"_xlfn.IFNA(VLOOKUP(A177,'Facilities Look Up'!$A$3:$E$325,2,FALSE),\"\")","v":""},{"$f":"_xlfn.IFNA(VLOOKUP(A177,'Facilities Look Up'!$A$3:$E$325,3,FALSE),\"\")","v":""},{"$f":"_xlfn.IFNA(VLOOKUP(A177,'Facilities Look Up'!$A$3:$E$325,4,FALSE),\"\")","v":""},{"$f":"_xlfn.IFNA(VLOOKUP(A177,'Facilities Look Up'!$A$3:$E$325,5,FALSE),\"\")","v":""}]
[null,{"$f":"_xlfn.IFNA(VLOOKUP(A178,'Facilities Look Up'!$A$3:$E$325,2,FALSE),\"\")","v":""},{"$f":"_xlfn.IFNA(VLOOKUP(A178,'Facilities Look Up'!$A$3:$E$325,3,FALSE),\"\")","v":""},{"$f":"_xlfn.IFNA(VLOOKUP(A178,'Facilities Look Up'!$A$3:$E$325,4,FALSE),\"\")","v":""},{"$f":"_xlfn.IFNA(VLOOKUP(A178,'Facilities Look Up'!$A$3:$E$325,5,FALSE),\"\")","v":""}]
[null,{"$f":"_xlfn.IFNA(VLOOKUP(A179,'Facilities Look Up'!$A$3:$E$325,2,FALSE),\"\")","v":""},{"$f":"_xlfn.IFNA(VLOOKUP(A179,'Facilities Look Up'!$A$3:$E$325,3,FALSE),\"\")","v":""},{"$f":"_xlfn.IFNA(VLOOKUP(A179,'Facilities Look Up'!$A$3:$E$325,4,FALSE),\"\")","v":""},{"$f":"_xlfn.IFNA(VLOOKUP(A179,'Facilities Look Up'!$A$3:$E$325,5,FALSE),\"\")","v":""}]
[null,{"$f":"_xlfn.IFNA(VLOOKUP(A180,'Facilities Look Up'!$A$3:$E$325,2,FALSE),\"\")","v":""},{"$f":"_xlfn.IFNA(VLOOKUP(A180,'Facilities Look Up'!$A$3:$E$325,3,FALSE),\"\")","v":""},{"$f":"_xlfn.IFNA(VLOOKUP(A180,'Facilities Look Up'!$A$3:$E$325,4,FALSE),\"\")","v":""},{"$f":"_xlfn.IFNA(VLOOKUP(A180,'Facilities Look Up'!$A$3:$E$325,5,FALSE),\"\")","v":""}]
[null,{"$f":"_xlfn.IFNA(VLOOKUP(A181,'Facilities Look Up'!$A$3:$E$325,2,FALSE),\"\")","v":""},{"$f":"_xlfn.IFNA(VLOOKUP(A181,'Facilities Look Up'!$A$3:$E$325,3,FALSE),\"\")","v":""},{"$f":"_xlfn.IFNA(VLOOKUP(A181,'Facilities Look Up'!$A$3:$E$325,4,FALSE),\"\")","v":""},{"$f":"_xlfn.IFNA(VLOOKUP(A181,'Facilities Look Up'!$A$3:$E$325,5,FALSE),\"\")","v":""}]
[null,{"$f":"_xlfn.IFNA(VLOOKUP(A182,'Facilities Look Up'!$A$3:$E$325,2,FALSE),\"\")","v":""},{"$f":"_xlfn.IFNA(VLOOKUP(A182,'Facilities Look Up'!$A$3:$E$325,3,FALSE),\"\")","v":""},{"$f":"_xlfn.IFNA(VLOOKUP(A182,'Facilities Look Up'!$A$3:$E$325,4,FALSE),\"\")","v":""},{"$f":"_xlfn.IFNA(VLOOKUP(A182,'Facilities Look Up'!$A$3:$E$325,5,FALSE),\"\")","v":""}]
[null,{"$f":"_xlfn.IFNA(VLOOKUP(A183,'Facilities Look Up'!$A$3:$E$325,2,FALSE),\"\")","v":""},{"$f":"_xlfn.IFNA(VLOOKUP(A183,'Facilities Look Up'!$A$3:$E$325,3,FALSE),\"\")","v":""},{"$f":"_xlfn.IFNA(VLOOKUP(A183,'Facilities Look Up'!$A$3:$E$325,4,FALSE),\"\")","v":""},{"$f":"_xlfn.IFNA(VLOOKUP(A183,'Facilities Look Up'!$A$3:$E$325,5,FALSE),\"\")","v":""}]
[null,{"$f":"_xlfn.IFNA(VLOOKUP(A184,'Facilities Look Up'!$A$3:$E$325,2,FALSE),\"\")","v":""},{"$f":"_xlfn.IFNA(VLOOKUP(A184,'Facilities Look Up'!$A$3:$E$325,3,FALSE),\"\")","v":""},{"$f":"_xlfn.IFNA(VLOOKUP(A184,'Facilities Look Up'!$A$3:$E$325,4,FALSE),\"\")","v":""},{"$f":"_xlfn.IFNA(VLOOKUP(A184,'Facilities Look Up'!$A$3:$E$325,5,FALSE),\"\")","v":""}]
[null,{"$f":"_xlfn.IFNA(VLOOKUP(A185,'Facilities Look Up'!$A$3:$E$325,2,FALSE),\"\")","v":""},{"$f":"_xlfn.IFNA(VLOOKUP(A185,'Facilities Look Up'!$A$3:$E$325,3,FALSE),\"\")","v":""},{"$f":"_xlfn.IFNA(VLOOKUP(A185,'Facilities Look Up'!$A$3:$E$325,4,FALSE),\"\")","v":""},{"$f":"_xlfn.IFNA(VLOOKUP(A185,'Facilities Look Up'!$A$3:$E$325,5,FALSE),\"\")","v":""}]
[null,{"$f":"_xlfn.IFNA(VLOOKUP(A186,'Facilities Look Up'!$A$3:$E$325,2,FALSE),\"\")","v":""},{"$f":"_xlfn.IFNA(VLOOKUP(A186,'Facilities Look Up'!$A$3:$E$325,3,FALSE),\"\")","v":""},{"$f":"_xlfn.IFNA(VLOOKUP(A186,'Facilities Look Up'!$A$3:$E$325,4,FALSE),\"\")","v":""},{"$f":"_xlfn.IFNA(VLOOKUP(A186,'Facilities Look Up'!$A$3:$E$325,5,FALSE),\"\")","v":""}]
[null,{"$f":"_xlfn.IFNA(VLOOKUP(A187,'Facilities Look Up'!$A$3:$E$325,2,FALSE),\"\")","v":""},{"$f":"_xlfn.IFNA(VLOOKUP(A187,'Facilities Look Up'!$A$3:$E$325,3,FALSE),\"\")","v":""},{"$f":"_xlfn.IFNA(VLOOKUP(A187,'Facilities Look Up'!$A$3:$E$325,4,FALSE),\"\")","v":""},{"$f":"_xlfn.IFNA(VLOOKUP(A187,'Facilities Look Up'!$A$3:$E$325,5,FALSE),\"\")","v":""}]
[null,{"$f":"_xlfn.IFNA(VLOOKUP(A188,'Facilities Look Up'!$A$3:$E$325,2,FALSE),\"\")","v":""},{"$f":"_xlfn.IFNA(VLOOKUP(A188,'Facilities Look Up'!$A$3:$E$325,3,FALSE),\"\")","v":""},{"$f":"_xlfn.IFNA(VLOOKUP(A188,'Facilities Look Up'!$A$3:$E$325,4,FALSE),\"\")","v":""},{"$f":"_xlfn.IFNA(VLOOKUP(A188,'Facilities Look Up'!$A$3:$E$325,5,FALSE),\"\")","v":""}]
[null,{"$f":"_xlfn.IFNA(VLOOKUP(A189,'Facilities Look Up'!$A$3:$E$325,2,FALSE),\"\")","v":""},{"$f":"_xlfn.IFNA(VLOOKUP(A189,'Facilities Look Up'!$A$3:$E$325,3,FALSE),\"\")","v":""},{"$f":"_xlfn.IFNA(VLOOKUP(A189,'Facilities Look Up'!$A$3:$E$325,4,FALSE),\"\")","v":""},{"$f":"_xlfn.IFNA(VLOOKUP(A189,'Facilities Look Up'!$A$3:$E$325,5,FALSE),\"\")","v":""}]
[null,{"$f":"_xlfn.IFNA(VLOOKUP(A190,'Facilities Look Up'!$A$3:$E$325,2,FALSE),\"\")","v":""},{"$f":"_xlfn.IFNA(VLOOKUP(A190,'Facilities Look Up'!$A$3:$E$325,3,FALSE),\"\")","v":""},{"$f":"_xlfn.IFNA(VLOOKUP(A190,'Facilities Look Up'!$A$3:$E$325,4,FALSE),\"\")","v":""},{"$f":"_xlfn.IFNA(VLOOKUP(A190,'Facilities Look Up'!$A$3:$E$325,5,FALSE),\"\")","v":""}]
[null,{"$f":"_xlfn.IFNA(VLOOKUP(A191,'Facilities Look Up'!$A$3:$E$325,2,FALSE),\"\")","v":""},{"$f":"_xlfn.IFNA(VLOOKUP(A191,'Facilities Look Up'!$A$3:$E$325,3,FALSE),\"\")","v":""},{"$f":"_xlfn.IFNA(VLOOKUP(A191,'Facilities Look Up'!$A$3:$E$325,4,FALSE),\"\")","v":""},{"$f":"_xlfn.IFNA(VLOOKUP(A191,'Facilities Look Up'!$A$3:$E$325,5,FALSE),\"\")","v":""}]
[null,{"$f":"_xlfn.IFNA(VLOOKUP(A192,'Facilities Look Up'!$A$3:$E$325,2,FALSE),\"\")","v":""},{"$f":"_xlfn.IFNA(VLOOKUP(A192,'Facilities Look Up'!$A$3:$E$325,3,FALSE),\"\")","v":""},{"$f":"_xlfn.IFNA(VLOOKUP(A192,'Facilities Look Up'!$A$3:$E$325,4,FALSE),\"\")","v":""},{"$f":"_xlfn.IFNA(VLOOKUP(A192,'Facilities Look Up'!$A$3:$E$325,5,FALSE),\"\")","v":""}]
[null,{"$f":"_xlfn.IFNA(VLOOKUP(A193,'Facilities Look Up'!$A$3:$E$325,2,FALSE),\"\")","v":""},{"$f":"_xlfn.IFNA(VLOOKUP(A193,'Facilities Look Up'!$A$3:$E$325,3,FALSE),\"\")","v":""},{"$f":"_xlfn.IFNA(VLOOKUP(A193,'Facilities Look Up'!$A$3:$E$325,4,FALSE),\"\")","v":""},{"$f":"_xlfn.IFNA(VLOOKUP(A193,'Facilities Look Up'!$A$3:$E$325,5,FALSE),\"\")","v":""}]
[null,{"$f":"_xlfn.IFNA(VLOOKUP(A194,'Facilities Look Up'!$A$3:$E$325,2,FALSE),\"\")","v":""},{"$f":"_xlfn.IFNA(VLOOKUP(A194,'Facilities Look Up'!$A$3:$E$325,3,FALSE),\"\")","v":""},{"$f":"_xlfn.IFNA(VLOOKUP(A194,'Facilities Look Up'!$A$3:$E$325,4,FALSE),\"\")","v":""},{"$f":"_xlfn.IFNA(VLOOKUP(A194,'Facilities Look Up'!$A$3:$E$325,5,FALSE),\"\")","v":""}]
[null,{"$f":"_xlfn.IFNA(VLOOKUP(A195,'Facilities Look Up'!$A$3:$E$325,2,FALSE),\"\")","v":""},{"$f":"_xlfn.IFNA(VLOOKUP(A195,'Facilities Look Up'!$A$3:$E$325,3,FALSE),\"\")","v":""},{"$f":"_xlfn.IFNA(VLOOKUP(A195,'Facilities Look Up'!$A$3:$E$325,4,FALSE),\"\")","v":""},{"$f":"_xlfn.IFNA(VLOOKUP(A195,'Facilities Look Up'!$A$3:$E$325,5,FALSE),\"\")","v":""}]
[null,{"$f":"_xlfn.IFNA(VLOOKUP(A196,'Facilities Look Up'!$A$3:$E$325,2,FALSE),\"\")","v":""},{"$f":"_xlfn.IFNA(VLOOKUP(A196,'Facilities Look Up'!$A$3:$E$325,3,FALSE),\"\")","v":""},{"$f":"_xlfn.IFNA(VLOOKUP(A196,'Facilities Look Up'!$A$3:$E$325,4,FALSE),\"\")","v":""},{"$f":"_xlfn.IFNA(VLOOKUP(A196,'Facilities Look Up'!$A$3:$E$325,5,FALSE),\"\")","v":""}]
[null,{"$f":"_xlfn.IFNA(VLOOKUP(A197,'Facilities Look Up'!$A$3:$E$325,2,FALSE),\"\")","v":""},{"$f":"_xlfn.IFNA(VLOOKUP(A197,'Facilities Look Up'!$A$3:$E$325,3,FALSE),\"\")","v":""},{"$f":"_xlfn.IFNA(VLOOKUP(A197,'Facilities Look Up'!$A$3:$E$325,4,FALSE),\"\")","v":""},{"$f":"_xlfn.IFNA(VLOOKUP(A197,'Facilities Look Up'!$A$3:$E$325,5,FALSE),\"\")","v":""}]
[null,{"$f":"_xlfn.IFNA(VLOOKUP(A198,'Facilities Look Up'!$A$3:$E$325,2,FALSE),\"\")","v":""},{"$f":"_xlfn.IFNA(VLOOKUP(A198,'Facilities Look Up'!$A$3:$E$325,3,FALSE),\"\")","v":""},{"$f":"_xlfn.IFNA(VLOOKUP(A198,'Facilities Look Up'!$A$3:$E$325,4,FALSE),\"\")","v":""},{"$f":"_xlfn.IFNA(VLOOKUP(A198,'Facilities Look Up'!$A$3:$E$325,5,FALSE),\"\")","v":""}]
[null,{"$f":"_xlfn.IFNA(VLOOKUP(A199,'Facilities Look Up'!$A$3:$E$325,2,FALSE),\"\")","v":""},{"$f":"_xlfn.IFNA(VLOOKUP(A199,'Facilities Look Up'!$A$3:$E$325,3,FALSE),\"\")","v":""},{"$f":"_xlfn.IFNA(VLOOKUP(A199,'Facilities Look Up'!$A$3:$E$325,4,FALSE),\"\")","v":""},{"$f":"_xlfn.IFNA(VLOOKUP(A199,'Facilities Look Up'!$A$3:$E$325,5,FALSE),\"\")","v":""}]
[null,{"$f":"_xlfn.IFNA(VLOOKUP(A200,'Facilities Look Up'!$A$3:$E$325,2,FALSE),\"\")","v":""},{"$f":"_xlfn.IFNA(VLOOKUP(A200,'Facilities Look Up'!$A$3:$E$325,3,FALSE),\"\")","v":""},{"$f":"_xlfn.IFNA(VLOOKUP(A200,'Facilities Look Up'!$A$3:$E$325,4,FALSE),\"\")","v":""},{"$f":"_xlfn.IFNA(VLOOKUP(A200,'Facilities Look Up'!$A$3:$E$325,5,FALSE),\"\")","v":""}]
[null,{"$f":"_xlfn.IFNA(VLOOKUP(A201,'Facilities Look Up'!$A$3:$E$325,2,FALSE),\"\")","v":""},{"$f":"_xlfn.IFNA(VLOOKUP(A201,'Facilities Look Up'!$A$3:$E$325,3,FALSE),\"\")","v":""},{"$f":"_xlfn.IFNA(VLOOKUP(A201,'Facilities Look Up'!$A$3:$E$325,4,FALSE),\"\")","v":""},{"$f":"_xlfn.IFNA(VLOOKUP(A201,'Facilities Look Up'!$A$3:$E$325,5,FALSE),\"\")","v":""}]
[null,{"$f":"_xlfn.IFNA(VLOOKUP(A202,'Facilities Look Up'!$A$3:$E$325,2,FALSE),\"\")","v":""},{"$f":"_xlfn.IFNA(VLOOKUP(A202,'Facilities Look Up'!$A$3:$E$325,3,FALSE),\"\")","v":""},{"$f":"_xlfn.IFNA(VLOOKUP(A202,'Facilities Look Up'!$A$3:$E$325,4,FALSE),\"\")","v":""},{"$f":"_xlfn.IFNA(VLOOKUP(A202,'Facilities Look Up'!$A$3:$E$325,5,FALSE),\"\")","v":""}]
[null,{"$f":"_xlfn.IFNA(VLOOKUP(A203,'Facilities Look Up'!$A$3:$E$325,2,FALSE),\"\")","v":""},{"$f":"_xlfn.IFNA(VLOOKUP(A203,'Facilities Look Up'!$A$3:$E$325,3,FALSE),\"\")","v":""},{"$f":"_xlfn.IFNA(VLOOKUP(A203,'Facilities Look Up'!$A$3:$E$325,4,FALSE),\"\")","v":""},{"$f":"_xlfn.IFNA(VLOOKUP(A203,'Facilities Look Up'!$A$3:$E$325,5,FALSE),\"\")","v":""}]
[null,{"$f":"_xlfn.IFNA(VLOOKUP(A204,'Facilities Look Up'!$A$3:$E$325,2,FALSE),\"\")","v":""},{"$f":"_xlfn.IFNA(VLOOKUP(A204,'Facilities Look Up'!$A$3:$E$325,3,FALSE),\"\")","v":""},{"$f":"_xlfn.IFNA(VLOOKUP(A204,'Facilities Look Up'!$A$3:$E$325,4,FALSE),\"\")","v":""},{"$f":"_xlfn.IFNA(VLOOKUP(A204,'Facilities Look Up'!$A$3:$E$325,5,FALSE),\"\")","v":""}]
[null,{"$f":"_xlfn.IFNA(VLOOKUP(A205,'Facilities Look Up'!$A$3:$E$325,2,FALSE),\"\")","v":""},{"$f":"_xlfn.IFNA(VLOOKUP(A205,'Facilities Look Up'!$A$3:$E$325,3,FALSE),\"\")","v":""},{"$f":"_xlfn.IFNA(VLOOKUP(A205,'Facilities Look Up'!$A$3:$E$325,4,FALSE),\"\")","v":""},{"$f":"_xlfn.IFNA(VLOOKUP(A205,'Facilities Look Up'!$A$3:$E$325,5,FALSE),\"\")","v":""}]
[null,{"$f":"_xlfn.IFNA(VLOOKUP(A206,'Facilities Look Up'!$A$3:$E$325,2,FALSE),\"\")","v":""},{"$f":"_xlfn.IFNA(VLOOKUP(A206,'Facilities Look Up'!$A$3:$E$325,3,FALSE),\"\")","v":""},{"$f":"_xlfn.IFNA(VLOOKUP(A206,'Facilities Look Up'!$A$3:$E$325,4,FALSE),\"\")","v":""},{"$f":"_xlfn.IFNA(VLOOKUP(A206,'Facilities Look Up'!$A$3:$E$325,5,FALSE),\"\")","v":""}]
[null,{"$f":"_xlfn.IFNA(VLOOKUP(A207,'Facilities Look Up'!$A$3:$E$325,2,FALSE),\"\")","v":""},{"$f":"_xlfn.IFNA(VLOOKUP(A207,'Facilities Look Up'!$A$3:$E$325,3,FALSE),\"\")","v":""},{"$f":"_xlfn.IFNA(VLOOKUP(A207,'Facilities Look Up'!$A$3:$E$325,4,FALSE),\"\")","v":""},{"$f":"_xlfn.IFNA(VLOOKUP(A207,'Facilities Look Up'!$A$3:$E$325,5,FALSE),\"\")","v":""}]
[null,{"$f":"_xlfn.IFNA(VLOOKUP(A208,'Facilities Look Up'!$A$3:$E$325,2,FALSE),\"\")","v":""},{"$f":"_xlfn.IFNA(VLOOKUP(A208,'Facilities Look Up'!$A$3:$E$325,3,FALSE),\"\")","v":""},{"$f":"_xlfn.IFNA(VLOOKUP(A208,'Facilities Look Up'!$A$3:$E$325,4,FALSE),\"\")","v":""},{"$f":"_xlfn.IFNA(VLOOKUP(A208,'Facilities Look Up'!$A$3:$E$325,5,FALSE),\"\")","v":""}]
[null,{"$f":"_xlfn.IFNA(VLOOKUP(A209,'Facilities Look Up'!$A$3:$E$325,2,FALSE),\"\")","v":""},{"$f":"_xlfn.IFNA(VLOOKUP(A209,'Facilities Look Up'!$A$3:$E$325,3,FALSE),\"\")","v":""},{"$f":"_xlfn.IFNA(VLOOKUP(A209,'Facilities Look Up'!$A$3:$E$325,4,FALSE),\"\")","v":""},{"$f":"_xlfn.IFNA(VLOOKUP(A209,'Facilities Look Up'!$A$3:$E$325,5,FALSE),\"\")","v":""}]
[null,{"$f":"_xlfn.IFNA(VLOOKUP(A210,'Facilities Look Up'!$A$3:$E$325,2,FALSE),\"\")","v":""},{"$f":"_xlfn.IFNA(VLOOKUP(A210,'Facilities Look Up'!$A$3:$E$325,3,FALSE),\"\")","v":""},{"$f":"_xlfn.IFNA(VLOOKUP(A210,'Facilities Look Up'!$A$3:$E$325,4,FALSE),\"\")","v":""},{"$f":"_xlfn.IFNA(VLOOKUP(A210,'Facilities Look Up'!$A$3:$E$325,5,FALSE),\"\")","v":""}]
[null,{"$f":"_xlfn.IFNA(VLOOKUP(A211,'Facilities Look Up'!$A$3:$E$325,2,FALSE),\"\")","v":""},{"$f":"_xlfn.IFNA(VLOOKUP(A211,'Facilities Look Up'!$A$3:$E$325,3,FALSE),\"\")","v":""},{"$f":"_xlfn.IFNA(VLOOKUP(A211,'Facilities Look Up'!$A$3:$E$325,4,FALSE),\"\")","v":""},{"$f":"_xlfn.IFNA(VLOOKUP(A211,'Facilities Look Up'!$A$3:$E$325,5,FALSE),\"\")","v":""}]
[null,{"$f":"_xlfn.IFNA(VLOOKUP(A212,'Facilities Look Up'!$A$3:$E$325,2,FALSE),\"\")","v":""},{"$f":"_xlfn.IFNA(VLOOKUP(A212,'Facilities Look Up'!$A$3:$E$325,3,FALSE),\"\")","v":""},{"$f":"_xlfn.IFNA(VLOOKUP(A212,'Facilities Look Up'!$A$3:$E$325,4,FALSE),\"\")","v":""},{"$f":"_xlfn.IFNA(VLOOKUP(A212,'Facilities Look Up'!$A$3:$E$325,5,FALSE),\"\")","v":""}]
[null,{"$f":"_xlfn.IFNA(VLOOKUP(A213,'Facilities Look Up'!$A$3:$E$325,2,FALSE),\"\")","v":""},{"$f":"_xlfn.IFNA(VLOOKUP(A213,'Facilities Look Up'!$A$3:$E$325,3,FALSE),\"\")","v":""},{"$f":"_xlfn.IFNA(VLOOKUP(A213,'Facilities Look Up'!$A$3:$E$325,4,FALSE),\"\")","v":""},{"$f":"_xlfn.IFNA(VLOOKUP(A213,'Facilities Look Up'!$A$3:$E$325,5,FALSE),\"\")","v":""}]
[null,{"$f":"_xlfn.IFNA(VLOOKUP(A214,'Facilities Look Up'!$A$3:$E$325,2,FALSE),\"\")","v":""},{"$f":"_xlfn.IFNA(VLOOKUP(A214,'Facilities Look Up'!$A$3:$E$325,3,FALSE),\"\")","v":""},{"$f":"_xlfn.IFNA(VLOOKUP(A214,'Facilities Look Up'!$A$3:$E$325,4,FALSE),\"\")","v":""},{"$f":"_xlfn.IFNA(VLOOKUP(A214,'Facilities Look Up'!$A$3:$E$325,5,FALSE),\"\")","v":""}]
[null,{"$f":"_xlfn.IFNA(VLOOKUP(A215,'Facilities Look Up'!$A$3:$E$325,2,FALSE),\"\")","v":""},{"$f":"_xlfn.IFNA(VLOOKUP(A215,'Facilities Look Up'!$A$3:$E$325,3,FALSE),\"\")","v":""},{"$f":"_xlfn.IFNA(VLOOKUP(A215,'Facilities Look Up'!$A$3:$E$325,4,FALSE),\"\")","v":""},{"$f":"_xlfn.IFNA(VLOOKUP(A215,'Facilities Look Up'!$A$3:$E$325,5,FALSE),\"\")","v":""}]
[null,{"$f":"_xlfn.IFNA(VLOOKUP(A216,'Facilities Look Up'!$A$3:$E$325,2,FALSE),\"\")","v":""},{"$f":"_xlfn.IFNA(VLOOKUP(A216,'Facilities Look Up'!$A$3:$E$325,3,FALSE),\"\")","v":""},{"$f":"_xlfn.IFNA(VLOOKUP(A216,'Facilities Look Up'!$A$3:$E$325,4,FALSE),\"\")","v":""},{"$f":"_xlfn.IFNA(VLOOKUP(A216,'Facilities Look Up'!$A$3:$E$325,5,FALSE),\"\")","v":""}]
[null,{"$f":"_xlfn.IFNA(VLOOKUP(A217,'Facilities Look Up'!$A$3:$E$325,2,FALSE),\"\")","v":""},{"$f":"_xlfn.IFNA(VLOOKUP(A217,'Facilities Look Up'!$A$3:$E$325,3,FALSE),\"\")","v":""},{"$f":"_xlfn.IFNA(VLOOKUP(A217,'Facilities Look Up'!$A$3:$E$325,4,FALSE),\"\")","v":""},{"$f":"_xlfn.IFNA(VLOOKUP(A217,'Facilities Look Up'!$A$3:$E$325,5,FALSE),\"\")","v":""}]
[null,{"$f":"_xlfn.IFNA(VLOOKUP(A218,'Facilities Look Up'!$A$3:$E$325,2,FALSE),\"\")","v":""},{"$f":"_xlfn.IFNA(VLOOKUP(A218,'Facilities Look Up'!$A$3:$E$325,3,FALSE),\"\")","v":""},{"$f":"_xlfn.IFNA(VLOOKUP(A218,'Facilities Look Up'!$A$3:$E$325,4,FALSE),\"\")","v":""},{"$f":"_xlfn.IFNA(VLOOKUP(A218,'Facilities Look Up'!$A$3:$E$325,5,FALSE),\"\")","v":""}]
[null,{"$f":"_xlfn.IFNA(VLOOKUP(A219,'Facilities Look Up'!$A$3:$E$325,2,FALSE),\"\")","v":""},{"$f":"_xlfn.IFNA(VLOOKUP(A219,'Facilities Look Up'!$A$3:$E$325,3,FALSE),\"\")","v":""},{"$f":"_xlfn.IFNA(VLOOKUP(A219,'Facilities Look Up'!$A$3:$E$325,4,FALSE),\"\")","v":""},{"$f":"_xlfn.IFNA(VLOOKUP(A219,'Facilities Look Up'!$A$3:$E$325,5,FALSE),\"\")","v":""}]
[null,{"$f":"_xlfn.IFNA(VLOOKUP(A220,'Facilities Look Up'!$A$3:$E$325,2,FALSE),\"\")","v":""},{"$f":"_xlfn.IFNA(VLOOKUP(A220,'Facilities Look Up'!$A$3:$E$325,3,FALSE),\"\")","v":""},{"$f":"_xlfn.IFNA(VLOOKUP(A220,'Facilities Look Up'!$A$3:$E$325,4,FALSE),\"\")","v":""},{"$f":"_xlfn.IFNA(VLOOKUP(A220,'Facilities Look Up'!$A$3:$E$325,5,FALSE),\"\")","v":""}]
[null,{"$f":"_xlfn.IFNA(VLOOKUP(A221,'Facilities Look Up'!$A$3:$E$325,2,FALSE),\"\")","v":""},{"$f":"_xlfn.IFNA(VLOOKUP(A221,'Facilities Look Up'!$A$3:$E$325,3,FALSE),\"\")","v":""},{"$f":"_xlfn.IFNA(VLOOKUP(A221,'Facilities Look Up'!$A$3:$E$325,4,FALSE),\"\")","v":""},{"$f":"_xlfn.IFNA(VLOOKUP(A221,'Facilities Look Up'!$A$3:$E$325,5,FALSE),\"\")","v":""}]
[null,{"$f":"_xlfn.IFNA(VLOOKUP(A222,'Facilities Look Up'!$A$3:$E$325,2,FALSE),\"\")","v":""},{"$f":"_xlfn.IFNA(VLOOKUP(A222,'Facilities Look Up'!$A$3:$E$325,3,FALSE),\"\")","v":""},{"$f":"_xlfn.IFNA(VLOOKUP(A222,'Facilities Look Up'!$A$3:$E$325,4,FALSE),\"\")","v":""},{"$f":"_xlfn.IFNA(VLOOKUP(A222,'Facilities Look Up'!$A$3:$E$325,5,FALSE),\"\")","v":""}]
[null,{"$f":"_xlfn.IFNA(VLOOKUP(A223,'Facilities Look Up'!$A$3:$E$325,2,FALSE),\"\")","v":""},{"$f":"_xlfn.IFNA(VLOOKUP(A223,'Facilities Look Up'!$A$3:$E$325,3,FALSE),\"\")","v":""},{"$f":"_xlfn.IFNA(VLOOKUP(A223,'Facilities Look Up'!$A$3:$E$325,4,FALSE),\"\")","v":""},{"$f":"_xlfn.IFNA(VLOOKUP(A223,'Facilities Look Up'!$A$3:$E$325,5,FALSE),\"\")","v":""}]
[null,{"$f":"_xlfn.IFNA(VLOOKUP(A224,'Facilities Look Up'!$A$3:$E$325,2,FALSE),\"\")","v":""},{"$f":"_xlfn.IFNA(VLOOKUP(A224,'Facilities Look Up'!$A$3:$E$325,3,FALSE),\"\")","v":""},{"$f":"_xlfn.IFNA(VLOOKUP(A224,'Facilities Look Up'!$A$3:$E$325,4,FALSE),\"\")","v":""},{"$f":"_xlfn.IFNA(VLOOKUP(A224,'Facilities Look Up'!$A$3:$E$325,5,FALSE),\"\")","v":""}]
[null,{"$f":"_xlfn.IFNA(VLOOKUP(A225,'Facilities Look Up'!$A$3:$E$325,2,FALSE),\"\")","v":""},{"$f":"_xlfn.IFNA(VLOOKUP(A225,'Facilities Look Up'!$A$3:$E$325,3,FALSE),\"\")","v":""},{"$f":"_xlfn.IFNA(VLOOKUP(A225,'Facilities Look Up'!$A$3:$E$325,4,FALSE),\"\")","v":""},{"$f":"_xlfn.IFNA(VLOOKUP(A225,'Facilities Look Up'!$A$3:$E$325,5,FALSE),\"\")","v":""}]
[null,{"$f":"_xlfn.IFNA(VLOOKUP(A226,'Facilities Look Up'!$A$3:$E$325,2,FALSE),\"\")","v":""},{"$f":"_xlfn.IFNA(VLOOKUP(A226,'Facilities Look Up'!$A$3:$E$325,3,FALSE),\"\")","v":""},{"$f":"_xlfn.IFNA(VLOOKUP(A226,'Facilities Look Up'!$A$3:$E$325,4,FALSE),\"\")","v":""},{"$f":"_xlfn.IFNA(VLOOKUP(A226,'Facilities Look Up'!$A$3:$E$325,5,FALSE),\"\")","v":""}]
[null,{"$f":"_xlfn.IFNA(VLOOKUP(A227,'Facilities Look Up'!$A$3:$E$325,2,FALSE),\"\")","v":""},{"$f":"_xlfn.IFNA(VLOOKUP(A227,'Facilities Look Up'!$A$3:$E$325,3,FALSE),\"\")","v":""},{"$f":"_xlfn.IFNA(VLOOKUP(A227,'Facilities Look Up'!$A$3:$E$325,4,FALSE),\"\")","v":""},{"$f":"_xlfn.IFNA(VLOOKUP(A227,'Facilities Look Up'!$A$3:$E$325,5,FALSE),\"\")","v":""}]
[null,{"$f":"_xlfn.IFNA(VLOOKUP(A228,'Facilities Look Up'!$A$3:$E$325,2,FALSE),\"\")","v":""},{"$f":"_xlfn.IFNA(VLOOKUP(A228,'Facilities Look Up'!$A$3:$E$325,3,FALSE),\"\")","v":""},{"$f":"_xlfn.IFNA(VLOOKUP(A228,'Facilities Look Up'!$A$3:$E$325,4,FALSE),\"\")","v":""},{"$f":"_xlfn.IFNA(VLOOKUP(A228,'Facilities Look Up'!$A$3:$E$325,5,FALSE),\"\")","v":""}]
[null,{"$f":"_xlfn.IFNA(VLOOKUP(A229,'Facilities Look Up'!$A$3:$E$325,2,FALSE),\"\")","v":""},{"$f":"_xlfn.IFNA(VLOOKUP(A229,'Facilities Look Up'!$A$3:$E$325,3,FALSE),\"\")","v":""},{"$f":"_xlfn.IFNA(VLOOKUP(A229,'Facilities Look Up'!$A$3:$E$325,4,FALSE),\"\")","v":""},{"$f":"_xlfn.IFNA(VLOOKUP(A229,'Facilities Look Up'!$A$3:$E$325,5,FALSE),\"\")","v":""}]
[null,{"$f":"_xlfn.IFNA(VLOOKUP(A230,'Facilities Look Up'!$A$3:$E$325,2,FALSE),\"\")","v":""},{"$f":"_xlfn.IFNA(VLOOKUP(A230,'Facilities Look Up'!$A$3:$E$325,3,FALSE),\"\")","v":""},{"$f":"_xlfn.IFNA(VLOOKUP(A230,'Facilities Look Up'!$A$3:$E$325,4,FALSE),\"\")","v":""},{"$f":"_xlfn.IFNA(VLOOKUP(A230,'Facilities Look Up'!$A$3:$E$325,5,FALSE),\"\")","v":""}]
[null,{"$f":"_xlfn.IFNA(VLOOKUP(A231,'Facilities Look Up'!$A$3:$E$325,2,FALSE),\"\")","v":""},{"$f":"_xlfn.IFNA(VLOOKUP(A231,'Facilities Look Up'!$A$3:$E$325,3,FALSE),\"\")","v":""},{"$f":"_xlfn.IFNA(VLOOKUP(A231,'Facilities Look Up'!$A$3:$E$325,4,FALSE),\"\")","v":""},{"$f":"_xlfn.IFNA(VLOOKUP(A231,'Facilities Look Up'!$A$3:$E$325,5,FALSE),\"\")","v":""}]
[null,{"$f":"_xlfn.IFNA(VLOOKUP(A232,'Facilities Look Up'!$A$3:$E$325,2,FALSE),\"\")","v":""},{"$f":"_xlfn.IFNA(VLOOKUP(A232,'Facilities Look Up'!$A$3:$E$325,3,FALSE),\"\")","v":""},{"$f":"_xlfn.IFNA(VLOOKUP(A232,'Facilities Look Up'!$A$3:$E$325,4,FALSE),\"\")","v":""},{"$f":"_xlfn.IFNA(VLOOKUP(A232,'Facilities Look Up'!$A$3:$E$325,5,FALSE),\"\")","v":""}]
[null,{"$f":"_xlfn.IFNA(VLOOKUP(A233,'Facilities Look Up'!$A$3:$E$325,2,FALSE),\"\")","v":""},{"$f":"_xlfn.IFNA(VLOOKUP(A233,'Facilities Look Up'!$A$3:$E$325,3,FALSE),\"\")","v":""},{"$f":"_xlfn.IFNA(VLOOKUP(A233,'Facilities Look Up'!$A$3:$E$325,4,FALSE),\"\")","v":""},{"$f":"_xlfn.IFNA(VLOOKUP(A233,'Facilities Look Up'!$A$3:$E$325,5,FALSE),\"\")","v":""}]
[null,{"$f":"_xlfn.IFNA(VLOOKUP(A234,'Facilities Look Up'!$A$3:$E$325,2,FALSE),\"\")","v":""},{"$f":"_xlfn.IFNA(VLOOKUP(A234,'Facilities Look Up'!$A$3:$E$325,3,FALSE),\"\")","v":""},{"$f":"_xlfn.IFNA(VLOOKUP(A234,'Facilities Look Up'!$A$3:$E$325,4,FALSE),\"\")","v":""},{"$f":"_xlfn.IFNA(VLOOKUP(A234,'Facilities Look Up'!$A$3:$E$325,5,FALSE),\"\")","v":""}]
[null,{"$f":"_xlfn.IFNA(VLOOKUP(A235,'Facilities Look Up'!$A$3:$E$325,2,FALSE),\"\")","v":""},{"$f":"_xlfn.IFNA(VLOOKUP(A235,'Facilities Look Up'!$A$3:$E$325,3,FALSE),\"\")","v":""},{"$f":"_xlfn.IFNA(VLOOKUP(A235,'Facilities Look Up'!$A$3:$E$325,4,FALSE),\"\")","v":""},{"$f":"_xlfn.IFNA(VLOOKUP(A235,'Facilities Look Up'!$A$3:$E$325,5,FALSE),\"\")","v":""}]
[null,{"$f":"_xlfn.IFNA(VLOOKUP(A236,'Facilities Look Up'!$A$3:$E$325,2,FALSE),\"\")","v":""},{"$f":"_xlfn.IFNA(VLOOKUP(A236,'Facilities Look Up'!$A$3:$E$325,3,FALSE),\"\")","v":""},{"$f":"_xlfn.IFNA(VLOOKUP(A236,'Facilities Look Up'!$A$3:$E$325,4,FALSE),\"\")","v":""},{"$f":"_xlfn.IFNA(VLOOKUP(A236,'Facilities Look Up'!$A$3:$E$325,5,FALSE),\"\")","v":""}]
[null,{"$f":"_xlfn.IFNA(VLOOKUP(A237,'Facilities Look Up'!$A$3:$E$325,2,FALSE),\"\")","v":""},{"$f":"_xlfn.IFNA(VLOOKUP(A237,'Facilities Look Up'!$A$3:$E$325,3,FALSE),\"\")","v":""},{"$f":"_xlfn.IFNA(VLOOKUP(A237,'Facilities Look Up'!$A$3:$E$325,4,FALSE),\"\")","v":""},{"$f":"_xlfn.IFNA(VLOOKUP(A237,'Facilities Look Up'!$A$3:$E$325,5,FALSE),\"\")","v":""}]
[null,{"$f":"_xlfn.IFNA(VLOOKUP(A238,'Facilities Look Up'!$A$3:$E$325,2,FALSE),\"\")","v":""},{"$f":"_xlfn.IFNA(VLOOKUP(A238,'Facilities Look Up'!$A$3:$E$325,3,FALSE),\"\")","v":""},{"$f":"_xlfn.IFNA(VLOOKUP(A238,'Facilities Look Up'!$A$3:$E$325,4,FALSE),\"\")","v":""},{"$f":"_xlfn.IFNA(VLOOKUP(A238,'Facilities Look Up'!$A$3:$E$325,5,FALSE),\"\")","v":""}]
[null,{"$f":"_xlfn.IFNA(VLOOKUP(A239,'Facilities Look Up'!$A$3:$E$325,2,FALSE),\"\")","v":""},{"$f":"_xlfn.IFNA(VLOOKUP(A239,'Facilities Look Up'!$A$3:$E$325,3,FALSE),\"\")","v":""},{"$f":"_xlfn.IFNA(VLOOKUP(A239,'Facilities Look Up'!$A$3:$E$325,4,FALSE),\"\")","v":""},{"$f":"_xlfn.IFNA(VLOOKUP(A239,'Facilities Look Up'!$A$3:$E$325,5,FALSE),\"\")","v":""}]
[null,{"$f":"_xlfn.IFNA(VLOOKUP(A240,'Facilities Look Up'!$A$3:$E$325,2,FALSE),\"\")","v":""},{"$f":"_xlfn.IFNA(VLOOKUP(A240,'Facilities Look Up'!$A$3:$E$325,3,FALSE),\"\")","v":""},{"$f":"_xlfn.IFNA(VLOOKUP(A240,'Facilities Look Up'!$A$3:$E$325,4,FALSE),\"\")","v":""},{"$f":"_xlfn.IFNA(VLOOKUP(A240,'Facilities Look Up'!$A$3:$E$325,5,FALSE),\"\")","v":""}]
[null,{"$f":"_xlfn.IFNA(VLOOKUP(A241,'Facilities Look Up'!$A$3:$E$325,2,FALSE),\"\")","v":""},{"$f":"_xlfn.IFNA(VLOOKUP(A241,'Facilities Look Up'!$A$3:$E$325,3,FALSE),\"\")","v":""},{"$f":"_xlfn.IFNA(VLOOKUP(A241,'Facilities Look Up'!$A$3:$E$325,4,FALSE),\"\")","v":""},{"$f":"_xlfn.IFNA(VLOOKUP(A241,'Facilities Look Up'!$A$3:$E$325,5,FALSE),\"\")","v":""}]
[null,{"$f":"_xlfn.IFNA(VLOOKUP(A242,'Facilities Look Up'!$A$3:$E$325,2,FALSE),\"\")","v":""},{"$f":"_xlfn.IFNA(VLOOKUP(A242,'Facilities Look Up'!$A$3:$E$325,3,FALSE),\"\")","v":""},{"$f":"_xlfn.IFNA(VLOOKUP(A242,'Facilities Look Up'!$A$3:$E$325,4,FALSE),\"\")","v":""},{"$f":"_xlfn.IFNA(VLOOKUP(A242,'Facilities Look Up'!$A$3:$E$325,5,FALSE),\"\")","v":""}]
[null,{"$f":"_xlfn.IFNA(VLOOKUP(A243,'Facilities Look Up'!$A$3:$E$325,2,FALSE),\"\")","v":""},{"$f":"_xlfn.IFNA(VLOOKUP(A243,'Facilities Look Up'!$A$3:$E$325,3,FALSE),\"\")","v":""},{"$f":"_xlfn.IFNA(VLOOKUP(A243,'Facilities Look Up'!$A$3:$E$325,4,FALSE),\"\")","v":""},{"$f":"_xlfn.IFNA(VLOOKUP(A243,'Facilities Look Up'!$A$3:$E$325,5,FALSE),\"\")","v":""}]
[null,{"$f":"_xlfn.IFNA(VLOOKUP(A244,'Facilities Look Up'!$A$3:$E$325,2,FALSE),\"\")","v":""},{"$f":"_xlfn.IFNA(VLOOKUP(A244,'Facilities Look Up'!$A$3:$E$325,3,FALSE),\"\")","v":""},{"$f":"_xlfn.IFNA(VLOOKUP(A244,'Facilities Look Up'!$A$3:$E$325,4,FALSE),\"\")","v":""},{"$f":"_xlfn.IFNA(VLOOKUP(A244,'Facilities Look Up'!$A$3:$E$325,5,FALSE),\"\")","v":""}]
[null,{"$f":"_xlfn.IFNA(VLOOKUP(A245,'Facilities Look Up'!$A$3:$E$325,2,FALSE),\"\")","v":""},{"$f":"_xlfn.IFNA(VLOOKUP(A245,'Facilities Look Up'!$A$3:$E$325,3,FALSE),\"\")","v":""},{"$f":"_xlfn.IFNA(VLOOKUP(A245,'Facilities Look Up'!$A$3:$E$325,4,FALSE),\"\")","v":""},{"$f":"_xlfn.IFNA(VLOOKUP(A245,'Facilities Look Up'!$A$3:$E$325,5,FALSE),\"\")","v":""}]
[null,{"$f":"_xlfn.IFNA(VLOOKUP(A246,'Facilities Look Up'!$A$3:$E$325,2,FALSE),\"\")","v":""},{"$f":"_xlfn.IFNA(VLOOKUP(A246,'Facilities Look Up'!$A$3:$E$325,3,FALSE),\"\")","v":""},{"$f":"_xlfn.IFNA(VLOOKUP(A246,'Facilities Look Up'!$A$3:$E$325,4,FALSE),\"\")","v":""},{"$f":"_xlfn.IFNA(VLOOKUP(A246,'Facilities Look Up'!$A$3:$E$325,5,FALSE),\"\")","v":""}]
[null,{"$f":"_xlfn.IFNA(VLOOKUP(A247,'Facilities Look Up'!$A$3:$E$325,2,FALSE),\"\")","v":""},{"$f":"_xlfn.IFNA(VLOOKUP(A247,'Facilities Look Up'!$A$3:$E$325,3,FALSE),\"\")","v":""},{"$f":"_xlfn.IFNA(VLOOKUP(A247,'Facilities Look Up'!$A$3:$E$325,4,FALSE),\"\")","v":""},{"$f":"_xlfn.IFNA(VLOOKUP(A247,'Facilities Look Up'!$A$3:$E$325,5,FALSE),\"\")","v":""}]
[null,{"$f":"_xlfn.IFNA(VLOOKUP(A248,'Facilities Look Up'!$A$3:$E$325,2,FALSE),\"\")","v":""},{"$f":"_xlfn.IFNA(VLOOKUP(A248,'Facilities Look Up'!$A$3:$E$325,3,FALSE),\"\")","v":""},{"$f":"_xlfn.IFNA(VLOOKUP(A248,'Facilities Look Up'!$A$3:$E$325,4,FALSE),\"\")","v":""},{"$f":"_xlfn.IFNA(VLOOKUP(A248,'Facilities Look Up'!$A$3:$E$325,5,FALSE),\"\")","v":""}]
[null,{"$f":"_xlfn.IFNA(VLOOKUP(A249,'Facilities Look Up'!$A$3:$E$325,2,FALSE),\"\")","v":""},{"$f":"_xlfn.IFNA(VLOOKUP(A249,'Facilities Look Up'!$A$3:$E$325,3,FALSE),\"\")","v":""},{"$f":"_xlfn.IFNA(VLOOKUP(A249,'Facilities Look Up'!$A$3:$E$325,4,FALSE),\"\")","v":""},{"$f":"_xlfn.IFNA(VLOOKUP(A249,'Facilities Look Up'!$A$3:$E$325,5,FALSE),\"\")","v":""}]
[null,{"$f":"_xlfn.IFNA(VLOOKUP(A250,'Facilities Look Up'!$A$3:$E$325,2,FALSE),\"\")","v":""},{"$f":"_xlfn.IFNA(VLOOKUP(A250,'Facilities Look Up'!$A$3:$E$325,3,FALSE),\"\")","v":""},{"$f":"_xlfn.IFNA(VLOOKUP(A250,'Facilities Look Up'!$A$3:$E$325,4,FALSE),\"\")","v":""},{"$f":"_xlfn.IFNA(VLOOKUP(A250,'Facilities Look Up'!$A$3:$E$325,5,FALSE),\"\")","v":""}]
[null,{"$f":"_xlfn.IFNA(VLOOKUP(A251,'Facilities Look Up'!$A$3:$E$325,2,FALSE),\"\")","v":""},{"$f":"_xlfn.IFNA(VLOOKUP(A251,'Facilities Look Up'!$A$3:$E$325,3,FALSE),\"\")","v":""},{"$f":"_xlfn.IFNA(VLOOKUP(A251,'Facilities Look Up'!$A$3:$E$325,4,FALSE),\"\")","v":""},{"$f":"_xlfn.IFNA(VLOOKUP(A251,'Facilities Look Up'!$A$3:$E$325,5,FALSE),\"\")","v":""}]
[null,{"$f":"_xlfn.IFNA(VLOOKUP(A252,'Facilities Look Up'!$A$3:$E$325,2,FALSE),\"\")","v":""},{"$f":"_xlfn.IFNA(VLOOKUP(A252,'Facilities Look Up'!$A$3:$E$325,3,FALSE),\"\")","v":""},{"$f":"_xlfn.IFNA(VLOOKUP(A252,'Facilities Look Up'!$A$3:$E$325,4,FALSE),\"\")","v":""},{"$f":"_xlfn.IFNA(VLOOKUP(A252,'Facilities Look Up'!$A$3:$E$325,5,FALSE),\"\")","v":""}]
[null,{"$f":"_xlfn.IFNA(VLOOKUP(A253,'Facilities Look Up'!$A$3:$E$325,2,FALSE),\"\")","v":""},{"$f":"_xlfn.IFNA(VLOOKUP(A253,'Facilities Look Up'!$A$3:$E$325,3,FALSE),\"\")","v":""},{"$f":"_xlfn.IFNA(VLOOKUP(A253,'Facilities Look Up'!$A$3:$E$325,4,FALSE),\"\")","v":""},{"$f":"_xlfn.IFNA(VLOOKUP(A253,'Facilities Look Up'!$A$3:$E$325,5,FALSE),\"\")","v":""}]
[null,{"$f":"_xlfn.IFNA(VLOOKUP(A254,'Facilities Look Up'!$A$3:$E$325,2,FALSE),\"\")","v":""},{"$f":"_xlfn.IFNA(VLOOKUP(A254,'Facilities Look Up'!$A$3:$E$325,3,FALSE),\"\")","v":""},{"$f":"_xlfn.IFNA(VLOOKUP(A254,'Facilities Look Up'!$A$3:$E$325,4,FALSE),\"\")","v":""},{"$f":"_xlfn.IFNA(VLOOKUP(A254,'Facilities Look Up'!$A$3:$E$325,5,FALSE),\"\")","v":""}]
[null,{"$f":"_xlfn.IFNA(VLOOKUP(A255,'Facilities Look Up'!$A$3:$E$325,2,FALSE),\"\")","v":""},{"$f":"_xlfn.IFNA(VLOOKUP(A255,'Facilities Look Up'!$A$3:$E$325,3,FALSE),\"\")","v":""},{"$f":"_xlfn.IFNA(VLOOKUP(A255,'Facilities Look Up'!$A$3:$E$325,4,FALSE),\"\")","v":""},{"$f":"_xlfn.IFNA(VLOOKUP(A255,'Facilities Look Up'!$A$3:$E$325,5,FALSE),\"\")","v":""}]
[null,{"$f":"_xlfn.IFNA(VLOOKUP(A256,'Facilities Look Up'!$A$3:$E$325,2,FALSE),\"\")","v":""},{"$f":"_xlfn.IFNA(VLOOKUP(A256,'Facilities Look Up'!$A$3:$E$325,3,FALSE),\"\")","v":""},{"$f":"_xlfn.IFNA(VLOOKUP(A256,'Facilities Look Up'!$A$3:$E$325,4,FALSE),\"\")","v":""},{"$f":"_xlfn.IFNA(VLOOKUP(A256,'Facilities Look Up'!$A$3:$E$325,5,FALSE),\"\")","v":""}]
[null,{"$f":"_xlfn.IFNA(VLOOKUP(A257,'Facilities Look Up'!$A$3:$E$325,2,FALSE),\"\")","v":""},{"$f":"_xlfn.IFNA(VLOOKUP(A257,'Facilities Look Up'!$A$3:$E$325,3,FALSE),\"\")","v":""},{"$f":"_xlfn.IFNA(VLOOKUP(A257,'Facilities Look Up'!$A$3:$E$325,4,FALSE),\"\")","v":""},{"$f":"_xlfn.IFNA(VLOOKUP(A257,'Facilities Look Up'!$A$3:$E$325,5,FALSE),\"\")","v":""}]
[null,{"$f":"_xlfn.IFNA(VLOOKUP(A258,'Facilities Look Up'!$A$3:$E$325,2,FALSE),\"\")","v":""},{"$f":"_xlfn.IFNA(VLOOKUP(A258,'Facilities Look Up'!$A$3:$E$325,3,FALSE),\"\")","v":""},{"$f":"_xlfn.IFNA(VLOOKUP(A258,'Facilities Look Up'!$A$3:$E$325,4,FALSE),\"\")","v":""},{"$f":"_xlfn.IFNA(VLOOKUP(A258,'Facilities Look Up'!$A$3:$E$325,5,FALSE),\"\")","v":""}]
[null,{"$f":"_xlfn.IFNA(VLOOKUP(A259,'Facilities Look Up'!$A$3:$E$325,2,FALSE),\"\")","v":""},{"$f":"_xlfn.IFNA(VLOOKUP(A259,'Facilities Look Up'!$A$3:$E$325,3,FALSE),\"\")","v":""},{"$f":"_xlfn.IFNA(VLOOKUP(A259,'Facilities Look Up'!$A$3:$E$325,4,FALSE),\"\")","v":""},{"$f":"_xlfn.IFNA(VLOOKUP(A259,'Facilities Look Up'!$A$3:$E$325,5,FALSE),\"\")","v":""}]
[null,{"$f":"_xlfn.IFNA(VLOOKUP(A260,'Facilities Look Up'!$A$3:$E$325,2,FALSE),\"\")","v":""},{"$f":"_xlfn.IFNA(VLOOKUP(A260,'Facilities Look Up'!$A$3:$E$325,3,FALSE),\"\")","v":""},{"$f":"_xlfn.IFNA(VLOOKUP(A260,'Facilities Look Up'!$A$3:$E$325,4,FALSE),\"\")","v":""},{"$f":"_xlfn.IFNA(VLOOKUP(A260,'Facilities Look Up'!$A$3:$E$325,5,FALSE),\"\")","v":""}]
[null,{"$f":"_xlfn.IFNA(VLOOKUP(A261,'Facilities Look Up'!$A$3:$E$325,2,FALSE),\"\")","v":""},{"$f":"_xlfn.IFNA(VLOOKUP(A261,'Facilities Look Up'!$A$3:$E$325,3,FALSE),\"\")","v":""},{"$f":"_xlfn.IFNA(VLOOKUP(A261,'Facilities Look Up'!$A$3:$E$325,4,FALSE),\"\")","v":""},{"$f":"_xlfn.IFNA(VLOOKUP(A261,'Facilities Look Up'!$A$3:$E$325,5,FALSE),\"\")","v":""}]
[null,{"$f":"_xlfn.IFNA(VLOOKUP(A262,'Facilities Look Up'!$A$3:$E$325,2,FALSE),\"\")","v":""},{"$f":"_xlfn.IFNA(VLOOKUP(A262,'Facilities Look Up'!$A$3:$E$325,3,FALSE),\"\")","v":""},{"$f":"_xlfn.IFNA(VLOOKUP(A262,'Facilities Look Up'!$A$3:$E$325,4,FALSE),\"\")","v":""},{"$f":"_xlfn.IFNA(VLOOKUP(A262,'Facilities Look Up'!$A$3:$E$325,5,FALSE),\"\")","v":""}]
[null,{"$f":"_xlfn.IFNA(VLOOKUP(A263,'Facilities Look Up'!$A$3:$E$325,2,FALSE),\"\")","v":""},{"$f":"_xlfn.IFNA(VLOOKUP(A263,'Facilities Look Up'!$A$3:$E$325,3,FALSE),\"\")","v":""},{"$f":"_xlfn.IFNA(VLOOKUP(A263,'Facilities Look Up'!$A$3:$E$325,4,FALSE),\"\")","v":""},{"$f":"_xlfn.IFNA(VLOOKUP(A263,'Facilities Look Up'!$A$3:$E$325,5,FALSE),\"\")","v":""}]
[null,{"$f":"_xlfn.IFNA(VLOOKUP(A264,'Facilities Look Up'!$A$3:$E$325,2,FALSE),\"\")","v":""},{"$f":"_xlfn.IFNA(VLOOKUP(A264,'Facilities Look Up'!$A$3:$E$325,3,FALSE),\"\")","v":""},{"$f":"_xlfn.IFNA(VLOOKUP(A264,'Facilities Look Up'!$A$3:$E$325,4,FALSE),\"\")","v":""},{"$f":"_xlfn.IFNA(VLOOKUP(A264,'Facilities Look Up'!$A$3:$E$325,5,FALSE),\"\")","v":""}]
[null,{"$f":"_xlfn.IFNA(VLOOKUP(A265,'Facilities Look Up'!$A$3:$E$325,2,FALSE),\"\")","v":""},{"$f":"_xlfn.IFNA(VLOOKUP(A265,'Facilities Look Up'!$A$3:$E$325,3,FALSE),\"\")","v":""},{"$f":"_xlfn.IFNA(VLOOKUP(A265,'Facilities Look Up'!$A$3:$E$325,4,FALSE),\"\")","v":""},{"$f":"_xlfn.IFNA(VLOOKUP(A265,'Facilities Look Up'!$A$3:$E$325,5,FALSE),\"\")","v":""}]
[null,{"$f":"_xlfn.IFNA(VLOOKUP(A266,'Facilities Look Up'!$A$3:$E$325,2,FALSE),\"\")","v":""},{"$f":"_xlfn.IFNA(VLOOKUP(A266,'Facilities Look Up'!$A$3:$E$325,3,FALSE),\"\")","v":""},{"$f":"_xlfn.IFNA(VLOOKUP(A266,'Facilities Look Up'!$A$3:$E$325,4,FALSE),\"\")","v":""},{"$f":"_xlfn.IFNA(VLOOKUP(A266,'Facilities Look Up'!$A$3:$E$325,5,FALSE),\"\")","v":""}]
[null,{"$f":"_xlfn.IFNA(VLOOKUP(A267,'Facilities Look Up'!$A$3:$E$325,2,FALSE),\"\")","v":""},{"$f":"_xlfn.IFNA(VLOOKUP(A267,'Facilities Look Up'!$A$3:$E$325,3,FALSE),\"\")","v":""},{"$f":"_xlfn.IFNA(VLOOKUP(A267,'Facilities Look Up'!$A$3:$E$325,4,FALSE),\"\")","v":""},{"$f":"_xlfn.IFNA(VLOOKUP(A267,'Facilities Look Up'!$A$3:$E$325,5,FALSE),\"\")","v":""}]
[null,{"$f":"_xlfn.IFNA(VLOOKUP(A268,'Facilities Look Up'!$A$3:$E$325,2,FALSE),\"\")","v":""},{"$f":"_xlfn.IFNA(VLOOKUP(A268,'Facilities Look Up'!$A$3:$E$325,3,FALSE),\"\")","v":""},{"$f":"_xlfn.IFNA(VLOOKUP(A268,'Facilities Look Up'!$A$3:$E$325,4,FALSE),\"\")","v":""},{"$f":"_xlfn.IFNA(VLOOKUP(A268,'Facilities Look Up'!$A$3:$E$325,5,FALSE),\"\")","v":""}]
[null,{"$f":"_xlfn.IFNA(VLOOKUP(A269,'Facilities Look Up'!$A$3:$E$325,2,FALSE),\"\")","v":""},{"$f":"_xlfn.IFNA(VLOOKUP(A269,'Facilities Look Up'!$A$3:$E$325,3,FALSE),\"\")","v":""},{"$f":"_xlfn.IFNA(VLOOKUP(A269,'Facilities Look Up'!$A$3:$E$325,4,FALSE),\"\")","v":""},{"$f":"_xlfn.IFNA(VLOOKUP(A269,'Facilities Look Up'!$A$3:$E$325,5,FALSE),\"\")","v":""}]
[null,{"$f":"_xlfn.IFNA(VLOOKUP(A270,'Facilities Look Up'!$A$3:$E$325,2,FALSE),\"\")","v":""},{"$f":"_xlfn.IFNA(VLOOKUP(A270,'Facilities Look Up'!$A$3:$E$325,3,FALSE),\"\")","v":""},{"$f":"_xlfn.IFNA(VLOOKUP(A270,'Facilities Look Up'!$A$3:$E$325,4,FALSE),\"\")","v":""},{"$f":"_xlfn.IFNA(VLOOKUP(A270,'Facilities Look Up'!$A$3:$E$325,5,FALSE),\"\")","v":""}]
[null,{"$f":"_xlfn.IFNA(VLOOKUP(A271,'Facilities Look Up'!$A$3:$E$325,2,FALSE),\"\")","v":""},{"$f":"_xlfn.IFNA(VLOOKUP(A271,'Facilities Look Up'!$A$3:$E$325,3,FALSE),\"\")","v":""},{"$f":"_xlfn.IFNA(VLOOKUP(A271,'Facilities Look Up'!$A$3:$E$325,4,FALSE),\"\")","v":""},{"$f":"_xlfn.IFNA(VLOOKUP(A271,'Facilities Look Up'!$A$3:$E$325,5,FALSE),\"\")","v":""}]
[null,{"$f":"_xlfn.IFNA(VLOOKUP(A272,'Facilities Look Up'!$A$3:$E$325,2,FALSE),\"\")","v":""},{"$f":"_xlfn.IFNA(VLOOKUP(A272,'Facilities Look Up'!$A$3:$E$325,3,FALSE),\"\")","v":""},{"$f":"_xlfn.IFNA(VLOOKUP(A272,'Facilities Look Up'!$A$3:$E$325,4,FALSE),\"\")","v":""},{"$f":"_xlfn.IFNA(VLOOKUP(A272,'Facilities Look Up'!$A$3:$E$325,5,FALSE),\"\")","v":""}]
[null,{"$f":"_xlfn.IFNA(VLOOKUP(A273,'Facilities Look Up'!$A$3:$E$325,2,FALSE),\"\")","v":""},{"$f":"_xlfn.IFNA(VLOOKUP(A273,'Facilities Look Up'!$A$3:$E$325,3,FALSE),\"\")","v":""},{"$f":"_xlfn.IFNA(VLOOKUP(A273,'Facilities Look Up'!$A$3:$E$325,4,FALSE),\"\")","v":""},{"$f":"_xlfn.IFNA(VLOOKUP(A273,'Facilities Look Up'!$A$3:$E$325,5,FALSE),\"\")","v":""}]
[null,{"$f":"_xlfn.IFNA(VLOOKUP(A274,'Facilities Look Up'!$A$3:$E$325,2,FALSE),\"\")","v":""},{"$f":"_xlfn.IFNA(VLOOKUP(A274,'Facilities Look Up'!$A$3:$E$325,3,FALSE),\"\")","v":""},{"$f":"_xlfn.IFNA(VLOOKUP(A274,'Facilities Look Up'!$A$3:$E$325,4,FALSE),\"\")","v":""},{"$f":"_xlfn.IFNA(VLOOKUP(A274,'Facilities Look Up'!$A$3:$E$325,5,FALSE),\"\")","v":""}]
[null,{"$f":"_xlfn.IFNA(VLOOKUP(A275,'Facilities Look Up'!$A$3:$E$325,2,FALSE),\"\")","v":""},{"$f":"_xlfn.IFNA(VLOOKUP(A275,'Facilities Look Up'!$A$3:$E$325,3,FALSE),\"\")","v":""},{"$f":"_xlfn.IFNA(VLOOKUP(A275,'Facilities Look Up'!$A$3:$E$325,4,FALSE),\"\")","v":""},{"$f":"_xlfn.IFNA(VLOOKUP(A275,'Facilities Look Up'!$A$3:$E$325,5,FALSE),\"\")","v":""}]
[null,{"$f":"_xlfn.IFNA(VLOOKUP(A276,'Facilities Look Up'!$A$3:$E$325,2,FALSE),\"\")","v":""},{"$f":"_xlfn.IFNA(VLOOKUP(A276,'Facilities Look Up'!$A$3:$E$325,3,FALSE),\"\")","v":""},{"$f":"_xlfn.IFNA(VLOOKUP(A276,'Facilities Look Up'!$A$3:$E$325,4,FALSE),\"\")","v":""},{"$f":"_xlfn.IFNA(VLOOKUP(A276,'Facilities Look Up'!$A$3:$E$325,5,FALSE),\"\")","v":""}]
[null,{"$f":"_xlfn.IFNA(VLOOKUP(A277,'Facilities Look Up'!$A$3:$E$325,2,FALSE),\"\")","v":""},{"$f":"_xlfn.IFNA(VLOOKUP(A277,'Facilities Look Up'!$A$3:$E$325,3,FALSE),\"\")","v":""},{"$f":"_xlfn.IFNA(VLOOKUP(A277,'Facilities Look Up'!$A$3:$E$325,4,FALSE),\"\")","v":""},{"$f":"_xlfn.IFNA(VLOOKUP(A277,'Facilities Look Up'!$A$3:$E$325,5,FALSE),\"\")","v":""}]
[null,{"$f":"_xlfn.IFNA(VLOOKUP(A278,'Facilities Look Up'!$A$3:$E$325,2,FALSE),\"\")","v":""},{"$f":"_xlfn.IFNA(VLOOKUP(A278,'Facilities Look Up'!$A$3:$E$325,3,FALSE),\"\")","v":""},{"$f":"_xlfn.IFNA(VLOOKUP(A278,'Facilities Look Up'!$A$3:$E$325,4,FALSE),\"\")","v":""},{"$f":"_xlfn.IFNA(VLOOKUP(A278,'Facilities Look Up'!$A$3:$E$325,5,FALSE),\"\")","v":""}]
[null,{"$f":"_xlfn.IFNA(VLOOKUP(A279,'Facilities Look Up'!$A$3:$E$325,2,FALSE),\"\")","v":""},{"$f":"_xlfn.IFNA(VLOOKUP(A279,'Facilities Look Up'!$A$3:$E$325,3,FALSE),\"\")","v":""},{"$f":"_xlfn.IFNA(VLOOKUP(A279,'Facilities Look Up'!$A$3:$E$325,4,FALSE),\"\")","v":""},{"$f":"_xlfn.IFNA(VLOOKUP(A279,'Facilities Look Up'!$A$3:$E$325,5,FALSE),\"\")","v":""}]
[null,{"$f":"_xlfn.IFNA(VLOOKUP(A280,'Facilities Look Up'!$A$3:$E$325,2,FALSE),\"\")","v":""},{"$f":"_xlfn.IFNA(VLOOKUP(A280,'Facilities Look Up'!$A$3:$E$325,3,FALSE),\"\")","v":""},{"$f":"_xlfn.IFNA(VLOOKUP(A280,'Facilities Look Up'!$A$3:$E$325,4,FALSE),\"\")","v":""},{"$f":"_xlfn.IFNA(VLOOKUP(A280,'Facilities Look Up'!$A$3:$E$325,5,FALSE),\"\")","v":""}]
[null,{"$f":"_xlfn.IFNA(VLOOKUP(A281,'Facilities Look Up'!$A$3:$E$325,2,FALSE),\"\")","v":""},{"$f":"_xlfn.IFNA(VLOOKUP(A281,'Facilities Look Up'!$A$3:$E$325,3,FALSE),\"\")","v":""},{"$f":"_xlfn.IFNA(VLOOKUP(A281,'Facilities Look Up'!$A$3:$E$325,4,FALSE),\"\")","v":""},{"$f":"_xlfn.IFNA(VLOOKUP(A281,'Facilities Look Up'!$A$3:$E$325,5,FALSE),\"\")","v":""}]
[null,{"$f":"_xlfn.IFNA(VLOOKUP(A282,'Facilities Look Up'!$A$3:$E$325,2,FALSE),\"\")","v":""},{"$f":"_xlfn.IFNA(VLOOKUP(A282,'Facilities Look Up'!$A$3:$E$325,3,FALSE),\"\")","v":""},{"$f":"_xlfn.IFNA(VLOOKUP(A282,'Facilities Look Up'!$A$3:$E$325,4,FALSE),\"\")","v":""},{"$f":"_xlfn.IFNA(VLOOKUP(A282,'Facilities Look Up'!$A$3:$E$325,5,FALSE),\"\")","v":""}]
[null,{"$f":"_xlfn.IFNA(VLOOKUP(A283,'Facilities Look Up'!$A$3:$E$325,2,FALSE),\"\")","v":""},{"$f":"_xlfn.IFNA(VLOOKUP(A283,'Facilities Look Up'!$A$3:$E$325,3,FALSE),\"\")","v":""},{"$f":"_xlfn.IFNA(VLOOKUP(A283,'Facilities Look Up'!$A$3:$E$325,4,FALSE),\"\")","v":""},{"$f":"_xlfn.IFNA(VLOOKUP(A283,'Facilities Look Up'!$A$3:$E$325,5,FALSE),\"\")","v":""}]
[null,{"$f":"_xlfn.IFNA(VLOOKUP(A284,'Facilities Look Up'!$A$3:$E$325,2,FALSE),\"\")","v":""},{"$f":"_xlfn.IFNA(VLOOKUP(A284,'Facilities Look Up'!$A$3:$E$325,3,FALSE),\"\")","v":""},{"$f":"_xlfn.IFNA(VLOOKUP(A284,'Facilities Look Up'!$A$3:$E$325,4,FALSE),\"\")","v":""},{"$f":"_xlfn.IFNA(VLOOKUP(A284,'Facilities Look Up'!$A$3:$E$325,5,FALSE),\"\")","v":""}]
[null,{"$f":"_xlfn.IFNA(VLOOKUP(A285,'Facilities Look Up'!$A$3:$E$325,2,FALSE),\"\")","v":""},{"$f":"_xlfn.IFNA(VLOOKUP(A285,'Facilities Look Up'!$A$3:$E$325,3,FALSE),\"\")","v":""},{"$f":"_xlfn.IFNA(VLOOKUP(A285,'Facilities Look Up'!$A$3:$E$325,4,FALSE),\"\")","v":""},{"$f":"_xlfn.IFNA(VLOOKUP(A285,'Facilities Look Up'!$A$3:$E$325,5,FALSE),\"\")","v":""}]
[null,{"$f":"_xlfn.IFNA(VLOOKUP(A286,'Facilities Look Up'!$A$3:$E$325,2,FALSE),\"\")","v":""},{"$f":"_xlfn.IFNA(VLOOKUP(A286,'Facilities Look Up'!$A$3:$E$325,3,FALSE),\"\")","v":""},{"$f":"_xlfn.IFNA(VLOOKUP(A286,'Facilities Look Up'!$A$3:$E$325,4,FALSE),\"\")","v":""},{"$f":"_xlfn.IFNA(VLOOKUP(A286,'Facilities Look Up'!$A$3:$E$325,5,FALSE),\"\")","v":""}]
[null,{"$f":"_xlfn.IFNA(VLOOKUP(A287,'Facilities Look Up'!$A$3:$E$325,2,FALSE),\"\")","v":""},{"$f":"_xlfn.IFNA(VLOOKUP(A287,'Facilities Look Up'!$A$3:$E$325,3,FALSE),\"\")","v":""},{"$f":"_xlfn.IFNA(VLOOKUP(A287,'Facilities Look Up'!$A$3:$E$325,4,FALSE),\"\")","v":""},{"$f":"_xlfn.IFNA(VLOOKUP(A287,'Facilities Look Up'!$A$3:$E$325,5,FALSE),\"\")","v":""}]
[null,{"$f":"_xlfn.IFNA(VLOOKUP(A288,'Facilities Look Up'!$A$3:$E$325,2,FALSE),\"\")","v":""},{"$f":"_xlfn.IFNA(VLOOKUP(A288,'Facilities Look Up'!$A$3:$E$325,3,FALSE),\"\")","v":""},{"$f":"_xlfn.IFNA(VLOOKUP(A288,'Facilities Look Up'!$A$3:$E$325,4,FALSE),\"\")","v":""},{"$f":"_xlfn.IFNA(VLOOKUP(A288,'Facilities Look Up'!$A$3:$E$325,5,FALSE),\"\")","v":""}]
[null,{"$f":"_xlfn.IFNA(VLOOKUP(A289,'Facilities Look Up'!$A$3:$E$325,2,FALSE),\"\")","v":""},{"$f":"_xlfn.IFNA(VLOOKUP(A289,'Facilities Look Up'!$A$3:$E$325,3,FALSE),\"\")","v":""},{"$f":"_xlfn.IFNA(VLOOKUP(A289,'Facilities Look Up'!$A$3:$E$325,4,FALSE),\"\")","v":""},{"$f":"_xlfn.IFNA(VLOOKUP(A289,'Facilities Look Up'!$A$3:$E$325,5,FALSE),\"\")","v":""}]
[null,{"$f":"_xlfn.IFNA(VLOOKUP(A290,'Facilities Look Up'!$A$3:$E$325,2,FALSE),\"\")","v":""},{"$f":"_xlfn.IFNA(VLOOKUP(A290,'Facilities Look Up'!$A$3:$E$325,3,FALSE),\"\")","v":""},{"$f":"_xlfn.IFNA(VLOOKUP(A290,'Facilities Look Up'!$A$3:$E$325,4,FALSE),\"\")","v":""},{"$f":"_xlfn.IFNA(VLOOKUP(A290,'Facilities Look Up'!$A$3:$E$325,5,FALSE),\"\")","v":""}]
[null,{"$f":"_xlfn.IFNA(VLOOKUP(A291,'Facilities Look Up'!$A$3:$E$325,2,FALSE),\"\")","v":""},{"$f":"_xlfn.IFNA(VLOOKUP(A291,'Facilities Look Up'!$A$3:$E$325,3,FALSE),\"\")","v":""},{"$f":"_xlfn.IFNA(VLOOKUP(A291,'Facilities Look Up'!$A$3:$E$325,4,FALSE),\"\")","v":""},{"$f":"_xlfn.IFNA(VLOOKUP(A291,'Facilities Look Up'!$A$3:$E$325,5,FALSE),\"\")","v":""}]
[null,{"$f":"_xlfn.IFNA(VLOOKUP(A292,'Facilities Look Up'!$A$3:$E$325,2,FALSE),\"\")","v":""},{"$f":"_xlfn.IFNA(VLOOKUP(A292,'Facilities Look Up'!$A$3:$E$325,3,FALSE),\"\")","v":""},{"$f":"_xlfn.IFNA(VLOOKUP(A292,'Facilities Look Up'!$A$3:$E$325,4,FALSE),\"\")","v":""},{"$f":"_xlfn.IFNA(VLOOKUP(A292,'Facilities Look Up'!$A$3:$E$325,5,FALSE),\"\")","v":""}]
[null,{"$f":"_xlfn.IFNA(VLOOKUP(A293,'Facilities Look Up'!$A$3:$E$325,2,FALSE),\"\")","v":""},{"$f":"_xlfn.IFNA(VLOOKUP(A293,'Facilities Look Up'!$A$3:$E$325,3,FALSE),\"\")","v":""},{"$f":"_xlfn.IFNA(VLOOKUP(A293,'Facilities Look Up'!$A$3:$E$325,4,FALSE),\"\")","v":""},{"$f":"_xlfn.IFNA(VLOOKUP(A293,'Facilities Look Up'!$A$3:$E$325,5,FALSE),\"\")","v":""}]
[null,{"$f":"_xlfn.IFNA(VLOOKUP(A294,'Facilities Look Up'!$A$3:$E$325,2,FALSE),\"\")","v":""},{"$f":"_xlfn.IFNA(VLOOKUP(A294,'Facilities Look Up'!$A$3:$E$325,3,FALSE),\"\")","v":""},{"$f":"_xlfn.IFNA(VLOOKUP(A294,'Facilities Look Up'!$A$3:$E$325,4,FALSE),\"\")","v":""},{"$f":"_xlfn.IFNA(VLOOKUP(A294,'Facilities Look Up'!$A$3:$E$325,5,FALSE),\"\")","v":""}]
[null,{"$f":"_xlfn.IFNA(VLOOKUP(A295,'Facilities Look Up'!$A$3:$E$325,2,FALSE),\"\")","v":""},{"$f":"_xlfn.IFNA(VLOOKUP(A295,'Facilities Look Up'!$A$3:$E$325,3,FALSE),\"\")","v":""},{"$f":"_xlfn.IFNA(VLOOKUP(A295,'Facilities Look Up'!$A$3:$E$325,4,FALSE),\"\")","v":""},{"$f":"_xlfn.IFNA(VLOOKUP(A295,'Facilities Look Up'!$A$3:$E$325,5,FALSE),\"\")","v":""}]
[null,{"$f":"_xlfn.IFNA(VLOOKUP(A296,'Facilities Look Up'!$A$3:$E$325,2,FALSE),\"\")","v":""},{"$f":"_xlfn.IFNA(VLOOKUP(A296,'Facilities Look Up'!$A$3:$E$325,3,FALSE),\"\")","v":""},{"$f":"_xlfn.IFNA(VLOOKUP(A296,'Facilities Look Up'!$A$3:$E$325,4,FALSE),\"\")","v":""},{"$f":"_xlfn.IFNA(VLOOKUP(A296,'Facilities Look Up'!$A$3:$E$325,5,FALSE),\"\")","v":""}]
[null,{"$f":"_xlfn.IFNA(VLOOKUP(A297,'Facilities Look Up'!$A$3:$E$325,2,FALSE),\"\")","v":""},{"$f":"_xlfn.IFNA(VLOOKUP(A297,'Facilities Look Up'!$A$3:$E$325,3,FALSE),\"\")","v":""},{"$f":"_xlfn.IFNA(VLOOKUP(A297,'Facilities Look Up'!$A$3:$E$325,4,FALSE),\"\")","v":""},{"$f":"_xlfn.IFNA(VLOOKUP(A297,'Facilities Look Up'!$A$3:$E$325,5,FALSE),\"\")","v":""}]
[null,{"$f":"_xlfn.IFNA(VLOOKUP(A298,'Facilities Look Up'!$A$3:$E$325,2,FALSE),\"\")","v":""},{"$f":"_xlfn.IFNA(VLOOKUP(A298,'Facilities Look Up'!$A$3:$E$325,3,FALSE),\"\")","v":""},{"$f":"_xlfn.IFNA(VLOOKUP(A298,'Facilities Look Up'!$A$3:$E$325,4,FALSE),\"\")","v":""},{"$f":"_xlfn.IFNA(VLOOKUP(A298,'Facilities Look Up'!$A$3:$E$325,5,FALSE),\"\")","v":""}]
[null,{"$f":"_xlfn.IFNA(VLOOKUP(A299,'Facilities Look Up'!$A$3:$E$325,2,FALSE),\"\")","v":""},{"$f":"_xlfn.IFNA(VLOOKUP(A299,'Facilities Look Up'!$A$3:$E$325,3,FALSE),\"\")","v":""},{"$f":"_xlfn.IFNA(VLOOKUP(A299,'Facilities Look Up'!$A$3:$E$325,4,FALSE),\"\")","v":""},{"$f":"_xlfn.IFNA(VLOOKUP(A299,'Facilities Look Up'!$A$3:$E$325,5,FALSE),\"\")","v":""}]
[null,{"$f":"_xlfn.IFNA(VLOOKUP(A300,'Facilities Look Up'!$A$3:$E$325,2,FALSE),\"\")","v":""},{"$f":"_xlfn.IFNA(VLOOKUP(A300,'Facilities Look Up'!$A$3:$E$325,3,FALSE),\"\")","v":""},{"$f":"_xlfn.IFNA(VLOOKUP(A300,'Facilities Look Up'!$A$3:$E$325,4,FALSE),\"\")","v":""},{"$f":"_xlfn.IFNA(VLOOKUP(A300,'Facilities Look Up'!$A$3:$E$325,5,FALSE),\"\")","v":""}]
[null,{"$f":"_xlfn.IFNA(VLOOKUP(A301,'Facilities Look Up'!$A$3:$E$325,2,FALSE),\"\")","v":""},{"$f":"_xlfn.IFNA(VLOOKUP(A301,'Facilities Look Up'!$A$3:$E$325,3,FALSE),\"\")","v":""},{"$f":"_xlfn.IFNA(VLOOKUP(A301,'Facilities Look Up'!$A$3:$E$325,4,FALSE),\"\")","v":""},{"$f":"_xlfn.IFNA(VLOOKUP(A301,'Facilities Look Up'!$A$3:$E$325,5,FALSE),\"\")","v":""}]
[null,{"$f":"_xlfn.IFNA(VLOOKUP(A302,'Facilities Look Up'!$A$3:$E$325,2,FALSE),\"\")","v":""},{"$f":"_xlfn.IFNA(VLOOKUP(A302,'Facilities Look Up'!$A$3:$E$325,3,FALSE),\"\")","v":""},{"$f":"_xlfn.IFNA(VLOOKUP(A302,'Facilities Look Up'!$A$3:$E$325,4,FALSE),\"\")","v":""},{"$f":"_xlfn.IFNA(VLOOKUP(A302,'Facilities Look Up'!$A$3:$E$325,5,FALSE),\"\")","v":""}]
[null,{"$f":"_xlfn.IFNA(VLOOKUP(A303,'Facilities Look Up'!$A$3:$E$325,2,FALSE),\"\")","v":""},{"$f":"_xlfn.IFNA(VLOOKUP(A303,'Facilities Look Up'!$A$3:$E$325,3,FALSE),\"\")","v":""},{"$f":"_xlfn.IFNA(VLOOKUP(A303,'Facilities Look Up'!$A$3:$E$325,4,FALSE),\"\")","v":""},{"$f":"_xlfn.IFNA(VLOOKUP(A303,'Facilities Look Up'!$A$3:$E$325,5,FALSE),\"\")","v":""}]
[null,{"$f":"_xlfn.IFNA(VLOOKUP(A304,'Facilities Look Up'!$A$3:$E$325,2,FALSE),\"\")","v":""},{"$f":"_xlfn.IFNA(VLOOKUP(A304,'Facilities Look Up'!$A$3:$E$325,3,FALSE),\"\")","v":""},{"$f":"_xlfn.IFNA(VLOOKUP(A304,'Facilities Look Up'!$A$3:$E$325,4,FALSE),\"\")","v":""},{"$f":"_xlfn.IFNA(VLOOKUP(A304,'Facilities Look Up'!$A$3:$E$325,5,FALSE),\"\")","v":""}]
[null,{"$f":"_xlfn.IFNA(VLOOKUP(A305,'Facilities Look Up'!$A$3:$E$325,2,FALSE),\"\")","v":""},{"$f":"_xlfn.IFNA(VLOOKUP(A305,'Facilities Look Up'!$A$3:$E$325,3,FALSE),\"\")","v":""},{"$f":"_xlfn.IFNA(VLOOKUP(A305,'Facilities Look Up'!$A$3:$E$325,4,FALSE),\"\")","v":""},{"$f":"_xlfn.IFNA(VLOOKUP(A305,'Facilities Look Up'!$A$3:$E$325,5,FALSE),\"\")","v":""}]
[null,{"$f":"_xlfn.IFNA(VLOOKUP(A306,'Facilities Look Up'!$A$3:$E$325,2,FALSE),\"\")","v":""},{"$f":"_xlfn.IFNA(VLOOKUP(A306,'Facilities Look Up'!$A$3:$E$325,3,FALSE),\"\")","v":""},{"$f":"_xlfn.IFNA(VLOOKUP(A306,'Facilities Look Up'!$A$3:$E$325,4,FALSE),\"\")","v":""},{"$f":"_xlfn.IFNA(VLOOKUP(A306,'Facilities Look Up'!$A$3:$E$325,5,FALSE),\"\")","v":""}]
[null,{"$f":"_xlfn.IFNA(VLOOKUP(A307,'Facilities Look Up'!$A$3:$E$325,2,FALSE),\"\")","v":""},{"$f":"_xlfn.IFNA(VLOOKUP(A307,'Facilities Look Up'!$A$3:$E$325,3,FALSE),\"\")","v":""},{"$f":"_xlfn.IFNA(VLOOKUP(A307,'Facilities Look Up'!$A$3:$E$325,4,FALSE),\"\")","v":""},{"$f":"_xlfn.IFNA(VLOOKUP(A307,'Facilities Look Up'!$A$3:$E$325,5,FALSE),\"\")","v":""}]
[null,{"$f":"_xlfn.IFNA(VLOOKUP(A308,'Facilities Look Up'!$A$3:$E$325,2,FALSE),\"\")","v":""},{"$f":"_xlfn.IFNA(VLOOKUP(A308,'Facilities Look Up'!$A$3:$E$325,3,FALSE),\"\")","v":""},{"$f":"_xlfn.IFNA(VLOOKUP(A308,'Facilities Look Up'!$A$3:$E$325,4,FALSE),\"\")","v":""},{"$f":"_xlfn.IFNA(VLOOKUP(A308,'Facilities Look Up'!$A$3:$E$325,5,FALSE),\"\")","v":""}]
[null,{"$f":"_xlfn.IFNA(VLOOKUP(A309,'Facilities Look Up'!$A$3:$E$325,2,FALSE),\"\")","v":""},{"$f":"_xlfn.IFNA(VLOOKUP(A309,'Facilities Look Up'!$A$3:$E$325,3,FALSE),\"\")","v":""},{"$f":"_xlfn.IFNA(VLOOKUP(A309,'Facilities Look Up'!$A$3:$E$325,4,FALSE),\"\")","v":""},{"$f":"_xlfn.IFNA(VLOOKUP(A309,'Facilities Look Up'!$A$3:$E$325,5,FALSE),\"\")","v":""}]
[null,{"$f":"_xlfn.IFNA(VLOOKUP(A310,'Facilities Look Up'!$A$3:$E$325,2,FALSE),\"\")","v":""},{"$f":"_xlfn.IFNA(VLOOKUP(A310,'Facilities Look Up'!$A$3:$E$325,3,FALSE),\"\")","v":""},{"$f":"_xlfn.IFNA(VLOOKUP(A310,'Facilities Look Up'!$A$3:$E$325,4,FALSE),\"\")","v":""},{"$f":"_xlfn.IFNA(VLOOKUP(A310,'Facilities Look Up'!$A$3:$E$325,5,FALSE),\"\")","v":""}]
[null,{"$f":"_xlfn.IFNA(VLOOKUP(A311,'Facilities Look Up'!$A$3:$E$325,2,FALSE),\"\")","v":""},{"$f":"_xlfn.IFNA(VLOOKUP(A311,'Facilities Look Up'!$A$3:$E$325,3,FALSE),\"\")","v":""},{"$f":"_xlfn.IFNA(VLOOKUP(A311,'Facilities Look Up'!$A$3:$E$325,4,FALSE),\"\")","v":""},{"$f":"_xlfn.IFNA(VLOOKUP(A311,'Facilities Look Up'!$A$3:$E$325,5,FALSE),\"\")","v":""}]
[null,{"$f":"_xlfn.IFNA(VLOOKUP(A312,'Facilities Look Up'!$A$3:$E$325,2,FALSE),\"\")","v":""},{"$f":"_xlfn.IFNA(VLOOKUP(A312,'Facilities Look Up'!$A$3:$E$325,3,FALSE),\"\")","v":""},{"$f":"_xlfn.IFNA(VLOOKUP(A312,'Facilities Look Up'!$A$3:$E$325,4,FALSE),\"\")","v":""},{"$f":"_xlfn.IFNA(VLOOKUP(A312,'Facilities Look Up'!$A$3:$E$325,5,FALSE),\"\")","v":""}]

{"sheet":"Historical Facilities Look Up","index":3,"n_rows":854,"n_cols":30,"rows_kept":854,"cut":false,"hidden":true,"merged":[[0,2,0,5],[0,0,0,1]]}
["Historical Reported Specified Sources",null,"Source IDs"]
["Data Source","Facility Name","Oregon ID","CARB ID","US EPA ID","EIA ID","Net Generation","Primary Fuel","Address line 1","Address Line 2","City","Zip","County","State","Country","Phone","Fax","Email address","Comments","Anthro EF 2015","Anthro EF 2016","Anthro EF 2017","Anthro EF 2018","Anthro EF 2019","Bio EF 2015","Bio EF 2016","Bio EF 2017","Bio EF 2018","Bio EF 2019","Mary Notes"]
["CARB Non-historical","San Emidio Project",null,400002,null,57456,64436,"Geothermal (Closed System)","PO Box 135",null,"Gerlach",89412,"Washoe","NV","USA",null,null,null,null,null,null,null,null,6.8658370786516806E-2]
["CARB Non-historical","Nine Mile HED",null,500001,null,3869,143308,"Hydro","W. 9602 Old Charles Road",null,"Nine Mile",99026,"Spokane","WA","USA",null,null,null,null,null,null,null,null,0]
["CARB Non-historical","Monroe Street HED",null,500002,null,9095,81033,"Hydro","311 N. Post Street",null,"Spokane",99201,"Spokane","WA","USA",null,null,null,null,null,null,null,null,0]
["CARB Non-historical","Mid-C Hydro - Rock Island (Chelan County PUD)",null,500003,null,null,null,"Hydro","Rock Island Dam",null,"Wenatchee",98801,"Chelan","WA","USA",null,null,null,null,null,null,null,null,0]
["CARB Non-historical","Glen Canyon Dam",null,500007,null,153,3958503,"Hydro","N/A",null,"Page",86040,"Coconino","AZ","USA",null,null,null,null,null,null,null,null,0]
["CARB Non-historical","Brownlee",null,500010,null,811,2418886,"Hydro","ID Highway #71 @ the Snake R.",null,"Cambridge",83610,"Washington","ID","USA",null,null,null,null,null,null,null,null,0]
["CARB Non-historical","Cabinet Gorge",null,500011,null,833,1159246,"Hydro","61940 Hwy 200",null,"Clark Fork",83811,"Bonner","ID","USA",null,null,null,null,null,null,null,null,0]
["CARB Non-historical","Kerr",null,500014,null,2188,975718,"Hydro","7000 Kerr Dam Road",null,"Polson",59860,"Lake","MT","USA",null,null,null,null,null,null,null,null,0]
["CARB Non-historical","Thompson Falls Dam",null,500015,null,2195,460628,"Hydro","1610 Maiden Lane",null,"Thompson Falls",59873,"Sanders","MT","USA",null,null,null,null,null,null,null,null,0]
["CARB Non-historical","Noxon Rapids",null,500016,null,2199,1840622,"Hydro","84 Avista Power Road",null,"Noxon",59853,"Sanders","MT","USA",null,null,null,null,null,null,null,null,0]
["CARB Non-historical","Hells Canyon",null,500019,null,3013,2194877,"Hydro","22 Miles N of OR Highway 86",null,"Oxbow",97840,"Wallowa","OR","USA",null,null,null,null,null,null,null,null,0]
["CARB Non-historical","Lower Baker",null,500025,null,3855,385262,"Hydro","46110 E Main St",null,"Concrete",98237,"Skagit","WA","USA",null,null,null,null,null,null,null,null,0]
["CARB Non-historical","Upper Baker",null,500026,null,3861,333791,"Hydro","46110 E Main St",null,"Concrete",98237,"Whatcom","WA","USA",null,null,null,null,null,null,null,null,0]
["CARB Non-historical","Boundary Hydroelectric Units",null,500043,null,6433,4003841,"Hydro","1198 Boundary Dam Access Road",null,"Metaline",99152,"Pend Oreille","WA","USA",null,null,null,null,null,null,null,null,0]
["CARB Non-historical","Lucky Peak Power Plant Project",null,500046,null,10014,347570,"Hydro","9731 E Highway 21",null,"Boise",83716,"Ada","ID","USA",null,null,null,null,null,null,null,null,0]
["CARB Non-historical","Orchard Avenue 1 (Yakima-Tieton ID)",null,500047,null,50421,3086,"Hydro","12731 Orchard Ave",null,"Yakima",98908,"Yakima","WA","USA",null,null,null,null,null,null,null,null,0]
["CARB Non-historical","Oxbow (Oregon)",null,500059,null,3014,1090414,"Hydro","OR Highway 86 at the Snake R.",null,"Oxbow",97840,"Baker","OR","USA",null,null,null,null,null,null,null,null,0]
["CARB Non-historical","Post Falls Hydro",null,500061,null,835,72493,"Hydro","1091 W 4th Ave.",null,"Post Falls",83854,"Kootenai","ID","USA",null,null,null,null,null,null,null,null,0]
["CARB Non-historical","Upper Falls Hydro",null,500062,null,9096,61161,"Hydro","508 N Post Street",null,"Spokane",99201,"Spokane","WA","USA",null,null,null,null,null,null,null,null,0]
["CARB Non-historical","Hoover Dam",null,500066,null,154,1814646,"Hydro","N/A",null,"Boulder City",89006,"Clark","NV","USA",null,null,null,null,null,null,null,null,0]
["CARB Non-historical","Mid-C Hydro - Wells (Douglas County PUD)",null,500237,null,3886,4438938,"Hydro","28905 Highway 97",null,"Pateros",98846,"Douglas","WA","USA",null,null,null,null,null,null,null,null,0]
["CARB Non-historical","Tieton Dam Hydro Electric Project",null,500239,null,57496,48384,"Hydro","34582 Highway 12",null,"Rimrock",98937,"Yakima","WA","USA",null,null,null,null,null,null,null,null,0]
["CARB Non-historical","Parker-Davis  Project",null,500254,null,447,436366,"Hydro","n/a",null,"Parker",92267,"San Bernardino","AZ","USA",null,null,null,null,null,null,null,null,0]
["CARB Non-historical","Cowiltz River Project (Mayfield Dam and Mossyrock Dam)",null,501000,null,3917,645975,"Hydro","418 Gershick Road",null,"Silver Creek",98585,"Lewis","WA","USA",null,null,null,null,null,null,null,null,0]
["CARB Non-historical","Cushman Hydro Project (Cushman No. 1 Dam and Cushman No. 2 Dam)",null,501001,null,3914,114889,"Hydro","North 21451 Highway 101",null,"Shelton",98584,"Mason","WA","USA",null,null,null,null,null,null,null,null,0]
["CARB Non-historical","Nisqually River Project (Alder Dam and LaGrande Dam)",null,501002,null,3913,206343,"Hydro","46502 Mountain Highway East",null,"La Grande",98348,"Pierce","WA","USA",null,null,null,null,null,null,null,null,0]
["CARB Non-historical","Bridge River 1 Hydroelectric Generation Facility (CAN)",null,501022,null,null,1,"Hydro",null,null,null,null,null,"Not applicable","Canada",null,null,null,null,null,null,null,null,0]
["CARB Non-historical","Bridge River 2 Hydroelectric Generation Facility (CAN)",null,501023,null,null,1,"Hydro",null,null,null,null,null,"Not applicable","Canada",null,null,null,null,null,null,null,null,0]
["CARB Non-historical","Cheakamus Hydroelectric Generation Facility (CAN)",null,501024,null,null,1,"Hydro",null,null,null,null,null,"Not applicable","Canada",null,null,null,null,null,null,null,null,0]
["CARB Non-historical","G.M. Shrum Hydroelectric Generation Facility (CAN)",null,501028,null,null,1,"Hydro",null,null,null,null,null,"Not applicable","Canada",null,null,null,null,null,null,null,null,0]
["CARB Non-historical","Kootenay Canal Hydroelectric Generation Facility (CAN)",null,501031,null,null,1,"Hydro",null,null,null,null,null,"Not applicable","Canada",null,null,null,null,null,null,null,null,0]
["CARB Non-historical","Mica Hydroelectric Generation Facility (CAN)",null,501035,null,null,1,"Hydro",null,null,null,null,null,"Not applicable","Canada",null,null,null,null,null,null,null,null,0]
["CARB Non-historical","Peace Canyon Hydroelectric Generation Facility (CAN)",null,501036,null,null,1,"Hydro",null,null,null,null,null,"Not applicable","Canada",null,null,null,null,null,null,null,null,0]
["CARB Non-historical","Revelstoke Hydroelectric Generation Facility (CAN)",null,501038,null,null,1,"Hydro",null,null,null,null,null,"Not applicable","Canada",null,null,null,null,null,null,null,null,0]
["CARB Non-historical","Seven Mile Hydroelectric Generation Facility (CAN)",null,501041,null,null,1,"Hydro",null,null,null,null,null,"Not applicable","Canada",null,null,null,null,null,null,null,null,0]
["CARB Non-historical","Holter Dam",null,501081,null,2186,341811,"Hydro","1390 Holter Dam Road",null,"Wolf Creek",59648,"Cascade","MT","USA",null,null,null,null,null,null,null,null,0]
["CARB Non-historical","26-foot Drop Small Hydro",null,501131,null,null,1,"Hydro",null,null,null,null,null,"NV","USA",null,null,null,null,null,null,null,null,0]
["CARB Non-historical","Old Lahontan hydropower Plant",null,501132,null,6521,4419,"Hydro","Lahontan Dam",null,"Fallon",89406,"Churchill","NV","USA",null,null,null,null,null,null,null,null,0]
["CARB Non-historical","Headgate Rock Dam",null,501138,null,7179,67925,"Hydro","Headgate Rock Road",null,"Parker",85344,"La Paz","AZ","USA",null,null,null,null,null,null,null,null,0]
["CARB Non-historical","CJ Strike",null,510101,null,812,568652,"Hydro","26378 Strike Dam Cutoff Road",null,"Bruneau",83604,"Owyhee","ID","USA",null,null,null,null,null,null,null,null,0]
["CARB Non-historical","Little Falls (WA)",null,510104,null,3866,166423,"Hydro","49557 Little Falls Rd E",null,"Ford",99013,"Lincoln","WA","USA",null,null,null,null,null,null,null,null,0]
["CARB Non-historical","Long Lake",null,510105,null,3867,505089,"Hydro","53200 Long Lake Road E.",null,"Ford",99013,"Lincoln","WA","USA",null,null,null,null,null,null,null,null,0]
["CARB Non-historical","Snoqualmie Hydroelectric Project",null,510107,null,3860,68320,"Hydro","37820 SE 69th St.",null,"Snoqualmie",98065,"King","WA","USA",null,null,null,null,null,null,null,null,0]
["CARB Non-historical","Crooked Falls",null,510109,null,2181,138717,"Hydro","336 Rainbow Dam Road",null,"Great Falls",59404,"Cascade","MT","USA",null,null,null,null,null,null,null,null,0]
["CARB Non-historical","Mid-C Hydro - Rock Island and Rocky Reach (Chelan County PUD)",null,510111,null,null,null,"Hydro","Rocky Reach Dam",null,"Wenatchee",98801,"Chelan","WA","USA",null,null,null,null,null,null,null,null,0]
["CARB Non-historical","Palo Verde Nuclear Generating Station",null,600000,null,6008,31097259,"Nuclear","Wintersburg Road",null,"Wintersburg",85036,"Maricopa","AZ","USA",null,null,null,null,null,null,null,null,0]
["CARB Non-historical","Mesquite Solar 1",null,700001,null,57707,415004,"Solar","39903 W. Elliot Road",null,"Tonopah",85354,"Maricopa","AZ","USA",null,null,null,null,null,null,null,null,0]
["CARB Non-historical","Agua Caliente Solar Project",null,700003,null,57373,723324,"Solar","67500 East Palomas Rd",null,"Dateland",85333,"Yuma","AZ","USA",null,null,null,null,null,null,null,null,0]
["CARB Non-historical","Copper Mountain Solar 2 (CMS2)",null,700004,null,58017,367474,"Solar","585 Eldorado Valley Drive",null,"Boulder City",89005,"Clark","NV","USA",null,null,null,null,null,null,null,null,0]
["CARB Non-historical","Copper Mountain Solar 1 (CM10)",null,700061,null,56944,19595,"Solar","751 El Dorado Valley Dr.",null,"Boulder City",89005,"Clark","NV","USA",null,null,null,null,null,null,null,null,0]
["CARB Non-historical","Copper Mountain Solar 3",null,700101,null,58915,613866,"Solar","15301 Hwy US 95 South",null,"Boulder City",89006,"Clark","NV","USA",null,null,null,null,null,null,null,null,0]
["CARB Non-historical","Macho Springs Solar Facility",null,700124,null,59010,139836,"Solar","18120 Hatch Hwy NE",null,"Deming",88030,"Luna","NM","USA",null,null,null,null,null,null,null,null,0]
["CARB Non-historical","Copper Mountain Solar 4 (CMS4)",null,700130,null,59814,263829,"Solar","659 Eldorado Valley Drive",null,"Boulder City",89005,"Clark","NV","USA",null,null,null,null,null,null,null,null,0]
["CARB Non-historical","Moapa Southern Paiute Solar",null,700138,null,57859,624453,"Solar","1 Lincoln Street",null,"Moapa",89025,"Clark","NV","USA",null,null,null,null,null,null,null,null,0]
["CARB Non-historical","Apache Solar",null,710100,null,60964,49911,"Solar","3800 N HIghway 191",null,"Cochise",85606,"Cochise","AZ","USA",null,null,null,null,null,null,null,null,0]
["CARB Non-historical","Arlington Valley Solar Project II",null,710101,null,57680,335124,"Solar","South of Elliot Road and west",null,"Arlington",85326,"Maricopa","AZ","USA",null,null,null,null,null,null,null,null,0]
["CARB Non-historical","Luning Solar",null,710111,null,61084,129358,"Solar","Mile Marker 2.5",null,"Luning",89420,"Mineral","NV","USA",null,null,null,null,null,null,null,null,0]
["CARB Non-historical","Patua Solar Project",null,710118,null,58319,138046,"Solar","17388 Patua Road",null,"Hazen",89408,"Churchill","NV","USA",null,null,null,null,null,null,null,null,0]
["CARB Non-historical","Grand View 2 West",null,710127,null,60068,182356,"Solar","325 S Frederick Road",null,"Grand View",83624,"Elmore","ID","USA",null,null,null,null,null,null,null,null,0]
["CARB Non-historical","ID Solar 1",null,710129,null,60445,97248,"Solar","18106 South Cloverdale Road",null,"Kuna",83634,"Ada","ID","USA",null,null,null,null,null,null,null,null,0]
["CARB Non-historical","Murphy Flat Solar",null,710133,null,60009,45755,"Solar","Warrick Rd",null,"Murphy",83650,"Owyhee","ID","USA",null,null,null,null,null,null,null,null,0]
["CARB Non-historical","Orchard Ranch Solar",null,710135,null,60010,47739,"Solar","E. Orchard Ranch Ln",null,"Orchard",83650,"Ada","ID","USA",null,null,null,null,null,null,null,null,0]
["CARB Non-historical","Simcoe Solar",null,710136,null,60748,49203,"Solar","16725 Simco Road",null,"Mountain Home",83647,"Elmore","ID","USA",null,null,null,null,null,null,null,null,0]
["CARB Non-historical","Wy'East Solar",null,710138,null,61345,6949,"Solar","97415 Klondike Lane",null,"Wasco",97065,"Sherman","OR","USA",null,null,null,null,null,null,null,null,0]
["CARB Non-historical","Hopkins Ridge Wind",null,800001,null,56255,408658,"Wind","431 Gwinn Road",null,"Dayton",99328,"Columbia","WA","USA",null,null,null,null,null,null,null,null,0]
["CARB Non-historical","Wild Horse Wind",null,800002,null,56322,639178,"Wind","25901 Vantage Hwy",null,"Ellensburg",98926,"Kittitas","WA","USA",null,null,null,null,null,null,null,null,0]
["CARB Non-historical","Vantage Wind",null,800003,null,57188,252759,"Wind","30821 Vantage Highway",null,"Ellensburg",98926,"Kittitas","WA","USA",null,null,null,null,null,null,null,null,0]
["CARB Non-historical","Nine Canyon Wind Project",null,800004,null,7936,237801,"Wind","92308 S. Nine Canyon Road",null,"Kennewick",99336,"Benton","WA","USA",null,null,null,null,null,null,null,null,0]
["CARB Non-historical","Spring Canyon",null,800005,null,56320,177387,"Wind","28191 CR 74",null,"Peetz",80747,"Logan","CO","USA",null,null,null,null,null,null,null,null,0]
["CARB Non-historical","Twin Buttes",null,800006,null,56460,257254,"Wind","31965 county Road",null,"Lamar",81052,"Bent","CO","USA",null,null,null,null,null,null,null,null,0]
["CARB Non-historical","Biglow Canyon Wind Farm (Phase 1)",null,800007,null,null,null,"Wind","96900 Herin Lane",null,"Wasco",97065,"Sherman","OR","USA",null,null,null,null,null,null,null,null,0]
["CARB Non-historical","Logan Wind Farm",null,800008,null,56613,493865,"Wind","9500 County Road 78",null,"Peetz",80747,"Logan","CO","USA",null,null,null,null,null,null,null,null,0]
["CARB Non-historical","Milford II Wind Farm",null,800009,null,57107,197100,"Wind","2390 East First Wind Road",null,"Milford",84751,"Beaver","UT","USA",null,null,null,null,null,null,null,null,0]
["CARB Non-historical","Dokie Wind Energy Project (CAN)",null,800012,null,null,1,"Wind",null,null,null,null,null,"Not applicable","Canada",null,null,null,null,null,null,null,null,0]
["CARB Non-historical","Halkirk I Wind Project (CAN)",null,800013,null,null,1,"Wind",null,null,null,null,null,"Not applicable","Canada",null,null,null,null,null,null,null,null,0]
["CARB Non-historical","Quality Wind Project (CAN)",null,800014,null,null,1,"Wind",null,null,null,null,null,"Not applicable","Canada",null,null,null,null,null,null,null,null,0]
["CARB Non-historical","Caithness Shepherd's Flat - North Hurlburt (Wind)",null,800015,null,57526,568572,"Wind","76288 Rhea Road",null,"Arlington",97812,"Gilliam","OR","USA",null,null,null,null,null,null,null,null,0]
["CARB Non-historical","Arlington Wind Power Project",null,800016,null,56855,221498,"Wind","72650 Rattlesnake Road",null,"Arlington",97812,"Gilliam","OR","USA",null,null,null,null,null,null,null,null,0]
["CARB Non-historical","Caithness Shepherd's Flat - Horseshoe Bend (Wind)",null,800017,null,57550,655451,"Wind","6889 Eight Mile Road",null,"Arlington",97812,"Gilliam","OR","USA",null,null,null,null,null,null,null,null,0]
["CARB Non-historical","High Winds",null,800025,null,56075,345306,"Wind","6700 Birds Landing Rd.",null,"Birds Landing",94512,"Solano","CA","USA",null,null,null,null,null,null,null,null,0]
["CARB Non-historical","Pleasant Valley Wind Energy Project",null,800026,null,56093,350158,"Wind","3287 Divide Rd",null,"Evanston",82930,"Uinta","WY","USA",null,null,null,null,null,null,null,null,0]
["CARB Non-historical","Caithness Shepherd's Flat - South Hurlburt (Wind)",null,800027,null,57549,623377,"Wind","76287 Rhea Road",null,"Arlington",97812,"Gilliam","OR","USA",null,null,null,null,null,null,null,null,0]
["CARB Non-historical","Horse Butte Wind",null,800030,null,57890,159639,"Wind","2801 East 14th North",null,"Iona",83427,"Bonneville","ID","USA",null,null,null,null,null,null,null,null,0]
["CARB Non-historical","Klondike Windpower IIIA",null,800031,null,56468,724004,"Wind","99436 Klondike Lane",null,"Wasco",97065,"Sherman","OR","USA",null,null,null,null,null,null,null,null,0]
["CARB Non-historical","Glacier Wind Farm (Naturener)",null,800032,null,57049,260131,"Wind","1321 Hjartarson Road",null,"Ethridge",59435,"Toole","MT","USA",null,null,null,null,null,null,null,null,0]
["CARB Non-historical","Kittitas Valley Wind Power Project (Sagebrush Power)",null,800033,null,56858,255567,"Wind","3701 Hayward Rd",null,"Ellensburg",98922,"Kittitas","WA","USA",null,null,null,null,null,null,null,null,0]
["CARB Non-historical","White Creek Wind Farm",null,800043,null,56487,544026,"Wind","1131 Dot Road",null,"Roosevelt",99356,"Klickitat","WA","USA",null,null,null,null,null,null,null,null,0]
["CARB Non-historical","Cape Scott Wind Farm (CAN)",null,800049,null,null,1,"Wind",null,null,null,null,null,"Not applicable","Canada",null,null,null,null,null,null,null,null,0]
["CARB Non-historical","Palouse Wind",null,800052,null,57530,327172,"Wind",null,null,null,null,null,"WA","USA",null,null,null,null,null,null,null,null,0]
["CARB Non-historical","Spring Valley Wind Project",null,800054,null,57192,312348,"Wind","1212 SR 893",null,"Ely",89301,"White Pine","NV","USA",null,null,null,null,null,null,null,null,0]
["CARB Non-historical","Rim Rock Wind Farm (Naturener)",null,800055,null,57995,628130,"Wind","669 Rim Road",null,"Kevin",59454,"Toole","MT","USA",null,null,null,null,null,null,null,null,0]
["CARB Non-historical","Willow Creek Wind",null,800062,null,56952,170919,"Wind","71010 Highway 74",null,"Lone",97843,"Morrow","OR","USA",null,null,null,null,null,null,null,null,0]
["CARB Non-historical","Pebble Springs",null,800063,null,56789,214678,"Wind","74623 Rhea Road",null,"Wasco",97812,"Gilliam","OR","USA",null,null,null,null,null,null,null,null,0]
["CARB Non-historical","Hay Canyon Wind",null,800140,null,56790,206141,"Wind","98100 Baseline Lane",null,"Moro",97039,"Sherman","OR","USA",null,null,null,null,null,null,null,null,0]
["CARB Non-historical","Windy Point/Flats Project phase 1 (Tuolumne Wind Project)",null,800141,null,null,null,"Wind","S-14 and Hwy 97",null,"Goldendale",98620,"Klickitat","WA","USA",null,null,null,null,null,null,null,null,0]
["CARB Non-historical","Seven Mile Hill II",null,800161,null,56843,422023,"Wind","3 Miles NW of Medicine Bow",null,"Medicine Bow",82329,"Carbon","WY","USA",null,null,null,null,null,null,null,null,0]
["CARB Non-historical","Windy Flats Wind Project",null,800164,null,null,null,"Wind","24 Stringstreet Rd",null,"Centerville",98613,"Klickitat","WA","USA",null,null,null,null,null,null,null,null,0]
["CARB Non-historical","Milford I Wind Farm",null,800165,null,57079,394366,"Wind","2390 East First Wind Rd",null,"Milford",84751,"Beaver","UT","USA",null,null,null,null,null,null,null,null,0]
["CARB Non-historical","Star Point",null,800179,null,57096,230780,"Wind","98536 Klondike Lane",null,"Wasco",97065,"Sherman","OR","USA",null,null,null,null,null,null,null,null,0]
["CARB Non-historical","Goshen Phase II LLC",null,800186,null,57211,373350,"Wind","444 Bone Road",null,"Idaho Falls",83427,"Bonneville","ID","USA",null,null,null,null,null,null,null,null,0]
["CARB Non-historical","Harvest Wind",null,800188,null,57152,253242,"Wind","1135 Dot Rd",null,"Roosevelt",99356,"Klickitat","WA","USA",null,null,null,null,null,null,null,null,0]
["CARB Non-historical","Cedar Creek Wind",null,800190,null,56371,813126,"Wind","59550 CR 105",null,"Grover",80729,"Weld","CO","USA",null,null,null,null,null,null,null,null,0]
["CARB Non-historical","Peetz Table Wind Energy",null,800193,null,56563,548243,"Wind","9500 County Rd. 78",null,"Peetz",80747,"Logan","CO","USA",null,null,null,null,null,null,null,null,0]
["CARB Non-historical","Linden Wind Energy Project (aka Linden Ranch Wind Farm)",null,800194,null,57635,139555,"Wind","49 Carpool Court",null,"Goldendale",98620,"Klickitat","WA","USA",null,null,null,null,null,null,null,null,0]
["CARB Non-historical","Biglow Canyon Wind Farm (Phase 2)",null,810004,null,null,null,"Wind","96900 Herin Lane",null,"Wasco",97065,"Sherman","OR","USA",null,null,null,null,null,null,null,null,0]
["CARB Non-historical","Blackspring Ridge 1A Wind Project (CAN)",null,810005,null,null,1,"Wind",null,null,null,null,null,"Not applicable","Canada",null,null,null,null,null,null,null,null,0]
["CARB Non-historical","Blackspring Ridge 1B Wind Project (CAN)",null,810006,null,null,1,"Wind",null,null,null,null,null,"Not applicable","Canada",null,null,null,null,null,null,null,null,0]
["CARB Non-historical","Lower Snake River Wind Energy Project",null,810008,null,57195,833098,"Wind","39 Falling Springs Rd",null,"Pomeroy",99347,"Garfield","WA","USA",null,null,null,null,null,null,null,null,0]
["CARB Non-historical","Energía Sierra Juárez Wind Farm (MEX)",null,810011,null,null,1,"Wind",null,null,null,null,null,"Not applicable","Mexico",null,null,null,null,null,null,null,null,0]
["CARB Non-historical","Limon Wind I",null,810013,null,58126,711321,"Wind","22085 County Road 3P",null,"Limon",80828,"Lincoln","CO","USA",null,null,null,null,null,null,null,null,0]
["CARB Non-historical","Limon Wind II",null,810014,null,58127,602542,"Wind","22085 County Road 3P",null,"Limon",80828,"Lincoln","CO","USA",null,null,null,null,null,null,null,null,0]
["CARB Non-historical","Limon Wind III",null,810015,null,59083,798806,"Wind","21910 County Road 3P",null,"Limon",80858,"Lincoln","CO","USA",null,null,null,null,null,null,null,null,0]
["CARB Non-historical","Meikle Wind Energy Project (CAN)",null,810017,null,null,1,"Wind",null,null,null,null,null,"Not applicable","Canada",null,null,null,null,null,null,null,null,0]
["CARB Non-historical","Cedar Creek II",null,810100,null,57210,713611,"Wind","67125 CR 132",null,"New Raymer",80742,"Weld","CO","USA",null,null,null,null,null,null,null,null,0]
["CARB Non-historical","El Cabo Wind",null,810101,null,58098,1024430,"Wind","123 El Cabo Wind Road",null,"Encino",88321,"Torrance","NM","USA",null,null,null,null,null,null,null,null,0]
["CARB Non-historical","Perrin Ranch Wind",null,810105,null,58155,212667,"Wind","8410  Espee Road",null,"Williams",86046,"Coconino","AZ","USA",null,null,null,null,null,null,null,null,0]
["CARB Non-historical","Broadview Energy JN, LLC",null,810110,null,60145,730156,"Wind","498 State Road 19",null,"Texico",88135,"Curry","NM","USA",null,null,null,null,null,null,null,null,0]
["CARB Non-historical","Broadview Energy KW, LLC",null,810111,null,60152,582445,"Wind","498 State Road 19",null,"Texico",88135,"Curry","NM","USA",null,null,null,null,null,null,null,null,0]
["CARB Non-historical","Cedar Point Wind",null,810112,null,57315,726656,"Wind","63095 CR 21",null,"Limon",80828,"Lincoln","CO","USA",null,null,null,null,null,null,null,null,0]
["CARB Non-historical","Northern Colorado Wind I",null,810113,null,57290,403903,"Wind","9500 County Road 78",null,"Peetz",80747,"Logan","CO","USA",null,null,null,null,null,null,null,null,0]
["CARB Non-historical","Northern Colorado Wind II",null,810114,null,57290,403903,"Wind","9500 County Road 78",null,"Peetz",80747,"Logan","CO","USA",null,null,null,null,null,null,null,null,0]
["CARB Non-historical","Gila River Power Station - All Blocks",null,900001,1000097,null,8778013,"Natural Gas",null,null,null,null,null,"AZ","USA",null,null,null,null,null,null,null,null,0.41912841095131698]
["CARB Non-historical","Apache Generating Station",null,900009,1005949,160,1773342.9950000001,"Coal","3525 N US Hwy 191",null,"Cochise",85606,"Cochise","AZ","USA",null,null,null,null,null,null,null,null,0.81257267999640403]
["CARB Non-historical","Yucca",null,900015,1001424,120,456777.005,"Natural Gas","7522 South Somerton Ave.",null,"Yuma",85364,"Yuma","AZ","USA",null,null,null,null,null,null,null,null,0.671092013486975]
["CARB Non-historical","Four Corners Power Plant",null,900016,1007245,2442,7508844.9519999996,"Coal","End of County Rd 6675",null,"Fruitland",87416,"San Juan","NM","USA",null,null,null,null,null,null,null,null,1.02767353558747]
["CARB Non-historical","Red Hawk Power Station CC Natural Gas",null,900018,1000822,55455,3591886,"Natural Gas","11600 South 363 rd Ave.",null,"Arlington",85322,"Maricopa","AZ","USA",null,null,null,null,null,null,null,null,0.444553323797025]
["CARB Non-historical","Longview Washington Pulp and Paper Mill",null,900019,null,54562,264084.00199999998,"Biomass","300 Fibre Way",null,"Longview",98632,"Cowlitz","WA","USA",null,null,null,null,null,null,null,null,0.54245099424926102]
["CARB Non-historical","Sierra Pacific Burlington",null,900020,null,56406,153153,"Biomass","14654 Ovenell Rd",null,"Mt Vernon",98273,"Skagit","WA","USA",null,null,null,null,null,null,null,null,0.436033001873943]
["CARB Non-historical","Kettle Falls Woodwaste Plant",null,900021,null,550,345053.99599999998,"Biomass","1151 Hyw. 395 N.",null,"Kettle Falls",99141,"Stevens","WA","USA",null,null,null,null,null,null,null,null,1.3778322903815901]
["CARB Non-historical","Seneca Sustainable Energy",null,900023,null,57457,118640,"Biomass","29650 E Enid Road",null,"Eugene",97440,"Lane","OR","USA",null,null,null,null,null,null,null,null,0.98494000974376295]
["CARB Non-historical","Centennial Hardin (MT)",null,900027,1000157,55749,147377.997,"Coal","Rt 1 Bx 1144A Sugar Factory Rd",null,"Hardin",59034,"Big Horn","MT","USA",null,null,null,null,null,null,null,null,1.41431458048653]
["CARB Non-historical","Beowawe Power",null,900033,null,10287,99494,"Geothermal (Closed System)","1000 Power Plant Place",null,"Beowawe",89821,"Lander","NV","USA",null,null,null,null,null,null,null,null,6.22352297625988E-2]
["CARB Non-historical","Steamboat Hills Geothermal",null,900034,null,50654,96080,"Geothermal (Closed System)","20590 Wedge Parkway",null,"Reno",89521,"Washoe","NV","USA",null,null,null,null,null,null,null,null,3.7762228975853497E-2]
["CARB Non-historical","Steamboat II",null,900040,null,54665,53906,"Geothermal (Closed System)","1010 Power Plant Dr",null,"Reno",89521,"Washoe","NV","USA",null,null,null,null,null,null,null,null,0]
["CARB Non-historical","Steamboat III",null,900041,null,54666,61746,"Geothermal (Closed System)","1010 Power Plant Dr",null,"Reno",89521,"Washoe","NV","USA",null,null,null,null,null,null,null,null,0]
["CARB Non-historical","Richard Burdette Power Plant",null,900045,null,56321,134394,"Geothermal (Closed System)","County Road #4162",null,"Reno",89521,"Washoe","NV","USA",null,null,null,null,null,null,null,null,0]
["CARB Non-historical","Galena 2 Geothermal Power Plant",null,900046,null,56540,31238,"Geothermal (Closed System)","20590 Wedge Parkway",null,"Reno",89511,"Washoe","NV","USA",null,null,null,null,null,null,null,null,0]
["CARB Non-historical","Galena 3 Geothermal Power Plant",null,900047,null,56541,129181,"Geothermal (Closed System)","1010 Power Plant Drive",null,"Reno",89521,"Washoe","NV","USA",null,null,null,null,null,null,null,null,0]
["CARB Non-historical","Trans-Jordan Generating Station (Landfill Gas)",null,900053,null,56853,38504,"Landfill Gas","10873 S Highway 111",null,"South Jordan",84095,"Salt Lake","UT","USA",null,null,null,null,null,null,null,null,1.2613765582796601]
["CARB Non-historical","Clark Station",null,900056,1000726,2322,881892,"Natural Gas","5640 Stephanie Street",null,"Las Vegas",89122,"Clark","NV","USA",null,null,null,null,null,null,null,null,0.55533986020963999]
["CARB Non-historical","Fort Churchill Station",null,900057,1007576,2330,479819,"Natural Gas","1000 Sierra Way",null,"Yerington",89447,"Lyon","NV","USA",null,null,null,null,null,null,null,null,0.637353752144038]
["CARB Non-historical","Frank Tracy Station",null,900058,1007549,2336,4382247,"Natural Gas","191 Wunotoo road",null,"Sparks",89434,"Storey","NV","USA",null,null,null,null,null,null,null,null,0.438694336489933]
["CARB Non-historical","Harry Allen Station",null,900059,1006804,7082,3666215,"Natural Gas","14601 North Las Vegas Blvd",null,"Las Vegas",89124,"Clark","NV","USA",null,null,null,null,null,null,null,null,0.39439402217273101]
["CARB Non-historical","South Point Energy Center, LLC",null,900061,1001350,55177,261151,"Natural Gas","3779 Courtwright Rd.",null,"Mohave Valley",86440,"Mohave","AZ","USA",null,null,null,null,null,null,null,null,0.42371149258474999]
["CARB Non-historical","Chuck Lenzie Station",null,900062,1000150,55322,6668436,"Natural Gas","11405 US Highway 93",null,"Apex",89124,"Clark","NV","USA",null,null,null,null,null,null,null,null,0.40220433996817301]
["CARB Non-historical","Hermiston Power, LLC",null,900063,1000788,55328,3644236,"Natural Gas","78910 Simplot Road",null,"Hermiston",97838,"Umatilla","OR","USA",null,null,null,null,null,null,null,null,0.39487017306233702]
["CARB Non-historical","West Valley Generation Project",null,900065,1000117,55622,215130,"Natural Gas","5935 West 4700 South",null,"West Valley City",84118,"Salt Lake","UT","USA",null,null,null,null,null,null,null,null,0.59104634407102696]
["CARB Non-historical","Silverhawk Station",null,900066,1000404,55841,1550076,"Natural Gas","15111 Apex Power Parkway",null,"North Las Vegas",89124,"Clark","NV","USA",null,null,null,null,null,null,null,null,0.40951573987340001]
["CARB Non-historical","Desert View Power",null,900070,null,10300,329771.00300000003,"Biomass","62-300 Gene Welmas Drive",null,"Mecca",92254,"Riverside","CA","USA",null,null,null,null,null,null,null,null,1.53043408035485]
["CARB Non-historical","Springerville Generating Station",null,900073,1001196,8223,9961839.9910000004,"Coal","County Road #4162",null,"Springerville",85938,"Apache","AZ","USA",null,null,null,null,null,null,null,null,0.98694613634454198]
["CARB Non-historical","Don A. Campbell (Wild Rose) Geothermal Plant",null,900076,null,58533,168039,"Geothermal (Closed System)","1132 Gabbs Valley Road",null,"Gabbs",89420,"Mineral","NV","USA",null,null,null,null,null,null,null,null,0]
["CARB Non-historical","Patua Geothermal",null,900077,null,58319,138046,"Geothermal (Closed System)","17388 Patua Road",null,"Hazen",89408,"Churchill","NV","USA",null,null,null,null,null,null,null,null,0]
["CARB Non-historical","Frederickson Power LP",null,900080,1000301,55818,709562,"Natural Gas","18610-50th Avenue East",null,"Tacoma",98446,"Pierce","WA","USA",null,null,null,null,null,null,null,null,0.38063368669686398]
["CARB Non-historical","Nebo Power Station",null,900106,null,56177,433490,"Natural Gas","State Road 115 & Bamberger Rd",null,"Payson",84651,"Utah","UT","USA",null,null,null,null,null,null,null,null,0.45994272340307701]
["CARB Non-historical","Mesquite Generating Station - All Blocks",null,900139,1000052,null,5792067,"Natural Gas",null,null,null,null,null,"AZ","USA",null,null,null,null,null,null,null,null,0.393890826884427]
["CARB Non-historical","Yuma Cogeneration Associates",null,900160,1009168,54694,41296,"Natural Gas","280 North 27th Drive",null,"Yuma",85364,"Yuma","AZ","USA",null,null,null,null,null,null,null,null,0.51112067643699799]
["CARB Non-historical","Griffith Energy, LLC",null,900177,1001326,55124,2071721,"Natural Gas","3375 West Navajo Drive",null,"Golden Valley",86413,"Mohave","AZ","USA",null,null,null,null,null,null,null,null,0.38977218457504598]
["CARB Non-historical","Judith Gap Wind Farm",null,900218,null,56377,429673,"Wind","1030 US Highway 191 N",null,"Harlowton",59036,"Wheatland","MT","USA",null,null,null,null,null,null,null,null,0]
["CARB Non-historical","Intermountain Power Project",null,900233,1005628,6481,8499300.0199999996,"Coal","850 Brush Wellman Rd.",null,"Delta",84624,"Millard","UT","USA",null,null,null,null,null,null,null,null,0.91847201259286804]
["CARB Non-historical","Arlington Valley Energy Facility-Natural Gas Combined Cycle",null,900234,1001399,55282,2120507,"Natural Gas","39027 W Elliot Road",null,"Arlington",85322,"Maricopa","AZ","USA",null,null,null,null,null,null,null,null,0.39228595802796201]
["CARB Non-historical","Desert Star Energy Center (formerly: Eldorado Energy)-Natural Gas Combined Cycle",null,900243,1001306,55077,1659922,"Natural Gas","701 El Dorado Valley Dr.",null,"Boulder City",89005,"Clark","NV","USA",null,null,null,null,null,null,null,null,0.41089158406238402]
["CARB Non-historical","Apex Generating Station-Natural Gas Combined Cycle",null,900247,1000068,55514,2301347,"Natural Gas","15555 Apex Power Parkway",null,"Las Vegas",89165,"Clark","NV","USA",null,null,null,null,null,null,null,null,0.37314865598277902]
["CARB Non-historical","Higgins Generating Station",null,900275,1000278,55687,2180351,"Natural Gas","1275 E Primm Blvd.",null,"Primm",89019,"Clark","NV","USA",null,null,null,null,null,null,null,null,0.42053348291169601]
["CARB Non-historical","Boardman Power Plant",null,900307,1007940,6106,1285499.9739999999,"Coal","73334 Tower Rd",null,"Boardman",97818,"Morrow","OR","USA",null,null,null,null,null,null,null,null,1.1769524781025]
["CARB Non-historical","San Juan",null,900352,1006727,2451,4674248.0389999999,"Coal","6800 County Road North",null,"Waterflow",87421,"San Juan","NM","USA",null,null,null,null,null,null,null,null,1.1662211685210899]
["CARB Non-historical","River Road generating plant (Clark County PUD)",null,900360,null,null,null,"Natural gas","5201 N W Lower River Road",null,"Vancouver",98660,"Clark","WA","USA",null,null,null,null,null,null,null,null,0.397642261561372]
["CARB Non-historical","Navajo Generating Station",null,900401,1000999,4941,13017436.932,"Coal","P.O. Box 850",null,"Page",86040,"Coconino","AZ","USA",null,null,null,null,null,null,null,null,1.07217851969694]
["CARB Non-historical","Transalta Centralia Generation",null,900456,null,null,null,"Coal","913 Big Hanaford Rd.",null,"Centralia",98531,"Lewis","WA","USA",null,null,null,null,null,null,null,null,1.1359999999999999]
["CARB Non-historical","H. Wilson Sundt Generating Station (formerly Irvington Generating Station)",null,900468,1001425,126,1412423,"Coal","3950 E Irvington Road",null,"Tucson",85714,"Pima","AZ","USA",null,null,null,null,null,null,null,null,0.62439754237930101]
["CARB Non-historical","Weyerhaeuser Longview WA",null,900547,null,50187,294260.80200000003,"Biomass","3401 Industrial Way",null,"Longview",98632,"Cowlitz","WA","USA",null,null,null,null,null,null,null,null,0.47898683903197797]
["CARB Non-historical","Terra-Gen Dixie Valley",null,900571,null,52015,495757,"Geothermal (Open System)","#1 Dixie Valley Rd",null,"Fallon",89406,"Churchill","NV","USA",null,null,null,null,null,null,null,null,6.6187028766109199E-2]
["CARB Non-historical","Termoelectrica de Mexicali (MEX)",null,900576,null,null,3698100,"Natural Gas",null,null,null,null,null,"Not applicable","Mexico",null,null,null,null,null,null,null,null,0.38318296855141798]
["CARB Non-historical","Thermo No. 1 Geothermal (Raser Technologies)",null,900577,null,57353,64926,"Geothermal (Closed System)","7966 West Southside Rd",null,"Milford",84751,"Beaver","UT","USA",null,null,null,null,null,null,null,null,0]
["CARB Non-historical","WestRock - Tacoma (formerly: Simpson Biomass)",null,900586,null,57099,310246.00400000002,"Biomass","801 East Portland Ave",null,"Tacoma",98421,"Pierce","WA","USA",null,null,null,null,null,null,null,null,1.14078370301646]
["CARB Non-historical","La Rosita Power Project (MEX)",null,901631,null,null,1468550.12,"Natural Gas",null,null,null,null,null,"Not applicable","Mexico",null,null,null,null,null,null,null,null,0.41614111310832202]
["CARB Non-historical","Clearwater Paper Corp. - Lewiston",null,905578,null,50637,368461.99900000001,"Biomass","803 Mill Rd",null,"Lewiston",83501,"Nez Perce","ID","USA",null,null,null,null,null,null,null,null,0.44145936027288701]
["CARB Non-historical","Gila River Power Station - Block 1",null,910004,1000097,null,1493158,"Natural Gas","1250 East Watermelon Street",null,"Gila Bend",85337,"Maricopa","AZ","USA",null,null,null,null,null,null,null,null,0.420924845984958]
["CARB Non-historical","Gila River Power Station - Block 3",null,910005,1000097,null,2585917,"Natural Gas","1250 East Watermelon Road",null,"Gila Bend",85337,"Maricopa","AZ","USA",null,null,null,null,null,null,null,null,0.42544212636648798]
["CARB Non-historical","Mesquite Generating Station - Block 1",null,910006,1000052,null,2315402,"Natural Gas","37625 W. Elliot Rd",null,"Arlington",85322,"Maricopa","AZ","USA",null,null,null,null,null,null,null,null,0.40365436263350202]
["CARB Non-historical","Gila River Power Station - Block 4",null,910007,1000097,null,2450933,"Natural Gas","1250 East Watermelon Road",null,"Gila Bend",85337,"Maricopa","AZ","USA",null,null,null,null,null,null,null,null,0.42088203836645]
["CARB Non-historical","Mesquite Generating Station - Block 2",null,910008,1000052,null,3476665,"Natural Gas","37625 W. Elliot Rd",null,"Arlington",85322,"Maricopa","AZ","USA",null,null,null,null,null,null,null,null,0.38738838043096102]
["CARB Non-historical","CSE Arizona Facility",null,910019,null,null,1,"Digester Gas",null,null,null,null,null,"AZ","USA",null,null,null,null,null,null,null,null,0.59548244230352898]
["CARB Non-historical","Don A. Campbell (Phase 2) Geothermal Plant",null,910020,null,60419,158933,"Geothermal","1132 Gabbs Valley Road",null,"Luning",89420,"Mineral","NV","USA",null,null,null,null,null,null,null,null,0]
["CARB Non-historical","Las Vegas Generating Station",null,910031,1000595,10761,346071,"Natural Gas","1701 E Alexander RD",null,"North Las Vegas",89030,"Clark","NV","USA",null,null,null,null,null,null,null,null,0.46050116883529701]
["CARB Non-historical","Stotz Southern Generation",null,910041,null,null,1,"Digester Gas",null,null,null,null,null,"AZ","USA",null,null,null,null,null,null,null,null,0.59548244230352898]
["CARB Non-historical","Sun Peak Generating Station",null,910042,1011465,54854,31152,"Natural Gas","6360 Vegas Valley Drive",null,"Las Vegas",89142,"Clark","NV","USA",null,null,null,null,null,null,null,null,0.72155303030302997]
["CARB Non-historical","Encogen Generating Station",null,910046,1006502,7870,200543,"Natural Gas","915 Cornwall Ave",null,"Bellingham",98225,"Whatcom","WA","USA",null,null,null,null,null,null,null,null,0.48093416374543102]
["CARB Non-historical","Ferndale Generating Station",null,910047,1000001,54537,660733.00600000005,"Natural Gas","5105 Lake Terrell Road",null,"Ferndale",98248,"Whatcom","WA","USA",null,null,null,null,null,null,null,null,0.411596994646239]
["CARB Non-historical","Frederickson PSE",null,910048,1004175,99,29871,"Natural Gas","4714 192nd St East",null,"Tacoma",98446,"Pierce","WA","USA",null,null,null,null,null,null,null,null,1.3726172541930299]
["CARB Non-historical","Fredonia Generating Station",null,910049,1004066,607,129254.003,"Natural Gas","13085 Ball Road",null,"Mt Vernon",98233,"Skagit","WA","USA",null,null,null,null,null,null,null,null,0.7849683386595]
["CARB Non-historical","Goldendale Generating Station",null,910050,1001436,55482,1091228,"Natural Gas","600 Industrial Way",null,"Goldendale",98620,"Klickitat","WA","USA",null,null,null,null,null,null,null,null,0.39009471897715198]
["CARB Non-historical","Mint Farm Generation Station",null,910051,1001435,55700,1363352,"Natural Gas","1200 Prudential Blvd",null,"Longview",98632,"Cowlitz","WA","USA",null,null,null,null,null,null,null,null,0.401867749488027]
["CARB Non-historical","Sumas Power Plant",null,910053,1004367,54476,272946,"Natural Gas","1340 Thompson Lane",null,"Sumas",98295,"Whatcom","WA","USA",null,null,null,null,null,null,null,null,0.44875620352988499]
["CARB Non-historical","Whitehorn Generating Station",null,910054,1004176,6120,28556,"Natural Gas","4930 Brown Rd",null,"Blaine",98230,"Whatcom","WA","USA",null,null,null,null,null,null,null,null,1.5593318391931601]
["CARB Non-historical","Heber Geothermal",null,910106,null,54689,312351,"Geothermal","895 Pitzer Road",null,"Heber",92249,"Imperial","CA","USA",null,null,null,null,null,null,null,null,5.3933117838585398E-2]
["CARB Non-historical","MCAS Yuma Microgrid MCGX02",null,910108,null,null,1,"Diesel",null,null,null,null,null,"AZ","USA",null,null,null,null,null,null,null,null,0.80380627590866705]
["CARB Non-historical","Tungsten Mountain Geothermal Energy Facility",null,910112,null,60785,212991,"Geothermal","17017 Alpine Road West",null,"Fallon",89406,"Churchill","NV","USA",null,null,null,null,null,null,null,null,0]
["CARB Non-historical","Veyo Heat Recovery Project",null,910113,null,60421,53104,"Waste heat","145 W. 1400 N",null,"Gunlock",84733,"Washington","UT","USA",null,null,null,null,null,null,null,null,0]
["CARB Non-historical","Aligned Microgrid",null,910114,null,null,1,"Diesel",null,null,null,null,null,"AZ","USA",null,null,null,null,null,null,null,null,0.80380627590866705]
["CARB Non-historical","Loyalton Biomass Cogeneration (ARP)",null,910115,null,50111,45591,"Biomass","100 Railroad Ave",null,"Loyalton",96118,"Sierra","CA","USA",null,null,null,null,null,null,null,null,1.5971849602333801]
["CARB Non-historical","Magnolia Power Project",null,910116,1000457,56046,1531144,"Natural Gas","110 West Magnolia Boulevard",null,"Burbank",91502,"Los Angeles","CA","USA",null,null,null,null,null,null,null,null,0.39712420255704201]
["CARB Non-historical","McGinness Hills 3 Geothermal Energy Facility",null,910117,null,57446,737853,"Geothermal","1350 Grass Valley Road",null,"Austin",89310,"Lander","NV","USA",null,null,null,null,null,null,null,null,0]
["CARB Non-historical","Ocotillo",null,910118,1007299,116,270760,"Natural Gas","1500 East University",null,"Tempe",85281,"Maricopa","AZ","USA",null,null,null,null,null,null,null,null,0.74950746048160699]
["CARB Non-historical","Saguaro",null,910119,1001423,118,109365,"Natural Gas","Mail Post 228",null,"Red Rock",85245,"Pinal","AZ","USA",null,null,null,null,null,null,null,null,0.737427147624926]
["CARB Non-historical","Sundance",null,910120,1000237,55522,364133,"Natural Gas","2060 Sundance Road",null,"Casa Grande",85228,"Pinal","AZ","USA",null,null,null,null,null,null,null,null,0.62986502184641302]
["CARB Non-historical","West Phoenix",null,910121,1001422,117,2984982,"Natural Gas","4606 West Hadley",null,"Phoenix",85043,"Maricopa","AZ","USA",null,null,null,null,null,null,null,null,0.46616681775635499]
["CARB Non-historical","Kings Beach",null,910122,null,6518,274,"Diesel","N. End of Deer St.",null,"Kings Beach",96143,"Placer","CA","USA",null,null,null,null,null,null,null,null,0.918404083941606]
["CARB Non-historical","Agua Fria Generating Station",null,910124,1007206,141,148612,"Natural Gas","7302 W Northern Ave",null,"Glendale",85303,"Maricopa","AZ","USA",null,null,null,null,null,null,null,null,0.69636530024493304]
["CARB Non-historical","Coolidge Generation Station",null,910125,1007962,56948,155333.92000000001,"Natural Gas","859 E. Randolph Rd.",null,"Coolidge",85228,"Pinal","AZ","USA",null,null,null,null,null,null,null,null,0.54197396164340705]
["CARB Non-historical","Coronado Generating Station",null,910126,1007103,6177,3597872.048,"Coal","Hwy 191 7 miles nof  St. Johns",null,"St Johns",85936,"Apache","AZ","USA",null,null,null,null,null,null,null,null,1.1648981576011801]
["CARB Non-historical","Desert Basin Generating Station",null,910127,1001329,55129,2335543,"Natural Gas","1872 N. Burris Rd.",null,"Casa Grande",85193,"Pinal","AZ","USA",null,null,null,null,null,null,null,null,0.42639784409878101]
["CARB Non-historical","Gila River Power Station - Block 2",null,910128,1000097,null,2248005,"Natural Gas","1250 East Watermelon Street",null,"Gila Bend",85337,"Maricopa","AZ","USA",null,null,null,null,null,null,null,null,0.40876062117956402]
["CARB Non-historical","Kyrene Generating Station",null,910129,1000241,147,853210,"Natural Gas","7005 S Kyrene Rd.",null,"Tempe",85283,"Maricopa","AZ","USA",null,null,null,null,null,null,null,null,0.388051077694823]
["CARB Non-historical","Santan Generating Station",null,910130,1000250,8068,3752533,"Natural Gas","1005 S. Val Vista Drive",null,"Gilbert",85296,"Maricopa","AZ","USA",null,null,null,null,null,null,null,null,0.41204725448117302]
["CARB Non-historical","Box Canyon Dam (WA)",null,910311,null,3891,441606,"Hydro",null,null,null,null,null,"WA","USA",null,null,null,null,null,null,null,null,0]
["CARB Non-historical","Colgate Powerhouse",null,910312,null,454,1090613,"Hydro",null,null,null,null,null,"CA","USA",null,null,null,null,null,null,null,null,0]
["CARB Non-historical","Collierville Hydro",null,910313,null,54555,365578,"Hydro",null,null,null,null,null,"CA","USA",null,null,null,null,null,null,null,null,0]
["CARB Non-historical","Donnells Hydro",null,910314,null,415,129198,"Hydro",null,null,null,null,null,"CA","USA",null,null,null,null,null,null,null,null,0]
["CARB Non-historical","Grady Wind Energy Center, LLC",null,910315,null,null,1,"Wind",null,null,null,null,null,"NM","USA",null,null,null,null,null,null,null,null,0]
["CARB Non-historical","Grand View 5 East",null,910316,null,null,1,"Solar",null,null,null,null,null,"ID","USA",null,null,null,null,null,null,null,null,0]
["CARB Non-historical","Middle Fork Hydro",null,910317,null,425,451504,"Hydro",null,null,null,null,null,"CA","USA",null,null,null,null,null,null,null,null,0]
["CARB Non-historical","Moose Lake Wind Project",null,910319,null,null,1,"Wind",null,null,null,null,null,"Not applicable","Canada",null,null,null,null,null,null,null,null,0]
["CARB Non-historical","Narrows 2 Powerhouse",null,910320,null,455,191540,"Hydro",null,null,null,null,null,"CA","USA",null,null,null,null,null,null,null,null,0]
["CARB Non-historical","Narrows PH",null,910321,null,262,22883,"Hydro",null,null,null,null,null,"CA","USA",null,null,null,null,null,null,null,null,0]
["CARB Non-historical","Ralston Hydro",null,910323,null,427,324725,"Hydro",null,null,null,null,null,"CA","USA",null,null,null,null,null,null,null,null,0]
["CARB Non-historical","Smith Falls Hydro Project",null,910327,null,54249,56031,"Hydro",null,null,null,null,null,"ID","USA",null,null,null,null,null,null,null,null,0]
["CARB Non-historical","Stillwater Wind",null,910328,null,61858,70093,"Wind",null,null,null,null,null,"MT","USA",null,null,null,null,null,null,null,null,0]
["CARB Non-historical","TS Power Plant",null,910329,1000446,56224,1045366.9570000001,"Coal",null,null,null,null,null,"NV","USA",null,null,null,null,null,null,null,null,1.0306161322449401]
["CARB Non-historical","Turquoise Liberty Solar - Phase 1",null,910330,null,null,1,"Solar",null,null,null,null,null,"NV","USA",null,null,null,null,null,null,null,null,0]
["CARB Non-historical","Voyager Wind II",null,910331,null,61582,12868,"Wind",null,null,null,null,null,"CA","USA",null,null,null,null,null,null,null,null,0]
["Historical","Tacoma Power","112402",104567,null,null,1,"Various",null,null,null,null,null,"Multiple","Undefined",null,null,null,null,0,0,0,0,0,null,null,null,null,null,"CARB listed as ACS"]
["Historical","Bonneville Power Administration","112400",300001,null,null,1,"Various",null,null,null,null,null,"multiple","Undefined",null,null,null,null,1.464E-2,1.163E-2,8.9428430359435804E-3,1.1738965534313601E-2,2.0384619999999999E-2]
["Historical","Powerex ","112401",300002,null,null,1,"Various",null,null,null,null,null,"Multiple","Undefined",null,null,null,null,0,0,0,0,0,null,null,null,null,null,"This CARB ID is listed as an ACS"]
["Historical","Lake Chelan Hydroelectric Facility","111500",500040,null,6424,null,"Hydro","Chelan Hydro",null,"Wenatchee",98801,"Chelan","WA","USA",null,null,null,null,0,0,0,0,0]
["Historical","Mid-C Hydro - Priest Rapids and Wanapum dams (Grant County PUD)","111501",500054,null,3887,null,"Hydro","29086 Highway 243 South",null,"Mattawa",99349,"Grant","WA","USA",null,null,null,null,0,0,0,0,0,null,null,null,null,null,"This was just Priest Rapids in the spreadsheet"]
["Historical","Mid-C Hydro - Rocky Reach (Chelan County PUD)","111502",500055,null,3883,null,"Hydro","Rocky Reach Dam",null,"Wenatchee",98801,"Chelan","WA","USA",null,null,null,null,0,0,0,0,0]
["Historical","Pelton Round Butte","111503",510106,null,3048,null,"Hydro","4133 NW Pelton Dam Rd",null,"Madras",97741,"Jefferson","OR","USA",null,null,null,null,0,0,0,0,0]
["Historical","Gala Solar (Solar Star Oregan II)","112100",710104,null,null,null,"Solar","12515 SW Millican Road",null,"Prineville",97754,"Crook","OR","USA",null,null,null,null,0,0,0,0,0]
["Historical","Juniper Canyon Wind","113004",800011,null,null,null,"Wind","1050 East Rd",null,"Bickleton",99322,"Klickitat","WA","USA",null,null,null,null,0,0,0,0,0]
["Historical","Klondike Windpower III","113006",800029,null,56468,null,"Wind","99436 Klondike Lane",null,"Wasco",97065,"Sherman","OR","USA",null,null,null,null,0,0,0,0,0]
["Historical","Elkhorn Valley Wind Farm","113003",800050,null,null,null,"Wind","53777 OR Highway 237",null,"Union",97883,"Union","OR","USA",null,null,null,null,0,0,0,0,0]
["Historical","Klondike Windpower II","113005",800051,null,null,null,"Wind","98435 Klondike Lane",null,"Wasco",97065,"Sherman","OR","USA",null,null,null,null,0,0,0,0,0]
["Historical","Big Horn PPM-Wind Power Project",113001,800177,null,56361,null,"Wind","1 Big Horn Rd",null,"Bickleton",99322,"Klickitat","WA","USA",null,null,null,null,0,0,0,0,0]
["Historical","Leaning Juniper II","113008",800178,null,57333,null,"Wind","72766 Rattlesnake Road",null,"Arlington",97812,"Gilliam","OR","USA",null,null,null,null,0,0,0,0,0]
["Historical","Big Horn II-Wind",113000,800180,null,null,null,"Wind","300 Big Horn Road",null,"Bickleton",99322,"Klickitat","WA","USA",null,null,null,null,0,0,0,0,0]
["Historical","Biglow Canyon Wind Farm (Phase 3)",113002,810003,null,56485,null,"Wind","96900 Herin Lane",null,"Wasco",97065,"Sherman","OR","USA",null,null,null,null,0,0,0,0,0]
["Historical","Tucannon River Wind Farm","113010",810016,null,58571,null,"Wind","100 Blue Norther Lane",null,"Dayton",99328,"Columbia","WA","USA",null,null,null,null,0,0,0,0,0]
["Historical","North Valmy Station","110702",900025,1001197,8224,null,"Coal (Subbituminous)","I 80 Stonehouse Exit",null,"Valmy",89438,"Humboldt","NV","USA",null,null,null,null,1.0189999999999999,1.0249999999999999,1.0940000000000001,1.0229999999999999,1.0009999999999999]
["Historical","Grays Harbor Energy","111805",900060,1000207,7999,null,"Natural Gas","401 Keys Road",null,"Elma",98541,"Grays Harbor","WA","USA",null,null,null,null,0.40400000000000003,0.41799999999999998,0.41799999999999998,0.41799999999999998,0.41799999999999998]
["Historical","Neal Hot Springs Geothermal Plant","111400",900078,null,58022,null,"Geothermal (Open System)","2801 Bully Creek Road",null,"Vale",97918,"Malheur","OR","USA",null,null,null,null,0,0,0,0,0]
["Historical","Klamath Falls Cogeneration","111807",900276,1001314,55103,null,"Natural Gas","4940 Hwy 97 South",null,"Klamath Falls",97603,"Klamath","OR","USA",null,null,null,null,null,null,0.4269,0.4284,0.41099999999999998]
["Historical","Beaver",111800,910100,1002488,8073,null,"Natural Gas","80997 Kallunki Rd",null,"Clatskanie",97016,"Columbia","OR","USA",null,null,null,null,null,0.51600000000000001,0.54800000000000004,{"$f":"'[5]1. Generated'!$F$26","v":0.52600000000000002},0.55000000000000004]
["Historical","Bennett Mountain Power",111801,910101,1000244,55733,null,"Natural Gas","2750 NE Industrial Way",null,"Mountain Home",83647,"Elmore","ID","USA",null,null,null,null,0.57799999999999996,0.57699999999999996,0.59299999999999997,0.59699999999999998,0.58499999999999996]
["Historical","Carty Generating Station","111802",910102,1012606,58503,null,"Natural Gas","73396 Tower Road",null,"Boardman",97818,"Morrow","OR","USA",null,null,null,null,null,0.38900000000000001,0.372,{"$f":"'[5]1. Generated'!$F$29","v":0.375},0.38900000000000001]
["Historical","Coyote Springs I","111803",910103,1001119,7350,null,"Natural Gas","200 Ullman Blvd",null,"Boardman",97818,"Morrow","OR","USA",null,null,null,null,null,0.374,0.37,{"$f":"'[5]1. Generated'!$F$28","v":0.36199999999999999},0.37]
["Historical","Evander Andrews Power Complex","111804",910104,1000120,7953,null,"Natural Gas","1862 NW Mashburn Road",null,"Mountain Home",83647,"Elmore","ID","USA",null,null,null,null,0.57399999999999995,0.57799999999999996,0.59499999999999997,0.58399999999999996,0.59]
["Historical","Langley Gulch Power Plant","111808",910107,1007379,57028,null,"Natural Gas","Interstate 84 and Highway 30",null,"New Plymouth",83655,"Payette","ID","USA",null,null,null,null,0.372,0.379,0.374,0.3745,0.376]
["Historical","Port Westward 1","111809",910110,1000455,56227,null,"Natural Gas","81566 Kallunki Rd",null,"Clatskanie",97016,"Columbia","OR","USA",null,null,null,null,null,0.36699999999999999,0.36899999999999999,{"$f":"'[5]1. Generated'!$F$27","v":0.373},0.376]
["Historical","Port Westward 2","111810",910111,1000455,58266,null,"Natural Gas","81566 Kallunki Rd",null,"Clatskanie",97016,"Columbia","OR","USA",null,null,null,null,null,0.61699999999999999,0.70599999999999996,{"$f":"'[5]1. Generated'!$F$31","v":0.55500000000000005},0.51800000000000002]
["Historical","Montague Wind Power Facility","113009",910318,null,null,null,"Wind",null,null,null,null,null,"OR","USA",null,null,null,null,0,0,0,0,0]
["Historical","Unspecified Purchase",102400,999999,null,null,null,"Unspecified",null,null,null,null,null,"Undefined","Undefined",null,null,null,null,0.48699999999999999,0.40600000000000003,0.34599999999999997,0.42799999999999999,0.42799999999999999]
["Historical","Lochmead","100200",null,null,null,null,"Biomass Gas",null,null,null,null,null,"OR","USA",null,null,null,null,0,0,0,0,0]
["Historical","Farm Power Tillamook LLC","100201",null,null,null,null,"Biomass Gas",null,null,null,null,null,"OR","USA",null,null,null,null,0,0,0,0,0]
["Historical","Default - Coal (Bituminous)","100500",null,null,null,null,"Coal (Bituminous)",null,null,null,null,null,"Undefined","Undefined",null,null,null,null,0.98599999999999999,0.98599999999999999,0.98599999999999999,0.98599999999999999,0.98599999999999999]
["Historical","Default - Coal (Subbituminous)","100700",null,null,null,null,"Coal (Subbituminous)",null,null,null,null,null,"Undefined","Undefined",null,null,null,null,1.0269999999999999,1.0269999999999999,1.0269999999999999,1.0269999999999999,1.0269999999999999]
["Historical","Salmon Diesel","101000",null,null,null,null,"Distillate Fuel Oil No. 2",null,null,null,null,null,"ID","USA",null,null,null,null,1.0780000000000001,0.92,0.88800000000000001,0.89600000000000002,0.83199999999999996]
["Historical","Paisley Geothermal","101300",null,null,null,null,"Geothermal (closed system)",null,null,null,null,null,"OR","USA",null,null,null,null,0,0,0,0,0]
["Historical","Raft River","101301",null,null,null,null,"Geothermal (closed system)",null,null,null,null,null,"ID","USA",null,null,null,null,0,0,0,0,0]
["Historical","Carmen-Smith Hydroelectric Project","101500",null,null,null,null,"Hydro",null,null,null,null,null,"OR","USA",null,null,null,null,0,0,0,0,0]
["Historical","Grant County PUD","101501",null,null,null,null,"Hydro",null,null,null,null,null,"WA","USA",null,null,null,null,0,0,0,0,0,null,null,null,null,null,"Grant County listed separately and also as part of Mid-C; N Wasco Hydro"]
["Historical","Leaburg Hydro","101502",null,null,null,null,"Hydro",null,null,null,null,null,"OR","USA",null,null,null,null,0,0,0,0,0]
["Historical","Macquarie","101503",null,null,null,null,"Hydro",null,null,null,null,null,"multiple","Undefined",null,null,null,null,0,0,0,0,0]
["Historical","McNary Dam Fishway","101504",null,null,null,null,"Hydro",null,null,null,null,null,"WA","USA",null,null,null,null,0,0,0,0,0]
["Historical","North Fork","101505",null,null,null,null,"Hydro",null,null,null,null,null,"OR","USA",null,null,null,null,0,0,0,0,0]
["Historical","Northern Wasco PUD","101506",null,null,null,null,"Hydro",null,null,null,null,null,"multiple","Undefined",null,null,null,null,0,0,0,0,0]
["Historical","Oak Grove","101507",null,null,null,null,"Hydro",null,null,null,null,null,"OR","USA",null,null,null,null,0,0,0,0,0]
["Historical","PGE Faraday Dam","101508",null,null,null,null,"Hydro",null,null,null,null,null,"OR","USA",null,null,null,null,0,0,0,0,0]
["Historical","Portland Hydro","101509",null,null,null,null,"Hydro",null,null,null,null,null,"OR","USA",null,null,null,null,0,0,0,0,0]
["Historical","River Mill","101510",null,null,null,null,"Hydro",null,null,null,null,null,"OR","USA",null,null,null,null,0,0,0,0,0]
["Historical","Shell Energy","101511",null,null,null,null,"Hydro",null,null,null,null,null,"multiple","Undefined",null,null,null,null,0,0,0,0,0]
["Historical","Smith Creek Hydro","101512",null,null,null,null,"Hydro",null,null,null,null,null,"ID","USA",null,null,null,null,0,0,0,0,0]
["Historical","Stone Creek Hydro","101513",null,null,null,null,"Hydro",null,null,null,null,null,"OR","USA",null,null,null,null,0,0,0,0,0]
["Historical","Sullivan Hydro","101514",null,null,null,null,"Hydro",null,null,null,null,null,"OR","USA",null,null,null,null,0,0,0,0,0]
["Historical","The Dalles North Shore Fishway Project ","101515",null,null,null,null,"Hydro",null,null,null,null,null,"WA","USA",null,null,null,null,0,0,0,0,0]
["Historical","Tiber Dam","101516",null,null,null,null,"Hydro",null,null,null,null,null,"MT","USA",null,null,null,null,0,0,0,0,0]
["Historical","Trailbridge Hydro","101517",null,null,null,null,"Hydro",null,null,null,null,null,"OR","USA",null,null,null,null,0,0,0,0,0]
["Historical","Walterville Hydro","101518",null,null,null,null,"Hydro",null,null,null,null,null,"OR","USA",null,null,null,null,0,0,0,0,0]
["Historical","Columbia Ridge Landfill","101600",null,null,null,null,"Landfill gas",null,null,null,null,null,"OR","USA",null,null,null,null,0,0,0,0,0]
["Historical","Short Mountain","101601",null,null,null,null,"Landfill gas",null,null,null,null,null,"OR","USA",null,null,null,null,2.5600000000000002E-3,2.5600000000000002E-3,2.5600000000000002E-3,2.5600000000000002E-3,2.5600000000000002E-3,0.50790000000000002,0.50790000000000002,0.50790000000000002,0.50790000000000002,0.50790000000000002]
["Historical","Default - Natural Gas","101800",null,null,null,null,"Natural Gas",null,null,null,null,null,"Undefined","Undefined",null,null,null,null,0.41799999999999998,0.41799999999999998,0.41799999999999998,0.41799999999999998,0.41799999999999998]
["Historical","International Paper Cogeneration - NG","101801",null,null,null,null,"Natural Gas",null,null,null,null,null,"OR","USA",null,null,null,null,0.25,0.25,0.25,0.25,0.25]
["Historical","Loki","101802",null,null,null,null,"Natural Gas",null,null,null,null,null,"OR","USA",null,null,null,null,null,4.5017870110846047E-3,0.41799999999999998,0.41799999999999998,null,null,null,null,null,null,"This is owned by Clatskanie PUD - should I list out separately?"]
["Historical","Shell Puget Sound Refinery","101803",null,null,null,null,"Natural Gas",null,null,null,null,null,"WA","USA",null,null,null,null,0.61499999999999999]
["Historical","University of Oregon ","101804",null,null,null,null,"Natural Gas",null,null,null,null,null,"OR","USA",null,null,null,null,0.41799999999999998,0.41799999999999998,0.41799999999999998,0.41799999999999998,0.41799999999999998]
["Historical","Wauna Cogeneration Project (Exchange) - NG","101805",null,null,null,null,"Natural Gas",null,null,null,null,null,"OR","USA",null,null,null,null,0.41799999999999998,0.41799999999999998,0.41799999999999998,0.41799999999999998,0.41799999999999998,null,null,null,null,null,"Is this the best way to handle co-gen?"]
["Historical","EWEB Customer Owned Solar","102100",null,null,null,null,"Solar",null,null,null,null,null,"OR","USA",null,null,null,null,0,0,0,0,0]
["Historical","Guaranty Chevrolet","102101",null,null,null,null,"Solar",null,null,null,null,null,"OR","USA",null,null,null,null,0,0,0,0,0]
["Historical","Lane Electric - King Estate","102102",null,null,null,null,"Solar",null,null,null,null,null,"OR","USA",null,null,null,null,0,0,0,0,0]
["Historical","Moyer Tolles - Umatilla","102103",null,null,null,null,"Solar",null,null,null,null,null,"OR","USA",null,null,null,null,0,0,0,0,0,null,null,null,null,null,"owned by Umatilla Electric Coop"]
["Historical","Oregon Solar","102104",null,null,null,null,"Solar",null,null,null,null,null,"OR","USA",null,null,null,null,0,0,0,0,0]
["Historical","Sly Farms","102105",null,null,null,null,"Solar",null,null,null,null,null,"OR","USA",null,null,null,null,0,0,0,0,0]
["Historical","International Paper Cogeneration - waste","102600",null,null,null,null,"Waste (black liquor)",null,null,null,null,null,"OR","USA",null,null,null,null,0,0,0,0,0,null,null,null,null,null,"Is this the best way to handle this? Units versus facility?"]
["Historical","Wauna Cogeneration Project (Exchange) -other","102601",null,null,null,null,"Waste (black liquor)",null,null,null,null,null,"OR","USA",null,null,null,null,0,0,0,0,0,null,null,null,null,null,"This may require a new EF - other black liquor"]
["Historical","Covanta","102700",null,null,null,null,"Waste (municipal solid)",null,null,null,null,null,"OR","USA",null,null,null,null,0.46400000000000002,0.46400000000000002,0.46400000000000002,0.46400000000000002,0.46400000000000002]
["Historical","Simplot - Pocatello","102800",null,null,null,null,"Waste (Sulfur)",null,null,null,null,null,"ID","USA",null,null,null,null,0,0,0,0,0,null,null,null,null,null,"This may require a new EF, based on fuel type"]
["Historical","Foote Creek Wind","103000",null,null,null,null,"Wind",null,null,null,null,null,"WY","USA",null,null,null,null,0,0,0,0,0]
["Historical","Horseshoe Bend Wind","103001",null,null,null,null,"Wind",null,null,null,null,null,"MT","USA",null,null,null,null,0,0,0,0,0]
["Historical","Tamarack","113100",null,null,null,null,"Wood and Wood residuals",null,null,null,null,null,"ID","USA",null,null,null,null,0,0,0,0,0,null,null,null,null,null,"This may require a new EF, based on fuel type"]
["Historical","Wauna Cogeneration Project (Exchange) - Wood","113101",null,null,null,null,"Wood and Wood residuals",null,null,null,null,null,"OR","USA",null,null,null,null,0,0,0,0,0]
["Historical (Pacificorp)","Oregon Institute of Technology","111300",400001,null,null,1,"Geothermal (Closed System)","",null,"",null,"","OR","USA"]
["Historical (Pacificorp)","Swift No.2 Hydroelectric Project (Cowlitz PUD)","111505",500045,null,6265,1,"Hydro","Hwy 503, 2 Mi E of Cougar",null,"Cougar",98616,"Cowlitz","WA","USA"]
["Historical (Pacificorp)","Juniper Ridge Hydroelectric Project (Central Oregon ID)","111506",500048,null,57437,13030,"Hydro","64555 N Highway 97",null,"Bend",97701,"Deschutes","OR","USA"]
["Historical (Pacificorp)","C-Drop Hydro","111507",500050,null,58470,1776,"Hydro","6640 Kid Lane",null,"Klamath Falls",97603,"Klamath","OR","USA"]
["Historical (Pacificorp)","City of Portland, Portland Water Bureau","111508",500051,null,null,null,"Hydro","",null,"",null,"","OR","USA"]
["Historical (Pacificorp)","Draper Irrigation","111509",500052,null,null,null,"Hydro","",null,"",null,"","UT","USA"]
["Historical (Pacificorp)","Lake Creek Hydro (Mountain Energy, Inc)","111510",500058,null,null,null,"Hydro","",null,"",null,"","OR","USA"]
["Historical (Pacificorp)","Grace","111511",500154,null,827,123892,"Hydro","822 Grace Power Plant Road",null,"Grace",83241,"Caribou","ID","USA"]
["Historical (Pacificorp)","Oneida","111512",500155,null,829,61899,"Hydro","Oneida Narrows Road",null,"Riverdale",83263,"Franklin","ID","USA"]
["Historical (Pacificorp)","Soda","111513",500157,null,831,29789,"Hydro","1579 Soda Power Plant Road",null,"Soda Springs",83276,"Caribou","ID","USA"]
["Historical (Pacificorp)","Last Chance","111514",500158,null,987,null,"Hydro","Last Chance Lane",null,"Grace",83241,"Caribou","ID","USA"]
["Historical (Pacificorp)","Eagle Point","111515",500160,null,3024,16411,"Hydro","2405 Borphy Road",null,"Eagle Point",97524,"Jackson","OR","USA"]
["Historical (Pacificorp)","Fish Creek","111516",500162,null,3026,14758,"Hydro","Highway 138",null,"Idleyld Park",97447,"Douglas","OR","USA"]
["Historical (Pacificorp)","John C Boyle - Klamath River Hydroelectric Project","111517",500163,null,3028,194050,"Hydro","26020 Highway 66",null,"Keno",97627,"Klamath","OR","USA"]
["Historical (Pacificorp)","Lemolo 1","111518",500164,null,3029,124864,"Hydro","Lemolo Plant Road",null,"Idleyld Park",97447,"Douglas","OR","USA"]
["Historical (Pacificorp)","Prospect 1","111519",500165,null,3032,12114,"Hydro","111 Mill Creek Drive",null,"Prospect",97536,"Jackson","OR","USA"]
["Historical (Pacificorp)","Prospect 2","111520",500166,null,3033,199202,"Hydro","111 Mill Creek Drive",null,"Prospect",97536,"Jackson","OR","USA"]
["Historical (Pacificorp)","Prospect 3","111521",500167,null,3034,22263,"Hydro","Roque River National Forrest",null,"Prospect",97536,"Jackson","OR","USA"]
["Historical (Pacificorp)","Prospect 4","111522",500168,null,3035,2541,"Hydro","111 Mill Creek Drive",null,"Prospect",97536,"Jackson","OR","USA"]
["Historical (Pacificorp)","Soda Springs","111523",500169,null,3037,44108,"Hydro","Nfd 011",null,"Idleyld Park",97447,"Douglas","OR","USA"]
["Historical (Pacificorp)","Toketee Falls","111524",500170,null,3040,195057,"Hydro","Toketee Falls & Hwy 138",null,"Idleyld Park",97447,"Douglas","OR","USA"]
["Historical (Pacificorp)","Wallowa Falls","111525",500171,null,3041,4664,"Hydro","Wallowa Lake Hwy",null,"Joseph",97846,"Wallowa","OR","USA"]
["Historical (Pacificorp)","Lemolo 2","111526",500173,null,6421,133034,"Hydro","Nfd 34 Road",null,"Toketee Falls",97447,"Douglas","OR","USA"]
["Historical (Pacificorp)","Slide Creek","111527",500174,null,3036,56868,"Hydro","Nfd 010 Road",null,"Idleyld Park",97447,"Douglas","OR","USA"]
["Historical (Pacificorp)","Gunlock","111528",500175,null,null,1,"Hydro","",null,"",null,"","UT","USA"]
["Historical (Pacificorp)","Veyo Dam","111529",500176,null,null,1,"Hydro","",null,"",null,"","UT","USA"]
["Historical (Pacificorp)","Sand Cove","111530",500177,null,null,1,"Hydro","",null,"",null,"","UT","USA"]
["Historical (Pacificorp)","Cutler Hydropower","111531",500178,null,3646,69760,"Hydro","1365 W Cutler Dam Road",null,"Collinston",84306,"Box Elder","UT","USA"]
["Historical (Pacificorp)","Granite","111532",500180,null,3651,5360,"Hydro","4101 Big Cottonwood Canyon Rd",null,"Salt lake City",84121,"Salt Lake","UT","USA"]
["Historical (Pacificorp)","Pioneer","111533",500182,null,3656,9235,"Hydro","1218 12th Street",null,"Ogden",84404,"Weber","UT","USA"]
["Historical (Pacificorp)","Stairs","111534",500184,null,3659,3767,"Hydro","E. Big Cottonwood Canyon Road",null,"Salt Lake City",84121,"Salt Lake","UT","USA"]
["Historical (Pacificorp)","Weber Hydro Project","111535",500185,null,3661,11273,"Hydro","1 Mi E. of South Weber on I84",null,"South Weber",84403,"Weber","UT","USA"]
["Historical (Pacificorp)","Merwin","111536",500186,null,3847,450459,"Hydro","300 Merwin Village Road",null,"Ariel",98603,"Cowlitz","WA","USA",null,null,null,null,null,null,null,null,0]
["Historical (Pacificorp)","Swift 1","111537",500187,null,3850,545383,"Hydro","Rd 91013 at Swift Creek Res.",null,"Cougar",98616,"Skamania","WA","USA",null,null,null,null,null,null,null,null,0]
["Historical (Pacificorp)","Yale","111538",500188,null,3852,519637,"Hydro","200 Yale Village Road",null,"Amboy",98601,"Cowlitz","WA","USA",null,null,null,null,null,null,null,null,0]
["Historical (Pacificorp)","Copco 1 -Klamath River Hydroelectric Project","111539",500190,null,294,73916,"Hydro","Copco Rd, 20 Mi East of I5",null,"Hornbrook",96044,"Siskiyou","CA","USA"]
["Historical (Pacificorp)","Copco 2 -Klamath River Hydroelectric Project","111590",500191,null,295,92720,"Hydro","19305 Daggett Road",null,"Hornbrook",96044,"Siskiyou","CA","USA"]
["Historical (Pacificorp)","Fall Creek -Klamath River Hydroelectric Project","111591",500192,null,296,3931,"Hydro","Copco Rd, 18 Mi East of I5",null,"Hornbrook",96044,"Siskiyou","CA","USA"]
["Historical (Pacificorp)","Iron Gate -Klamath River Hydroelectric Project","111592",500193,null,297,88987,"Hydro","Copco Rd, 9 Mi East of I5",null,"Hornbrook",96044,"Siskiyou","CA","USA"]
["Historical (Pacificorp)","City of Buffalo Hydropower Plant","111593",500195,null,null,1,"Hydro","",null,"",null,"","WY","USA"]
["Historical (Pacificorp)","Bell Mountain Hydro (Pancheri)","111540",500202,null,null,1,"Hydro","",null,"",null,"","ID","USA"]
["Historical (Pacificorp)","Birch Creek Hydro","111541",500203,null,10140,12803,"Hydro","Highway 22",null,"Terreton",83409,"Clark","ID","USA"]
["Historical (Pacificorp)","Felt Hydro Plant (CDM Hydro)","111542",500204,null,10028,29902,"Hydro","",null,"",null,"","ID","USA"]
["Historical (Pacificorp)","Portneuf River Hydro (Commercial Energy Management)","111543",500205,null,null,1,"Hydro","",null,"",null,"","ID","USA"]
["Historical (Pacificorp)","Dry Creek (Idaho)","111544",500206,null,54394,12788,"Hydro","Highway 22",null,"Howe",83244,"Butte","ID","USA"]
["Historical (Pacificorp)","Georgetown Power","111545",500207,null,472,2921,"Hydro","6th and Griffith St.",null,"Georgetown",80444,"Clear Creek","CO","USA"]
["Historical (Pacificorp)","Shiloh Warm Springs Ranch","111546",500208,null,null,1,"Hydro","",null,"",null,"","ID","USA"]
["Historical (Pacificorp)","Marsh Valley Hydro & Electric Company","111547",500209,null,50972,6867,"Hydro","Highway 30",null,"McCammon",83250,"Bannock","ID","USA"]
["Historical (Pacificorp)","Mink Creek Hydro","111548",500210,null,10325,9285,"Hydro","8600 East Mink Creek Road",null,"Preston",83263,"Franklin","ID","USA"]
["Historical (Pacificorp)","Nicholson Sunnybar Ranch","111549",500211,null,null,1,"Hydro","",null,"",null,"","ID","USA"]
["Historical (Pacificorp)","O.J. Power Company","111550",500212,null,null,1,"Hydro","",null,"",null,"","ID","USA"]
["Historical (Pacificorp)","Preston City Hydro","111551",500214,null,null,1,"Hydro","",null,"",null,"","ID","USA"]
["Historical (Pacificorp)","Siphon (Central Oregon ID)","111552",500215,null,50980,22142,"Hydro","61545 Brookswood Blvd",null,"Bend",97702,"Deschutes","OR","USA"]
["Historical (Pacificorp)","City of Albany Hydro","111553",500216,null,null,1,"Hydro","",null,"",null,"","OR","USA"]
["Historical (Pacificorp)","Opal Springs (Deschutes Valley Water District)","111554",500218,null,54251,24581,"Hydro","Lasalle Lane",null,"Culver",97734,"Jefferson","OR","USA"]
["Historical (Pacificorp)","Eagle Point Irrigation District (Nichols Gap Plant)","111555",500219,null,null,1,"Hydro","",null,"",null,"","OR","USA"]
["Historical (Pacificorp)","Falls Creek","111556",500220,null,52187,12544,"Hydro","Hwy 20, mile post 49",null,"Cascadia",97329,"Linn","OR","USA"]
["Historical (Pacificorp)","Copper Dam (Farmers Irrigation District)","111557",500221,null,10323,16197,"Hydro","1900 Copper Dam Road",null,"Hood River",97031,"Hood River","OR","USA"]
["Historical (Pacificorp)","Lacomb Irrigation","111558",500222,null,52155,4422,"Hydro","End of Island Inn Drive",null,"Lebanon",97355,"Linn","OR","USA"]
["Historical (Pacificorp)","Loyd Fery Hydro","111559",500223,null,null,1,"Hydro","",null,"",null,"","OR","USA"]
["Historical (Pacificorp)","Middlefork Irrigation District","111560",500224,null,50917,22507,"Hydro","8235 Clear Creek Road",null,"Parkdale",97041,"Hood River","OR","USA"]
["Historical (Pacificorp)","North Fork Sprague","111561",500226,null,10737,2701,"Hydro","Outside of Bly, Oregon",null,"Bly",97622,"Klamath","OR","USA"]
["Historical (Pacificorp)","Roush Hydro, Inc","111562",500228,null,null,1,"Hydro","",null,"",null,"","OR","USA"]
["Historical (Pacificorp)","Santiam Water Control District","111563",500229,null,null,1,"Hydro","",null,"",null,"","OR","USA"]
["Historical (Pacificorp)","Little Cottonwood Lower Facility (Cottonwood Hydro LLC)","111564",500230,null,6537,5528,"Hydro","9000 South Danish Rd",null,"Sandy",84070,"Salt Lake","UT","USA"]
["Historical (Pacificorp)","Thayn Ranch Hydro","111565",500232,null,null,1,"Hydro","",null,"",null,"","UT","USA"]
["Historical (Pacificorp)","Galesville Dam","111566",500233,null,50938,2417,"Hydro","6404 Upper Cow Creek Road",null,"Azalea",97410,"Douglas","OR","USA"]
["Historical (Pacificorp)","Mid-C Hydro - Wanapum (Grant County PUD)","111504",500236,null,null,5337728,"Hydro","14353 Highway 243",null,"Beverly",99321,"Grant","WA","USA",null,null,null,null,null,null,null,null,0]
["Historical (Pacificorp)","Ashton","111567",500240,null,825,38064,"Hydro","1338 N 3300 E",null,"Ashton",83420,"Fremont","ID","USA"]
["Historical (Pacificorp)","Clearwater 1","111568",500241,null,3020,40494,"Hydro","Nfd 300 Road",null,"Idleyld Park",97447,"Douglas","OR","USA"]
["Historical (Pacificorp)","Clearwater 2","111569",500242,null,3021,36927,"Hydro","Nfd 075 Road",null,"Idleyld Park",97447,"Douglas","OR","USA"]
["Historical (Pacificorp)","Big Fork","111570",500244,null,6459,26132,"Hydro","Hwy 35 & Hwy 209",null,"Big Fork",59911,"Flathead","MT","USA"]
["Historical (Pacificorp)","Bend","111571",500246,null,6484,1448,"Hydro","NW Bond St & NW Wall St",null,"Bend",97701,"Deschutes","OR","USA"]
["Historical (Pacificorp)","Bogus Creek (Lower Cold Springs/Upper Cold Springs)","111572",500247,null,null,1,"Hydro","",null,"",null,"","CA","USA"]
["Historical (Pacificorp)","Box Canyon Dam (Siskiyou Power Authority)","111573",500248,null,50179,8754,"Hydro","2623 W.A. Barr Road",null,"Mount Shasta",96067,"Siskiyou","CA","USA"]
["Historical (Pacificorp)","Paul Luckey (hydro)","111574",500249,null,null,1,"Hydro","",null,"",null,"","CA","USA"]
["Historical (Pacificorp)","Slate Creek","111575",500251,null,50961,2458,"Hydro","3 Mile West on LaMoine Rd",null,"Lakehead",96051,"Shasta","CA","USA"]
["Historical (Pacificorp)","Swalley Irrigation District","111576",500710,null,null,1,"Hydro","",null,"",null,"","OR","USA"]
["Historical (Pacificorp)","Bell Mountain Power (Jake Amy)","111577",501003,null,null,1,"Hydro","",null,"",null,"","ID","USA"]
["Historical (Pacificorp)","Dorena Hydroelectric Facility","111578",501004,null,59357,9321,"Hydro","37999 Spillway Road",null,"Cottage Grove",97424,"Lane","OR","USA"]
["Historical (Pacificorp)","St Anthony Hydro plant","111579",501005,null,null,1,"Hydro","",null,"",null,"","ID","USA"]
["Historical (Pacificorp)","Three Sisters Irrigation District","111580",501006,null,null,1,"Hydro","",null,"",null,"","OR","USA"]
["Historical (Pacificorp)","Viva Naughton hydro","111581",501009,null,null,1,"Hydro","",null,"",null,"","WY","USA"]
["Historical (Pacificorp)","Paris Creek Hydro project","111582",501011,null,null,1,"Hydro","",null,"",null,"","ID","USA"]
["Historical (Pacificorp)","45 Mile Hydroelectric Project (EBD Hydro)","111583",501050,null,58455,7921,"Hydro","1057 SW Holly Lane #2",null,"Culver",97734,"Jefferson","OR"]
["Historical (Pacificorp)","Bear Creek Dam Hydro Turbine (City of Astoria)","111584",501056,null,null,1,"Hydro","",null,"",null,"","OR","USA"]
["Historical (Pacificorp)","Consolidated Irrigation Company hydro project","111585",501067,null,null,1,"Hydro","",null,"",null,"","ID","USA"]
["Historical (Pacificorp)","Little Cottonwood Upper Facility (Cottonwood Hydro LLC)","111586",501088,null,null,1,"Hydro","",null,"",null,"","UT","USA"]
["Historical (Pacificorp)","Monroe Hydro","111587",501101,null,null,1,"Hydro","",null,"",null,"","OR","USA"]
["Historical (Pacificorp)","Black Cap Solar (Lakeview, OR)","111201",700002,null,58150,4113,"Solar","95886 Stock Drive Lane",null,"Lakeview",97630,"Lake","OR","USA"]
["Historical (Pacificorp)","Crook County Solar 1, LLC","111202",700005,null,null,1,"Solar","",null,"",null,"","OR","USA"]
["Historical (Pacificorp)","Ebay Solar","111203",700006,null,null,1,"Solar","",null,"",null,"","UT","USA"]
["Historical (Pacificorp)","Joseph Community Solar","111204",700007,null,null,1,"Solar","",null,"",null,"","OR","USA"]
["Historical (Pacificorp)","Solwatt, LLC (phase I)","111205",700009,null,null,1,"Solar","",null,"",null,"","OR","USA"]
["Historical (Pacificorp)","CTWS Utilities Solar","111206",700102,null,null,1,"Solar","",null,"",null,"","OR","USA"]
["Historical (Pacificorp)","Oregon Solar Incentive program (rooftop solar)","111207",700103,null,null,1,"Solar","",null,"",null,"","OR","USA"]
["Historical (Pacificorp)","Powell Butte Solar","111208",700104,null,null,1,"Solar","",null,"",null,"","OR","USA"]
["Historical (Pacificorp)","Bourdet 1 solar (5713351)","111209",700105,null,null,1,"Solar","",null,"",null,"","OR","USA"]
["Historical (Pacificorp)","Beryl Solar Plant","111210",700106,null,58598,6279,"Solar","400 East 3600 Street",null,"Beryl",84714,"Iron","UT","USA"]
["Historical (Pacificorp)","Buckhorn Solar Plant","111211",700107,null,58600,5969,"Solar","1800 East North Hills Bench Ro",null,"Paragonah",84760,"Iron","UT","USA"]
["Historical (Pacificorp)","Cedar Valley Solar","111212",700108,null,58599,5969,"Solar","7100 North 2300 West",null,"Cedar City",84721,"Iron","UT","USA"]
["Historical (Pacificorp)","Klamath Falls Solar 1","111213",700109,null,null,1,"Solar","",null,"",null,"","OR","USA"]
["Historical (Pacificorp)","Fiddler's Canyon #1 Solar Plant","111214",700110,null,59787,7485,"Solar","9190 West Antelope Springs Rd",null,"Cedar City",84720,"Iron","UT","USA"]
["Historical (Pacificorp)","Fiddler's Canyon #2 Solar Plant","111215",700111,null,59786,7366,"Solar","9213 West 3200 North",null,"Cedar City",84720,"Iron","UT","USA"]
["Historical (Pacificorp)","Fiddler's Canyon #3 Solar Plant","111216",700112,null,59932,7092,"Solar","7763 West Younger Road",null,"Cedar City",84720,"Iron","UT","USA"]
["Historical (Pacificorp)","Granite Peak Solar Plant","111217",700113,null,58604,6074,"Solar","900 East 300 North",null,"Milford",84751,"Beaver","UT","USA"]
["Historical (Pacificorp)","Greenville Solar Plant","111218",700114,null,58603,4098,"Solar","1050 West Main Street",null,"Milford",84731,"Beaver","UT","USA"]
["Historical (Pacificorp)","Laho Solar Plant","111219",700115,null,58602,6420,"Solar","1055 West 6100 South",null,"Milford",84751,"Beaver","UT","USA"]
["Historical (Pacificorp)","Milford 2 Solar Plant","111220",700116,null,59958,7203,"Solar","1075 S Grainmill Rd",null,"Milford",84751,"Beaver","UT","USA"]
["Historical (Pacificorp)","Milford Flat Solar Plant","111221",700117,null,58601,6293,"Solar","6315 South HWY 129",null,"Milford",84751,"Beaver","UT","USA"]
["Historical (Pacificorp)","Pavant Solar I","111222",700118,null,59702,121658,"Solar","1325 W 8900 N",null,"Fillmore",84631,"Millard","UT","USA"]
["Historical (Pacificorp)","South Milford Solar Plant","111223",700119,null,59620,7703,"Solar","5300 S & 1600 W",null,"Milford",84751,"Beaver","UT","USA"]
["Historical (Pacificorp)","Utah Red Hills Renewable Park (Solar)","111224",700121,null,58660,209479,"Solar","2200 North",null,"Parowan",84761,"Iron","UT","USA"]
["Historical (Pacificorp)","Black Cap Solar II","111225",700122,null,null,1,"Solar","",null,"",null,"","OR","USA"]
["Historical (Pacificorp)","Bourdet 2 solar ( 5903801)","111226",700123,null,null,1,"Solar","",null,"",null,"","OR","USA"]
["Historical (Pacificorp)","Old Mill Solar","111227",700125,null,59374,12523,"Solar","60965 Highway 140 E",null,"Bly",97622,"Klamath","OR","USA"]
["Historical (Pacificorp)","Pavant Solar III","111228",700126,null,null,50512,"Solar","",null,"",null,"","UT","USA"]
["Historical (Pacificorp)","Quichapa 1 Solar Project","111229",700127,null,null,8053,"Solar","",null,"",null,"","UT","USA"]
["Historical (Pacificorp)","Quichapa 2 Solar Project","111230",700128,null,null,7957,"Solar","",null,"",null,"","UT","USA"]
["Historical (Pacificorp)","Quichapa 3 Solar Project","111231",700129,null,null,7964,"Solar","",null,"",null,"","UT","USA"]
["Historical (Pacificorp)","Enterprise Solar LLC","111232",700131,null,59386,225336,"Solar","2336 South Bench Road",null,"Newcastle",84756,"Iron","UT","USA"]
["Historical (Pacificorp)","Escalante Solar I","111233",700132,null,59387,204549,"Solar","7100 North 1400 West",null,"Milford",54751,"Beaver","UT","USA"]
["Historical (Pacificorp)","Escalante Solar II","111234",700133,null,59388,208002,"Solar","5900 North 350 West",null,"Milford",84751,"Beaver","UT","USA"]
["Historical (Pacificorp)","Escalante Solar III","111235",700134,null,59389,206537,"Solar","5500 North Hwy 257",null,"Milford",84751,"Beaver","UT","USA"]
["Historical (Pacificorp)","Granite Mountain Solar East","111236",700135,null,59946,208091,"Solar","4353 North Shooting Range Road",null,"Cedar City",84721,"Iron","UT","USA"]
["Historical (Pacificorp)","Granite Mountain Solar West","111237",700136,null,59945,123567,"Solar","5755 North Iron Springs Road",null,"Cedar City",84721,"Iron","UT","USA"]
["Historical (Pacificorp)","Iron Springs Solar","111238",700137,null,59941,211796,"Solar","2431 North 4500 West",null,"Cedar City",84720,"Iron","UT","USA"]
["Historical (Pacificorp)","Pioneer Wind Park I","111239",700139,null,60259,252682,"Solar","619 Mormon Canyon Road",null,"Glenrock",82637,"Converse","WY","USA"]
["Historical (Pacificorp)","Three Peaks Solar","111240",700140,null,60432,225931,"Solar","7856 N. Lund Highway",null,"Cedar City",84721,"Iron","UT","USA"]
["Historical (Pacificorp)","Solwatt, LLC (phase II)","111241",700141,null,null,1,"Solar","",null,"",null,"","OR","USA"]
["Historical (Pacificorp)","Collier Solar (OSLH, LLC)","111242",710102,null,60976,20838,"Solar","6235 Erickson Rd",null,"Bend",97701,"Deschutes","OR","USA"]
["Historical (Pacificorp)","Eagle Point Solar (NorWest Energy 7)","111243",710103,null,61560,18684,"Solar","5842 McLoughlin Dr",null,"Central Point",97502,"Jackson","OR","USA"]
["Historical (Pacificorp)","Hammerich 1","111244",710105,null,null,1,"Solar","",null,"",null,"","OR","USA"]
["Historical (Pacificorp)","Hammerich 2","111245",710106,null,null,1,"Solar","",null,"",null,"","OR","USA"]
["Historical (Pacificorp)","Keeton 1","111246",710107,null,null,1,"Solar","",null,"",null,"","OR","USA"]
["Historical (Pacificorp)","Keeton 2","111247",710108,null,null,1,"Solar","",null,"",null,"","OR","USA"]
["Historical (Pacificorp)","Klamath Falls Solar 2","111248",710109,null,61553,5480,"Solar","1845 Southside Bypass",null,"Klamath Falls",97603,"Klamath","OR","USA"]
["Historical (Pacificorp)","Lakeview Solar (OR Solar 6)","111249",710110,null,61430,23954,"Solar","19250, Roberta Road",null,"Lakeview",97630,"Lake","OR","USA"]
["Historical (Pacificorp)","Merrill Solar (OR Solar 5)","111250",710112,null,61423,18491,"Solar","21439 Highway 39 S",null,"Merrill",97633,"Klamath","OR","USA"]
["Historical (Pacificorp)","Neff Solar (NorWest Energy 2)","111251",710113,null,60548,21659,"Solar","21850 Neff Rd.",null,"Bend",97701,"Deschutes","OR","USA"]
["Historical (Pacificorp)","Pavant Solar II","111252",710114,null,60449,121567,"Solar","1330 West 8900 North Street",null,"Fillmore",84631,"Millard","UT","USA"]
["Historical (Pacificorp)","Tumbleweed Solar","111253",710115,null,61580,20563,"Solar","9500 S Hwy 97",null,"Redmond",97756,"Deschutes","OR","USA"]
["Historical (Pacificorp)","Turkey Hill Solar (OR Solar 3)","111254",710116,null,61201,22140,"Solar","22330 Drazil Rd",null,"Malin",97632,"Klamath","OR","USA"]
["Historical (Pacificorp)","Woodline Solar","111255",710117,null,61559,14513,"Solar","17017 Hwy 140",null,"Dairy",97625,"Klamath","OR","USA"]
["Historical (Pacificorp)","Adams Solar Center","111256",710119,null,61496,12026,"Solar","2250 North Adams Drive",null,"Madras",97741,"Jefferson","OR","USA"]
["Historical (Pacificorp)","Bear Creek Solar Center","111257",710122,null,61281,null,"Solar","62399 Hamby Rd",null,"Bend",97701,"Deschutes","OR","USA"]
["Historical (Pacificorp)","Bly Solar Center","111258",710123,null,62272,null,"Solar","62744 Highway 140.",null,"Bly",97622,"Klamath","OR","USA"]
["Historical (Pacificorp)","Chiloquin Solar","111259",710124,null,61631,null,"Solar","42433 Cattle Drive",null,"Chiloquin",97624,"Klamath","OR","USA"]
["Historical (Pacificorp)","Dairy (OR Solar 8)","111260",710125,null,61424,null,"Solar","1050 Mitchell Road",null,"Dairy",97625,"Klamath","OR","USA"]
["Historical (Pacificorp)","Elbe Solar Center","111261",710126,null,61497,null,"Solar","2401-B SW Belmont Lane",null,"Madras",97741,"Jefferson","OR","USA"]
["Historical (Pacificorp)","Lakeview I","111262",710130,null,null,null,"Solar","",null,"",null,"","OR","USA"]
["Historical (Pacificorp)","Lakeview II","111263",710131,null,null,null,"Solar","",null,"",null,"","OR","USA"]
["Historical (Pacificorp)","NorWest Energy 9 (Pendleton)","111264",710134,null,62241,null,"Solar","4801 NW N Ave.",null,"Pendleton",97801,"Umatilla","OR","USA"]
["Historical (Pacificorp)","Sweetwater Solar","111265",710137,null,61369,null,"Solar","7500 Highway 372",null,"Green River",82935,"Sweetwater","WY","USA"]
["Historical (Pacificorp)","Eurus Combine Hills II LLC","111309",800010,null,57137,169208,"Wind","84700 Whitewater  Reservoir Rd",null,"Milton Freewater",97862,"Umatilla","OR","USA",null,null,null,null,null,null,null,null,0]
["Historical (Pacificorp)","Meadow Creek Project Company (Five Pine & North Point)","111310",800019,null,58106,null,"Wind","2244 North 115th E",null,"Idaho Falls",83401,"Bonneville","ID","USA"]
["Historical (Pacificorp)","Spanish Fork Wind Park 2","111311",800020,null,56751,null,"Wind","2876 Gomex Rd",null,"Spanish Fork",84660,"Utah","UT","USA"]
["Historical (Pacificorp)","Mountain Wind","111312",800021,null,56752,null,"Wind","1748 CR 202",null,"Fort Bridger",82933,"Uinta","WY","USA"]
["Historical (Pacificorp)","Wolverine Creek","111313",800028,null,56301,171358,"Wind","729 Bone Road",null,"Idaho Falls",83401,"Bonneville","ID","USA",null,null,null,null,null,null,null,null,0]
["Historical (Pacificorp)","Leaning Juniper","113007",800034,null,56360,null,"Wind","72459 Rattlesnake Rd.",null,"Arlington",97812,"Gilliam","OR","USA",null,null,null,null,0,0,0,0,0]
["Historical (Pacificorp)","Marengo Wind Farm I","111314",800035,null,56466,500862,"Wind","336 McGee Rd",null,"Dayton",99328,"Columbia","WA","USA",null,null,null,null,null,null,null,null,0]
["Historical (Pacificorp)","Marengo Wind Farm I","111315",800035,null,56466,null,"Wind","336 McGee Rd",null,"Dayton",99328,"Columbia","WA","USA"]
["Historical (Pacificorp)","Goodnoe Hills","111316",800036,null,56666,null,"Wind","1332 Hoctor Road",null,"Goldendale",98620,"Klickitat","WA","USA"]
["Historical (Pacificorp)","Glenrock I","111317",800037,null,56841,421454,"Wind","1028 - 55 Ranch Road",null,"Glenrock",82637,"Converse","WY","USA",null,null,null,null,null,null,null,null,0]
["Historical (Pacificorp)","Rolling Hills","111318",800038,null,56842,277843,"Wind","1028 - 55 Ranch Road",null,"Glenrock",82637,"Converse","WY","USA",null,null,null,null,null,null,null,null,0]
["Historical (Pacificorp)","Seven Mile Hill I","111319",800039,null,56843,422023,"Wind","3 Miles NW of Medicine Bow",null,"Medicine Bow",82329,"Carbon","WY","USA",null,null,null,null,null,null,null,null,0]
["Historical (Pacificorp)","High Plains","111320",800040,null,57040,327035,"Wind","700 Highway 13",null,"Rock River",82083,"Albany","WY","USA",null,null,null,null,null,null,null,null,0]
["Historical (Pacificorp)","McFadden Ridge","111321",800041,null,57039,100324,"Wind","700 Wyoming Highway 13",null,"Rock River",82637,"Albany","WY","USA",null,null,null,null,null,null,null,null,0]
["Historical (Pacificorp)","Foote Creek I Wind","111322",800044,null,55607,null,"Wind","180 EX272 N 2MI RTE 13",null,"McFadden",82084,"Carbon","WY","USA"]
["Historical (Pacificorp)","Rock River I Wind","111323",800045,null,55740,null,"Wind","1567 Wyoming Highway 13",null,"Rock River",82083,"Carbon","WY","USA"]
["Historical (Pacificorp)","Power County North","111324",800046,null,57761,null,"Wind","Garden Road",null,"American Falls",83211,"Power","ID","USA"]
["Historical (Pacificorp)","Power County South","111325",800047,null,57760,null,"Wind","Garden Road",null,"American Falls",83211,"Power","ID","USA"]
["Historical (Pacificorp)","Campbell Hill Windpower Project (Three Buttes Windpower LLC)","111326",800053,null,57090,308503,"Wind","1068 Cole Creek Road",null,"Glenrock",82637,"Converse","WY","USA",null,null,null,null,null,null,null,null,0]
["Historical (Pacificorp)","J Bar 9 Ranch Wind","111327",800081,null,null,null,"Wind","",null,"",null,"","WY","USA"]
["Historical (Pacificorp)","Ward Butte Windfarm, LLC","111328",800142,null,56975,null,"Wind","28821 Madison Road",null,"Echo",97826,"Umatilla","OR","USA"]
["Historical (Pacificorp)","Pacific Canyon Windfarm, LLC","111329",800143,null,56972,null,"Wind","28821 Madison Road",null,"Echo",97826,"Morrow","OR","USA"]
["Historical (Pacificorp)","Sand Ranch Windfarm, LLC","111330",800144,null,56973,null,"Wind","28821 Madison Road",null,"Echo",97826,"Morrow","OR","USA"]
["Historical (Pacificorp)","Oregon Trail Windfarm, LLC","111331",800145,null,56971,null,"Wind","28821 Madison Road",null,"Echo",97826,"Umatilla","OR","USA"]
["Historical (Pacificorp)","Threemile Canyon Wind, LLC","111332",800146,null,56933,null,"Wind","71502 Threemile Canyon Road",null,"Boardman",97818,"Morrow","OR","USA"]
["Historical (Pacificorp)","Four Mile Canyon Windfarm, LLC","111333",800147,null,56970,null,"Wind","77252 Mader Rust Lane",null,"Echo",97826,"Morrow","OR","USA"]
["Historical (Pacificorp)","Four Corners Windfarm, LLC","111334",800148,null,56969,null,"Wind","28821 Madison Rd.",null,"Echo",97826,"Umatilla","OR","USA"]
["Historical (Pacificorp)","Foote Creek IV","111335",800151,null,55610,null,"Wind","1567 Wyoming Highway 13",null,"Rock River",82083,"Carbon","WY","USA"]
["Historical (Pacificorp)","Casper Wind Farm","111336",800154,null,57093,null,"Wind","3131 Sunburst Drive",null,"Evansville",82636,"Natrona","WY","USA"]
["Historical (Pacificorp)","Foote Creek III","111337",800156,null,55609,null,"Wind","1567 Wyoming Highway 13",null,"Rock River",82083,"Albany","WY","USA"]
["Historical (Pacificorp)","Big Top, LLC","111338",800157,null,56968,null,"Wind","28821 Madison Road",null,"Echo",97826,"Morrow","OR","USA"]
["Historical (Pacificorp)","Butter Creek Power, LLC.","111339",800158,null,56967,null,"Wind","28821 Madison Rd.",null,"Echo",97826,"Umatilla","OR","USA"]
["Historical (Pacificorp)","Wagon Trail, LLC","111340",800159,null,56974,null,"Wind","28821 Madison Road",null,"Echo",97826,"Morrow","OR","USA"]
["Historical (Pacificorp)","Dunlap I","111341",800175,null,57299,391874,"Wind","124 Dunlap Road",null,"Medicine Bow",82329,"Carbon","WY","USA",null,null,null,null,null,null,null,null,0]
["Historical (Pacificorp)","Top of the World","111342",800176,null,57327,542231,"Wind","849 St. HWY 95",null,"Glenrock",82637,"Converse","WY","USA",null,null,null,null,null,null,null,null,0]
["Historical (Pacificorp)","Foote Creek II (Storage and Integration)","111343",800195,null,55608,null,"Wind","1567 Wyoming Highway 13",null,"Rock River",82083,"Albany","WY","USA"]
["Historical (Pacificorp)","Marengo Wind Farm II","111344",810002,null,56466,500862,"Wind","336 McGee Rd",null,"Dayton",99328,"Columbia","WA","USA",null,null,null,null,null,null,null,null,0]
["Historical (Pacificorp)","Glenrock III","111345",810007,null,56841,421454,"Wind","1028 - 55 Ranch Road",null,"Glenrock",82637,"Converse","WY","USA",null,null,null,null,null,null,null,null,0]
["Historical (Pacificorp)","Rawlins Field Office Wind Turbine (BLM)","111346",810009,null,null,null,"Wind","",null,"",null,"","WY","USA"]
["Historical (Pacificorp)","Latigo Wind Park","111347",810012,null,59965,null,"Wind","50 Val's Road",null,"Monticello",84535,"San Juan","UT","USA"]
["Historical (Pacificorp)","Chopin Wind","111348",810018,null,59076,null,"Wind","York Road and Co Road 672",null,"Milton-Freewater",97862,"Umatilla","OR","USA"]
["Historical (Pacificorp)","Tooele Army Depot","111349",810019,null,59817,null,"Wind","1 Tooele Army Depot, Bldg 1510",null,"Tooele",84074,"Tooele","UT","USA"]
["Historical (Pacificorp)","FPL Energy Vansycle LLC (OR)","111350",810102,null,55989,null,"Wind","356 Touchet Gardena Road",null,"Touchet",97835,"Umatilla","OR","USA"]
["Historical (Pacificorp)","FPL Energy Vansycle LLC (WA)","111351",810103,null,55560,null,"Wind","356 Touchet Gardena Road",null,"Touchet",99360,"Walla Walla","WA","USA"]
["Historical (Pacificorp)","Vansycle II Wind Energy Center","111352",810107,null,58324,280087,"Wind","82108 Gerking Flat Road",null,"Athena",97813,"Umatilla","OR","USA",null,null,null,null,null,null,null,null,0]
["Historical (Pacificorp)","Huntington","110300",900002,1001193,8069,5087824.0190000003,"Coal (Undefined)","Hwy 31, 10 mi W Huntington",null,"Huntington",84528,"Emery","UT","USA",null,null,null,null,null,null,null,null,0.97927059611218104]
["Historical (Pacificorp)","Gadsby","111811",900003,1006811,3648,null,"Natural Gas","1407 West North Temple Rear",null,"Salt Lake City",84104,"Salt Lake","UT","USA"]
["Historical (Pacificorp)","Currant Creek","111812",900004,1000436,56102,2418275,"Natural Gas","2096 West 300 North",null,"Mona",84645,"Juab","UT","USA",null,null,null,null,null,null,null,null,0.40454648871613003]
["Historical (Pacificorp)","Lake Side","111813",900006,1000454,56237,4861169,"Natural Gas","1825 North Pioneer Lane",null,"Vineyard",84058,"Utah","UT","USA",null,null,null,null,null,null,null,null,0.39882681717093099]
["Historical (Pacificorp)","Wyodak","110301",900007,1001028,6101,null,"Coal (Undefined)","48 Wyodak Road, Garner Lake Rt",null,"Gillette",82716,"Campbell","WY","USA"]
["Historical (Pacificorp)","Cholla Power Station","110302",900010,1001421,113,3615006.9559999998,"Coal (Undefined)","4801 Cholla Lake Road",null,"Joseph City",86032,"Navajo","AZ","USA",null,null,null,null,null,null,null,null,1.1294370217527201]
["Historical (Pacificorp)","Dave Johnston","110303",900011,1000990,4158,4800370.977,"Coal (Undefined)","1951 Tank Farm Road",null,"Glen Rock",82637,"Converse","WY","USA",null,null,null,null,null,null,null,null,1.11137164514192]
["Historical (Pacificorp)","Naughton","110304",900012,1000991,4162,4740077.9759999998,"Coal (Undefined)","Hwy 189, 7 miles SW Kemmerer",null,"Kemmerer",83101,"Lincoln","WY","USA",null,null,null,null,null,null,null,null,1.07438894587501]
["Historical (Pacificorp)","Jim Bridger Total Plant","110701",900013,1001192,8066,null,"Coal (Subbituminous)","35 Miles East of Rock Springs",null,"Point of Rocks",82942,"Sweetwater","WY","USA",null,null,null,null,0.98499999999999999,1.004,1.018,1.002,1.028]
["Historical (Pacificorp)","Chehalis","111814",900017,1000144,55662,1741969,"Natural Gas","1813 Bishop Road",null,"Chehalis",98532,"Lewis","WA","USA",null,null,null,null,null,null,null,null,0.39848017961283999]
["Historical (Pacificorp)","Roseburg Forest Products - (Weed cogeneration)","110200",900022,null,56469,null,"Biomass Gas","98 Mill Street",null,"Weed",96094,"Siskiyou","CA","USA"]
["Historical (Pacificorp)","Kettle Butte Dairy Biofactory","113300",900028,null,57344,null,"Digester Gas","2952 N 4200 E",null,"Hansen",83344,"Twin Falls","ID","USA"]
["Historical (Pacificorp)","Res-AG Oak Lea, LLC","113301",900029,null,null,null,"Digester Gas","",null,"",null,"","OR","USA"]
["Historical (Pacificorp)","Threemile Canyon Biodigester","113302",900030,null,58382,null,"Digester Gas","75906 Threemile Road",null,"Boardman",97818,"Morrow","OR","USA"]
["Historical (Pacificorp)","Biomass One, L.P.","110201",900038,null,10869,166000,"Biomass Gas","2350 Avenue G",null,"White City",97503,"Jackson","OR","USA",null,null,null,null,null,null,null,null,1.7202983575180699]
["Historical (Pacificorp)","Soda Lake Geothermal No I II","111401",900039,null,52174,null,"Geothermal (Open System)","5500 Soda Lake",null,"Fallon",89406,"Churchill","NV","USA"]
["Historical (Pacificorp)","Roseburg LFG Energy, LLC","111600",900055,1005384,57911,null,"Landfill Gas","384 McClain West Avenue",null,"Roseburg",97470,"Douglas","OR","USA"]
["Historical (Pacificorp)","Oregon State University","111815",900067,1004658,57653,null,"Natural Gas","3452 SW Jefferson Way",null,"Corvallis",97331,"Benton","OR","USA"]
["Historical (Pacificorp)","Farm Power Misty Meadows","113303",900075,null,null,null,"Digester Gas","",null,"",null,"","OR","USA"]
["Historical (Pacificorp)","Bonanza Power Plant","110305",900133,1001149,7790,3654102.952,"Coal (Undefined)","12500 East 25500 South",null,"Vernal",84078,"Uintah","UT","USA",null,null,null,null,null,null,null,null,1.02027378510489]
["Historical (Pacificorp)","Hunter","110306",900134,1001036,6165,8293966.068,"Coal (Undefined)","UT Hwy 10, S. of Castle Dale",null,"Castle Dale",84513,"Emery","UT","USA",null,null,null,null,null,null,null,null,0.97957489135944198]
["Historical (Pacificorp)","Hermiston","111806",900183,1003652,54761,null,"Natural Gas","78145 Westland Road",null,"Hermiston",97838,"Umatilla","OR","USA",null,null,null,null,0.40400000000000003,0.41799999999999998,0.41799999999999998,0.41799999999999998,0.41799999999999998]
["Historical (Pacificorp)","Idaho Falls Gem State Project","111588",900190,null,790,null,"Hydro","8635 S. 35th West",null,"Idaho Falls",83402,"Bonneville","ID","USA"]
["Historical (Pacificorp)","Kennecott Utah Copper Corporation","110307",900220,1005234,56163,null,"Coal (Undefined)","9200 West 3325 South",null,"Magna",84044,"Salt Lake","UT","USA"]
["Historical (Pacificorp)","Colstrip","110700",900325,null,null,null,"Coal (Subbituminous)","1 Warehouse Road",null,"Colstrip",59323,"Rosebud","MT","USA",null,null,null,null,null,1.0569999999999999,1.008,{"$f":"'[5]1. Generated'!$F$30","v":1.0129999999999999},0.98699999999999999]
["Historical (Pacificorp)","Hayden","110308",900343,1001466,525,null,"Coal (Undefined)","13125 U.S. Highway 40",null,"Hayden",81639,"Routt","CO","USA"]
["Historical (Pacificorp)","Finley Buttes Landfill Gas (Finley Bioenergy)","111601",900356,1004516,58687,null,"Landfill Gas","74265 Bombing Range Road",null,"Boardman",97818,"Morrow","OR","USA"]
["Historical (Pacificorp)","Roseburg Forest Products  (Dillard cogeneration)","110202",900391,1004416,50396,null,"Biomass Gas","10525 Old Highway 99 South",null,"Dillard",97432,"Douglas","OR","USA"]
["Historical (Pacificorp)","Simplot Phosphates, LLC","112403",900420,1003087,54472,null,"Various","515 S Hwy 430",null,"Rock Springs",82901,"Sweetwater","WY","USA"]
["Historical (Pacificorp)","Sunnyside Cogeneration Associates","110309",900439,1004953,50951,null,"Coal (Undefined)","#1 Power Plant Road",null,"Sunnyside",84539,"Carbon","UT","USA"]
["Historical (Pacificorp)","Craig","110310",900460,1001008,6021,7342831.9740000004,"Coal (Undefined)","2101 S. Ranney",null,"Craig",81626,"Moffat","CO","USA",null,null,null,null,null,null,null,null,1.03986406839166]
["Historical (Pacificorp)","Weber County Landfill (Utah)","111602",900543,null,null,null,"Landfill Gas","",null,"",null,"","UT","USA"]
["Historical (Pacificorp)","Cowiche (Yakima-Tieton Irrigation District)","111589",900556,null,50423,null,"Hydro","18968 Summitview Road",null,"Tieton",98947,"Yakima","WA","USA"]
["Historical (Pacificorp)","Douglas County Forest Products","110203",900559,null,null,null,"Biomass Gas","",null,"",null,"","OR","USA"]
["Historical (Pacificorp)","Ballard Hog Farms","113304",900563,null,null,null,"Digester Gas","",null,"",null,"","UT","USA"]
["Historical (Pacificorp)","Hill Air Force Base","111603",900565,null,null,null,"Landfill Gas","",null,"",null,"","UT","USA"]
["Historical (Pacificorp)","Oregon Environmental Industries","111604",900566,null,56461,null,"Landfill Gas","6250 Dry Creek Road",null,"Eagle Point",97524,"Jackson","OR","USA"]
["Historical (Pacificorp)","Tesoro Refining & Marketing Co.","111816",900575,1006039,56509,null,"Natural Gas","474 West, 900 North",null,"Salt Lake City",84103,"Salt Lake","UT","USA"]
["Historical (Pacificorp)","Stahlbush Island Farms, Inc.","113305",900587,null,null,null,"Digester Gas","",null,"",null,"","OR","USA"]
["Historical (Pacificorp)","Blundell PacifiCorp Geothermal","111405",901652,null,299,null,"Geothermal (Open System)","10 mi east of Highway 257",null,"Milford",84751,"Beaver","UT","USA"]
["Historical (Pacificorp)","Tata Chemicals Green River Facility","110311",910003,1005040,54318,null,"Coal (Undefined)","20 Miles west of Green River,",null,"Green River",82935,"Sweetwater","WY","USA"]
["Historical (Pacificorp)","BYUI Central Energy Facility","111817",910011,null,59496,null,"Natural Gas","425 South 1st West",null,"Rexburg",83460,"Madison","ID","USA"]
["Historical (Pacificorp)","Shute Creek","111818",910052,1002150,56312,null,"Natural Gas","33 miles northeast of Kemmerer",null,"Kemmerer",83101,"Lincoln","WY","USA"]
["Historical (Pacificorp)","NorWest Energy 4 (Bonanza)","111266",910322,null,62268,22,"Solar",null,null,null,null,null,"OR","USA",null,null,null,null,null,null,null,null,0]
["Historical (Pacificorp)","Sage Solar I","111267",910324,null,null,1,"Solar",null,null,null,null,null,"WY","USA",null,null,null,null,null,null,null,null,0]
["Historical (Pacificorp)","Sage Solar II","111268",910325,null,null,1,"Solar",null,null,null,null,null,"UT","USA",null,null,null,null,null,null,null,null,0]
["Historical (Pacificorp)","Sage Solar III","111269",910326,null,null,1,"Solar",null,null,null,null,null,"UT","USA",null,null,null,null,null,null,null,null,0]
["Historical (retired)","Boardman Power Plant - Idaho","000300",null,null,null,null,"Coal (undefined)",null,null,null,null,null,"OR","USA",null,null,null,null,0.97399999999999998,0.96799999999999997,0.98599999999999999,1.3109999999999999,0.98799999999999999]
["Historical (retired)","Boardman Power Plant - PGE","000301",null,null,null,null,"Coal (undefined)",null,null,null,null,null,"OR","USA",null,null,null,null,null,1.018,1.069,1.071,0.99399999999999999]
["Historical (retired)","PGE Undefined Coal ","000302",null,null,null,null,"Coal (undefined)",null,null,null,null,null,"Undefined","Undefined",null,null,null,null,1.018,null,null,null,0.99399999999999999]
["Historical (retired)","Undefined Generation - PGE Coal ","000303",null,null,null,null,"Coal (undefined)",null,null,null,null,null,"Undefined","Undefined",null,null,null,null,1.0556745284894875]
["Historical (retired)","PGE Distillate Fuel Oil No. 2","001000",null,null,null,null,"Distillate Fuel Oil No. 2",null,null,null,null,null,"OR","USA",null,null,null,null,null,0.79,0.79,0.79,0.80500000000000005]
["Historical (retired)","Undefined Generation - PGE Distillate ","001001",null,null,null,null,"Distillate Fuel Oil No. 2",null,null,null,null,null,"Undefined","Undefined",null,null,null,null,0.79240037071362368]
["Historical (retired)","Idaho Undefined NG ","001800",null,null,null,null,"Natural Gas",null,null,null,null,null,"Undefined","Undefined",null,null,null,null,0.434,0.434,0.434]
["Historical (retired)","PGE Undefined NG ","001801",null,null,null,null,"Natural Gas",null,null,null,null,null,"Undefined","Undefined",null,null,null,null,0.434]
["Historical (retired)","Undefined Generation - Clatskanie NG ","001802",null,null,null,null,"Natural Gas",null,null,null,null,null,"Undefined","Undefined",null,null,null,null,0.70899999999999996]
["Historical (retired)","Undefined Generation - PGE NG ","001803",null,null,null,null,"Natural Gas",null,null,null,null,null,"Undefined","Undefined",null,null,null,null,0.40121836254802506]
["Historical (retired)","PGE Undefined Solar","002100",null,null,null,null,"Solar",null,null,null,null,null,"OR","USA",null,null,null,null,0,0,0,0,0,null,null,null,null,null,"This isn't really a specific facility"]
["Historical (retired)","Umatilla Solar","002101",null,null,null,null,"Solar",null,null,null,null,null,"OR","USA",null,null,null,null,0,0,0,0,0,null,null,null,null,null,"This isn't really a specific facility"]
["Historical (retired)","PGE Undefined - other","002400",null,null,null,null,"Various",null,null,null,null,null,"Undefined","Undefined",null,null,null,null,null,null,null,0.46400000000000002,0.46400000000000002]
["Historical (retired)","Undefined - unassigned EF","002401",null,null,null,null,"Various",null,null,null,null,null,"Undefined","Undefined",null,null,null,null,0,0,0,0,0]
["Historical (retired)","Various facilities in Oregon (anthro)","002402",null,null,null,null,"Various",null,null,null,null,null,"Undefined","Undefined",null,null,null,null,null,0.21562563332713472,0.38969885082071887,0.40165640498084509,0.40200000000000002]
["Historical (retired)","Various facilities in Oregon (bio)","002403",null,null,null,null,"Various",null,null,null,null,null,"Undefined","Undefined",null,null,null,null,null,0,null,null,null,null,1.40128200624715,1.2656667029679047,1.5177992846488997,1.359]
["Historical (retired)","Various facilities NOT in Oregon (anthro)","002404",null,null,null,null,"Various",null,null,null,null,null,"Undefined","Undefined",null,null,null,null,null,0.73736625873625616,0.93191704070415327,0.91117350492929883,0.91800000000000004]
["Historical (retired)","Various facilities NOT in Oregon (bio)","002405",null,null,null,null,"Various",null,null,null,null,null,"Undefined","Undefined",null,null,null,null,null,0,null,null,null,null,0.94793376237259719,0.87005105092517521,0.72425261333829538,0.68100000000000005]
["Historical (retired)","Undefined - Pac Mix ","002406",null,null,null,null,"Various ",null,null,null,null,null,"Undefined","Undefined",null,null,null,null,0.73947665387868655]
["Historical (retired)","Undefined - non-emitting","002500",null,null,null,null,"Various non-emitting",null,null,null,null,null,"Undefined","Undefined",null,null,null,null,0,0,0,0,0]
["Pacificorp CARB 2019","Paisley Geothermal",null,400003,null,59382,null,"Geothermal","38650 Highway 31",null,"Paisley",97636,"Lake","OR","USA"]
["Pacificorp CARB 2019","Horse Mesa HM4",null,500004,null,145,null,"Hydro","20909 E. Apache Trail",null,"Apache Junction",85119,"Maricopa","AZ","USA"]
["Pacificorp CARB 2019","Mormon Flat",null,500005,null,148,null,"Hydro","29600 E. Apache Trail",null,"Apache Junction",85119,"Maricopa","AZ","USA"]
["Pacificorp CARB 2019","Davis Dam",null,500006,null,152,null,"Hydro","N/A",null,"Kingman",86430,"Mohave","AZ","USA"]
["Pacificorp CARB 2019","Cabin Creek (CO)",null,500008,null,467,null,"Hydro","5167 Guanella Pass Road",null,"Georgetown",80444,"Clear Creek","CO","USA"]
["Pacificorp CARB 2019","Morrow Point",null,500009,null,514,null,"Hydro","n/a",null,"Montrose",81401,"Montrose","CO","USA"]
["Pacificorp CARB 2019","Dworshak",null,500012,null,840,null,"Hydro","1428 North Fork Drive",null,"Ahsahka",83520,"Clearwater","ID","USA"]
["Pacificorp CARB 2019","Quincy Chute Hydroelectric Project",null,500013,null,917,null,"Hydro","White Trail Road",null,"Quincy",98848,"Grant","WA","USA"]
["Pacificorp CARB 2019","Hungry Horse",null,500017,null,2203,null,"Hydro","n/a",null,"Columbia Falls",59919,"Flathead","MT","USA"]
["Pacificorp CARB 2019","Yellowtail",null,500018,null,2204,null,"Hydro","n/a",null,"Hardin",59034,"Big Horn","MT","USA"]
["Pacificorp CARB 2019","Round Butte Hydro Project",null,500020,null,3050,null,"Hydro","726 SW Lower Bend Rd",null,"Madras",97741,"Jefferson","OR","USA"]
["Pacificorp CARB 2019","Carmen Smith",null,500021,null,3067,null,"Hydro","59727 McKenzie Highway",null,"McKenzie Bridge",97413,"Linn","OR","USA"]
["Pacificorp CARB 2019","Detroit",null,500022,null,3077,null,"Hydro","40990 Hwy 22",null,"Mill City",97360,"Marion","OR","USA"]
["Pacificorp CARB 2019","John Day",null,500023,null,3082,null,"Hydro","HWY 84 exit",null,"Rufus",97050,"Sherman","OR","USA"]
["Pacificorp CARB 2019","McNary",null,500024,null,3084,null,"Hydro","82790 Devore Road",null,"Umatilla",97782,"Umatilla","OR","USA"]
["Pacificorp CARB 2019","The Dalles",null,500027,null,3895,null,"Hydro","3545 Bret Clodfelter Way",null,"The Dalles",97058,"Wasco","OR","USA"]
["Pacificorp CARB 2019","Mossyrock",null,500028,null,3918,null,"Hydro","418 Gershick Road",null,"Silver Creek",98585,"Lewis","WA","USA"]
["Pacificorp CARB 2019","Ice Harbor",null,500030,null,3925,null,"Hydro","2763 Monument Drive",null,"Burbank",99323,"Walla Walla","WA","USA"]
["Pacificorp CARB 2019","Little Goose",null,500031,null,3926,null,"Hydro","1001 Little Goose Dam Road",null,"Dayton",99328,"Columbia","WA","USA"]
["Pacificorp CARB 2019","Lower Monumental",null,500032,null,3927,null,"Hydro","5520 Devils Canyon Road",null,"Kahlotus",99335,"Walla Walla","WA","USA"]
["Pacificorp CARB 2019","Libby (USACE)",null,500034,null,6172,null,"Hydro","17115 Highway No. 37",null,"Libby",59923,"Lincoln","MT","USA"]
["Pacificorp CARB 2019","Lower Granite",null,500035,null,6175,null,"Hydro","885 Almota Ferry Road",null,"Pomeroy",99347,"Whitman","WA","USA"]
["Pacificorp CARB 2019","Ross Dam",null,500037,null,6202,null,"Hydro","500 Newhalem Street",null,"Rockport",98283,"Whatcom","WA","USA"]
["Pacificorp CARB 2019","Mount Elbert",null,500038,null,6208,null,"Hydro","n/a",null,"Twin Lakes",80461,"Lake","CO","USA"]
["Pacificorp CARB 2019","Flaming Gorge",null,500039,null,6405,null,"Hydro","n/a",null,"Dutch John",84023,"Daggett","UT","USA"]
["Pacificorp CARB 2019","Gorge Dam (WA)",null,500041,null,6431,null,"Hydro","500 Newhalem Street",null,"Rockport",98283,"Whatcom","WA","USA"]
["Pacificorp CARB 2019","Diablo Dam",null,500042,null,6432,null,"Hydro","500 Newhalem Street",null,"Rockport",98283,"Whatcom","WA","USA"]
["Pacificorp CARB 2019","Potholes East Canal Headworks Powerplant",null,500044,null,7113,null,"Hydro","SR 262",null,"Moses Lake",98837,"Grant","WA","USA"]
["Pacificorp CARB 2019","Duane Wiggins Hydro",null,500053,null,null,null,"Hydro","",null,"",null,"","OR","USA"]
["Pacificorp CARB 2019","McNary Fishway Hydro Project",null,500057,null,7511,null,"Hydro","McNary Federal Dam",null,"Plymouth",99346,"Benton","WA","USA"]
["Pacificorp CARB 2019","Packwood",null,500060,null,3929,null,"Hydro","179 Powerhouse Road",null,"Packwood",98361,"Lewis","WA","USA"]
["Pacificorp CARB 2019","Marana Hydro",null,500063,null,null,null,"Hydro","",null,"",null,"","AZ","USA"]
["Pacificorp CARB 2019","Paris Dam Hydro (CAN)",null,500156,null,null,null,"Hydro","",null,"",null,"","Not applicable","Canada"]
["Pacificorp CARB 2019","Eastside -Klamath River Hydroelectric Project",null,500161,null,3025,null,"Hydro","Conger Avenue",null,"Klamath Falls",97601,"Klamath","OR","USA"]
["Pacificorp CARB 2019","Westside - Klamath River Hydroelectric Project",null,500172,null,null,null,"Hydro","",null,"",null,"","OR","USA"]
["Pacificorp CARB 2019","Fountain Green",null,500179,null,null,null,"Hydro","",null,"",null,"","UT","USA"]
["Pacificorp CARB 2019","Olmsted",null,500181,null,3655,null,"Hydro","1018 N 1630 E Highway 16",null,"Orem",84601,"Utah","UT","USA"]
["Pacificorp CARB 2019","Snake Creek",null,500183,null,3658,null,"Hydro","Snake Creek Drive",null,"Midway",84049,"Wasatch","UT","USA"]
["Pacificorp CARB 2019","Garland Canal (Shoshone)",null,500196,null,57551,null,"Hydro","1457 Lane 11",null,"Powell",82435,"Park","WY","USA"]
["Pacificorp CARB 2019","Cameron A. Curtiss Hydro",null,500217,null,null,null,"Hydro","",null,"",null,"","OR","USA"]
["Pacificorp CARB 2019","Odell Creek",null,500227,null,null,null,"Hydro","",null,"",null,"","OR","USA"]
["Pacificorp CARB 2019","Twin Reservoirs (City of Walla Walla)",null,500238,null,50382,null,"Hydro","581 Mill Creek Road",null,"Walla Walla",99362,"Walla Walla","WA","USA"]
["Pacificorp CARB 2019","Condit Dam Hydropower {Retired: dam was removed}",null,500243,null,3846,null,"Hydro","Powerhouse Rd & Hwy 141",null,"White Salmon",98672,"Klickitat","WA","USA"]
["Pacificorp CARB 2019","Cline Falls {Retired: 2010}",null,500245,null,6482,null,"Hydro","Hwy 126 & Cline Falls Hwy",null,"Redmond",97756,"Deschutes","OR","USA"]
["Pacificorp CARB 2019","Albeni Falls",null,500297,null,851,null,"Hydro","2376 East Highway 2",null,"Oldtown",83822,"Bonner","ID","USA"]
["Pacificorp CARB 2019","Anderson Ranch",null,500298,null,6395,null,"Hydro","n/a",null,"Mountain Home",83647,"Elmore","ID","USA"]
["Pacificorp CARB 2019","Big Cliff",null,500299,null,3074,null,"Hydro","Route 22",null,"Gates",97346,"Marion","OR","USA"]
["Pacificorp CARB 2019","Black Canyon",null,500300,null,6396,null,"Hydro","n/a",null,"Emmet",83617,"Gem","ID","USA"]
["Pacificorp CARB 2019","Boise River Diversion",null,500301,null,6397,null,"Hydro","n/a",null,"Boise",83706,"Ada","ID","USA"]
["Pacificorp CARB 2019","Bonneville Dam",null,500302,null,3075,null,"Hydro","ATTN: Project Office",null,"Cascade Locks",97014,"Multnomah","OR","USA"]
["Pacificorp CARB 2019","Chandler",null,500303,null,6406,null,"Hydro","n/a",null,"Benton City",99320,"Benton","WA","USA"]
["Pacificorp CARB 2019","Chief Joseph",null,500304,null,3921,null,"Hydro","Hayden Rd",null,"Bridgeport",98813,"Douglas","WA","USA"]
["Pacificorp CARB 2019","Cougar",null,500305,null,3076,null,"Hydro","P.O.  BOX 429",null,"Lowell",97452,"Lane","OR","USA"]
["Pacificorp CARB 2019","Dexter",null,500307,null,3078,null,"Hydro","39149 Pengra Road",null,"Lowell",97452,"Lane","OR","USA"]
["Pacificorp CARB 2019","Foster",null,500309,null,6552,null,"Hydro","P.O. BOX 807, 2000 53rd Ave",null,"Foster",97345,"Linn","OR","USA"]
["Pacificorp CARB 2019","Grand Coulee",null,500310,null,6163,null,"Hydro","n/a",null,"Grand Coulee",99133,"Grant","WA","USA"]
["Pacificorp CARB 2019","Green Peter",null,500311,null,3080,null,"Hydro","Route 20",null,"Foster",97345,"Linn","OR","USA"]
["Pacificorp CARB 2019","Green Springs",null,500312,null,6403,null,"Hydro","n/a",null,"Columbia Falls",97520,"Jackson","OR","USA"]
["Pacificorp CARB 2019","Hills Creek",null,500313,null,3081,null,"Hydro","Rigdon Road",null,"Oakridge",97463,"Lane","OR","USA"]
["Pacificorp CARB 2019","Lookout Point",null,500319,null,3083,null,"Hydro","40386 West Boundary Road",null,"Lowell",97452,"Lane","OR","USA"]
["Pacificorp CARB 2019","Lost Creek",null,500320,null,6174,null,"Hydro","100 Cole M. Rivers Drive",null,"Trail",97541,"Jackson","OR","USA"]
["Pacificorp CARB 2019","Minidoka",null,500324,null,6398,null,"Hydro","n/a",null,"Rupert",83350,"Minidoka","ID","USA"]
["Pacificorp CARB 2019","Palisades",null,500325,null,850,null,"Hydro","n/a",null,"Palisades",83428,"Bonneville","ID","USA"]
["Pacificorp CARB 2019","Roza",null,500326,null,6407,null,"Hydro","n/a",null,"Yakima",98901,"Yakima","WA","USA"]
["Pacificorp CARB 2019","Cowlitz Falls",null,500367,null,7427,null,"Hydro","1379 Falls Road",null,"Randle",98377,"Lewis","WA","USA"]
["Pacificorp CARB 2019","Idaho Falls Bulb Turbine Project",null,500370,null,841,null,"Hydro","140 S. Capital Ave.",null,"Idaho Falls",83402,"Bonneville","ID","USA"]
["Pacificorp CARB 2019","Swift Creek Hydro (Lower Valley Energy, Inc.)",null,500375,null,6394,null,"Hydro","2nd and Monroe St",null,"Afton",83110,"Lincoln","WY","USA"]
["Pacificorp CARB 2019","Powerdale Dam",null,500377,null,3031,null,"Hydro","548 Highway 35",null,"Hood River",97031,"Hood River","OR","USA"]
["Pacificorp CARB 2019","Afton Lower Valley culinary hydro",null,501007,null,null,null,"Hydro","",null,"",null,"","WY","USA"]
["Pacificorp CARB 2019","Pelton Hydro Project",null,501008,null,3048,null,"Hydro","4133 NW Pelton Dam Rd",null,"Madras",97741,"Jefferson","OR","USA"]
["Pacificorp CARB 2019","Hood Street Reservoir Project",null,501010,null,null,null,"Hydro","",null,"",null,"","WA","USA"]
["Pacificorp CARB 2019","Wynoochee River Project",null,501012,null,7127,null,"Hydro","5120 Wynoochee Valley Road",null,"Montesano",98520,"Grays Harbor","WA","USA"]
["Pacificorp CARB 2019","Aberfeldie  Hydroelectric Generation Facility (CAN)",null,501020,null,null,null,"Hydro","",null,"",null,"","Not applicable","Canada"]
["Pacificorp CARB 2019","Ash River Hydroelectric Generation Facility (CAN)",null,501021,null,null,null,"Hydro","",null,"",null,"","Not applicable","Canada"]
["Pacificorp CARB 2019","Clowhom Hydroelectric Generation Facility (CAN)",null,501025,null,null,null,"Hydro","",null,"",null,"","Not applicable","Canada"]
["Pacificorp CARB 2019","Elko Hydroelectric Generation Facility (CAN)",null,501026,null,null,null,"Hydro","",null,"",null,"","Not applicable","Canada"]
["Pacificorp CARB 2019","Falls River Hydroelectric Generation Facility",null,501027,null,null,null,"Hydro","",null,"",null,"","Not applicable","Canada"]
["Pacificorp CARB 2019","John Hart Hydroelectric Generation Facility (CAN)",null,501029,null,null,null,"Hydro","",null,"",null,"","Not applicable","Canada"]
["Pacificorp CARB 2019","Jordan River Hydroelectric Generation Facility (CAN)",null,501030,null,null,null,"Hydro","",null,"",null,"","Not applicable","Canada"]
["Pacificorp CARB 2019","Ladore Hydroelectric Generation Facility (CAN)",null,501032,null,null,null,"Hydro","",null,"",null,"","Not applicable","Canada"]
["Pacificorp CARB 2019","LaJoie Hydroelectric Generation Facility (CAN)",null,501033,null,null,null,"Hydro","",null,"",null,"","Not applicable","Canada"]
["Pacificorp CARB 2019","Lake Buntzen 1 Hydroelectric Generation Facility (CAN)",null,501034,null,null,null,"Hydro","",null,"",null,"","Not applicable","Canada"]
["Pacificorp CARB 2019","Mica Hydroelectric Generation Facility (CAN)",null,501035,null,null,null,"Hydro","",null,"",null,"","Not applicable","Canada"]
["Pacificorp CARB 2019","Puntledge Hydroelectric Generation Facility (CAN)",null,501037,null,null,null,"Hydro","",null,"",null,"","Not applicable","Canada"]
["Pacificorp CARB 2019","Ruskin Hydroelectric Generation Facility (CAN)",null,501039,null,null,null,"Hydro","",null,"",null,"","Not applicable","Canada"]
["Pacificorp CARB 2019","Seton Hydroelectric Generation Facility (CAN)",null,501040,null,null,null,"Hydro","",null,"",null,"","Not applicable","Canada"]
["Pacificorp CARB 2019","Shuswap Hydroelectric Generation Facility (CAN)",null,501042,null,null,null,"Hydro","",null,"",null,"","Not applicable","Canada"]
["Pacificorp CARB 2019","Spillamacheen Hydroelectric Generation Facility (CAN)",null,501043,null,null,null,"Hydro","",null,"",null,"","Not applicable","Canada"]
["Pacificorp CARB 2019","Stave Falls LMS Hydroelectric Generation Facility (CAN)",null,501044,null,null,null,"Hydro","",null,"",null,"","Not applicable","Canada"]
["Pacificorp CARB 2019","Strathcona Hydroelectric Generation Facility (CAN)",null,501045,null,null,null,"Hydro","",null,"",null,"","Not applicable","Canada"]
["Pacificorp CARB 2019","Wahleach Hydroelectric Generation Facility (CAN)",null,501046,null,null,null,"Hydro","",null,"",null,"","Not applicable","Canada"]
["Pacificorp CARB 2019","Walter Hardman Hydroelectric Generation Facility (CAN)",null,501047,null,null,null,"Hydro","",null,"",null,"","Not applicable","Canada"]
["Pacificorp CARB 2019","Waneta Hydroelectric Generation Facility (CAN)",null,501048,null,null,null,"Hydro","",null,"",null,"","Not applicable","Canada"]
["Pacificorp CARB 2019","Whatshan Hydroelectric Generation Facility (CAN)",null,501049,null,null,null,"Hydro","",null,"",null,"","Not applicable","Canada"]
["Pacificorp CARB 2019","Akolkolex",null,501051,null,null,null,"Hydro","",null,"",null,"","Not applicable","Canada"]
["Pacificorp CARB 2019","Alouette Lake Hydroelectric Facility (CAN)",null,501052,null,null,null,"Hydro","",null,"",null,"","Not applicable","Canada"]
["Pacificorp CARB 2019","Arrow Lakes Hydro",null,501053,null,null,null,"Hydro","",null,"",null,"","Not applicable","Canada"]
["Pacificorp CARB 2019","Ashlu Creek Water Power",null,501054,null,null,null,"Hydro","",null,"",null,"","Not applicable","Canada"]
["Pacificorp CARB 2019","Barr Creek Hydro",null,501055,null,null,null,"Hydro","",null,"",null,"","Not applicable","Canada"]
["Pacificorp CARB 2019","Black Eagle Dam",null,501057,null,2181,null,"Hydro","336 Rainbow Dam Road",null,"Great Falls",59404,"Cascade","MT","USA"]
["Pacificorp CARB 2019","Bone Creek Hydro",null,501058,null,null,null,"Hydro","",null,"",null,"","Not applicable","Canada"]
["Pacificorp CARB 2019","Boston Bar Hydro",null,501059,null,null,null,"Hydro","",null,"",null,"","Not applicable","Canada"]
["Pacificorp CARB 2019","Brandywine Creek Small Hydro",null,501060,null,null,null,"Hydro","",null,"",null,"","Not applicable","Canada"]
["Pacificorp CARB 2019","Brilliant Expansion 1",null,501061,null,null,null,"Hydro","",null,"",null,"","Not applicable","Canada"]
["Pacificorp CARB 2019","Brown Lake Hydro",null,501062,null,null,null,"Hydro","",null,"",null,"","Not applicable","Canada"]
["Pacificorp CARB 2019","Canoe Creek Hydro",null,501063,null,null,null,"Hydro","",null,"",null,"","Not applicable","Canada"]
["Pacificorp CARB 2019","Castle Creek Hydro",null,501064,null,null,null,"Hydro","",null,"",null,"","Not applicable","Canada"]
["Pacificorp CARB 2019","China Creek Small hydro",null,501065,null,null,null,"Hydro","",null,"",null,"","Not applicable","Canada"]
["Pacificorp CARB 2019","Coats IPP",null,501066,null,null,null,"Hydro","",null,"",null,"","Not applicable","Canada"]
["Pacificorp CARB 2019","Cypress Creek",null,501068,null,null,null,"Hydro","",null,"",null,"","Not applicable","Canada"]
["Pacificorp CARB 2019","Dasque Hydroelectric Cluster",null,501069,null,null,null,"Hydro","",null,"",null,"","Not applicable","Canada"]
["Pacificorp CARB 2019","Doran Taylor Hydro",null,501070,null,null,null,"Hydro","",null,"",null,"","Not applicable","Canada"]
["Pacificorp CARB 2019","East Toba and Montrose Hydro",null,501071,null,null,null,"Hydro","",null,"",null,"","Not applicable","Canada"]
["Pacificorp CARB 2019","East Twin Creek Hydro",null,501072,null,null,null,"Hydro","",null,"",null,"","Not applicable","Canada"]
["Pacificorp CARB 2019","Eldorado Reservoir",null,501073,null,null,null,"Hydro","",null,"",null,"","Not applicable","Canada"]
["Pacificorp CARB 2019","Eltopia Branch Canal 4.6 Hydro",null,501074,null,56696,null,"Hydro","2481 Hooper Road",null,"Pasco",99301,"Franklin","WA","USA"]
["Pacificorp CARB 2019","Fitzsimmons Creek Hydro",null,501075,null,null,null,"Hydro","",null,"",null,"","Not applicable","Canada"]
["Pacificorp CARB 2019","Forrest Kerr Hydroelectric",null,501076,null,null,null,"Hydro","",null,"",null,"","Not applicable","Canada"]
["Pacificorp CARB 2019","Furry Creek Hydro",null,501077,null,null,null,"Hydro","",null,"",null,"","Not applicable","Canada"]
["Pacificorp CARB 2019","Haa-ak-suuk Creek Hydro",null,501078,null,null,null,"Hydro","",null,"",null,"","Not applicable","Canada"]
["Pacificorp CARB 2019","Hauer Creek Hydro",null,501079,null,null,null,"Hydro","",null,"",null,"","Not applicable","Canada"]
["Pacificorp CARB 2019","Hauser Dam",null,501080,null,2185,null,"Hydro","7150 Hauser Dam Road",null,"Helena",59602,"Lewis and Clark","MT","USA"]
["Pacificorp CARB 2019","Hystad Creek Hydro",null,501082,null,null,null,"Hydro","",null,"",null,"","Not applicable","Canada"]
["Pacificorp CARB 2019","Jamie Creek Hydro",null,501083,null,null,null,"Hydro","",null,"",null,"","Not applicable","Canada"]
["Pacificorp CARB 2019","Kemano Power Station (Alcan)",null,501084,null,null,null,"Hydro","",null,"",null,"","Not applicable","Canada"]
["Pacificorp CARB 2019","Kokish River Hydro",null,501085,null,null,null,"Hydro","",null,"",null,"","Not applicable","Canada"]
["Pacificorp CARB 2019","Kwalsa Energy Hydro Project",null,501086,null,null,null,"Hydro","",null,"",null,"","Not applicable","Canada"]
["Pacificorp CARB 2019","Kwoiek Creek Hydro",null,501087,null,null,null,"Hydro","",null,"",null,"","Not applicable","Canada"]
["Pacificorp CARB 2019","Long Lake Hydro",null,501089,null,null,null,"Hydro","",null,"",null,"","Not applicable","Canada"]
["Pacificorp CARB 2019","Lower Bear Hydro",null,501090,null,null,null,"Hydro","",null,"",null,"","Not applicable","Canada"]
["Pacificorp CARB 2019","Lower Clowhom Hydro",null,501091,null,null,null,"Hydro","",null,"",null,"","Not applicable","Canada"]
["Pacificorp CARB 2019","Madison Dam",null,501092,null,6422,null,"Hydro","950 Ennis Lake Road",null,"Ennis",59729,"Madison","MT","USA"]
["Pacificorp CARB 2019","Main Canal Headworks Hydro",null,501093,null,56698,null,"Hydro","Below east end Dry Falls Dam",null,"Coulee City",99115,"Grant","WA","USA"]
["Pacificorp CARB 2019","Mamquam Hydro",null,501094,null,null,null,"Hydro","",null,"",null,"","Not applicable","Canada"]
["Pacificorp CARB 2019","Marion 3 Creek Hydro",null,501095,null,null,null,"Hydro","",null,"",null,"","Not applicable","Canada"]
["Pacificorp CARB 2019","McDonald Ranch Hydro",null,501096,null,null,null,"Hydro","",null,"",null,"","Not applicable","Canada"]
["Pacificorp CARB 2019","McLymont Creek Hydro",null,501097,null,null,null,"Hydro","",null,"",null,"","Not applicable","Canada"]
["Pacificorp CARB 2019","McNair Creek Hydro",null,501098,null,null,null,"Hydro","",null,"",null,"","Not applicable","Canada"]
["Pacificorp CARB 2019","Mears Creek Hydro",null,501099,null,null,null,"Hydro","",null,"",null,"","Not applicable","Canada"]
["Pacificorp CARB 2019","Miller Creek Power",null,501100,null,null,null,"Hydro","",null,"",null,"","Not applicable","Canada"]
["Pacificorp CARB 2019","Mystic Lake Dam",null,501102,null,2192,null,"Hydro","2065 W. Rosebud Road",null,"Fishtail",59028,"Stillwater","MT","USA"]
["Pacificorp CARB 2019","Nanaimo Reservoir",null,501103,null,null,null,"Hydro","",null,"",null,"","Not applicable","Canada"]
["Pacificorp CARB 2019","Northwest Stave River Hydro",null,501104,null,null,null,"Hydro","",null,"",null,"","Not applicable","Canada"]
["Pacificorp CARB 2019","Paris Creek Hydro",null,501105,null,null,null,"Hydro","",null,"",null,"","ID","USA"]
["Pacificorp CARB 2019","Pingston Creek Hydro",null,501106,null,null,null,"Hydro","",null,"",null,"","Not applicable","Canada"]
["Pacificorp CARB 2019","Potholes East Canal 66.0 Hydro",null,501107,null,56697,null,"Hydro","9440 Sagemoor Road",null,"Pasco",99301,"Franklin","WA","USA"]
["Pacificorp CARB 2019","Raging River 1 Small Hydro",null,501108,null,null,null,"Hydro","",null,"",null,"","Not applicable","Canada"]
["Pacificorp CARB 2019","Robson Valley (Ptarmigan Creek - RBV)",null,501109,null,null,null,"Hydro","",null,"",null,"","Not applicable","Canada"]
["Pacificorp CARB 2019","Rutherford Creek Hydro",null,501110,null,null,null,"Hydro","",null,"",null,"","Not applicable","Canada"]
["Pacificorp CARB 2019","Sakwi Creek Hydro",null,501111,null,null,null,"Hydro","",null,"",null,"","Not applicable","Canada"]
["Pacificorp CARB 2019","Salmon Inlet (Sechelt Creek) Hydro",null,501112,null,null,null,"Hydro","",null,"",null,"","Not applicable","Canada"]
["Pacificorp CARB 2019","Seaton Creek Hydro (Homestead)",null,501113,null,null,null,"Hydro","",null,"",null,"","Not applicable","Canada"]
["Pacificorp CARB 2019","Skookum Power (aka Mamquam Skookum)",null,501114,null,null,null,"Hydro","",null,"",null,"","Not applicable","Canada"]
["Pacificorp CARB 2019","Soo River Hydro",null,501115,null,null,null,"Hydro","",null,"",null,"","Not applicable","Canada"]
["Pacificorp CARB 2019","South Cranberry Creek Hydro",null,501116,null,null,null,"Hydro","",null,"",null,"","Not applicable","Canada"]
["Pacificorp CARB 2019","South Sutton Creek Hydro",null,501117,null,null,null,"Hydro","",null,"",null,"","Not applicable","Canada"]
["Pacificorp CARB 2019","Squamish Power Hydro Project",null,501118,null,null,null,"Hydro","",null,"",null,"","Not applicable","Canada"]
["Pacificorp CARB 2019","Summer Falls Power Plant Hydro",null,501119,null,56695,null,"Hydro","29313 Pinto Ridge Road NE",null,"Coulee City",99115,"Grant","WA","USA"]
["Pacificorp CARB 2019","Tretheway Creek Hydro",null,501120,null,null,null,"Hydro","",null,"",null,"","Not applicable","Canada"]
["Pacificorp CARB 2019","Tyson Creek Hydro",null,501121,null,null,null,"Hydro","",null,"",null,"","Not applicable","Canada"]
["Pacificorp CARB 2019","Upper Bear Hydro",null,501122,null,null,null,"Hydro","",null,"",null,"","Not applicable","Canada"]
["Pacificorp CARB 2019","Upper Clowhom Hydro",null,501123,null,null,null,"Hydro","",null,"",null,"","Not applicable","Canada"]
["Pacificorp CARB 2019","Upper Mamquam Hydro",null,501124,null,null,null,"Hydro","",null,"",null,"","Not applicable","Canada"]
["Pacificorp CARB 2019","Upper Stave River Hydro",null,501125,null,null,null,"Hydro","",null,"",null,"","Not applicable","Canada"]
["Pacificorp CARB 2019","Volcano Creek hydro",null,501126,null,null,null,"Hydro","",null,"",null,"","Not applicable","Canada"]
["Pacificorp CARB 2019","Walden North Hydro",null,501127,null,null,null,"Hydro","",null,"",null,"","Not applicable","Canada"]
["Pacificorp CARB 2019","Waneta Dam Expansion",null,501128,null,null,null,"Hydro","",null,"",null,"","Not applicable","Canada"]
["Pacificorp CARB 2019","Zeballos Lake Hydro",null,501130,null,null,null,"Hydro","",null,"",null,"","Not applicable","Canada"]
["Pacificorp CARB 2019","Silversmith Power & Light",null,501133,null,null,null,"Hydro","",null,"",null,"","Not applicable","Canada"]
["Pacificorp CARB 2019","Big Silver and Shovel Creek hydro (CAN)",null,501135,null,null,null,"Hydro","",null,"",null,"","Not applicable","Canada"]
["Pacificorp CARB 2019","Box Canyon Hydro (CAN)",null,501136,null,null,null,"Hydro","",null,"",null,"","Not applicable","Canada"]
["Pacificorp CARB 2019","Culliton Creek Hydro (CAN)",null,501137,null,null,null,"Hydro","",null,"",null,"","Not applicable","Canada"]
["Pacificorp CARB 2019","Jimmie Creek Hydro (Upper Toba Valley) (CAN)",null,501139,null,null,null,"Hydro","",null,"",null,"","Not applicable","Canada"]
["Pacificorp CARB 2019","Lorenzetta Creek Hydroelectric Project (CAN)",null,501140,null,null,null,"Hydro","",null,"",null,"","Not applicable","Canada"]
["Pacificorp CARB 2019","McIntosh Creek Waterpower Project (CAN)",null,501141,null,null,null,"Hydro","",null,"",null,"","Not applicable","Canada"]
["Pacificorp CARB 2019","Morehead Creek Hydro (CAN)",null,501142,null,null,null,"Hydro","",null,"",null,"","Not applicable","Canada"]
["Pacificorp CARB 2019","Boulder Creek Hydro",null,510100,null,null,null,"Hydro","",null,"",null,"","Not applicable","Canada"]
["Pacificorp CARB 2019","Cranberry Creek Power Hydro",null,510102,null,null,null,"Hydro","",null,"",null,"","Not applicable","Canada"]
["Pacificorp CARB 2019","Eagle Lake C2 Micro Hydro",null,510103,null,null,null,"Hydro","",null,"",null,"","Not applicable","Canada"]
["Pacificorp CARB 2019","Upper Lillooet River Hydro",null,510108,null,null,null,"Hydro","",null,"",null,"","Not applicable","Canada"]
["Pacificorp CARB 2019","Hunter Creek Run-of-River Hydroelectric Project",null,510110,null,null,null,"Hydro","",null,"",null,"","Not applicable","Canada"]
["Pacificorp CARB 2019","Narrows Inlet Hydro Project",null,510112,null,null,null,"Hydro","",null,"",null,"","Not applicable","Canada"]
["Pacificorp CARB 2019","Winchie Creek Hydro",null,510113,null,null,null,"Hydro","",null,"",null,"","Not applicable","Canada"]
["Pacificorp CARB 2019","Columbia Generating Station",null,600001,null,371,null,"Nuclear","PO Box 968",null,"Richland",99352,"Benton","WA","USA"]
["Pacificorp CARB 2019","Ashland Solar",null,700030,null,null,null,"Solar","",null,"",null,"","OR","USA"]
["Pacificorp CARB 2019","Arlington Valley Solar Project",null,700100,null,57680,null,"Solar","South of Elliot Road and west",null,"Arlington",85326,"Maricopa","AZ","USA"]
["Pacificorp CARB 2019","SunMine Solar Project",null,700120,null,null,null,"Solar","",null,"",null,"","Not applicable","Canada"]
["Pacificorp CARB 2019","Great Valley Solar 1",null,710128,null,59940,null,"Solar","34886 W. Dinuba Ave. #C",null,"Cantua Creek",93608,"Fresno","CA","USA"]
["Pacificorp CARB 2019","Mesquite Solar 3",null,710132,null,60308,null,"Solar","39903 W. Elliot Road",null,"Tonopah",85354,"Maricopa","AZ","USA"]
["Pacificorp CARB 2019","Mountain Wind 2",null,800022,null,56753,null,"Wind","1749 CR 202",null,"Fort Bridger",82933,"Uinta","WY","USA"]
["Pacificorp CARB 2019","Combine Hills",null,800023,null,56195,null,"Wind","84700 White Reservoir Road",null,"Milton-Freewater",97862,"Umatilla","OR","USA"]
["Pacificorp CARB 2019","Red Mesa Wind LLC",null,800048,null,57357,null,"Wind","401 Red Mesa Road",null,"Seboyeta",87014,"Sandoval","NM","USA"]
["Pacificorp CARB 2019","Palouse Wind",null,800052,null,57530,null,"Wind","1171 Baird Road",null,"Oakesdale",99170,"Whitman","WA","USA"]
["Pacificorp CARB 2019","Vansycle/Stateline Wind Project {Retired: split into 3 different IDs}",null,800139,null,55560,null,"Wind","356 Touchet Gardena Road",null,"Touchet",99360,"Walla Walla","WA","USA"]
["Pacificorp CARB 2019","Wheat Field Wind",null,800166,null,56854,null,"Wind","73501 Blalock Canyon Road",null,"Arlington",97812,"Gilliam","OR","USA"]
["Pacificorp CARB 2019","Bear Mountain Wind Park",null,810010,null,null,null,"Wind","",null,"",null,"","Not applicable","Canada"]
["Pacificorp CARB 2019","Colorado Highlands Wind",null,810020,null,57174,null,"Wind","20670 County Road 85",null,"Fleming",80728,"Logan","CO","USA"]
["Pacificorp CARB 2019","Kit Carson Windpower",null,810021,null,57244,null,"Wind","22330 County Road 44",null,"Burlington",80807,"Kit Carson","CO","USA"]
["Pacificorp CARB 2019","Pennask Wind Farm",null,810104,null,null,null,"Wind","",null,"",null,"","Not applicable","Canada"]
["Pacificorp CARB 2019","Shinish Creek Wind Farm",null,810106,null,null,null,"Wind","",null,"",null,"","Not applicable","Canada"]
["Pacificorp CARB 2019","Condon Windpower Project",null,810108,null,55739,null,"Wind","15981 Highway 206",null,"Condon",97823,"Gilliam","OR","USA"]
["Pacificorp CARB 2019","Klondike Wind Power I",null,810109,null,55871,null,"Wind","98536 Klondike Lane",null,"Wasco",97065,"Sherman","OR","USA"]
["Pacificorp CARB 2019","Cerro Prieto Geothermal Power Plants (MEX)",null,900005,null,null,null,"Geothermal","",null,"",null,"","Not applicable","Mexico"]
["Pacificorp CARB 2019","Little Mountain {Retired: 2011}",null,900008,null,6553,null,"Natural Gas","765 North 10500 West",null,"Ogden",84404,"Weber","UT","USA"]
["Pacificorp CARB 2019","Carbon {Retired: 2015}",null,900014,1000960,3644,null,"Coal","Hwy 6 & Hwy 91, 12 mi N Price",null,"Price",84526,"Carbon","UT","USA"]
["Pacificorp CARB 2019","Black Hills Power Inc - Ben French Power Plant {Retired: 2014}",null,900024,1006217,3325,null,"Coal","393 Deadwood Avenue",null,"Rapid City",57702,"Pennington","SD","USA"]
["Pacificorp CARB 2019","Desert Peak Geothermal Plant",null,900031,null,10018,null,"Geothermal (Closed System)","10750 I-80 East, Exit 65",null,"Fernley",89406,"Lyon","NV","USA"]
["Pacificorp CARB 2019","Desert Peak II Geothermal Plant OEC1",null,900032,null,10018,null,"Geothermal (Closed System)","10750 I-80 East, Exit 65",null,"Fernley",89406,"Lyon","NV","USA"]
["Pacificorp CARB 2019","Empire {Retired: now part of San Emidio facility}",null,900035,null,50760,null,"Geothermal (Open System)","P.O. Box 135",null,"P.O. Box 135",89412,"Washoe","NV","USA"]
["Pacificorp CARB 2019","Stillwater II",null,900036,null,50765,null,"Geothermal (Closed System)","4785 Lawrence Lane",null,"Fallon",89406,"Churchill","NV","USA"]
["Pacificorp CARB 2019","Steamboat 1a",null,900037,null,52138,null,"Geothermal (Closed System)","1010 Power Plant Drive",null,"Reno",89521,"Washoe","NV","USA"]
["Pacificorp CARB 2019","Wabuska",null,900042,null,55988,null,"Geothermal (Open System)","15 Julian Lane",null,"Yerington",89447,"Lyon","NV","USA"]
["Pacificorp CARB 2019","Brady Hot Springs OEC",null,900043,null,55991,null,"Geothermal (Open System)","10750 I-80 East, Exit 65",null,"Fallon",89406,"Churchill","NV","USA"]
["Pacificorp CARB 2019","Raft River Geothermal GE 1",null,900044,null,56317,null,"Geothermal (Closed System)","2960 South 2100 East",null,"Malta",83342,"Cassia","ID","USA"]
["Pacificorp CARB 2019","Blue Mountain Geothermal Project",null,900048,null,56982,null,"Geothermal (Closed System)","15250 Blue Mountain Road",null,"Winnemucca",89445,"Humboldt","NV","USA"]
["Pacificorp CARB 2019","Salt Wells Geothermal",null,900049,null,57213,null,"Geothermal (Closed System)","6059 Salt Wells Road",null,"Fallon",89406,"Churchill","NV","USA"]
["Pacificorp CARB 2019","Jersey Valley Geothermal",null,900051,null,57376,null,"Geothermal (Closed System)","Jersey Valley Rd",null,"Imlay",89418,"Pershing","NV","USA"]
["Pacificorp CARB 2019","HW Hill Landfill Gas (aka Roosevelt Biogas 1)",null,900052,1003676,7832,null,"Landfill Gas","502 Roosevelt Grade Road",null,"Roosevelt",99356,"Klickitat","WA","USA"]
["Pacificorp CARB 2019","Riverbend Renewable Energy Facility",null,900054,1007687,57019,null,"Landfill Gas","13469 SW Highway 18",null,"McMinnville",97128,"Yamhill","OR","USA"]
["Pacificorp CARB 2019","Klamath Expansion Project",null,900064,1000076,55544,null,"Natural Gas","4940 Hwy 97 South",null,"Klamath Falls",97603,"Klamath","OR","USA"]
["Pacificorp CARB 2019","Burrard Generating Station (CAN)",null,900068,null,null,null,"Natural Gas","",null,"",null,"","Not applicable","Canada"]
["Pacificorp CARB 2019","Prince Rupert Generating Station (CAN)",null,900069,null,null,null,"Natural Gas","",null,"",null,"","Not applicable","Canada"]
["Pacificorp CARB 2019","Georgia-Pacific Wauna Mill",null,900071,1008042,56192,null,"Natural Gas","92326 Taylorville Road",null,"Clatskanie",97016,"Clatsop","OR","USA"]
["Pacificorp CARB 2019","Nippon Paper Co-Generation",null,900072,null,58352,null,"Biomass","1815 Marine Drive",null,"Port Angeles",98363,"Clallam","WA","USA"]
["Pacificorp CARB 2019","Whelan Energy Center",null,900074,1006654,60,null,"Coal","4520 East South St.",null,"Hastings",68902,"Adams","NE","USA"]
["Pacificorp CARB 2019","Rawhide Unit",null,900081,1001062,6761,null,"Natural Gas","2700 East  Co. Rd. 82",null,"Wellington",80549,"Larimer","CO","USA"]
["Pacificorp CARB 2019","Davis County Waste Management (Wasatch Energy Systems)",null,900123,1007282,55302,null,"Municipal Solid Waste (MSW)","",null,"",null,"","UT","USA"]
["Pacificorp CARB 2019","Horseshoe Bend Wind Farm - Montana",null,900158,null,56591,null,"Wind","316 McIver Road",null,"Great Falls",59404,"Cascade","MT","USA"]
["Pacificorp CARB 2019","Camas Cogen",null,900167,1005998,57759,null,"Natural Gas","401 NE Adams St",null,"Camas",98607,"Clark","WA","USA"]
["Pacificorp CARB 2019","Reid Gardner Station",null,900254,1006882,2324,null,"Coal","I-15, Exit 88 Hidden Valley Rd",null,"Moapa",89025,"Clark","NV","USA"]
["Pacificorp CARB 2019","Harquahala Generating Project",null,900259,1000100,55372,null,"Natural Gas","2530 North 491 Ave",null,"Tonopah",85354,"Maricopa","AZ","USA"]
["Pacificorp CARB 2019","Rocky Brook",null,900388,null,50228,null,"Hydro","3020 Dosewallips road",null,"Brinnon",98320,"Jefferson","WA","USA"]
["Pacificorp CARB 2019","Warm Springs Forest Products",null,900539,null,50426,null,"Biomass","",null,"",null,"","OR","USA"]
["Pacificorp CARB 2019","Yellowstone Energy",null,900557,1007803,50931,null,"Coal and coke","2215 N. Frontage Rosd",null,"Billings",59101,"Yellowstone","MT","USA"]
["Pacificorp CARB 2019","Evergreen BioPower",null,900561,null,56781,null,"Biomass","141 14th St",null,"Lyons",97358,"Linn","OR","USA"]
["Pacificorp CARB 2019","Rough & Ready Lumber",null,900562,null,50945,null,"Biomass","",null,"",null,"","OR","USA"]
["Pacificorp CARB 2019","Deruyter Dairy",null,900564,null,null,null,"Digester Gas","",null,"",null,"","WA","USA"]
["Pacificorp CARB 2019","Magnesium Corporation of America",null,900572,1000030,58191,null,"Natural Gas","12819 N. Skull Valley Road",null,"Rowley",84029,"Tooele","UT","USA"]
["Pacificorp CARB 2019","Armstrong Woodwaste Cogeneration (CAN)",null,901600,null,null,null,"Biomass","",null,"",null,"","Not applicable","Canada"]
["Pacificorp CARB 2019","Laramie River Station",null,910000,1001045,6204,null,"Coal and coke","Hwy 320",null,"Wheatland",82201,"Platte","WY","USA"]
["Pacificorp CARB 2019","Basin Creek Plant",null,910001,1011063,55866,null,"Natural gas","500 Nils Drive",null,"Butte",59701,"Silver Bow","MT","USA"]
["Pacificorp CARB 2019","150 Mile House Waste Heat",null,910010,null,null,null,"Waste Heat","",null,"",null,"","Not applicable","Canada"]
["Pacificorp CARB 2019","Cache Creek Landfill",null,910012,null,null,null,"Landfill Gas","",null,"",null,"","Not applicable","Canada"]
["Pacificorp CARB 2019","Cariboo Pulp and Paper",null,910013,null,null,null,"Biomass","",null,"",null,"","Not applicable","Canada"]
["Pacificorp CARB 2019","Cedar Road LFG Inc. (Nanaimo Landfill Gas)",null,910014,null,null,null,"Landfill Gas","",null,"",null,"","Not applicable","Canada"]
["Pacificorp CARB 2019","Celgar Green Energy Project",null,910015,null,null,null,"Biomass","",null,"",null,"","Not applicable","Canada"]
["Pacificorp CARB 2019","Chetwynd Biomass",null,910016,null,null,null,"Biomass","",null,"",null,"","Not applicable","Canada"]
["Pacificorp CARB 2019","Conifex Green Energy",null,910017,null,null,null,"Biomass","",null,"",null,"","Not applicable","Canada"]
["Pacificorp CARB 2019","Crowsnest Pass Waste Heat",null,910018,null,null,null,"Waste Heat","",null,"",null,"","Not applicable","Canada"]
["Pacificorp CARB 2019","Fraser Lake Biomass",null,910021,null,null,null,"Biomass","",null,"",null,"","Not applicable","Canada"]
["Pacificorp CARB 2019","Fraser Richmond Soil and Fibre",null,910022,null,null,null,"Digester Gas","",null,"",null,"","Not applicable","Canada"]
["Pacificorp CARB 2019","Greater Nanaimo PCC Cogeneration",null,910023,null,null,null,"Digester Gas","",null,"",null,"","Not applicable","Canada"]
["Pacificorp CARB 2019","Harmac Biomass (Pulp Mill)",null,910024,null,null,null,"Biomass","",null,"",null,"","Not applicable","Canada"]
["Pacificorp CARB 2019","Hartland Landfill Generator",null,910025,null,null,null,"Landfill Gas","",null,"",null,"","Not applicable","Canada"]
["Pacificorp CARB 2019","Houweling Nurseries",null,910026,null,null,null,"Natural Gas","",null,"",null,"","Not applicable","Canada"]
["Pacificorp CARB 2019","Howe Sound Green Energy Project (Pulp mill)",null,910027,null,null,null,"Biomass","",null,"",null,"","Not applicable","Canada"]
["Pacificorp CARB 2019","Intercon Green Power (Canfor Pulp)",null,910028,null,null,null,"Biomass","",null,"",null,"","Not applicable","Canada"]
["Pacificorp CARB 2019","Island Generation",null,910029,null,null,null,"Natural Gas","",null,"",null,"","Not applicable","Canada"]
["Pacificorp CARB 2019","Kamloops Green Energy (Domtar Pulp)",null,910030,null,null,null,"Biomass","",null,"",null,"","Not applicable","Canada"]
["Pacificorp CARB 2019","LP Golden Biomass (laminated veneer lumber mill)",null,910032,null,null,null,"Biomass","",null,"",null,"","Not applicable","Canada"]
["Pacificorp CARB 2019","McMahon Cogeneration",null,910033,null,null,null,"Natural Gas","",null,"",null,"","Not applicable","Canada"]
["Pacificorp CARB 2019","Northwood Green Power Project (Canfor Pulp)",null,910034,null,null,null,"Biomass","",null,"",null,"","Not applicable","Canada"]
["Pacificorp CARB 2019","NWE Williams Lake WW",null,910035,null,null,null,"Biomass","",null,"",null,"","Not applicable","Canada"]
["Pacificorp CARB 2019","PGP Bio Energy Project",null,910036,null,null,null,"Biomass","",null,"",null,"","Not applicable","Canada"]
["Pacificorp CARB 2019","Powell River Generation (Catalyst paper)",null,910037,null,null,null,"Biomass","",null,"",null,"","Not applicable","Canada"]
["Pacificorp CARB 2019","Savona ERG",null,910038,null,null,null,"Waste Heat","",null,"",null,"","Not applicable","Canada"]
["Pacificorp CARB 2019","Seegen (MSW)",null,910039,null,null,null,"Municipal Solid Waste (MSW)","",null,"",null,"","Not applicable","Canada"]
["Pacificorp CARB 2019","Skookumchuck Power Project (Pulp mill)",null,910040,null,null,null,"Biomass","",null,"",null,"","Not applicable","Canada"]
["Pacificorp CARB 2019","Tolko Kelowna Cogeneration",null,910043,null,null,null,"Biomass","",null,"",null,"","Not applicable","Canada"]
["Pacificorp CARB 2019","Vancouver Landfill Gas Utilization",null,910044,null,null,null,"Landfill Gas","",null,"",null,"","Not applicable","Canada"]
["Pacificorp CARB 2019","Central Presidente Juárez (MEX)",null,910045,null,null,null,"Natural Gas","",null,"",null,"","Not applicable","Mexico"]
["Pacificorp CARB 2019","Central Turbogas Ciprés (MEX)",null,910055,null,null,null,"Distillate","",null,"",null,"","Not applicable","Mexico"]
["Pacificorp CARB 2019","Central Turbogas Mexicali (MEX)",null,910056,null,null,null,"Distillate","",null,"",null,"","Not applicable","Mexico"]
["Pacificorp CARB 2019","Fort St. James Green Energy",null,910105,null,null,null,"Biomass","",null,"",null,"","Not applicable","Canada"]
["Pacificorp CARB 2019","Merritt Green Energy",null,910109,null,null,null,"Biomass","",null,"",null,"","Not applicable","Canada"]
["Pacificorp CARB 2019","Glenarm",null,910123,1001459,422,null,"","43 East State Street",null,"Pasadena",91105,"Los Angeles","CA","USA"]
["Historical","Energy Imbalance Market","102401",null,null,null,null,"Various",null,null,null,null,null,"Undefined","Undefined"]

{"sheet":"Facilities Look Up","index":4,"n_rows":325,"n_cols":5,"rows_kept":325,"cut":false,"hidden":false,"merged":[[0,1,0,4]]}
["2019 Reported Specified Sources","Source IDs"]
["Facility Name","Oregon DEQ ID","California Air Resources Board            (CARB) ID","Environmental Protection Agency                    (US EPA) ID","Energy Information Administration (US EIA) ID"]
["45 Mile Hydroelectric Project (EBD Hydro)","111583",501050,null,58455]
["Adams Solar Center","111256",710119,null,61496]
["Ashton","111567",500240,null,825]
["Ballard Hog Farms","113304",900563]
["Bear Creek Dam Hydro Turbine (City of Astoria)","111584",501056]
["Bear Creek Solar Center","111257",710122,null,61281]
["Beaver",111800,910100,1002488,8073]
["Bell Mountain Hydro (Pancheri)","111540",500202]
["Bell Mountain Power (Jake Amy)","111577",501003]
["Bend","111571",500246,null,6484]
["Bennett Mountain Power",111801,910101,1000244,55733]
["Beryl Solar Plant","111210",700106,null,58598]
["Big Fork","111570",500244,null,6459]
["Big Horn II-Wind",113000,800180]
["Big Horn PPM-Wind Power Project",113001,800177,null,56361]
["Big Top, LLC","111338",800157,null,56968]
["Biglow Canyon Wind Farm (Phase 3)",113002,810003,null,56485]
["Biomass One, L.P.","110201",900038,null,10869]
["Birch Creek Hydro","111541",500203,null,10140]
["Black Cap Solar (Lakeview, OR)","111201",700002,null,58150]
["Black Cap Solar II","111225",700122]
["Blundell PacifiCorp Geothermal","111405",901652,null,299]
["Bly Solar Center","111258",710123,null,62272]
["Bogus Creek (Lower Cold Springs/Upper Cold Springs)","111572",500247]
["Bonanza Power Plant","110305",900133,1001149,7790]
["Bonneville Power Administration","112400",300001]
["Bourdet 1 solar (5713351)","111209",700105]
["Bourdet 2 solar ( 5903801)","111226",700123]
["Box Canyon Dam (Siskiyou Power Authority)","111573",500248,null,50179]
["Buckhorn Solar Plant","111211",700107,null,58600]
["Butter Creek Power, LLC.","111339",800158,null,56967]
["BYUI Central Energy Facility","111817",910011,null,59496]
["Campbell Hill Windpower Project (Three Buttes Windpower LLC)","111326",800053,null,57090]
["Carmen-Smith Hydroelectric Project","101500"]
["Carty Generating Station","111802",910102,1012606,58503]
["Casper Wind Farm","111336",800154,null,57093]
["C-Drop Hydro","111507",500050,null,58470]
["Cedar Valley Solar","111212",700108,null,58599]
["Chehalis","111814",900017,1000144,55662]
["Chiloquin Solar","111259",710124,null,61631]
["Cholla Power Station","110302",900010,1001421,113]
["Chopin Wind","111348",810018,null,59076]
["City of Albany Hydro","111553",500216]
["City of Buffalo Hydropower Plant","111593",500195]
["City of Portland, Portland Water Bureau","111508",500051]
["Clearwater 1","111568",500241,null,3020]
["Clearwater 2","111569",500242,null,3021]
["Collier Solar (OSLH, LLC)","111242",710102,null,60976]
["Colstrip","110700",900325]
["Columbia Ridge Landfill","101600"]
["Consolidated Irrigation Company hydro project","111585",501067]
["Copco 1 -Klamath River Hydroelectric Project","111539",500190,null,294]
["Copco 2 -Klamath River Hydroelectric Project","111590",500191,null,295]
["Copper Dam (Farmers Irrigation District)","111557",500221,null,10323]
["Covanta","102700"]
["Cowiche (Yakima-Tieton Irrigation District)","111589",900556,null,50423]
["Coyote Springs I","111803",910103,1001119,7350]
["Craig","110310",900460,1001008,6021]
["Crook County Solar 1, LLC","111202",700005]
["CTWS Utilities Solar","111206",700102]
["Currant Creek","111812",900004,1000436,56102]
["Cutler Hydropower","111531",500178,null,3646]
["Dairy (OR Solar 8)","111260",710125,null,61424]
["Dave Johnston","110303",900011,1000990,4158]
["Dorena Hydroelectric Facility","111578",501004,null,59357]
["Douglas County Forest Products","110203",900559]
["Draper Irrigation","111509",500052]
["Dry Creek (Idaho)","111544",500206,null,54394]
["Dunlap I","111341",800175,null,57299]
["Eagle Point","111515",500160,null,3024]
["Eagle Point Irrigation District (Nichols Gap Plant)","111555",500219]
["Eagle Point Solar (NorWest Energy 7)","111243",710103,null,61560]
["Ebay Solar","111203",700006]
["Elbe Solar Center","111261",710126,null,61497]
["Elkhorn Valley Wind Farm","113003",800050]
["Energy Imbalance Market","102401"]
["Enterprise Solar LLC","111232",700131,null,59386]
["Escalante Solar I","111233",700132,null,59387]
["Escalante Solar II","111234",700133,null,59388]
["Escalante Solar III","111235",700134,null,59389]
["Eurus Combine Hills II LLC","111309",800010,null,57137]
["Evander Andrews Power Complex","111804",910104,1000120,7953]
["EWEB Customer Owned Solar","102100"]
["Fall Creek -Klamath River Hydroelectric Project","111591",500192,null,296]
["Falls Creek","111556",500220,null,52187]
["Farm Power Misty Meadows","113303",900075]
["Farm Power Tillamook LLC","100201"]
["Felt Hydro Plant (CDM Hydro)","111542",500204,null,10028]
["Fiddler's Canyon #1 Solar Plant","111214",700110,null,59787]
["Fiddler's Canyon #2 Solar Plant","111215",700111,null,59786]
["Fiddler's Canyon #3 Solar Plant","111216",700112,null,59932]
["Finley Buttes Landfill Gas (Finley Bioenergy)","111601",900356,1004516,58687]
["Fish Creek","111516",500162,null,3026]
["Foote Creek I Wind","111322",800044,null,55607]
["Foote Creek II (Storage and Integration)","111343",800195,null,55608]
["Foote Creek III","111337",800156,null,55609]
["Foote Creek IV","111335",800151,null,55610]
["Foote Creek Wind","103000"]
["Four Corners Windfarm, LLC","111334",800148,null,56969]
["Four Mile Canyon Windfarm, LLC","111333",800147,null,56970]
["FPL Energy Vansycle LLC (OR)","111350",810102,null,55989]
["FPL Energy Vansycle LLC (WA)","111351",810103,null,55560]
["Gadsby","111811",900003,1006811,3648]
["Gala Solar (Solar Star Oregan II)","112100",710104]
["Galesville Dam","111566",500233,null,50938]
["Georgetown Power","111545",500207,null,472]
["Glenrock I","111317",800037,null,56841]
["Glenrock III","111345",810007,null,56841]
["Goodnoe Hills","111316",800036,null,56666]
["Grace","111511",500154,null,827]
["Granite","111532",500180,null,3651]
["Granite Mountain Solar East","111236",700135,null,59946]
["Granite Mountain Solar West","111237",700136,null,59945]
["Granite Peak Solar Plant","111217",700113,null,58604]
["Grant County PUD","101501"]
["Grays Harbor Energy","111805",900060,1000207,7999]
["Greenville Solar Plant","111218",700114,null,58603]
["Guaranty Chevrolet","102101"]
["Gunlock","111528",500175]
["Hammerich 1","111244",710105]
["Hammerich 2","111245",710106]
["Hayden","110308",900343,1001466,525]
["Hermiston","111806",900183,1003652,54761]
["High Plains","111320",800040,null,57040]
["Hill Air Force Base","111603",900565]
["Horseshoe Bend Wind","103001"]
["Hunter","110306",900134,1001036,6165]
["Huntington","110300",900002,1001193,8069]
["Idaho Falls Gem State Project","111588",900190,null,790]
["International Paper Cogeneration - NG","101801"]
["International Paper Cogeneration - waste","102600"]
["Iron Gate -Klamath River Hydroelectric Project","111592",500193,null,297]
["Iron Springs Solar","111238",700137,null,59941]
["J Bar 9 Ranch Wind","111327",800081]
["Jim Bridger Total Plant","110701",900013,1001192,8066]
["John C Boyle - Klamath River Hydroelectric Project","111517",500163,null,3028]
["Joseph Community Solar","111204",700007]
["Juniper Canyon Wind","113004",800011]
["Juniper Ridge Hydroelectric Project (Central Oregon ID)","111506",500048,null,57437]
["Keeton 1","111246",710107]
["Keeton 2","111247",710108]
["Kennecott Utah Copper Corporation","110307",900220,1005234,56163]
["Kettle Butte Dairy Biofactory","113300",900028,null,57344]
["Klamath Falls Cogeneration","111807",900276,1001314,55103]
["Klamath Falls Solar 1","111213",700109]
["Klamath Falls Solar 2","111248",710109,null,61553]
["Klondike Windpower II","113005",800051]
["Klondike Windpower III","113006",800029,null,56468]
["Lacomb Irrigation","111558",500222,null,52155]
["Laho Solar Plant","111219",700115,null,58602]
["Lake Chelan Hydroelectric Facility","111500",500040,null,6424]
["Lake Creek Hydro (Mountain Energy, Inc)","111510",500058]
["Lake Side","111813",900006,1000454,56237]
["Lakeview I","111262",710130]
["Lakeview II","111263",710131]
["Lakeview Solar (OR Solar 6)","111249",710110,null,61430]
["Lane Electric - King Estate","102102"]
["Langley Gulch Power Plant","111808",910107,1007379,57028]
["Last Chance","111514",500158,null,987]
["Latigo Wind Park","111347",810012,null,59965]
["Leaburg Hydro","101502"]
["Leaning Juniper","113007",800034,null,56360]
["Leaning Juniper II","113008",800178,null,57333]
["Lemolo 1","111518",500164,null,3029]
["Lemolo 2","111526",500173,null,6421]
["Little Cottonwood Lower Facility (Cottonwood Hydro LLC)","111564",500230,null,6537]
["Little Cottonwood Upper Facility (Cottonwood Hydro LLC)","111586",501088]
["Lochmead","100200"]
["Loki","101802"]
["Loyd Fery Hydro","111559",500223]
["Macquarie","101503"]
["Marengo Wind Farm I","111314",800035,null,56466]
["Marengo Wind Farm I","111315",800035,null,56466]
["Marengo Wind Farm II","111344",810002,null,56466]
["Marsh Valley Hydro & Electric Company","111547",500209,null,50972]
["McFadden Ridge","111321",800041,null,57039]
["McNary Dam Fishway","101504"]
["Meadow Creek Project Company (Five Pine & North Point)","111310",800019,null,58106]
["Merrill Solar (OR Solar 5)","111250",710112,null,61423]
["Merwin","111536",500186,null,3847]
["Mid-C Hydro - Priest Rapids and Wanapum dams (Grant County PUD)","111501",500054,null,3887]
["Mid-C Hydro - Rocky Reach (Chelan County PUD)","111502",500055,null,3883]
["Mid-C Hydro - Wanapum (Grant County PUD)","111504",500236]
["Middlefork Irrigation District","111560",500224,null,50917]
["Milford 2 Solar Plant","111220",700116,null,59958]
["Milford Flat Solar Plant","111221",700117,null,58601]
["Mink Creek Hydro","111548",500210,null,10325]
["Monroe Hydro","111587",501101]
["Montague Wind Power Facility","113009",910318]
["Mountain Wind","111312",800021,null,56752]
["Moyer Tolles - Umatilla","102103"]
["Naughton","110304",900012,1000991,4162]
["Neal Hot Springs Geothermal Plant","111400",900078,null,58022]
["Neff Solar (NorWest Energy 2)","111251",710113,null,60548]
["Nicholson Sunnybar Ranch","111549",500211]
["North Fork","101505"]
["North Fork Sprague","111561",500226,null,10737]
["North Valmy Station","110702",900025,1001197,8224]
["Northern Wasco PUD","101506"]
["NorWest Energy 4 (Bonanza)","111266",910322,null,62268]
["NorWest Energy 9 (Pendleton)","111264",710134,null,62241]
["O.J. Power Company","111550",500212]
["Oak Grove","101507"]
["Old Mill Solar","111227",700125,null,59374]
["Oneida","111512",500155,null,829]
["Opal Springs (Deschutes Valley Water District)","111554",500218,null,54251]
["Oregon Environmental Industries","111604",900566,null,56461]
["Oregon Institute of Technology","111300",400001]
["Oregon Solar","102104"]
["Oregon Solar Incentive program (rooftop solar)","111207",700103]
["Oregon State University","111815",900067,1004658,57653]
["Oregon Trail Windfarm, LLC","111331",800145,null,56971]
["Pacific Canyon Windfarm, LLC","111329",800143,null,56972]
["Paisley Geothermal","101300"]
["Paris Creek Hydro project","111582",501011]
["Paul Luckey (hydro)","111574",500249]
["Pavant Solar I","111222",700118,null,59702]
["Pavant Solar II","111252",710114,null,60449]
["Pavant Solar III","111228",700126]
["Pelton Round Butte","111503",510106,null,3048]
["PGE Faraday Dam","101508"]
["Pioneer","111533",500182,null,3656]
["Pioneer Wind Park I","111239",700139,null,60259]
["Port Westward 1","111809",910110,1000455,56227]
["Port Westward 2","111810",910111,1000455,58266]
["Portland Hydro","101509"]
["Portneuf River Hydro (Commercial Energy Management)","111543",500205]
["Powell Butte Solar","111208",700104]
["Power County North","111324",800046,null,57761]
["Power County South","111325",800047,null,57760]
["Powerex ","112401",300002]
["Preston City Hydro","111551",500214]
["Prospect 1","111519",500165,null,3032]
["Prospect 2","111520",500166,null,3033]
["Prospect 3","111521",500167,null,3034]
["Prospect 4","111522",500168,null,3035]
["Quichapa 1 Solar Project","111229",700127]
["Quichapa 2 Solar Project","111230",700128]
["Quichapa 3 Solar Project","111231",700129]
["Raft River","101301"]
["Rawlins Field Office Wind Turbine (BLM)","111346",810009]
["Res-AG Oak Lea, LLC","113301",900029]
["River Mill","101510"]
["Rock River I Wind","111323",800045,null,55740]
["Rolling Hills","111318",800038,null,56842]
["Roseburg Forest Products  (Dillard cogeneration)","110202",900391,1004416,50396]
["Roseburg Forest Products - (Weed cogeneration)","110200",900022,null,56469]
["Roseburg LFG Energy, LLC","111600",900055,1005384,57911]
["Roush Hydro, Inc","111562",500228]
["Sage Solar I","111267",910324]
["Sage Solar II","111268",910325]
["Sage Solar III","111269",910326]
["Salmon Diesel","101000"]
["Sand Cove","111530",500177]
["Sand Ranch Windfarm, LLC","111330",800144,null,56973]
["Santiam Water Control District","111563",500229]
["Seven Mile Hill I","111319",800039,null,56843]
["Shell Energy","101511"]
["Shell Puget Sound Refinery","101803"]
["Shiloh Warm Springs Ranch","111546",500208]
["Short Mountain","101601"]
["Shute Creek","111818",910052,1002150,56312]
["Simplot - Pocatello","102800"]
["Simplot Phosphates, LLC","112403",900420,1003087,54472]
["Siphon (Central Oregon ID)","111552",500215,null,50980]
["Slate Creek","111575",500251,null,50961]
["Slide Creek","111527",500174,null,3036]
["Sly Farms","102105"]
["Smith Creek Hydro","101512"]
["Soda","111513",500157,null,831]
["Soda Lake Geothermal No I II","111401",900039,null,52174]
["Soda Springs","111523",500169,null,3037]
["Solwatt, LLC (phase I)","111205",700009]
["Solwatt, LLC (phase II)","111241",700141]
["South Milford Solar Plant","111223",700119,null,59620]
["Spanish Fork Wind Park 2","111311",800020,null,56751]
["St Anthony Hydro plant","111579",501005]
["Stahlbush Island Farms, Inc.","113305",900587]
["Stairs","111534",500184,null,3659]
["Stone Creek Hydro","101513"]
["Sullivan Hydro","101514"]
["Sunnyside Cogeneration Associates","110309",900439,1004953,50951]
["Swalley Irrigation District","111576",500710]
["Sweetwater Solar","111265",710137,null,61369]
["Swift 1","111537",500187,null,3850]
["Swift No.2 Hydroelectric Project (Cowlitz PUD)","111505",500045,null,6265]
["Tacoma Power","112402",104567]
["Tamarack","113100"]
["Tata Chemicals Green River Facility","110311",910003,1005040,54318]
["Tesoro Refining & Marketing Co.","111816",900575,1006039,56509]
["Thayn Ranch Hydro","111565",500232]
["The Dalles North Shore Fishway Project ","101515"]
["Three Peaks Solar","111240",700140,null,60432]
["Three Sisters Irrigation District","111580",501006]
["Threemile Canyon Biodigester","113302",900030,null,58382]
["Threemile Canyon Wind, LLC","111332",800146,null,56933]
["Tiber Dam","101516"]
["Toketee Falls","111524",500170,null,3040]
["Tooele Army Depot","111349",810019,null,59817]
["Top of the World","111342",800176,null,57327]
["Trailbridge Hydro","101517"]
["Tucannon River Wind Farm","113010",810016,null,58571]
["Tumbleweed Solar","111253",710115,null,61580]
["Turkey Hill Solar (OR Solar 3)","111254",710116,null,61201]
["University of Oregon ","101804"]
["Unspecified Purchase",102400,999999]
["Utah Red Hills Renewable Park (Solar)","111224",700121,null,58660]
["Vansycle II Wind Energy Center","111352",810107,null,58324]
["Veyo Dam","111529",500176]
["Viva Naughton hydro","111581",501009]
["Wagon Trail, LLC","111340",800159,null,56974]
["Wallowa Falls","111525",500171,null,3041]
["Walterville Hydro","101518"]
["Ward Butte Windfarm, LLC","111328",800142,null,56975]
["Wauna Cogeneration Project (Exchange) - NG","101805"]
["Wauna Cogeneration Project (Exchange) - Wood","113101"]
["Wauna Cogeneration Project (Exchange) -other","102601"]
["Weber County Landfill (Utah)","111602",900543]
["Weber Hydro Project","111535",500185,null,3661]
["Wolverine Creek","111313",800028,null,56301]
["Woodline Solar","111255",710117,null,61559]
["Wyodak","110301",900007,1001028,6101]
["Yale","111538",500188,null,3852]

{"sheet":"EPEs","index":5,"n_rows":147,"n_cols":4,"rows_kept":147,"cut":false,"hidden":true,"merged":[]}
["ARB ID","EPE Name","EDU Type (CTR)","EPE Type All"]
[3006,"3 Phases Renewables - EPE",null,"ESP"]
[104659,"Agera Energy LLC - RSO",null,"ESP"]
[3022,"Alameda Municipal Power - RSO","POU","POU"]
[104727,"American PowerNet Management, LP - RSO",null,"ESP"]
[3023,"Anaheim, City of PUD - EPE","POU","POU"]
[104578,"Anza Electric Cooperative - RSO","COOP","Co-op"]
[104725,"Apple Valley Choice Energy - RSO",null,"CCA"]
[2098,"Arizona Electric Power Cooperative (AEPCo) - EPE",null,"Marketer"]
[104131,"Arizona Public Service Company (APS) - EPE",null,"Marketer"]
[2292,"Avangrid Renewables - EPE",null,"Marketer"]
[104677,"Avista Utilities - EPE",null,"Marketer"]
[3024,"Azusa Light & Water - EPE","POU","POU"]
[3025,"Banning, City of Electric Department - EPE","POU","POU"]
[3000,"Bear Valley Electric Service - RSO","IOU","IOU"]
[3026,"Biggs Municipal Utilities - RSO","POU","POU"]
[4000,"Bonneville Power Administration (BPA) - ACS",null,"ACS"]
[2044,"Bonneville Power Administration (BPA) - EPE",null,"Marketer"]
[104692,"Boston Energy Trading & Marketing - EPE",null,"Marketer"]
[2113,"BP Energy Company - EPE",null,"Marketer"]
[104120,"Brookfield Renewable Trading & Marketing LP - EPE",null,"Marketer"]
[3027,"Burbank Water & Power - EPE","POU","POU"]
[104826,"CalEnergy LLC - EPE",null,"Marketer"]
[3072,"California Department of Water Resources (DWR) - EPE",null,"State"]
[3010,"Calpine Corporation - EPE",null,"ESP"]
[3018,"Calpine Energy Solutions, LLC - EPE",null,"ESP"]
[3029,"Cerritos, City of - EPE","POU","POU"]
[104628,"Chapel Street Environmental II - EPE",null,"Marketer"]
[2428,"Citigroup Energy Inc. - EPE",null,"Marketer"]
[104749,"Clean Power Alliance (CPA) - EPE",null,"CCA"]
[104705,"CleanPowerSF - RSO",null,"CCA"]
[3031,"Colton, City of - EPE","POU","POU"]
[104570,"Comision Federal de Electricidad (CFE) - EPE",null,"Marketer"]
[104646,"Commercial Energy of California - RSO",null,"ESP"]
[104828,"Consolidated Edison Energy, Inc. - EPE",null,"Marketer"]
[3012,"Constellation NewEnergy, Inc. - EPE",null,"ESP"]
[3032,"Corona, City of Department of Water & Power - EPE","POU","POU"]
[104674,"CWP Energy - EPE",null,"Marketer"]
[2264,"Direct Energy Business, LLC (fka Strategic Energy) - EPE",null,"ESP"]
[104742,"DTE Energy Trading, Inc. - EPE",null,"Marketer"]
[104758,"East Bay Community Energy - RSO",null,"CCA"]
[3033,"Eastside Power Authority - RSO","POU","POU"]
[104452,"EDF Industrial Power Services (CA), LLC - RSO",null,"ESP"]
[104067,"EDF Trading North America, LLC - EPE",null,"Marketer"]
[104829,"Enel Trading North America, LLC - EPE",null,"Marketer"]
[2078,"Exelon Generation Company, LLC - EPE",null,"Marketer"]
[104507,"Gexa Energy California, LLC - RSO",null,"ESP"]
[3034,"Glendale Water & Power - EPE","POU","POU"]
[3035,"Gridley Electric Utility - RSO","POU","POU"]
[104473,"Guzman Energy - EPE",null,"Marketer"]
[104716,"Guzman Renewables Energy Partners - EPE",null,"Marketer"]
[3036,"Healdsburg Electric Dept. - RSO","POU","POU"]
[104708,"Idaho Power - EPE",null,"Marketer"]
[3038,"Imperial Irrigation District (IID) - EPE","POU","POU"]
[3030,"Industry, City of - RSO","POU","POU"]
[104335,"J. Aron & Company LLC - EPE",null,"Marketer"]
[3011,"Just Energy Solutions Inc. - RSO",null,"ESP"]
[104774,"King City Community Power - RSO",null,"CCA"]
[3001,"Kirkwood Meadows PUD Powerhouse - RSO","POU","POU"]
[104211,"La Rosita Power - EPE",null,"Marketer"]
[104641,"Lancaster, City of - RSO",null,"CCA"]
[3039,"Lassen Municipal Utility District - RSO","POU","POU"]
[104656,"Lathrop Irrigation District - RSO",null,"POU"]
[104099,"Liberty Utilities (CalPeco Electric) LLC - EPE","IOU","IOU"]
[3040,"Lodi Electric Utility - RSO","POU","POU"]
[3041,"Lompoc, City of - RSO","POU","POU"]
[3042,"Los Angeles Department of Water & Power (LADWP) - EPE","POU","POU"]
[2112,"Macquarie Energy LLC - EPE",null,"Marketer"]
[104573,"MAG Energy Solutions, Inc. - EPE",null,"Marketer"]
[104463,"Marin Clean Energy - RSO",null,"CCA"]
[3044,"Merced Irrigation District - RSO","POU","POU"]
[2046,"Metropolitan Water District of Southern California (MWD) - EPE",null,"POU"]
[3045,"Modesto Irrigation District (MID) - EPE","POU","POU"]
[104726,"Monterey Bay Community Power - RSO",null,"CCA"]
[3046,"Moreno Valley Utility - RSO","POU","POU"]
[2369,"Morgan Stanley Capital Group Inc. - EPE",null,"Marketer"]
[3047,"Needles, City of - EPE","POU","POU"]
[2388,"Nevada Power Company (dba NV Energy) - EPE",null,"Marketer"]
[104225,"Nextera Energy Marketing, LLC - EPE",null,"Marketer"]
[2215,"Northern California Power Agency (NCPA) - EPE",null,"Power Agency"]
[3051,"Oakland, Port of - RSO","POU","POU"]
[3002,"Pacific Gas & Electric Company (PG&E) - EPE","IOU","IOU"]
[3003,"PacifiCorp - MJRP","IOU","MJRP"]
[3048,"Palo Alto, City of - RSO","POU","POU"]
[3049,"Pasadena Water & Power - EPE","POU","POU"]
[104698,"Peninsula Clean Energy - RSO",null,"CCA"]
[104728,"Pico Rivera Innovative Municipal Energy - RSO",null,"CCA"]
[3016,"Pilot Power Group, LLC - RSO",null,"ESP"]
[104773,"Pioneer Community Energy - RSO",null,"CCA"]
[5024,"Pittsburg Power Company - RSO ","POU","POU"]
[3100,"Plumas-Sierra REC - EPE","COOP","Co-op"]
[2127,"Portland General Electric Company (PGE) - EPE",null,"Marketer"]
[3053,"Power and Water Resources Pooling Authority (PWRPA) - RSO","POU","POU"]
[3101,"Powerex Corp. - ACS",null,"ACS"]
[2243,"Powerex Corp. - EPE",null,"Marketer"]
[104777,"Praxair Plainfield, Inc. - RSO",null,"Marketer"]
[104625,"Public Service Company of Colorado (PSCo) - EPE",null,"Marketer"]
[104744,"Public Service Company of New Mexico (PNM) - EPE",null,"Marketer"]
[104462,"Puget Sound Energy - EPE",null,"Marketer"]
[104203,"Rainbow Energy Marketing Corporation (REMC) - EPE",null,"Marketer"]
[3054,"Rancho Cucamonga Municipal Utility - EPE","POU","POU"]
[104767,"Rancho Mirage Energy Authority - RSO",null,"CCA"]
[3055,"Redding Electric Utility - EPE","POU","POU"]
[104712,"Redwood Coast Energy Authority (RCEA) - EPE",null,"CCA"]
[3056,"Riverside, City of Public Utilities - EPE","POU","POU"]
[3057,"Roseville Electric - EPE","POU","POU"]
[3058,"Sacramento Municipal Utility District (SMUD) - EPE","POU","POU"]
[104461,"Salt River Project - EPE",null,"Marketer"]
[3004,"San Diego Gas & Electric (SDG&E) - EPE","IOU","IOU"]
[3028,"San Francisco Hetch Hetchy Water and Power (CCSF) - RSO","POU","POU"]
[104768,"San Jacinto Power - RSO",null,"CCA"]
[104793,"San Jose Clean Energy - RSO",null,"CCA"]
[3061,"Santa Clara, City of (SVP) - EPE ","POU","POU"]
[2060,"Sempra Gas & Power Marketing, LLC - EPE",null,"Marketer"]
[3059,"Shasta Lake, City of - RSO","POU","POU"]
[3081,"Shell Energy North America (US), L.P. - EPE",null,"ESP"]
[2438,"Sierra Pacific Power Company (dba NV Energy) - EPE",null,"Marketer"]
[104720,"Silicon Valley Clean Energy Authority (SVCEA) - RSO",null,"CCA"]
[104764,"Solana Energy Alliance (SEA) - EPE",null,"CCA"]
[104537,"Sonoma Clean Power - RSO",null,"CCA"]
[3005,"Southern California Edison (SCE) - EPE","IOU","IOU"]
[3052,"Stockton, Port of - RSO","POU","POU"]
[104837,"Sun Streams LLC - EPE",null,"Marketer"]
[104579,"Surprise Valley Electrification Corp. - RSO","COOP","Co-op"]
[104567,"Tacoma Power - ACS",null,"ACS"]
[105757,"Tacoma Power - EPE",null,"Marketer"]
[104827,"TEC Energy Inc. - EPE",null,"Marketer"]
[104194,"Tenaska Power Services Co. - EPE",null,"ESP"]
[2427,"Terra-Gen Dixie Valley, LLC - EPE",null,"Marketer"]
[2278,"The Energy Authority, Inc. - EPE",null,"Marketer"]
[104518,"The Regents of the University of California - RSO",null,"ESP"]
[5047,"Tiger Natural Gas, Inc. - RSO",null,"ESP"]
[2312,"TransAlta Energy Marketing (US), Inc. - EPE",null,"Marketer"]
[104230,"TransCanada Energy Sales Ltd. - EPE",null,"Marketer"]
[3063,"Truckee Donner PUD - EPE","POU","POU"]
[3064,"Turlock Irrigation District (TID) - EPE","POU","POU"]
[104515,"Twin Eagle Resource Management, LLC - EPE",null,"Marketer"]
[3065,"Ukiah, City of Electric Utilities Division - RSO","POU","POU"]
[104750,"Valley Clean Energy Alliance (VCEA) - RSO",null,"CCA"]
[104510,"Valley Electric Association (VEA) - EPE","COOP","Marketer"]
[3066,"Vernon Public Utilities - EPE","POU","POU"]
[104830,"Viasyn, Inc. - EPE",null,"Marketer"]
[3067,"Victorville Municipal Utility Services - RSO","POU","POU"]
[104467,"Vitol Inc. - EPE",null,"Marketer"]
[104745,"WAPA - Colorado River Storage Project (CRSP) - EPE",null,"Marketer"]
[3078,"WAPA - Desert Southwest Region - EPE",null,"Marketer"]
[3079,"WAPA - Sierra Nevada Region (SNR) - EPE","POU","POU"]